Workbook

Sheet อ่านก่อน (hidden)
D2: อ่านตรงนี้ก่อนครับ
B3: โปรแกรมนี้ จัดทำขึ้น โดย ทีมงานนักบริหารงานช่างรุ่นที่ 61 สถาบันพัฒนาบุคลากรท้องถิ่น กรมส่งเสริมการปกครองท้องถิ่น กระทรวงมหาดไทย
B4: โดยมีวัตถุประสงค์เพื่อช่วยในการปฏิบัติงานสำหรับหน่วยงานช่าง ขององค์กรปกครองส่วนท้องถิ่น การนำไปใช้ต้องพิจารณาและคำนึงถึงแบบรูปรายการ
B5: ลักษณะ รูปแบบ ข้อเท็จจริงของงานก่อสร้างด้วย ตัวโปรแกรมจัดทำขึ้นในลักษณะ Open Source ผู้ใช้สามารถนำไปปรับแก้ไขได้ตามความเหมาะสม
B6: ทั้งนี้ การแก้ไขสูตรต่างๆ หรือการปรับใช้งานควรมีพื้นฐานความรู้เกี่ยวกับการใช้งาน Excel พอสมควร หากยังไม่ชำนาญควรปรึกษาผู้มีความรู้ก่อนแก้ไข
B7: สำหรับโปรแกรมนี้ได้ปรับปรุงค่าขนส่ง ค่าดำเนินการค่าเสื่อมราคาล่าสุดตาม หนังสือกรมบัญชีกลาง ด่วนที่สุด ที่ กค 0421.5/ว 399 ลงวันที่ 15 ต.ค. 2558
B8: เรียบร้อยแล้วโดยได้รับความร่วมมือจากทีมงานช่วยในการกรอกข้อมูล จัดทำไว้ที่ราคาน้ำมัน 20 - 45 บาท ทั้งนี้ผู้นำไปใช้ต้องรับผิดชอบตรวจสอบ
B9: ความถูกต้องของข้อมูลและการใช้งาน ให้เป็นไปตามแบบรูปรายการ ระเบียบ กฎหมาย หนังสือสั่งการ และมติคณะรัฐมนตรีเกี่ยวกับการคำนวณ
B10: ราคากลางงานก่อสร้างของทางราชการด้วย
B12: ทีมงานนักบริหารงานช่าง รุ่นที่ 61 หวังเป็นอย่างยิ่งว่าโปรแกรมที่จัดทำนี้ จะเป็นเครื่องมือช่วยในการปฏิบัติงานให้แก่ผู้ปฏิบัติงานด้านช่างองค์กร
B13: ปกครองส่วนท้องถิ่นได้เป็นอย่างดี ทั้งนี้ หากพบข้อผิดพลาดจากการใช้งานโปรดแจ้งที่ e-mail : t.tharatep@gmail.com จะขอบคุณยิ่ง
D15: ทีมงานผู้จัดทำ
C16: 1 | D16: นายพิสิฐ | E16: คำหวาย | F16: ช่างสิฐ | G16: องค์การบริหารส่วนตำบลบางรักพัฒนา จังหวัดนนทบุรี
C17: 2 | D17: นายวิทมล | E17: แผ้วสูงเนิน | F17: ช่างเอ๋ | G17: องค์การบริหารส่วนตำบลหนองไฮ จังหวัดอุดรธานี
C18: 3 | D18: นายชนะ | E18: อิ้งสมจิตร์ | F18: ช่างโจ้ | G18: เทศบาลตำบล จ.ป.ร. จังหวัดระนอง
C19: 4 | D19: พันจ่าอากาศตรีฤทธิเดช | E19: อุ่นใจ | F19: ช่างเหน่ง | G19: องค์การบริหารส่วนตำบลบ่อ จังหวัดน่าน
C20: 5 | D20: นายธราเทพ | E20: ทองเบ้า | F20: ช่างอ่าง | G20: องค์การบริหารส่วนตำบลตะปอน จังหวัดจันทบุรี

Sheet ข้อมูลโครงการ (hidden)
D2: กรอกข้อมูลโครงการ(เฉพาะช่องสีขาวตัวอักษรสีเขียวเท่านั้น)
D3: 1. ข้อมูลสภาวะน้ำมันราคาเฉลี่ย ณ ปัจจุบัน | W3: จังหวัดพื้นที่ฝนตกชุก | AB3: น้ำมัน | AD3: สภาพพื้นที่ | AF3: กำลังอัด | AH3: ข้อมูลเหล็กเส้นกลม | AM3: แปลงวันที่ตัวเลขเป็นข้อความ | AP3: ดอกเบี้ยเงินกู้(MRL) | AR3: VAT
W4: ฝนตกชุก 1 | X4: ฝนตกชุก 2 | AB4: 20.5 | AD4: =IF($N$6="เขตฝนปกติ",0,IF($N$6="เขตฝนตกชุก 1",1,IF($N$6="เขตฝนตกชุก 2",1,"ERROR"))) -> 0 | AF4: 180 | AH4: ขนาดเหล็ก(มม.) | AI4: น้ำหนักเหล็ก(กก./ม.) | AJ4: น้ำหนักเหล็ก(กก./ท่อน) | AK4: การเผื่อเหล็ก(%) | AM4: คำสั่ง | AP4: 6 | AR4: 7
E5: ราคาน้ำมันโซล่า ณ อำเภอเมืองเฉลี่ย | L5: 28.5 | N5: บาท | W5: จันทบุรี | X5: ตราด | AB5: 21.5 | AD5: น้ำมันคำนวณ | AF5: 240 | AH5: 6 | AI5: 0.222 | AJ5: =AI5*10 -> 2.22 | AK5: 5 | AM5: =P67 -> 2562-03-29 | AP5: 7 | AR5: 10
E6: อยู่ในท้องที่จังหวัด | L6: จังหวัดอื่นๆ | N6: =IF(L6="จังหวัดอื่นๆ","เขตฝนปกติ","เขตฝนตกชุก "&'Factor F'!U6) -> เขตฝนปกติ | W6: ชุมพร | X6: นราธิวาส | AB6: 22.5 | AD6: =L5-0.5 -> 28 | AF6: 300 | AH6: 9 | AI6: 0.499 | AJ6: =AI6*10 -> 4.99 | AK6: 7 | AM6: d ดดดด bbbb | AP6: 8
W7: เชียงราย | X7: พังงา | AB7: 23.5 | AF7: 350 | AH7: 12 | AI7: 0.888 | AJ7: =AI7*10 -> 8.88 | AK7: 9 | AM7: =TEXT(AM5,AM6) -> 29 มีนาคม 3105 | AP7: 9
D8: 2. ข้อมูลทั่วไป | W8: ตรัง | X8: ภูเก็ต | AB8: 24.5 | AH8: 15 | AI8: 1.39 | AJ8: =AI8*10 -> 13.9 | AK8: 11 | AM8: วันที่ประมาณราคา | AP8: 10
W9: นครพนม | X9: ยะลา | AB9: 25.5 | AM9: =P68 -> 2019-04-29
D10: 2.1 | E10: ชื่อโครงการ | L10: ก่อสร้างสะพานข้ามคลองหล ม.18 | W10: นครศรีธรรมราช | X10: ระนอง | AB10: 26.5 | AM10: d ดดดด bbbb
D11: 2.2 | E11: ชื่อองค์กรปกครองส่วนท้องถิ่น | L11: เทศบาลตำบลบ้านส้อง | W11: ปราจีนบุรี | AB11: 27.5 | AF11: เหล็กเสริม คสล. | AI11: ความกว้างของถนน | AK11: ความหนาของถนน | AM11: =TEXT(AM9,AM10) -> 29 เมษายน 2562
D12: 2.3 | E12: ชื่อสายทาง | W12: ปัตตานี | AB12: 28.5 | AF12: WIRE MESH | AI12: 2 | AJ12: มี | AK12: 0.15
D13: 2.4 | E13: สถานที่ก่อสร้าง | L13: หมู่ที่ 18 ตำบลบ้านส้อง อำเภอเวียงสระ จังหวัดสุราษฏร์ธานี | W13: พัทลุง | AB13: 29.5 | AF13: เหล็กเส้นกลม | AI13: 2.5 | AJ13: ไม่มี | AK13: 0.2 | AM13: จันทบุรี | AN13: 1
D14: 2.5 | E14: แบบ เลขที่แบบ | L14: ทต.บ้านส้อง | W14: สงขลา | AB14: 30.5 | AF14: เหล็กข้ออ้อย | AI14: 3 | AK14: 0.23 | AM14: ชุมพร | AN14: 1
D15: 3. ข้อมูลรายละเอียดแบบก่อสร้าง | W15: สตูล | AB15: 31.5 | AI15: 3.5 | AK15: 0.25 | AM15: เชียงราย | AN15: 1
AB16: 32.5 | AF16: เหล็กรอยต่อ | AI16: 4 | AM16: ตรัง | AN16: 1
W17: หนองคาย | AB17: 33.5 | AF17: เหล็กเส้นกลม | AI17: 4.5 | AK17: ความหนาของทราย | AM17: นครพนม | AN17: 1
AB18: 34.5 | AF18: เหล็กข้ออ้อย | AI18: 5 | AK18: 0.05 | AM18: นครศรีธรรมราช | AN18: 1
AB19: 35.5 | AI19: 6 | AK19: 0.07 | AM19: ปราจีนบุรี | AN19: 1
AB20: 36.5 | AF20: ขนาดเหล็กlong | AK20: 0.1 | AM20: ปัตตานี | AN20: 1
AB21: 37.5 | AF21: 12 | AI21: ขนาดเหล็ก | AM21: พัทลุง | AN21: 1
AB22: 38.5 | AF22: 16 | AI22: =IF($P$38="WIRE MESH",4,6) -> 4 | AM22: สงขลา | AN22: 1
AB23: 39.5 | AF23: 20 | AI23: =IF($P$38="WIRE MESH",6,9) -> 6 | AM23: สตูล | AN23: 1
AB24: 40.5 | AM24: สุราษฎร์ธานี | AN24: 1
D25: 3.1 | E25: โครงสร้างถนนคอนกรีต | AB25: 41.5 | AF25: ขนาดเหล็กExp | AM25: หนองคาย | AN25: 1
E26: 3.1.1 | F26: กว้าง | O26: = | P26: 5 | Q26: ม. | AB26: 42.5 | AF26: 15 | AM26: ตราด | AN26: 2
E27: 3.1.2 | F27: หนา | O27: = | Q27: ม. | AB27: 43.5 | AF27: 19 | AM27: นราธิวาส | AN27: 2
E28: 3.1.3 | F28: ยาว | O28: = | P28: 10 | Q28: ม. | AB28: 44.5 | AM28: พังงา | AN28: 2
E29: 3.1.4 | F29: ไหล่ทางกว้างข้างละ | O29: = | P29: 0 | Q29: ม. | AB29: 45.5 | AF29: ขนาดเหล็กCon | AM29: ภูเก็ต | AN29: 2
E30: 3.1.5 | F30: ทรายรองพื้นหนา | N30: =P27+P30 -> 0.05 | O30: = | P30: 0.05 | Q30: ม. | AF30: 15 | AM30: ยะลา | AN30: 2
E31: 3.1.6 | F31: ค่ากำลังอัดของคอนกรีตที่อายุ 28 วัน(CUBE) = | N31: =IF(P31="ค1","180 Ksc",IF(P31="ค2","240 Ksc",IF(P31="ค3","300 Ksc",IF(P31="ค4","420 Ksc",0)))) -> 300 Ksc | O31: = | P31: ค3 | Q31: (มาตรฐานทางหลวงชนบท) | AF31: 19 | AM31: ระนอง | AN31: 2
F32: ชนิดคอนกรีต อ้างอิงจาก มาตรฐานงานทางหลวงท้องถิ่น กรมทางหลวงชนบท กระทรวงคมนาคม มถ 101-2550(หน้า 1-1 ถึง 1-9) | AM32: จังหวัดอื่นๆ
F33: ข้อสังเกตุ มถ 314-2550 กำหนดปริมาณปูนซีเมนต์ เท่ากับ ชนิดคอนกรีต ค3 ของ มถ 101-2550 แต่กำลังอัด เท่ากับ 325 Ksc
F34: ซึ่งค่ากำลังอัดดังกล่าวตรงตามแบบมาตรฐานงานทาง(ทั้งนี้ผู้ประมาณราคาสามารถกำหนดชนิดคอนกรีตตามคุณภาพชั้นทาง ตามที่
F35: กำหนดไว้ในแบบก่อสร้าง ที่ออกแบบไว้)
D37: 3.2 | E37: เหล็กเสริม
E38: 3.2.1 | F38: ชนิดเหล็กเสริมคอนกรีต | O38: = | P38: WIRE MESH
E39: 3.2.2 | F39: ขนาด Ø เหล็กเสริมคอนกรีต | O39: = | P39: 4 | Q39: มม. | R39: =IF(AND($P$38="WIRE MESH",$P$39=9),"ตรวจสอบขนาดเหล็ก","") -> 
E40: 3.2.3 | F40: ระยะห่าง(Spacing) เหล็กตะแกรงตามขวาง | O40: = | P40: 0.15 | Q40: ม.
E41: 3.2.4 | F41: ระยะห่าง(Spacing) เหล็กตะแกรงตามยาว | O41: = | P41: 0.3 | Q41: ม.
D42: 3.3 | E42: รอยต่อคอนกรีต
E43: 3.3.1 | F43: รอยต่อตามยาว(Longitudinal Joint) | P43: มี
F44: - | G44: ความกว้างของรอยต่อ | O44: = | P44: 1 | Q44: ซม.
F45: - | G45: ความลึกของรอยต่อ | O45: = | P45: 2 | Q45: ซม.
F46: - | G46: ความยาวเหล็กต่อท่อน(Tie bar) | O46: = | P46: 0.5 | Q46: ม.
F47: - | G47: ขนาดเหล็กเสริม Tie bar (เหล็กข้ออ้อย) | O47: = | P47: 12 | Q47: มม.
F48: - | G48: ระยะห่าง(Spacing of tie bar) | O48: = | P48: 0.5 | Q48: ม.
E49: 3.3.2 | F49: รอยต่อเพื่อการขยายตัวหรือรอยต่อตัดขาด(Expansion Joint)
F50: - | G50: ความกว้างของรอยต่อ | O50: = | P50: 2 | Q50: ซม.
F51: - | G51: ความลึกของรอยต่อ | O51: = | P51: 2 | Q51: ซม.
F52: - | G52: ระยะรอยต่อเพื่อการขยายตัว | O52: = | P52: 50 | Q52: ม.
F53: - | G53: ความยาวเหล็กต่อท่อน(Dowel bar) | O53: = | P53: 0.5 | Q53: ม.
F54: - | G54: ขนาดเหล็กเสริม Dowel bar (เหล็กเส้นกลม) | O54: = | P54: 19 | Q54: มม.
F55: - | G55: ระยะห่าง(Spacing of dowel bar) | O55: = | P55: 0.5 | Q55: ม.
E56: 3.3.3 | F56: รอยต่อเพื่อการหดตัว(Contraction Joint)
F57: - | G57: ความกว้างของรอยต่อ | O57: = | P57: 1 | Q57: ซม.
F58: - | G58: ความลึกของรอยต่อ | O58: = | P58: 2 | Q58: ซม.
F59: - | G59: ระยะรอยต่อเพื่อการหดตัว | O59: = | P59: 10 | Q59: ม.
F60: - | G60: ความยาวเหล็กต่อท่อน(Dowel bar) | O60: = | P60: 0.5 | Q60: ม.
F61: - | G61: ขนาดเหล็กเสริม Dowel bar (เหล็กเส้นกลม) | O61: = | P61: 19 | Q61: มม.
F62: - | G62: ระยะห่าง(Spacing of dowel bar) | O62: = | P62: 0.5 | Q62: ม.
D64: 4. ข้อมูลราคากลาง/ประมาณราคา
N66: เลขที่คำสั่งในการกำหนดราคากลาง | O66: = | P66: 272/2562
N67: วันที่ออกคำสั่งในการกำหนดราคากลาง | O67: = | P67: 2562-03-29
N68: วันที่ประมาณราคา/คำนวณราคากลาง | O68: = | P68: 2019-04-29
D70: 5. ข้อมูลคำนวน Factor F
E72: เงินล่วงหน้าจ่าย | O72: = | P72: 0 | Q72: %
E73: เงินประกันผลงานหัก | O73: = | P73: 0 | Q73: %
E74: ดอกเบี้ยเงินกู้(MRL) | O74: = | P74: 6 | Q74: %
E75: ภาษีมูลค่าเพิ่ม | O75: = | P75: 7 | Q75: %

Sheet ค่าวัสดุที่แหล่ง (hidden)
A1: ข้อมูลวัสดุดินที่แหล่ง
B3: ค่าดินที่แหล่ง แนะนำให้พิจารณาเลือกใช้ราคาที่ต่ำสุดจากแหล่งดังนี้
C4: 1. ราคาจากสำนักงานดัชนีเศรษฐกิจการค้า สำนักงานปลัดกระทรวงกระทรวงพาณิชย์
D5: - ค่าดินถมที่แหล่ง | J5: = | K5: 6 | L5: บาท/ลบ.ม.
C7: 2. สืบราคาจากผู้ประกอบการซึ่งมีแหล่งดินจำหน่าย
D8: - ค่าที่ดินถมที่แหล่ง | J8: = | K8: 20 | L8: บาท/ลบ.ม.
C10: 3. บ่อยืมดินคิดคำนวณโดยมีหลักเกณฑ์ ดังนี้
D11: - ค่าดินที่แหล่ง | F11: = | G11: ราคาที่ดิน | I11: (บาท/ไร่) | J11: x | K11: 1 | L11: x | M11: 1
G12: 2 | K12: 1600 | M12: 3
F13: = | G13: 0 | I13: (บาท/ไร่) | J13: x | K13: 1 | L13: x | M13: 1
G14: 2 | K14: 1600 | M14: 3
F15: = | G15: =TRUNC((G13/2)*(1/1600)*(1/3),2) -> 0 | H15: บาท/ลบ.ม.
B17: * ราคาที่ดิน เป็นราคาประเมินการจดทะเบียนนิติกรรม จากกรมที่ดิน ในการคำนวณราคาที่ดินคิดเพียงครึ่งหนึ่ง
B18: ** ในการคำนวณคิดขุดเปิดหน้าดินออกหนาเฉลี่ย 0.30 เมตร โดยขุดบ่อดินลงไปลึก 2.70 เมตร
A21: ข้อมูลวัสดุลูกรังที่แหล่ง
B23: ค่าลูกรังที่แหล่ง แนะนำให้พิจารณาเลือกใช้ราคาที่ต่ำสุดจากแหล่ง ดังนี้
C24: 1. ราคาจากสำนักงานดัชนีเศรษฐกิจการค้า สำนักงานปลัดกระทรวงกระทรวงพาณิชย์
D25: - ค่าลูกรังที่แหล่ง | J25: = | K25: 0 | L25: บาท/ลบ.ม.
C27: 2. สืบราคาจากผู้ประกอบการซึ่งมีแหล่งดินจำหน่าย
D28: - ค่าที่ลูกรังที่แหล่ง | J28: = | K28: 15 | L28: บาท/ลบ.ม.
C30: 3. บ่อยืมดินคิดคำนวณโดยมีหลักเกณฑ์ ดังนี้
D31: - ค่าลูกรังที่แหล่ง | F31: = | G31: ราคาที่ดิน | I31: (บาท/ไร่) | J31: x | K31: 1 | L31: x | M31: 1
G32: 2 | K32: 1600 | M32: 3
F33: = | G33: 150000 | I33: (บาท/ไร่) | J33: x | K33: 1 | L33: x | M33: 1
G34: 2 | K34: 1600 | M34: 3
F35: = | G35: =TRUNC((G33/2)*(1/1600)*(1/3),2) -> 15.62 | H35: บาท/ลบ.ม.
B37: * ราคาที่ดิน เป็นราคาประเมินการจดทะเบียนนิติกรรม จากกรมที่ดิน ในการคำนวณราคาที่ดินคิดเพียงครึ่งหนึ่ง
B38: ** ในการคำนวณคิดขุดเปิดหน้าดินออกหนาเฉลี่ย 1.00 เมตร โดยขุดบ่อดินลงไปลึก 2.50 เมตร

Sheet ราคาพานิชย์ 2562 (hidden)
A1: ราคาสินค้าเฉลี่ยวัสดุก่อสร้าง (ราคาเงินสด ไม่รวมภาษีมูลค่าเพิ่ม ไม่รวมค่าขนส่ง) ของจังหวัด สุราษฎร์ธานี เดือนเมษายน ปี 2562
A3: หน้า 1 จากทั้งหมด 1 หน้า
A4: หน้า | 1 |
A6: ราคา : บาท
A8: ลำดับ.. | B8: รายการ | C8: หน่วย | D8: เดือนก่อนหน้า | E8: เมษายน | F8: %
A9: 1 | B9: คอนกรีตผสมเสร็จรูปลูกบาศก์ 180 กก./ตร.ซม. และ รูปทรงกระบอก 140กก./ตร.ซม. ตราซีแพค | C9: ลบ.ม. | D9: 2,102.80 | E9: 2,102.80
A10: 2 | B10: คอนกรีตผสมเสร็จรูปลูกบาศก์ 210 กก./ตร.ซม. และ รูปทรงกระบอก 180 กก./ตร.ซม. ตราซีแพค | C10: ลบ.ม. | D10: 2,196.26 | E10: 2,196.26
A11: 3 | B11: คอนกรีตผสมเสร็จรูปลูกบาศก์ 240 กก./ตร.ซม. และรูปทรงกระบอก 210 กก./ตร.ซม. ตราซีแพค | C11: ลบ.ม. | D11: 2,289.72 | E11: 2,289.72
A12: 4 | B12: คอนกรีตผสมเสร็จรูปลูกบาศก์ 280 กก./ตร.ซม. และ รูปทรงกระบอก 240 กก./ตร.ซม. ตราซีเแพค | C12: ลบ.ม. | D12: 2,383.18 | E12: 2,383.18
A13: 5 | B13: คอนกรีตผสมเสร็จรูปลูกบาศก์ 320 กก./ตร.ซม. และ รูปทรงกระบอก 280 กก./ตร.ซม. ตราซีแพค | C13: ลบ.ม. | D13: 2,476.64 | E13: 2,476.64
A14: 6 | B14: คอนกรีตผสมเสร็จรูปลูกบาศก์ 350 กก./ตร.ซม. และ รูปทรงกระบอก 300 กก./ตร.ซม. ตราซีแพค | C14: ลบ.ม. | D14: 2,570.09 | E14: 2,570.09
A15: 7 | B15: คอนกรีตผสมเสร็จรูปลูกบาศก์ 380 กก./ตร.ซม. และ รูปทรงกระบอก 320 กก./ตร.ซม. ตราซีแพค | C15: ลบ.ม. | D15: 2,663.55 | E15: 2,663.55
A16: 8 | B16: คอนกรีตผสมเสร็จรูปลูกบาศก์ 400 กก./ตร.ซม. และ รูปทรงกระบอก 350 กก./ตร.ซม. ตราซีแพค | C16: ลบ.ม. | D16: 2,757.01 | E16: 2,757.01
A17: 9 | B17: คอนกรีตผสมเสร็จรูปลูกบาศก์ 180 กก./ตร.ซม. และรูปทรงกระบอก 140 กก./ตร.ซม. ตรา TPI | C17: ลบ.ม. | D17: 1,682.24 | E17: 1,682.24
A18: 10 | B18: คอนกรีตผสมเสร็จรูปลูกบาศก์ 210 กก./ตร.ซม. และรูปทรงกระบอก 180 กก./ตร.ซม. ตรา TPI | C18: ลบ.ม. | D18: 1,728.97 | E18: 1,728.97
A19: 11 | B19: คอนกรีตผสมเสร็จรูปลูกบาศก์ 240 กก./ตร.ซม. และรูปทรงกระบอก 210 กก./ตร.ซม. ตรา TPI | C19: ลบ.ม. | D19: 1,775.70 | E19: 1,775.70
A20: 12 | B20: คอนกรีตผสมเสร็จรูปลูกบาศก์ 280 กก./ตร.ซม. และรูปทรงกระบอก 240 กก./ตร.ซม. ตรา TPI | C20: ลบ.ม. | D20: 1,822.43 | E20: 1,822.43
A21: 13 | B21: คอนกรีตผสมเสร็จรูปลูกบาศก์ 320 กก./ตร.ซม. และรูปทรงกระบอก 280 กก./ตร.ซม. ตรา TPI | C21: ลบ.ม. | D21: 1,915.89 | E21: 1,915.89
A22: 14 | B22: คอนกรีตผสมเสร็จรูปลูกบาศก์ 350 กก./ตร.ซม. และรูปทรงกระบอก 300 กก./ตร.ซม. ตรา TPI | C22: ลบ.ม. | D22: 1,962.62 | E22: 1,962.62
A23: 15 | B23: คอนกรีตบล็อกก่อผนัง ชนิดธรรมดา ขนาด 19 x 39 x 7 ซม. | C23: ก้อน | D23: 6.54 | E23: 6.54
A24: 16 | B24: อิฐมอญ ขนาด 7x 16 x 3.5 ซม. | C24: ก้อน | D24: 3.74 | E24: 3.74
A25: 17 | B25: เสาเข็มคอนกรีตอัดแรง รูปสี่เหลี่ยมตัน ขนาด 0.18 x 0.18 ม. ยาว 8.00 ม. | C25: ท่อน | D25: 1,401.87 | E25: 1,401.87
A26: 18 | B26: เสาเข็มคอนกรีตอัดแรง รูปสี่เหลี่ยมตัน ขนาด 0.20 x 0.20 ม. ยาว 10.00 ม. | C26: ท่อน | D26: 2,056.07 | E26: 2,056.07
A27: 19 | B27: เสาเข็มคอนกรีตอัดแรง รูปสี่เหลี่ยมตัน ขนาด 0.22 x 0.22 ม. ยาว 10.00 ม. | C27: ท่อน | D27: 2,523.36 | E27: 2,523.36
A28: 20 | B28: เสาเข็มคอนกรีตอัดแรง รูปสี่เหลี่ยมตัน ขนาด 0.20 x 0.20 ม. ยาว 12.00 ม. | C28: ท่อน | D28: 2,616.82 | E28: 2,616.82
A29: 21 | B29: เสาเข็มคอนกรีตอัดแรง รูปสี่เหลี่ยมตัน ขนาด 0.22 x 0.22 ม. ยาว 15.00 ม. | C29: ท่อน | D29: 4,112.15 | E29: 4,112.15
A30: 22 | B30: เสาเข็มคอนกรีตอัดแรง รูปตัวไอ ขนาด 0.18 x 0.18 ม. ยาว 10.00 ม. | C30: ท่อน | D30: 1,495.33 | E30: 1,495.33
A31: 23 | B31: เสารั้วคอนกรีตเสริมเหล็ก แบบสี่เหลี่ยม ขนาด 4" x 4" ยาว 2.50 ม. | C31: ท่อน | D31: 240.19 | E31: 240.19
A32: 24 | B32: เหล็กเส้นกลมผิวเรียบ SR.24 ยาว 10 เมตร ศก. 6 มม. | C32: ตัน | D32: 20,338.32 | E32: 20,338.32
A33: 25 | B33: เหล็กเส้นกลมผิวเรียบ SR.24 ยาว 10 เมตร ศก. 9 มม. | C33: ตัน | D33: 20,460.28 | E33: 20,460.28
A34: 26 | B34: เหล็กเส้นกลมผิวเรียบ SR.24 ยาว 10 เมตร ศก. 12 มม. | C34: ตัน | D34: 20,775.70 | E34: 20,775.70
A35: 27 | B35: เหล็กเส้นกลมผิวข้ออ้อย SD.40 ศก.10 มม. ยาว 10 เมตร (Tempcore) | C35: ตัน | D35: 20,785.05 | E35: 20,785.05
A36: 28 | B36: เหล็กเส้นกลมผิวข้ออ้อย SD.40 ศก.12 มม. ยาว 10 เมตร (Tempcore) | C36: ตัน | D36: 19,897.20 | E36: 19,897.20
A37: 29 | B37: เหล็กเส้นกลมผิวข้ออ้อย SD.40 ศก.16 มม. ยาว 10 เมตร (Tempcore) | C37: ตัน | D37: 19,570.09 | E37: 19,570.09
A38: 30 | B38: เหล็กเส้นกลมผิวข้ออ้อย SD.40 ศก.20 มม. ยาว 10 เมตร (Tempcore) | C38: ตัน | D38: 19,570.09 | E38: 19,570.09
A39: 31 | B39: เหล็กเส้นกลมผิวข้ออ้อย SD.40 ศก.25 มม. ยาว 10 เมตร (Tempcore) | C39: ตัน | D39: 19,570.09 | E39: 19,570.09
A40: 32 | B40: เหล็กเส้นกลมผิวข้ออ้อย SD.40 ศก.28 มม. ยาว 10 เมตร (Tempcore) | C40: ตัน | D40: 19,570.09 | E40: 19,570.09
A41: 33 | B41: เหล็กเส้นกลมผิวข้ออ้อย SD.40 ศก.32 มม. ยาว 10 เมตร (Tempcore) | C41: ตัน | D41: 19,570.09 | E41: 19,570.09 | G41: 21420.56
A42: 34 | B42: เหล็กเส้นกลมผิวข้ออ้อย SD.50 ศก.10 มม. ยาว 10 เมตร (Tempcore) | C42: ตัน | D42: 21,327.10 | E42: 21,327.10 | G42: 20401.87
A43: 35 | B43: เหล็กเส้นกลมผิวข้ออ้อย SD.50 ศก.12 มม. ยาว 10 เมตร (Tempcore) | C43: ตัน | D43: 20,457.94 | E43: 20,457.94 | G43: 19769.95
A44: 36 | B44: เหล็กเส้นกลมผิวข้ออ้อย SD.50 ศก.16 มม. ยาว 10 เมตร (Tempcore) | C44: ตัน | D44: 20,121.50 | E44: 20,121.50 | G44: 20560.75
A45: 37 | B45: เหล็กเส้นกลมผิวข้ออ้อย SD.50 ศก.20 มม. ยาว 10 เมตร (Tempcore) | C45: ตัน | D45: 20,121.50 | E45: 20,121.50 | G45: 19730.01
A46: 38 | B46: เหล็กเส้นกลมผิวข้ออ้อย SD.50 ศก.25 มม. ยาว 10 เมตร (Tempcore) | C46: ตัน | D46: 20,121.50 | E46: 20,121.50
A47: 39 | B47: เหล็กเส้นกลมผิวข้ออ้อย SD.50 ศก.28 มม. ยาว 10 เมตร (Tempcore) | C47: ตัน | D47: 20,121.50 | E47: 20,121.50
A48: 40 | B48: เหล็กเส้นกลมผิวข้ออ้อย SD.50 ศก.32 มม. ยาว 10 เมตร (Tempcore) | C48: ตัน | D48: 20,121.50 | E48: 20,121.50
A49: 41 | B49: ลวดผูกเหล็ก ศก. 1.25 มม. (เบอร์ 18) | C49: กก. | D49: 31.19 | E49: 31.19
A50: 42 | B50: เหล็กฉาก หนา 4 มม. ยาว 6 เมตร ขนาด 40 x 40 มม. น้ำหนัก 14.5 กก. | C50: ท่อน | D50: 329.44 | E50: 329.44
A51: 43 | B51: เหล็กตัวซี (Light Lip Channel Steel) หนา 2.3 มม. ยาว 6 เมตร ขนาด 125 x 50 x 20 มม. น้ำหนัก 25.5 กก. | C51: ท่อน | D51: 628.04 | E51: 628.04 | G51: 18930.84
A52: 44 | B52: เหล็กตัวซี (Light Lip Channel Steel) หนา 3.2 มม. ยาว 6 เมตร ขนาด 75 x 45 x 15 มม. น้ำหนัก 17 -18 กก. | C52: ท่อน | D52: 485.98 | E52: 485.98 | G52: 19730.01
A53: 45 | B53: เหล็กตัวซี (Light Lip Channel Steel) หนา 3.2 มม. ยาว 6 เมตร ขนาด 125 x 50 x 20 มม. น้ำหนัก 30 -33 กก. | C53: ท่อน | D53: 825.23 | E53: 825.23
A54: 46 | B54: ท่อเหล็กกลวงสี่เหลี่ยมจัตุรัส หนา 1.2 มม. ขนาด 3/4" x 3/4" ยาว 6 เมตร | C54: ท่อน | D54: 117.76 | E54: 117.76
A55: 47 | B55: ท่อเหล็กกลวงสี่เหลี่ยมจัตุรัส หนา 1.2 มม. ขนาด 1" x 1" ยาว 6 เมตร | C55: ท่อน | D55: 134.58 | E55: 134.58
A56: 48 | B56: ท่อเหล็กกลวงสี่เหลี่ยมจัตุรัส หนา 2.0 มม. ขนาด 1 1/2" x 1 1/2" ยาว 6 เมตร | C56: ท่อน | D56: 373.83 | E56: 373.83
A57: 49 | B57: ท่อเหล็กกลวงสี่เหลี่ยมจัตุรัส หนา 2.0 มม. ขนาด 2" x 2" ยาว 6 เมตร | C57: ท่อน | D57: 457.94 | E57: 457.94
A58: 50 | B58: ท่อเหล็กกลวงสี่เหลี่ยมจัตุรัส หนา 2.0 มม. ขนาด 3" x 3" ยาว 6 เมตร | C58: ท่อน | D58: 644.86 | E58: 644.86
A59: 51 | B59: ท่อเหล็กเคลือบสังกะสี รวมข้อต่อตรง 1 อัน ประเภท BS-M ยาว 6 เมตร ศก. 1/2 นิ้ว | C59: ท่อน | D59: 271.03 | E59: 271.03
A60: 52 | B60: ท่อเหล็กเคลือบสังกะสี รวมข้อต่อตรง 1 อัน ประเภท BS-M ยาว 6 เมตร ศก. 3/4 นิ้ว | C60: ท่อน | D60: 327.10 | E60: 327.10
A61: 53 | B61: ท่อเหล็กเคลือบสังกะสี รวมข้อต่อตรง 1 อัน ประเภท BS-M ยาว 6 เมตร ศก. 1นิ้ว | C61: ท่อน | D61: 448.60 | E61: 448.60
A62: 54 | B62: ท่อเหล็กเคลือบสังกะสี ประเภท BS-M (ไม่รวมข้อต่อ) ขนาด ศก. 1 1/4 นิ้ว ยาว 6 เมตร | C62: ท่อน | D62: 502.80 | E62: 502.80
A63: 55 | B63: ท่อเหล็กเคลือบสังกะสี ประเภท BS-M (ไม่รวมข้อต่อ) ขนาด ศก. 1 1/2 นิ้ว ยาว 6 เมตร | C63: ท่อน | D63: 578.50 | E63: 578.50
A64: 56 | B64: ท่อเหล็กเคลือบสังกะสี ประเภท BS-M (ไม่รวมข้อต่อ) ขนาด ศก. 2 นิ้ว ยาว 6 เมตร | C64: ท่อน | D64: 813.08 | E64: 813.08 | G64: 25.47
A65: 57 | B65: ท่อเหล็กเคลือบสังกะสี ประเภท BS-M (ไม่รวมข้อต่อ) ขนาด ศก. 2 1/2 นิ้ว ยาว 6 เมตร | C65: ท่อน | D65: 1,002.80 | E65: 1,002.80
A66: 58 | B66: ท่อเหล็กเคลือบสังกะสี ประเภท BS-M (ไม่รวมข้อต่อ) ขนาด ศก. 3 นิ้ว ยาว 6 เมตร | C66: ท่อน | D66: 1,304.67 | E66: 1,304.67
A67: 59 | B67: ท่อเหล็กเคลือบสังกะสี ประเภท BS-M (ไม่รวมข้อต่อ) ขนาด ศก. 4 นิ้ว ยาว 6 เมตร | C67: ท่อน | D67: 1,900.00 | E67: 1,900.00
A68: 60 | B68: ข้อต่อตรงเหล็ก ศก. 1/2 นิ้ว | C68: อัน | D68: 15.42 | E68: 15.42
A69: 61 | B69: ข้อต่อตรงเหล็ก ศก. 3/4 นิ้ว | C69: อัน | D69: 20.09 | E69: 20.09
A70: 62 | B70: ข้อต่อตรงเหล็ก ศก. 1 นิ้ว | C70: อัน | D70: 30.38 | E70: 30.38
A71: 63 | B71: ข้อต่องอเหล็ก 90 องศา ศก. 1/2 นิ้ว | C71: อัน | D71: 18.69 | E71: 18.69
A72: 64 | B72: ข้อต่องอเหล็ก 90 องศา ศก. 3/4 นิ้ว | C72: อัน | D72: 24.30 | E72: 24.30
A73: 65 | B73: ข้อต่องอเหล็ก 90 องศา ศก. 1 นิ้ว | C73: อัน | D73: 38.32 | E73: 38.32
A74: 66 | B74: สามทาง 90 องศาเหล็กเคลือบสังกะสี ศก. 1/2 นิ้ว | C74: อัน | D74: 24.30 | E74: 24.30
A75: 67 | B75: สามทาง 90 องศาเหล็กเคลือบสังกะสี ศก. 3/4 นิ้ว | C75: อัน | D75: 30.38 | E75: 30.38
A76: 68 | B76: สามทาง 90 องศาเหล็กเคลือบสังกะสี ศก. 1 นิ้ว | C76: อัน | D76: 48.60 | E76: 48.60
A77: 69 | B77: ท่อ พีวีซี แข็ง ท่อประปา ชนิดปลายธรรมดา ชั้น 13.5 ยาว 4 เมตร เส้นผ่านศูนย์กลาง 1/2" ตราช้าง | C77: ท่อน | D77: 51.40 | E77: 51.40
A78: 70 | B78: ท่อ พีวีซี แข็ง ท่อประปา ชนิดปลายธรรมดา ชั้น 13.5 ยาว 4 เมตร เส้นผ่านศูนย์กลาง 3/4" ตราช้าง | C78: ท่อน | D78: 62.62 | E78: 62.62
A79: 71 | B79: ท่อ พีวีซี แข็ง ท่อประปา ชนิดปลายธรรมดา ชั้น 13.5 ยาว 4 เมตร เส้นผ่านศูนย์กลาง 1" ตราช้าง | C79: ท่อน | D79: 100.93 | E79: 100.93
A80: 72 | B80: ท่อ พีวีซี แข็ง ท่อประปา ชนิดปลายธรรมดา ชั้น 13.5 ยาว 4 เมตร เส้นผ่านศูนย์กลาง 1 1/4" ตราช้าง | C80: ท่อน | D80: 129.91 | E80: 129.91
A81: 73 | B81: ท่อ พีวีซี แข็ง ท่อประปา ชนิดปลายธรรมดา ชั้น 13.5 ยาว 4 เมตร เส้นผ่านศูนย์กลาง 1 1/2" ตราช้าง | C81: ท่อน | D81: 167.29 | E81: 167.29
A82: 74 | B82: ท่อ พีวีซี แข็ง ท่อประปา ชนิดปลายธรรมดา ชั้น 13.5 ยาว 4 เมตร เส้นผ่านศูนย์กลาง 2" ตราช้าง | C82: ท่อน | D82: 255.14 | E82: 255.14
A83: 75 | B83: ท่อ พีวีซี แข็ง ท่อประปา ชนิดปลายธรรมดา ชั้น 13.5 ยาว 4 เมตร เส้นผ่านศูนย์กลาง 2 1/2" ตราช้าง | C83: ท่อน | D83: 420.56 | E83: 420.56
A84: 76 | B84: ท่อ พีวีซี แข็ง ท่อประปา ชนิดปลายธรรมดา ชั้น 13.5 ยาว 4 เมตร เส้นผ่านศูนย์กลาง 3" ตราช้าง | C84: ท่อน | D84: 588.79 | E84: 588.79
A85: 77 | B85: ท่อ พีวีซี แข็ง ท่อประปา ชนิดปลายธรรมดา ชั้น 13.5 ยาว 4 เมตร เส้นผ่านศูนย์กลาง 4" ตราช้าง | C85: ท่อน | D85: 946.73 | E85: 946.73
A86: 78 | B86: ข้อต่อท่อ พีวีซี ตรง สำหรับใช้กับท่อรับแรงดัน เส้นผ่านศูนย์กลาง 1/2" ตราช้าง | C86: อัน | D86: 4.67 | E86: 4.67
A87: 79 | B87: ข้อต่อท่อ พีวีซี ตรง สำหรับใช้กับท่อรับแรงดัน เส้นผ่านศูนย์กลาง 3/4" ตราช้าง | C87: อัน | D87: 6.54 | E87: 6.54
A88: 80 | B88: ข้อต่อท่อ พีวีซี ตรง สำหรับใช้กับท่อรับแรงดัน เส้นผ่านศูนย์กลาง 1" ตราช้าง | C88: อัน | D88: 9.35 | E88: 9.35
A89: 81 | B89: ข้อต่อท่อ พีวีซี ตรง สำหรับใช้กับท่อรับแรงดัน เส้นผ่านศูนย์กลาง 1 1/4 " ตรา ช้าง | C89: อัน | D89: 14.02 | E89: 14.02
A90: 82 | B90: ข้อต่อท่อ พีวีซี ตรง สำหรับใช้กับท่อรับแรงดัน เส้นผ่านศูนย์กลาง 1 1/2 " ตรา ช้าง | C90: อัน | D90: 15.89 | E90: 15.89
A91: 83 | B91: ข้อต่อท่อ พีวีซี ตรง สำหรับใช้กับท่อรับแรงดัน เส้นผ่านศูนย์กลาง 2 " ตรา ช้าง | C91: อัน | D91: 18.69 | E91: 18.69
A92: 84 | B92: ข้อต่อท่อ พีวีซี ตรง สำหรับใช้กับท่อรับแรงดัน เส้นผ่านศูนย์กลาง 2 1/2 " ตรา ช้าง | C92: อัน | D92: 23.36 | E92: 23.36
A93: 85 | B93: ข้อต่อท่อ พีวีซี ตรง สำหรับใช้กับท่อรับแรงดัน เส้นผ่านศูนย์กลาง 3 " ตรา ช้าง | C93: อัน | D93: 32.71 | E93: 32.71
A94: 86 | B94: ข้อต่อท่อ พีวีซี ตรง สำหรับใช้กับท่อรับแรงดัน เส้นผ่านศูนย์กลาง 4 " ตรา ช้าง | C94: อัน | D94: 51.40 | E94: 51.40
A95: 87 | B95: ข้อต่อท่อ พีวีซี ข้องอ 90 องศา สำหรับใช้กับท่อรับแรงดัน เส้นผ่านศูนย์กลาง 1/2" ตราช้าง | C95: อัน | D95: 4.67 | E95: 4.67
A96: 88 | B96: ข้อต่อท่อ พีวีซี ข้องอ 90 องศา สำหรับใช้กับท่อรับแรงดัน เส้นผ่านศูนย์กลาง 3/4" ตราช้าง | C96: อัน | D96: 6.54 | E96: 6.54
A97: 89 | B97: ข้อต่อท่อ พีวีซี ข้องอ 90 องศา สำหรับใช้กับท่อรับแรงดัน เส้นผ่านศูนย์กลาง 1" ตราช้าง | C97: อัน | D97: 9.35 | E97: 9.35
A98: 90 | B98: ข้อต่อท่อ พีวีซี ข้องอ 90 องศา สำหรับใช้กับท่อรับแรงดัน เส้นผ่านศูนย์กลาง 1 1/4" ตราช้าง | C98: อัน | D98: 14.02 | E98: 14.02
A99: 91 | B99: ข้อต่อท่อ พีวีซี ข้องอ 90 องศา สำหรับใช้กับท่อรับแรงดัน เส้นผ่านศูนย์กลาง 1 1/2" ตราช้าง | C99: อัน | D99: 18.69 | E99: 18.69
A100: 92 | B100: ข้อต่อท่อ พีวีซี ข้องอ 90 องศา สำหรับใช้กับท่อรับแรงดัน เส้นผ่านศูนย์กลาง 2" ตราช้าง | C100: อัน | D100: 14.02 | E100: 14.02
A101: 93 | B101: ข้อต่อท่อ พีวีซี ข้องอ 90 องศา สำหรับใช้กับท่อรับแรงดัน เส้นผ่านศูนย์กลาง 2 1/2" ตราช้าง | C101: อัน | D101: 18.69 | E101: 18.69
A102: 94 | B102: ข้อต่อท่อ พีวีซี ข้องอ 90 องศา สำหรับใช้กับท่อรับแรงดัน เส้นผ่านศูนย์กลาง 3" ตราช้าง | C102: อัน | D102: 37.38 | E102: 37.38
A103: 95 | B103: ข้อต่อท่อ พีวีซี ข้องอ 90 องศา สำหรับใช้กับท่อรับแรงดัน เส้นผ่านศูนย์กลาง 4" ตราช้าง | C103: อัน | D103: 60.75 | E103: 60.75
A104: 96 | B104: ข้อต่อท่อ พีวีซี สามทาง 90 องศา สำหรับใช้กับท่อรับแรงดัน เส้นผ่าศูนย์กลาง 1/2 " ตราช้าง | C104: อัน | D104: 4.67 | E104: 4.67
A105: 97 | B105: ข้อต่อท่อ พีวีซี สามทาง 90 องศา สำหรับใช้กับท่อรับแรงดัน เส้นผ่าศูนย์กลาง 3/4 " ตราช้าง | C105: อัน | D105: 6.54 | E105: 6.54
A106: 98 | B106: ข้อต่อท่อ พีวีซี สามทาง 90 องศา สำหรับใช้กับท่อรับแรงดัน เส้นผ่าศูนย์กลาง 1 " ตราช้าง | C106: อัน | D106: 14.02 | E106: 14.02
A107: 99 | B107: ข้อต่อท่อ พีวีซี สามทาง 90 องศา สำหรับใช้กับท่อรับแรงดัน เส้นผ่าศูนย์กลาง 1 1/4 " ตราช้าง | C107: อัน | D107: 18.69 | E107: 18.69
A108: 100 | B108: ข้อต่อท่อ พีวีซี สามทาง 90 องศา สำหรับใช้กับท่อรับแรงดัน เส้นผ่าศูนย์กลาง 1 1/2 " ตราช้าง | C108: อัน | D108: 23.36 | E108: 23.36
A109: 101 | B109: ข้อต่อท่อ พีวีซี สามทาง 90 องศา สำหรับใช้กับท่อรับแรงดัน เส้นผ่าศูนย์กลาง 2 " ตราช้าง | C109: อัน | D109: 28.04 | E109: 28.04
A110: 102 | B110: ข้อต่อท่อ พีวีซี สามทาง 90 องศา สำหรับใช้กับท่อรับแรงดัน เส้นผ่าศูนย์กลาง 2 1/2 " ตราช้าง | C110: อัน | D110: 74.77 | E110: 74.77
A111: 103 | B111: ข้อต่อท่อ พีวีซี สามทาง 90 องศา สำหรับใช้กับท่อรับแรงดัน เส้นผ่าศูนย์กลาง 3 " ตราช้าง | C111: อัน | D111: 135.51 | E111: 135.51
A112: 104 | B112: ข้อต่อท่อ พีวีซี สามทาง 90 องศา สำหรับใช้กับท่อรับแรงดัน เส้นผ่าศูนย์กลาง 4 " ตราช้าง | C112: อัน | D112: 289.72 | E112: 289.72
A113: 105 | B113: ท่อระบายน้ำคอนกรีตไม่เสริมเหล็ก ปากลิ้นราง ยาว 1 เมตร ศก. 0.30 ม. | C113: ท่อน | D113: 203.28 | E113: 203.28
A114: 106 | B114: ท่อระบายน้ำคอนกรีตไม่เสริมเหล็ก ปากลิ้นราง ยาว 1 เมตร ศก. 0.40 ม. | C114: ท่อน | D114: 261.69 | E114: 261.69
A115: 107 | B115: ท่อระบายน้ำคอนกรีตไม่เสริมเหล็ก ปากลิ้นราง ยาว 1 เมตร ศก. 0.50 ม. | C115: ท่อน | D115: 364.49 | E115: 364.49
A116: 108 | B116: ท่อระบายน้ำคอนกรีตไม่เสริมเหล็ก ปากลิ้นราง ยาว 1 เมตร ศก. 0.60 ม. | C116: ท่อน | D116: 411.21 | E116: 411.21
A117: 109 | B117: ท่อระบายน้ำคอนกรีตไม่เสริมเหล็ก ปากลิ้นราง ยาว 1 เมตร ศก. 0.80 ม. | C117: ท่อน | D117: 654.21 | E117: 654.21
A118: 110 | B118: ท่อระบายน้ำคอนกรีตไม่เสริมเหล็ก ปากลิ้นราง ยาว 1 เมตร ศก. 1.00 ม. | C118: ท่อน | D118: 1,056.07 | E118: 1,056.07
A119: 111 | B119: ท่อระบายน้ำคอนกรีตไม่เสริมเหล็ก ปากลิ้นราง ยาว 1 เมตร ศก. 1.20 ม . | C119: ท่อน | D119: 1,588.79 | E119: 1,588.79
A120: 112 | B120: ท่อระบายน้ำคอนกรีตเสริมเหล็ก ปากลิ้นราง ชั้น 3 ยาว 1 เมตร ศก. 0.30 ม. | C120: ท่อน | D120: 350.47 | E120: 350.47
A121: 113 | B121: ท่อระบายน้ำคอนกรีตเสริมเหล็ก ปากลิ้นราง ชั้น 3 ยาว 1 เมตร ศก. 0.40 ม. | C121: ท่อน | D121: 455.61 | E121: 455.61
A122: 114 | B122: ท่อระบายน้ำคอนกรีตเสริมเหล็ก ปากลิ้นราง ชั้น 3 ยาว 1 เมตร ศก. 0.50 ม. | C122: ท่อน | D122: 630.84 | E122: 630.84
A123: 115 | B123: ท่อระบายน้ำคอนกรีตเสริมเหล็ก ปากลิ้นราง ชั้น 3 ยาว 1 เมตร ศก. 0.60 ม. | C123: ท่อน | D123: 602.81 | E123: 602.81
A124: 116 | B124: ท่อระบายน้ำคอนกรีตเสริมเหล็ก ปากลิ้นราง ชั้น 3 ยาว 1 เมตร ศก. 0.80 ม. | C124: ท่อน | D124: 1,200.94 | E124: 1,200.94
A125: 117 | B125: ท่อระบายน้ำคอนกรีตเสริมเหล็ก ปากลิ้นราง ชั้น 3 ยาว 1 เมตร ศก. 1.00 ม . | C125: ท่อน | D125: 1,785.05 | E125: 1,785.05
A126: 118 | B126: ท่อระบายน้ำคอนกรีตเสริมเหล็ก ปากลิ้นราง ชั้น 3 ยาว 1 เมตร ศก. 1.20 ม. | C126: ท่อน | D126: 2,710.28 | E126: 2,710.28
A127: 119 | B127: ท่อระบายน้ำคอนกรีตเสริมเหล็ก ปากลิ้นราง ชั้น 3 ยาว 1 เมตร ศก. 1.50 ม. | C127: ท่อน | D127: 4,485.98 | E127: 4,485.98
A128: 120 | B128: ท่อระบายน้ำคอนกรีตเสริมเหล็ก ปากลิ้นราง ชั้น 2 ยาว 1 เมตร ศก. 0.30 ม. | C128: ท่อน | D128: 299.07 | E128: 299.07
A129: 121 | B129: ท่อระบายน้ำคอนกรีตเสริมเหล็ก ปากลิ้นราง ชั้น 2 ยาว 1 เมตร ศก. 0.40 ม. | C129: ท่อน | D129: 457.94 | E129: 457.94
A130: 122 | B130: ท่อระบายน้ำคอนกรีตเสริมเหล็ก ปากลิ้นราง ชั้น 2 ยาว 1 เมตร ศก. 0.50 ม. | C130: ท่อน | D130: 654.21 | E130: 654.21
A131: 123 | B131: ท่อระบายน้ำคอนกรีตเสริมเหล็ก ปากลิ้นราง ชั้น 2 ยาว 1 เมตร ศก. 0.60 ม. | C131: ท่อน | D131: 1,102.80 | E131: 1,102.80
A132: 124 | B132: ท่อระบายน้ำคอนกรีตเสริมเหล็ก ปากลิ้นราง ชั้น 2 ยาว 1 เมตร ศก. 0.80 ม. | C132: ท่อน | D132: 1,869.16 | E132: 1,869.16
A133: 125 | B133: ท่อระบายน้ำคอนกรีตเสริมเหล็ก ปากลิ้นราง ชั้น 2 ยาว 1 เมตร ศก. 1.00 ม. | C133: ท่อน | D133: 2,616.82 | E133: 2,616.82
A134: 126 | B134: ท่อระบายน้ำคอนกรีตเสริมเหล็ก ปากลิ้นราง ชั้น 2 ยาว 1 เมตร ศก. 1.20 ม. | C134: ท่อน | D134: 3,598.13 | E134: 3,598.13
A135: 127 | B135: ท่อระบายน้ำคอนกรีตเสริมเหล็ก ปากลิ้นราง ชั้น 2 ยาว 1 เมตร ศก. 1.50 ม. | C135: ท่อน | D135: 5,794.39 | E135: 5,794.39
A136: 128 | B136: ท่อระบายน้ำซีเมนต์ใยหิน ยาว 4 เมตร ศก. 10 ซม. | C136: ท่อน | D136: 200.93 | E136: 200.93
A137: 129 | B137: ท่อระบายน้ำซีเมนต์ใยหิน ยาว 4 เมตร ศก. 15 ซม. | C137: ท่อน | D137: 247.66 | E137: 247.66
A138: 130 | B138: ท่อระบายน้ำซีเมนต์ใยหิน ยาว 4 เมตร ศก. 20 ซม. | C138: ท่อน | D138: 462.62 | E138: 462.62
A139: 131 | B139: ท่อระบายน้ำซีเมนต์ใยหิน ยาว 3 เมตร ศก. 10 ซม. | C139: ท่อน | D139: 154.21 | E139: 154.21
A140: 132 | B140: ท่อระบายน้ำซีเมนต์ใยหิน ยาว 3 เมตร ศก. 15 ซม. | C140: ท่อน | D140: 221.96 | E140: 221.96
A141: 133 | B141: มุ้งลวดอลูมิเนียม ขนาดกว้าง 90 ซม ยาว 30 เมตร สีขาว | C141: ม้วน | D141: 1,308.41 | E141: 1,542.06 | F141: 17.86
A142: 134 | B142: ลวดหนามเคลือบสังกะสี เบอร์ 14 | C142: กก. | D142: 56.07 | E142: 56.07
A143: 135 | B143: กระเบื้องคอนกรีตมุงหลังคา ซีแพคโมเนีย ขนาด 33 x 42 ซม. สีแดง เทา อิฐ น้ำตาล ตราช้าง | C143: แผ่น | D143: 14.02 | E143: 14.02
A144: 136 | B144: ครอบสันโค้งกระเบื้องคอนกรีต สีแดง เทา อิฐ น้ำตาล ตราช้าง | C144: แผ่น | D144: 37.38 | E144: 37.38
A145: 137 | B145: ครอบข้างกระเบื้องคอนกรีต สีแดง เทา อิฐ น้ำตาล ตราช้าง | C145: แผ่น | D145: 37.38 | E145: 37.38
A146: 138 | B146: ครอบข้างปิดชายกระเบื้องคอนกรีต สีแดง เทา อิฐ น้ำตาล ตราช้าง | C146: แผ่น | D146: 46.73 | E146: 46.73
A147: 139 | B147: ครอบโค้งปิดจั่วกระเบื้องคอนกรีต สีแดง เทา อิฐ น้ำตาล ตราช้าง | C147: แผ่น | D147: 56.07 | E147: 56.07
A148: 140 | B148: เหล็กแผ่นเคลือบสังกะสี ไม่ชุบสี ลอนเล็ก-ใหญ่ หนา 0.20 มม. เบอร์ 35 ขนาด 2.5' x 5'-10' ตราสามมงกุฏ | C148: ฟุต | D148: 15.42 | E148: 15.42
A149: 141 | B149: แผ่นไม้อัดยาง ชนิดใช้ภายใน เกรด A ขนาด 4' x 8' หนา 4 มม. | C149: แผ่น | D149: 263.34 | E149: 272.69 | F149: 3.55
A150: 142 | B150: แผ่นไม้อัดยาง ชนิดใช้ภายใน เกรด A ขนาด 4' x 8' หนา 6 มม. | C150: แผ่น | D150: 352.57 | E150: 352.57
A151: 143 | B151: แผ่นยิปซัม ธรรมดา ไม่มีอลูมิเนียมฟอยล์ ขนาด 120 x 240 ซม. หนา 9 มม. ตราบ้าน | C151: แผ่น | D151: 126.17 | E151: 126.17
A152: 144 | B152: แผ่นยิปซัม ธรรมดา ไม่มีอลูมิเนียมฟอยล์ ขนาด 120 x 240 ซม. หนา 12 มม. ตราบ้าน | C152: แผ่น | D152: 168.22 | E152: 168.22
A153: 145 | B153: แผ่นยิปซัม ธรรมดา ไม่มีอลูมิเนียมฟอยล์ ขนาด 120 x 240 ซม. หนา 12 มม. ตราช้าง | C153: แผ่น | D153: 177.57 | E153: 177.57
A154: 146 | B154: แผ่นยิปซัม ธรรมดา มีอลูมิเนียมฟอยล์ ขนาด 120 x 240 ซม หนา 9 มม. ตราบ้าน | C154: แผ่น | D154: 186.92 | E154: 182.24 | F154: -2.50
A155: 147 | B155: แผ่นยิปซัม ธรรมดา มีอลูมิเนียมฟอยล์ ขนาด 120 x 240 ซม. หนา 9 มม. ตราช้าง | C155: แผ่น | D155: 140.19 | E155: 140.19
A156: 148 | B156: แผ่นยิปซัม ธรรมดา มีอลูมิเนียมฟอยล์ ขนาด 120 x 240 ซม. หนา 12 มม. ตราช้าง | C156: แผ่น | D156: 205.61 | E156: 205.61
A157: 149 | B157: เหล็กแผ่นเรียบดำ หนา 3 มม. ขนาด 4' x 8' หนัก 70 กก./แผ่น | C157: แผ่น | D157: 1,093.46 | E157: 1,093.46
A158: 150 | B158: เหล็กแผ่นเรียบดำ หนา 6 มม. ขนาด 4' x 8' หนัก 140 กก./แผ่น | C158: แผ่น | D158: 3,313.08 | E158: 3,313.08
A159: 151 | B159: กระจกใส หนา 5 มม. | C159: ตร.ฟุต | D159: 18.69 | E159: 16.82 | F159: -10.01 | G159: 355.14
A160: 152 | B160: กระจกใส หนา 6 มม. | C160: ตร.ฟุต | D160: 24.30 | E160: 23.37 | F160: -3.83 | G160: 464.95
A161: 153 | B161: กระเบื้องเคลือบปูพื้น ชนิดสีเรียบ ขนาด 8" x 8" ตราคอตโต้ | C161: ตร.ม. | D161: 170.56 | E161: 170.56 | G161: 630.84
A162: 154 | B162: กระเบื้องเคลือบปูพื้น ชนิดสีเรียบ ขนาด 12" x 12" ตราคอตโต้ | C162: ตร.ม. | D162: 163.09 | E162: 163.09 | G162: 658.88
A163: 155 | B163: กระเบื้องเคลือบปูพื้น ชนิดสีเรียบ ขนาด 8" x 8" | C163: ตร.ม. | D163: 158.88 | E163: 158.88 | G163: 1271.03
A164: 156 | B164: กระเบื้องเคลือบปูพื้น ชนิดลวดลาย ขนาด 8" x 8" ตราคอตโต้ | C164: ตร.ม. | D164: 175.24 | E164: 175.24 | G164: 1859.82
A165: 157 | B165: กระเบื้องเคลือบปูพื้น ชนิดลวดลาย ขนาด 8" x 8" | C165: ตร.ม. | D165: 168.22 | E165: 168.22 | G165: 2757.01
A166: 158 | B166: กระเบื้องเคลือบบุผนัง ชนิดสีเรียบ ขนาด 8" x 8" ตราคอตโต้ | C166: ตร.ม. | D166: 175.24 | E166: 175.24 | G166: 4392.52
A167: 159 | B167: กระเบื้องเคลือบบุผนัง ชนิดสีเรียบ ขนาด 8" x 10" ตราคอตโต้ | C167: ตร.ม. | D167: 205.61 | E167: 205.61
A168: 160 | B168: กระเบื้องเคลือบบุผนัง ชนิดลวดลาย ขนาด 8" x 8" ตราคอตโต้ | C168: ตร.ม. | D168: 182.24 | E168: 182.24
A169: 161 | B169: กระเบื้องเคลือบบุผนัง ชนิดสีเรียบ ขนาด 8" x 8" | C169: ตร.ม. | D169: 182.24 | E169: 182.24
A170: 162 | B170: กระเบื้องเคลือบบุผนัง ชนิดสีเรียบ ขนาด 8" x 10" | C170: ตร.ม. | D170: 205.61 | E170: 205.61
A171: 163 | B171: กระเบื้องเคลือบบุผนัง ชนิดลวดลาย ขนาด 8" x 8" | C171: ตร.ม. | D171: 168.22 | E171: 168.22
A172: 164 | B172: กระเบื้องเคลือบบุผนัง ชนิดลวดลาย ขนาด 8" x 10" ตราคอตโต้ | C172: ตร.ม. | D172: 205.61 | E172: 205.61
A173: 165 | B173: กระเบื้องเคลือบบุผนัง ชนิดลวดลาย ขนาด 8" x 10" | C173: ตร.ม. | D173: 177.57 | E173: 177.57
A174: 166 | B174: ไม้ยาง ไม่ไส ขนาด 1/2" x 6" ยาว 4 - 4.50 เมตร | C174: ลบ.ฟ. | D174: 588.79 | E174: 588.79
A175: 167 | B175: ไม้ยาง ไม่ไส ขนาด 1" x 6" ยาว 4 - 4.50 เมตร | C175: ลบ.ฟ. | D175: 560.75 | E175: 560.75
A176: 168 | B176: ไม้ยาง ไม่ไส ขนาด 1" x 8" ยาว 4 - 4.50 เมตร | C176: ลบ.ฟ. | D176: 514.02 | E176: 514.02
A177: 169 | B177: ไม้ยาง ไม่ไส ขนาด 1 1/2" x 3" ยาว 4 - 4.50 เมตร | C177: ลบ.ฟ. | D177: 467.29 | E177: 467.29
A178: 170 | B178: ไม้ยาง ไม่ไส ขนาด 4" x 4" ยาว 4 - 4.50 เมตร | C178: ลบ.ฟ. | D178: 607.48 | E178: 607.48
A179: 171 | B179: ไม้กะบาก ไม่ไส ขนาด 1 1/2" x 3" ยาว 4 เมตร | C179: ลบ.ฟ. | D179: 560.75 | E179: 560.75
A180: 172 | B180: ไม้ตะเคียนทราย ไม่ไส ขนาด 1" x 4" ยาว 4 - 4.50 เมตร | C180: ลบ.ฟ. | D180: 560.75 | E180: 560.75
A181: 173 | B181: ไม้ตะเคียนทราย ไม่ไส ขนาด 1" x 6" ยาว 4 - 4.50 เมตร | C181: ลบ.ฟ. | D181: 560.75 | E181: 560.75
A182: 174 | B182: ไม้ตะเคียนทราย ไม่ไส ขนาด 2" x 4" ยาว 4 - 4.50 เมตร | C182: ลบ.ฟ. | D182: 616.82 | E182: 616.82
A183: 175 | B183: ไม้ตะเคียนทราย ไม่ไส ขนาด 2" x 6" ยาว 4 - 4.50 เมตร | C183: ลบ.ฟ. | D183: 588.79 | E183: 588.79
A184: 176 | B184: ไม้ตะเคียนทราย ไม่ไส ขนาด 1" x 4 " ยาว 3 - 3.50 เมตร | C184: ลบ.ฟ. | D184: 560.75 | E184: 560.75
A185: 177 | B185: ไม้ตะเคียนทราย ไม่ไส ขนาด 1" x 6 " ยาว 3 - 3.50 เมตร | C185: ลบ.ฟ. | D185: 560.75 | E185: 560.75
A186: 178 | B186: ไม้ตะเคียนทราย ไม่ไส ขนาด 1 1/2 " x 5 " ยาว 4 เมตร | C186: ลบ.ฟ. | D186: 588.79 | E186: 588.79
A187: 179 | B187: ไม้ตะเคียนทราย ไม่ไส ขนาด 2" x 6" - 8 " ยาว 3 - 3.50 เมตร | C187: ลบ.ฟ. | D187: 588.79 | E187: 588.79
A188: 180 | B188: สีน้ำมันเคลือบชนิดเงา ขนาด 3.785 ลิตร ตรา ที โอ เอ | C188: กระป๋อง | D188: 514.02 | E188: 514.02
A189: 181 | B189: สีน้ำมันเคลือบชนิดด้าน ขนาด 3.785 ลิตร ตรากัปตัน | C189: กระป๋อง | D189: 514.02 | E189: 514.02
A190: 182 | B190: สีน้ำมันเคลือบชนิดเงา ขนาด 3.785 ลิตร ตรา ที โอ เอ ( 4 seasons) | C190: กระป๋อง | D190: 523.36 | E190: 542.06 | F190: 3.57
A191: 183 | B191: สีน้ำพลาสติก ทาภายใน ชนิดด้าน ขนาด 3.785 ลิตร ตรา ที โอ เอ (E 100) | C191: กระป๋อง | D191: 373.83 | E191: 373.83
A192: 184 | B192: สีน้ำพลาสติก ทาภายใน ชนิดด้าน ขนาด 18.925 ลิตร ตรา ที โอ เอ (E 100) | C192: กระป๋อง | D192: 1,644.86 | E192: 1,626.17 | F192: -1.14
A193: 185 | B193: สีน้ำพลาสติก ทาภายใน ชนิดด้าน ขนาด 3.785 ลิตร ตรา ที โอ เอ (4 seasons) | C193: กระป๋อง | D193: 327.11 | E193: 336.45 | F193: 2.86
A194: 186 | B194: สีน้ำพลาสติก ทาภายใน ชนิดด้าน ขนาด 18.925 ลิตร ตรา ที โอ เอ (4 seasons) | C194: กระป๋อง | D194: 1,345.80 | E194: 1,378.51 | F194: 2.43
A195: 187 | B195: สีน้ำพลาสติก ทาภายใน ขนาด 3.785 ลิตร ตรา ที โอ เอ ( A 1000) | C195: กระป๋อง | D195: 317.76 | E195: 336.45 | F195: 5.88
A196: 188 | B196: สีน้ำพลาสติก ทาภายใน ขนาด 3.785 ลิตร ตรา NIPPON PAINT | C196: กระป๋อง | D196: 224.30 | E196: 224.30
A197: 189 | B197: สีน้ำพลาสติก ภายนอก ชนิดด้าน ขนาด 3.785 ลิตร ตรา ที โอ เอ (E 100) | C197: กระป๋อง | D197: 514.02 | E197: 514.02
A198: 190 | B198: สีน้ำพลาสติก ภายนอก ขนาด 18.925 ลิตร ตรา เจ บี พี | C198: กระป๋อง | D198: 1,233.64 | E198: 1,233.64
A199: 191 | B199: สีน้ำพลาสติก ภายนอก ชนิดด้าน ขนาด 18.925 ลิตร ตรา ที โอ เอ (E 100) | C199: กระป๋อง | D199: 2,242.99 | E199: 2,196.26 | F199: -2.08
A200: 192 | B200: สีน้ำพลาสติก ทาภายนอก ชนิดด้าน ขนาด 3.785 ลิตร ตรา ที โอ เอ (4 seasons) | C200: กระป๋อง | D200: 422.90 | E200: 434.58 | F200: 2.76
A201: 193 | B201: สีน้ำพลาสติก ทาภายนอก ชนิดด้าน ขนาด 18.925 ลิตร ตรา ที โอ เอ (4 seasons) | C201: กระป๋อง | D201: 1,733.65 | E201: 1,780.38 | F201: 2.70
A202: 194 | B202: สีน้ำพลาสติก ทาภายนอก ขนาด 3.785 ลิตร ตรา ที โอ เอ ( A 1000) | C202: กระป๋อง | D202: 387.85 | E202: 411.21 | F202: 6.02
A203: 195 | B203: สีน้ำพลาสติก ทาภายนอก ขนาด 3.785 ลิตร ตรา NIPPON PAINT | C203: กระป๋อง | D203: 271.03 | E203: 271.03
... 135 more rows

Sheet ข้อมูลวัสดุ (hidden)
B2: =BOQ!A2 -> โครงการก่อสร้างสะพานข้ามคลองหล ม.18 สายทาง หมู่ที่ 18 ตำบลบ้านส้อง อำเภอเวียงสระ จังหวัดสุราษฏร์ธานี | R2: ตัวแปรค่าขนส่ง
B3: กรอกข้อมูลวัสดุ | R3: ระยะขนส่ง | S3: รถบรรทุก 6 ล้อ | Y3: รถบรรทุก 10 ล้อ | AE3: รถบรรทุก 10 ล้อ + ลากพ่วง | AK3: รวมระยะทาง | AL3: ตัวแปร | AM3: ค่าขนส่ง | AN3: รวมค่าขนส่ง
B4: ชนิดของวัสดุ | C4: หน่วย | D4: ค่าวัสดุ | E4: ระยะทางขนส่ง (กม.) | K4: รวมระยะทาง | L4: ขนส่งด้วยรถบรรทุก | N4: แหล่งวัสดุ | R4: L | S4: ผิวทางลาดยาง/คอนกรีต | V4: ผิวทางลูกรัง | Y4: ผิวทางลาดยาง/คอนกรีต | AB4: ผิวทางลูกรัง | AE4: ผิวทางลาดยาง/คอนกรีต | AH4: ผิวทางลูกรัง | AK4: D | AL4: ค่าขนส่ง | AM4: จาก | AN4: เท่ากับ
E5: ผิวทางลาดยาง/คอนกรีต | H5: ผิวทางลูกรัง | R5: (กม.) | S5: ที่ราบ | T5: ลูกเนิน | U5: ภูเขา | V5: ที่ราบ | W5: ลูกเนิน | X5: ภูเขา | Y5: ที่ราบ | Z5: ลูกเนิน | AA5: ภูเขา | AB5: ที่ราบ | AC5: ลูกเนิน | AD5: ภูเขา | AE5: ที่ราบ | AF5: ลูกเนิน | AG5: ภูเขา | AH5: ที่ราบ | AI5: ลูกเนิน | AJ5: ภูเขา | AK5: (กม.) | AL5: F=D/L | AM5: ตาราง | AN5: ตัวแปรคูณ | BB5: รถ 6 ล้อ
D6: (บาท) | E6: ที่ราบ | F6: ลูกเนิน | G6: ภูเขา | H6: ที่ราบ | I6: ลูกเนิน | J6: ภูเขา | K6: (กม.) | R6: ตัวแปร >> | S6: 1 | T6: 2.12 | U6: 2.56 | V6: 1.24 | W6: 2.36 | X6: 2.8 | Y6: 1 | Z6: 1.95 | AA6: 2.52 | AB6: 1.23 | AC6: 2.18 | AD6: 2.75 | AE6: 1 | AF6: 2.13 | AG6: 0 | AH6: 1.2 | AI6: 2.33 | AJ6: 0 | AM6: ค่าขนส่ง | AN6: ด้วยค่าขนส่ง | BB6: รถ 10 ล้อ
B7: เหล็กเส้นกลม RB 6 | C7: บ./ตัน | D7: 20338.32 | E7: 76 | F7: 0 | G7: 0 | J7: 0 | K7: =SUM(E7:J7) -> 76 | L7: รถ 10 ล้อ + ลากพ่วง | N7: ราคาพานิชย์จังหวัดสุราษฏร์ธานี | R7: =SUM(E7:J7) -> 76 | S7: =IF($L7="รถ 6 ล้อ",E7*$S$6,0) -> 0 | T7: =IF($L7="รถ 6 ล้อ",F7*$T$6,0) -> 0 | U7: =IF($L7="รถ 6 ล้อ",G7*$U$6,0) -> 0 | V7: =IF($L7="รถ 6 ล้อ",H7*$V$6,0) -> 0 | W7: =IF($L7="รถ 6 ล้อ",I7*$W$6,0) -> 0 | X7: =IF($L7="รถ 6 ล้อ",J7*$X$6,0) -> 0 | Y7: =IF($L7="รถ 10 ล้อ",E7*$Y$6,0) -> 0 | Z7: =IF($L7="รถ 10 ล้อ",F7*$Z$6,0) -> 0 | AA7: =IF($L7="รถ 10 ล้อ",G7*$AA$6,0) -> 0 | AB7: =IF($L7="รถ 10 ล้อ",H7*$AB$6,0) -> 0 | AC7: =IF($L7="รถ 10 ล้อ",I7*$AC$6,0) -> 0 | AD7: =IF($L7="รถ 10 ล้อ",J7*$AD$6,0) -> 0 | AE7: =IF($L7="รถ 10 ล้อ + ลากพ่วง",E7*$AE$6,0) -> 76 | AF7: =IF($L7="รถ 10 ล้อ + ลากพ่วง",F7*$AF$6,0) -> 0 | AG7: =IF($L7="รถ 10 ล้อ + ลากพ่วง",G7*$AG$6,0) -> 0 | AH7: =IF($L7="รถ 10 ล้อ + ลากพ่วง",H7*$AH$6,0) -> 0 | AI7: =IF($L7="รถ 10 ล้อ + ลากพ่วง",I7*$AI$6,0) -> 0 | AJ7: =IF($L7="รถ 10 ล้อ + ลากพ่วง",J7*$AJ$6,0) -> 0 | AK7: =ROUND(SUM(S7:AJ7),2) -> 76 | AL7: =IF(R7=0,0,ROUND(AK7/R7,4)) -> 1 | AM7: =IF(R7=0,0,IF($L7="รถ 6 ล้อ",VLOOKUP($R7,รวมตารางคำนวณ!$B$11:$D$210,2),IF($L7="รถ 10 ล้อ",VLOOKUP($R7,รวมตารางคำนวณ!$F$11:$H$210,2),IF($L7="รถ 10 ล้อ + ลากพ่วง",VLOOKUP($R7,รวมตารางคำนวณ!$J$11:$L$210,2),0)))) -> 114.91 | AN7: =ROUND(AL7*AM7,2) -> 114.91 | BB7: รถ 10 ล้อ + ลากพ่วง
B8: เหล็กเส้นกลม RB 9 | C8: บ./ตัน | D8: 20460.68 | E8: =E7 -> 76 | F8: 0 | G8: 0 | J8: 0 | K8: =SUM(E8:J8) -> 76 | L8: =L7 -> รถ 10 ล้อ + ลากพ่วง | N8: =N7 -> ราคาพานิชย์จังหวัดสุราษฏร์ธานี | R8: =SUM(E8:J8) -> 76 | S8: 0 | T8: 0 | U8: 0 | V8: 0 | W8: 0 | X8: 0 | Y8: 0 | Z8: 0 | AA8: 0 | AB8: 0 | AC8: 0 | AD8: 0 | AE8: 76 | AF8: 0 | AG8: 0 | AH8: 0 | AI8: 0 | AJ8: 0 | AK8: =ROUND(SUM(S8:AJ8),2) -> 76 | AL8: =IF(R8=0,0,ROUND(AK8/R8,4)) -> 1 | AM8: =IF(R8=0,0,IF($L8="รถ 6 ล้อ",VLOOKUP($R8,รวมตารางคำนวณ!$B$11:$D$210,2),IF($L8="รถ 10 ล้อ",VLOOKUP($R8,รวมตารางคำนวณ!$F$11:$H$210,2),IF($L8="รถ 10 ล้อ + ลากพ่วง",VLOOKUP($R8,รวมตารางคำนวณ!$J$11:$L$210,2),0)))) -> 114.91 | AN8: =ROUND(AL8*AM8,2) -> 114.91
B9: เหล็กข้ออ้อย DB 12 SD40 | C9: บ./ตัน | D9: 19897.2 | E9: 76 | F9: 0 | G9: 0 | J9: 0 | K9: 76 | L9: =L8 -> รถ 10 ล้อ + ลากพ่วง | N9: =N8 -> ราคาพานิชย์จังหวัดสุราษฏร์ธานี | R9: 76 | S9: 0 | T9: 0 | U9: 0 | V9: 0 | W9: 0 | X9: 0 | Y9: 0 | Z9: 0 | AA9: 0 | AB9: 0 | AC9: 0 | AD9: 0 | AE9: 76 | AF9: 0 | AG9: 0 | AH9: 0 | AI9: 0 | AJ9: 0 | AK9: 76 | AL9: =IF(R9=0,0,ROUND(AK9/R9,4)) -> 1 | AM9: =IF(R9=0,0,IF($L9="รถ 6 ล้อ",VLOOKUP($R9,รวมตารางคำนวณ!$B$11:$D$210,2),IF($L9="รถ 10 ล้อ",VLOOKUP($R9,รวมตารางคำนวณ!$F$11:$H$210,2),IF($L9="รถ 10 ล้อ + ลากพ่วง",VLOOKUP($R9,รวมตารางคำนวณ!$J$11:$L$210,2),0)))) -> 114.91 | AN9: 114.91
B10: เหล็กข้ออ้อย DB 16 SD40 | C10: บ./ตัน | D10: 19570.09 | E10: 76 | F10: 0 | G10: 0 | J10: 0 | K10: 76 | L10: รถ 10 ล้อ + ลากพ่วง | N10: =N9 -> ราคาพานิชย์จังหวัดสุราษฏร์ธานี | R10: 76 | S10: 0 | T10: 0 | U10: 0 | V10: 0 | W10: 0 | X10: 0 | Y10: 0 | Z10: 0 | AA10: 0 | AB10: 0 | AC10: 0 | AD10: 0 | AE10: 76 | AF10: 0 | AG10: 0 | AH10: 0 | AI10: 0 | AJ10: 0 | AK10: 76 | AL10: 1 | AM10: =IF(R10=0,0,IF($L10="รถ 6 ล้อ",VLOOKUP($R10,รวมตารางคำนวณ!$B$11:$D$210,2),IF($L10="รถ 10 ล้อ",VLOOKUP($R10,รวมตารางคำนวณ!$F$11:$H$210,2),IF($L10="รถ 10 ล้อ + ลากพ่วง",VLOOKUP($R10,รวมตารางคำนวณ!$J$11:$L$210,2),0)))) -> 114.91 | AN10: 114.91
B11: เหล็กข้ออ้อย DB 20 SD40 | C11: บ./ตัน | D11: 19570.09 | E11: 76 | F11: 0 | G11: 0 | J11: 0 | K11: 76 | L11: รถ 10 ล้อ + ลากพ่วง | N11: ราคาพานิชย์จังหวัดสุราษฏร์ธานี | R11: 76 | S11: 0 | T11: 0 | U11: 0 | V11: 0 | W11: 0 | X11: 0 | Y11: 0 | Z11: 0 | AA11: 0 | AB11: 0 | AC11: 0 | AD11: 0 | AE11: 76 | AF11: 0 | AG11: 0 | AH11: 0 | AI11: 0 | AJ11: 0 | AK11: 76 | AL11: 1 | AM11: =IF(R11=0,0,IF($L11="รถ 6 ล้อ",VLOOKUP($R11,รวมตารางคำนวณ!$B$11:$D$210,2),IF($L11="รถ 10 ล้อ",VLOOKUP($R11,รวมตารางคำนวณ!$F$11:$H$210,2),IF($L11="รถ 10 ล้อ + ลากพ่วง",VLOOKUP($R11,รวมตารางคำนวณ!$J$11:$L$210,2),0)))) -> 114.91 | AN11: 114.91
B12: เหล็กข้ออ้อย DB 25 SD40 | C12: บ./ตัน | D12: 19570.09 | E12: 76 | F12: 0 | G12: 0 | J12: 0 | K12: 76 | L12: รถ 10 ล้อ + ลากพ่วง | N12: ราคาพานิชย์จังหวัดสุราษฏร์ธานี | R12: 76 | S12: 0 | T12: 0 | U12: 0 | V12: 0 | W12: 0 | X12: 0 | Y12: 0 | Z12: 0 | AA12: 0 | AB12: 0 | AC12: 0 | AD12: 0 | AE12: 76 | AF12: 0 | AG12: 0 | AH12: 0 | AI12: 0 | AJ12: 0 | AK12: 76 | AL12: 1 | AM12: =IF(R12=0,0,IF($L12="รถ 6 ล้อ",VLOOKUP($R12,รวมตารางคำนวณ!$B$11:$D$210,2),IF($L12="รถ 10 ล้อ",VLOOKUP($R12,รวมตารางคำนวณ!$F$11:$H$210,2),IF($L12="รถ 10 ล้อ + ลากพ่วง",VLOOKUP($R12,รวมตารางคำนวณ!$J$11:$L$210,2),0)))) -> 114.91 | AN12: 114.91
B13: เหล็กข้ออ้อย DB 28 SD40 | C13: บ./ตัน | D13: 19570.09 | E13: 76 | F13: 0 | G13: 0 | J13: 0 | K13: 76 | L13: รถ 10 ล้อ + ลากพ่วง | N13: ราคาพานิชย์จังหวัดสุราษฏร์ธานี | R13: 76 | S13: 0 | T13: 0 | U13: 0 | V13: 0 | W13: 0 | X13: 0 | Y13: 0 | Z13: 0 | AA13: 0 | AB13: 0 | AC13: 0 | AD13: 0 | AE13: 76 | AF13: 0 | AG13: 0 | AH13: 0 | AI13: 0 | AJ13: 0 | AK13: 76 | AL13: 1 | AM13: =IF(R13=0,0,IF($L13="รถ 6 ล้อ",VLOOKUP($R13,รวมตารางคำนวณ!$B$11:$D$210,2),IF($L13="รถ 10 ล้อ",VLOOKUP($R13,รวมตารางคำนวณ!$F$11:$H$210,2),IF($L13="รถ 10 ล้อ + ลากพ่วง",VLOOKUP($R13,รวมตารางคำนวณ!$J$11:$L$210,2),0)))) -> 114.91 | AN13: 114.91
B14: ="เหล็ก Wire Mesh Dia "&IF(AND(ข้อมูลโครงการ!$P$38="WIRE MESH",ข้อมูลโครงการ!$P$39=3.8),3.8,IF(AND(ข้อมูลโครงการ!$P$38="WIRE MESH",ข้อมูลโครงการ!$P$39=4),4,IF(AND(ข้อมูลโครงการ!$P$38="WIRE MESH",ข้อมูลโครงการ!$P$39=6),6,4)))&" มม. @ "&FIXED(ข้อมูลโครงการ!P40,2)&" x "&FIXED(ข้อมูลโครงการ!P41,2)&" ม." -> เหล็ก Wire Mesh Dia 4 มม. @ 0.15 x 0.30 ม. | C14: บ./ตร.ม. | D14: 0 | E14: ==>> | N14: ราคาร้านวัสดุในจังหวัดสุราษฏร์ธานี(รวมค่าขนส่ง)
B15: ลวดผูกเหล็ก | C15: บ./กก. | D15: 31.19 | E15: ==>> | N15: =N16 -> ราคาพานิชย์จังหวัดสุราษฏร์ธานี
B16: ปูนซีเมนต์ปอร์ตแลนด์ | C16: บ./ตัน | D16: 2766.36 | E16: =E13 -> 76 | F16: 0 | G16: 0 | J16: 0 | K16: 76 | L16: รถ 10 ล้อ + ลากพ่วง | N16: =N7 -> ราคาพานิชย์จังหวัดสุราษฏร์ธานี | R16: 76 | S16: =IF($L16="รถ 6 ล้อ",E16*$S$6,0) -> 0 | T16: =IF($L16="รถ 6 ล้อ",F16*$T$6,0) -> 0 | U16: =IF($L16="รถ 6 ล้อ",G16*$U$6,0) -> 0 | V16: =IF($L16="รถ 6 ล้อ",H16*$V$6,0) -> 0 | W16: =IF($L16="รถ 6 ล้อ",I16*$W$6,0) -> 0 | X16: =IF($L16="รถ 6 ล้อ",J16*$X$6,0) -> 0 | Y16: =IF($L16="รถ 10 ล้อ",E16*$Y$6,0) -> 0 | Z16: =IF($L16="รถ 10 ล้อ",F16*$Z$6,0) -> 0 | AA16: =IF($L16="รถ 10 ล้อ",G16*$AA$6,0) -> 0 | AB16: =IF($L16="รถ 10 ล้อ",H16*$AB$6,0) -> 0 | AC16: =IF($L16="รถ 10 ล้อ",I16*$AC$6,0) -> 0 | AD16: =IF($L16="รถ 10 ล้อ",J16*$AD$6,0) -> 0 | AE16: =IF($L16="รถ 10 ล้อ + ลากพ่วง",E16*$AE$6,0) -> 76 | AF16: =IF($L16="รถ 10 ล้อ + ลากพ่วง",F16*$AF$6,0) -> 0 | AG16: =IF($L16="รถ 10 ล้อ + ลากพ่วง",G16*$AG$6,0) -> 0 | AH16: =IF($L16="รถ 10 ล้อ + ลากพ่วง",H16*$AH$6,0) -> 0 | AI16: =IF($L16="รถ 10 ล้อ + ลากพ่วง",I16*$AI$6,0) -> 0 | AJ16: =IF($L16="รถ 10 ล้อ + ลากพ่วง",J16*$AJ$6,0) -> 0 | AK16: 76 | AL16: 1 | AM16: =IF(R16=0,0,IF($L16="รถ 6 ล้อ",VLOOKUP($R16,รวมตารางคำนวณ!$B$11:$D$210,2),IF($L16="รถ 10 ล้อ",VLOOKUP($R16,รวมตารางคำนวณ!$F$11:$H$210,2),IF($L16="รถ 10 ล้อ + ลากพ่วง",VLOOKUP($R16,รวมตารางคำนวณ!$J$11:$L$210,2),0)))) -> 114.91 | AN16: 114.91
B17: หินผสมคอนกรีต | C17: บ./ลบ.ม. | D17: 350 | E17: 65 | F17: 0 | G17: 0 | J17: 0 | K17: 65 | L17: รถ 10 ล้อ | N17: =N18 -> โรงโม่หินผาทอง อ.กาญจนดิษฐ จ.สุราษ | R17: 65 | S17: 0 | T17: 0 | U17: 0 | V17: 0 | W17: 0 | X17: 0 | Y17: 65 | Z17: 0 | AA17: 0 | AB17: 0 | AC17: 0 | AD17: 0 | AE17: 0 | AF17: 0 | AG17: 0 | AH17: 0 | AI17: 0 | AJ17: 0 | AK17: 65 | AL17: 1 | AM17: =IF(R17=0,0,IF($L17="รถ 6 ล้อ",VLOOKUP($R17,รวมตารางคำนวณ!$B$11:$D$210,3),IF($L17="รถ 10 ล้อ",VLOOKUP($R17,รวมตารางคำนวณ!$F$11:$H$210,3),IF($L17="รถ 10 ล้อ + ลากพ่วง",VLOOKUP($R17,รวมตารางคำนวณ!$J$11:$L$210,3),0)))) -> 222.07 | AN17: 222.07
B18: หินคลุก | C18: บ./ลบ.ม. | D18: 280 | E18: =E17 -> 65 | F18: 0 | G18: 0 | J18: 0 | K18: 65 | L18: =L17 -> รถ 10 ล้อ | N18: โรงโม่หินผาทอง อ.กาญจนดิษฐ จ.สุราษ | R18: 65 | S18: 0 | T18: 0 | U18: 0 | V18: 0 | W18: 0 | X18: 0 | Y18: 65 | Z18: 0 | AA18: 0 | AB18: 0 | AC18: 0 | AD18: 0 | AE18: 0 | AF18: 0 | AG18: 0 | AH18: 0 | AI18: 0 | AJ18: 0 | AK18: 65 | AL18: 1 | AM18: =IF(R18=0,0,IF($L18="รถ 6 ล้อ",VLOOKUP($R18,รวมตารางคำนวณ!$B$11:$D$210,3),IF($L18="รถ 10 ล้อ",VLOOKUP($R18,รวมตารางคำนวณ!$F$11:$H$210,3),IF($L18="รถ 10 ล้อ + ลากพ่วง",VLOOKUP($R18,รวมตารางคำนวณ!$J$11:$L$210,3),0)))) -> 222.07 | AN18: 222.07
B19: ทรายหยาบ | C19: บ./ลบ.ม. | D19: 350 | E19: 60 | F19: 0 | G19: 0 | J19: 0 | K19: 60 | L19: รถ 10 ล้อ | N19: ท่าทรายโซนริมแม่น้ำตาปี ต.ทุ่งหลวง อ.เวียงสระ | R19: 60 | S19: 0 | T19: 0 | U19: 0 | V19: 0 | W19: 0 | X19: 0 | Y19: 60 | Z19: 0 | AA19: 0 | AB19: 0 | AC19: 0 | AD19: 0 | AE19: 0 | AF19: 0 | AG19: 0 | AH19: 0 | AI19: 0 | AJ19: 0 | AK19: 60 | AL19: 1 | AM19: =IF(R19=0,0,IF($L19="รถ 6 ล้อ",VLOOKUP($R19,รวมตารางคำนวณ!$B$11:$D$210,3),IF($L19="รถ 10 ล้อ",VLOOKUP($R19,รวมตารางคำนวณ!$F$11:$H$210,3),IF($L19="รถ 10 ล้อ + ลากพ่วง",VLOOKUP($R19,รวมตารางคำนวณ!$J$11:$L$210,3),0)))) -> 205.14 | AN19: 205.14
B20: ลูกรัง | C20: บ./ลบ.ม. | D20: 0 | E20: 0 | F20: 0 | G20: 0 | J20: 0 | K20: 0 | L20: รถ 10 ล้อ | R20: 0 | S20: 0 | T20: 0 | U20: 0 | V20: 0 | W20: 0 | X20: 0 | Y20: 0 | Z20: 0 | AA20: 0 | AB20: 0 | AC20: 0 | AD20: 0 | AE20: 0 | AF20: 0 | AG20: 0 | AH20: 0 | AI20: 0 | AJ20: 0 | AK20: 0 | AL20: 0 | AM20: =IF(R20=0,0,IF($L20="รถ 6 ล้อ",VLOOKUP($R20,รวมตารางคำนวณ!$B$11:$D$210,3),IF($L20="รถ 10 ล้อ",VLOOKUP($R20,รวมตารางคำนวณ!$F$11:$H$210,3),IF($L20="รถ 10 ล้อ + ลากพ่วง",VLOOKUP($R20,รวมตารางคำนวณ!$J$11:$L$210,3),0)))) -> 0 | AN20: 0
B21: ทรายถม | C21: บ./ลบ.ม. | D21: 250 | E21: =E19 -> 60 | F21: 0 | G21: 0 | J21: 0 | K21: 60 | L21: รถ 10 ล้อ | N21: =N19 -> ท่าทรายโซนริมแม่น้ำตาปี ต.ทุ่งหลวง อ.เวียงสระ | R21: 60 | S21: 0 | T21: 0 | U21: 0 | V21: 0 | W21: 0 | X21: 0 | Y21: 60 | Z21: 0 | AA21: 0 | AB21: 0 | AC21: 0 | AD21: 0 | AE21: 0 | AF21: 0 | AG21: 0 | AH21: 0 | AI21: 0 | AJ21: 0 | AK21: 60 | AL21: 1 | AM21: =IF(R21=0,0,IF($L21="รถ 6 ล้อ",VLOOKUP($R21,รวมตารางคำนวณ!$B$11:$D$210,3),IF($L21="รถ 10 ล้อ",VLOOKUP($R21,รวมตารางคำนวณ!$F$11:$H$210,3),IF($L21="รถ 10 ล้อ + ลากพ่วง",VLOOKUP($R21,รวมตารางคำนวณ!$J$11:$L$210,3),0)))) -> 205.14 | AN21: 205.14
B22: ดินถม | C22: บ./ลบ.ม. | D22: 0 | F22: 0 | G22: 0 | J22: 0 | K22: 0 | L22: รถ 10 ล้อ | N22: อ.เวียงสระ | R22: 0 | S22: 0 | T22: 0 | U22: 0 | V22: 0 | W22: 0 | X22: 0 | Y22: 0 | Z22: 0 | AA22: 0 | AB22: 0 | AC22: 0 | AD22: 0 | AE22: 0 | AF22: 0 | AG22: 0 | AH22: 0 | AI22: 0 | AJ22: 0 | AK22: 0 | AL22: 0 | AM22: =IF(R22=0,0,IF($L22="รถ 6 ล้อ",VLOOKUP($R22,รวมตารางคำนวณ!$B$11:$D$210,3),IF($L22="รถ 10 ล้อ",VLOOKUP($R22,รวมตารางคำนวณ!$F$11:$H$210,3),IF($L22="รถ 10 ล้อ + ลากพ่วง",VLOOKUP($R22,รวมตารางคำนวณ!$J$11:$L$210,3),0)))) -> 0 | AN22: 0
B23: ท่อกลมขนาด ø 0.30 ม. | C23: ท่อน | D23: 350.47 | E23: 60 | F23: 0 | G23: 0 | J23: 0 | K23: 60 | L23: รถ 10 ล้อ | N23: =N7 -> ราคาพานิชย์จังหวัดสุราษฏร์ธานี | R23: 60 | S23: 0 | T23: 0 | U23: 0 | V23: 0 | W23: 0 | X23: 0 | Y23: 60 | Z23: 0 | AA23: 0 | AB23: 0 | AC23: 0 | AD23: 0 | AE23: 0 | AF23: 0 | AG23: 0 | AH23: 0 | AI23: 0 | AJ23: 0 | AK23: 60 | AL23: 1 | AM23: =IF(R23=0,0,IF($L23="รถ 6 ล้อ",VLOOKUP($R23,รวมตารางคำนวณ!$B$11:$D$210,2),IF($L23="รถ 10 ล้อ",VLOOKUP($R23,รวมตารางคำนวณ!$F$11:$H$210,2),IF($L23="รถ 10 ล้อ + ลากพ่วง",VLOOKUP($R23,รวมตารางคำนวณ!$J$11:$L$210,2),0)))) -> 146.53 | AN23: 146.53
B24: ท่อกลมขนาด ø 0.40 ม. | C24: ท่อน | D24: 455.6 | E24: =E23 -> 60 | F24: 0 | G24: 0 | J24: 0 | K24: 60 | L24: =L23 -> รถ 10 ล้อ | N24: =N23 -> ราคาพานิชย์จังหวัดสุราษฏร์ธานี | R24: 60 | S24: 0 | T24: 0 | U24: 0 | V24: 0 | W24: 0 | X24: 0 | Y24: 60 | Z24: 0 | AA24: 0 | AB24: 0 | AC24: 0 | AD24: 0 | AE24: 0 | AF24: 0 | AG24: 0 | AH24: 0 | AI24: 0 | AJ24: 0 | AK24: 60 | AL24: 1 | AM24: =IF(R24=0,0,IF($L24="รถ 6 ล้อ",VLOOKUP($R24,รวมตารางคำนวณ!$B$11:$D$210,2),IF($L24="รถ 10 ล้อ",VLOOKUP($R24,รวมตารางคำนวณ!$F$11:$H$210,2),IF($L24="รถ 10 ล้อ + ลากพ่วง",VLOOKUP($R24,รวมตารางคำนวณ!$J$11:$L$210,2),0)))) -> 146.53 | AN24: 146.53
B25: ท่อกลมขนาด ø 0.60 ม. | C25: ท่อน | D25: 602.81 | E25: 60 | F25: 0 | G25: 0 | J25: 0 | K25: 60 | L25: =L24 -> รถ 10 ล้อ | N25: =N24 -> ราคาพานิชย์จังหวัดสุราษฏร์ธานี | R25: 60 | S25: 0 | T25: 0 | U25: 0 | V25: 0 | W25: 0 | X25: 0 | Y25: 60 | Z25: 0 | AA25: 0 | AB25: 0 | AC25: 0 | AD25: 0 | AE25: 0 | AF25: 0 | AG25: 0 | AH25: 0 | AI25: 0 | AJ25: 0 | AK25: 60 | AL25: 1 | AM25: =IF(R25=0,0,IF($L25="รถ 6 ล้อ",VLOOKUP($R25,รวมตารางคำนวณ!$B$11:$D$210,2),IF($L25="รถ 10 ล้อ",VLOOKUP($R25,รวมตารางคำนวณ!$F$11:$H$210,2),IF($L25="รถ 10 ล้อ + ลากพ่วง",VLOOKUP($R25,รวมตารางคำนวณ!$J$11:$L$210,2),0)))) -> 146.53 | AN25: 146.53
B26: ท่อกลมขนาด ø 0.80 ม. | C26: ท่อน | D26: 1200.91 | E26: 60 | F26: 0 | G26: 0 | J26: 0 | K26: 60 | L26: รถ 10 ล้อ | N26: =N25 -> ราคาพานิชย์จังหวัดสุราษฏร์ธานี | R26: 60 | S26: 0 | T26: 0 | U26: 0 | V26: 0 | W26: 0 | X26: 0 | Y26: 60 | Z26: 0 | AA26: 0 | AB26: 0 | AC26: 0 | AD26: 0 | AE26: 0 | AF26: 0 | AG26: 0 | AH26: 0 | AI26: 0 | AJ26: 0 | AK26: 60 | AL26: 1 | AM26: =IF(R26=0,0,IF($L26="รถ 6 ล้อ",VLOOKUP($R26,รวมตารางคำนวณ!$B$11:$D$210,2),IF($L26="รถ 10 ล้อ",VLOOKUP($R26,รวมตารางคำนวณ!$F$11:$H$210,2),IF($L26="รถ 10 ล้อ + ลากพ่วง",VLOOKUP($R26,รวมตารางคำนวณ!$J$11:$L$210,2),0)))) -> 146.53 | AN26: 146.53
B27: ท่อกลมขนาด ø 1.00 ม. | C27: ท่อน | D27: 1785.05 | E27: 60 | F27: 0 | G27: 0 | J27: 0 | K27: 60 | L27: รถ 10 ล้อ | N27: ราคาพานิชย์จังหวัดสุราษฏร์ธานี | R27: 60 | S27: 0 | T27: 0 | U27: 0 | V27: 0 | W27: 0 | X27: 0 | Y27: 60 | Z27: 0 | AA27: 0 | AB27: 0 | AC27: 0 | AD27: 0 | AE27: 0 | AF27: 0 | AG27: 0 | AH27: 0 | AI27: 0 | AJ27: 0 | AK27: 60 | AL27: 1 | AM27: =IF(R27=0,0,IF($L27="รถ 6 ล้อ",VLOOKUP($R27,รวมตารางคำนวณ!$B$11:$D$210,2),IF($L27="รถ 10 ล้อ",VLOOKUP($R27,รวมตารางคำนวณ!$F$11:$H$210,2),IF($L27="รถ 10 ล้อ + ลากพ่วง",VLOOKUP($R27,รวมตารางคำนวณ!$J$11:$L$210,2),0)))) -> 146.53 | AN27: 146.53
B28: ท่อกลมขนาด ø 1.20 ม. | C28: ท่อน | D28: 2710.28 | E28: 60 | F28: 0 | G28: 0 | J28: 0 | K28: 60 | L28: รถ 10 ล้อ | N28: ราคาพานิชย์จังหวัดสุราษฏร์ธานี | R28: 60 | S28: 0 | T28: 0 | U28: 0 | V28: 0 | W28: 0 | X28: 0 | Y28: 60 | Z28: 0 | AA28: 0 | AB28: 0 | AC28: 0 | AD28: 0 | AE28: 0 | AF28: 0 | AG28: 0 | AH28: 0 | AI28: 0 | AJ28: 0 | AK28: 60 | AL28: 1 | AM28: =IF(R28=0,0,IF($L28="รถ 6 ล้อ",VLOOKUP($R28,รวมตารางคำนวณ!$B$11:$D$210,2),IF($L28="รถ 10 ล้อ",VLOOKUP($R28,รวมตารางคำนวณ!$F$11:$H$210,2),IF($L28="รถ 10 ล้อ + ลากพ่วง",VLOOKUP($R28,รวมตารางคำนวณ!$J$11:$L$210,2),0)))) -> 146.53 | AN28: 146.53
B29: ท่อกลมขนาด ø 1.50 ม. | C29: ท่อน | D29: 4485.98 | E29: 60 | F29: 0 | G29: 0 | J29: 0 | K29: 60 | L29: รถ 10 ล้อ | N29: ราคาพานิชย์จังหวัดสุราษฏร์ธานี | R29: 60 | S29: 0 | T29: 0 | U29: 0 | V29: 0 | W29: 0 | X29: 0 | Y29: 60 | Z29: 0 | AA29: 0 | AB29: 0 | AC29: 0 | AD29: 0 | AE29: 0 | AF29: 0 | AG29: 0 | AH29: 0 | AI29: 0 | AJ29: 0 | AK29: 60 | AL29: 1 | AM29: =IF(R29=0,0,IF($L29="รถ 6 ล้อ",VLOOKUP($R29,รวมตารางคำนวณ!$B$11:$D$210,2),IF($L29="รถ 10 ล้อ",VLOOKUP($R29,รวมตารางคำนวณ!$F$11:$H$210,2),IF($L29="รถ 10 ล้อ + ลากพ่วง",VLOOKUP($R29,รวมตารางคำนวณ!$J$11:$L$210,2),0)))) -> 146.53 | AN29: 146.53
B30: เสาเข็มสี่เหลี่ยมตัน 0.40x0.40x21 ม. | C30: ท่อน | D30: 21396.59 | E30: 94 | F30: 0 | G30: 0 | J30: 0 | K30: =SUM(E30:J30) -> 94 | L30: =L16 -> รถ 10 ล้อ + ลากพ่วง | N30: ราคาพานิชย์จังหวัดนครศรธรรมราช
B31: ไม้กระบากหรือไม้ยางหรือเทียบเท่า ขนาด 1" x 6" | C31: ลบ.ฟ. | D31: 514 | J31: ==>> | N31: =N29 -> ราคาพานิชย์จังหวัดสุราษฏร์ธานี
B32: ไม้อัดยาง หนา 4 มม. | C32: แผ่น | D32: 272.69 | J32: ==>> | N32: ราคาพานิชย์จังหวัดกระบี่
B33: ไม้คร่าว 1 1/2" x 3" | C33: ลบ.ฟ. | D33: 467.29 | J33: ==>> | N33: =N31 -> ราคาพานิชย์จังหวัดสุราษฏร์ธานี
B34: ไม้ค้ำยัน 1 1/2" x 3" x 0.30 ม. | C34: ต้น | D34: 20 | J34: ==>> | N34: ราคาพานิชย์จังหวัดกระบี่
B35: ไม้ค้ำยัน 1 1/2" x 3" x 0.50 ม. | C35: ต้น | D35: 25 | J35: ==>> | N35: ราคาพานิชย์จังหวัดสุราษฏร์ธานี
B36: ตะปู | C36: กก. | D36: 37.38 | J36: ==>> | N36: ราคาพานิชย์จังหวัดกระบี่
B37: แผ่นโฟม | C37: แผ่น | D37: 25 | J37: ==>> | N37: =N14 -> ราคาร้านวัสดุในจังหวัดสุราษฏร์ธานี(รวมค่าขนส่ง)
B38: ท่อ พีวีซี | C38: ท่อน | D38: 57 | J38: ==>> | N38: ราคาพานิชย์จังหวัดกระบี่

Sheet ข้อมูลค่าแรงงาน (hidden)
C1: บัญชีค่าแรงงาน/ดำเนินการสำหรับการถอดแบบคำนวณราคากลางงานก่อสร้าง
C3: ลำดับที่ | D3: รายการ | E3: หน่วย | F3: ค่าแรง/หน่วย | G3: หมายเหตุ
F4: (บาท)
C5: 1 | D5: ขุดดินหลุมฐานรากและถมคืน | H5: กรอกข้อมูลค่าแรง กรณีมีการเปลี่ยนแปลง
C6: 1.1 | D6: ดินทั่วไป | E6: ลบ.ม. | F6: 99 | G6: ปริมาณเกิน 100 ลบ.ม. หรือขุดลึกไม่เกิน 1.00 ม. | H6: ตัวเลข สีเขียว
E7: ลบ.ม. | F7: 125 | G7: ปริมาณตั้งแต่ 25-100 ลบ.ม. หรือขุดลึก 1.00 - 1.50 ม.
E8: ลบ.ม. | F8: 148 | G8: ปริมาณน้อยกว่า 25 ลบ.ม. หรือขุดลึกเกิน 1.50 ม.
C9: 1.2 | D9: ดินลูกรัง | E9: ลบ.ม. | F9: 194 | G9: ปริมาณเกิน 100 ลบ.ม. หรือขุดลึกไม่เกิน 1.00 ม.
E10: ลบ.ม. | F10: 239 | G10: ปริมาณตั้งแต่ 25-100 ลบ.ม. หรือขุดลึก 1.00 - 1.50 ม.
E11: ลบ.ม. | F11: 283 | G11: ปริมาณน้อยกว่า 25 ลบ.ม. หรือขุดลึกเกิน 1.50 ม.
C13: 2 | D13: งานดินถมหรือทรายเพื่อปรับระดับ | E13: ลบ.ม. | F13: 99 | G13: ขนจากกองใกล้อาคารและปรับระดับ
C15: 3 | D15: งานวัสดุรองก้นหลุม | E15: ลบ.ม. | F15: 104 | G15: ใส่อิฐหักรองก้นหลุม
E16: ลบ.ม. | F16: 91 | G16: ใส่ทรายรองก้นหลุม
C18: 4 | D18: งานผสมและเทคอนกรีต
C19: 4.1 | D19: คอนกรีตหยาบ | E19: ลบ.ม. | F19: 398 | G19: รองก้นหลุม
C20: 4.2 | D20: คอนกรีตโครงสร้าง | E20: ลบ.ม. | F20: 436 | G20: ทางเท้า ทางระบายน้ำ บ่อพัก ถนนภายในบริเวณ
E21: ลบ.ม. | F21: 498 | G21: โครงสร้างและส่วนประกอบอาคารชั้นเดียว
E22: ลบ.ม. | F22: 542 | G22: โครงสร้างและส่วนประกอบอาคารหลายชั้น
C24: 4 | D24: เทคอนกรีตผสมเสร็จ | E24: ลบ.ม. | F24: 306 | G24: ทางเท้า ทางระบายน้ำ บ่อพัก ถนนภายในบริเวณ
E25: ลบ.ม. | F25: 391 | G25: โครงสร้างและส่วนประกอบอาคารชั้นเดียว
E26: ลบ.ม. | F26: 485 | G26: โครงสร้างและส่วนประกอบอาคารหลายชั้น
C28: 5 | D28: ประกอบและติดตั้งแบบหล่อคอนกรีต
C29: 5.1 | D29: แบบหล่อทั่วไป | E29: ตร.ม. | F29: 115 | G29: จำนวนตั้งแต่ 5,000 ตร.ม. ขึ้นไป
E30: ตร.ม. | F30: 133 | G30: จำนวนน้อยกว่า 5,000 ตร.ม.
C31: 5.2 | D31: แบบหล่อคอนกรีตเปลือย | E31: ตร.ม. | F31: 154 | G31: ชนิดผิวเรียบ
E32: ตร.ม. | F32: 193 | G32: ชนิดผิวมีบัวลวดลาย
C33: 5.3 | D33: แบบหล่อที่ตั้งสูงเกินปกติ | E33: ตร.ม. | F33: 154 | G33: ท้องคานหรือท้องพื้นสูง 5.00 - 7.00 ม.
E34: ตร.ม. | F34: 180 | G34: ท้องคานหรือท้องพื้นสูงเกิน 7.00 ม.
C36: 6 | D36: ตัด ดัด และผูกเหล็กเส้นเสริมคอนกรีต
D37: ผิวเรียบ | E37: ตัน | F37: 4100 | G37: เส้นผ่าศูนย์กลางน้อยกว่า 10 มม.
D38: ผิวเรียบ/ผิวข้ออ้อย | E38: ตัน | F38: 3300 | G38: เส้นผ่าศูนย์กลาง ตั้งแต่ 10 มม. ถึง 16 มม.
D39: ผิวเรียบ/ผิวข้ออ้อย | E39: ตัน | F39: 2900 | G39: เส้นผ่าศูนย์กลาง 19 มม. ขึ้นไป
D40: วางตะแกรงเหล็กสำเร็จรูป (Wire mesh) | E40: ตร.ม. | F40: 5
D42: ค่าขนขึ้นลงวัสดุ
D43: ค่าขนขึ้นลงอุปกรณ์ | E43: 80 | F43: บาท/ตัน
D44: ค่าขนขึ้นลงยาง MC | E44: 25 | F44: บาท/ตัน
D45: ค่าขนขึ้นลงยาง AC | E45: 35 | F45: บาท/ตัน
D46: ค่าขนขึ้นลงยาง P.M.A | E46: 50 | F46: บาท/ตัน
D47: ค่าขนขึ้นลงเหล็กเส้น | E47: 80 | F47: บาท/ตัน
D48: ค่าขนขึ้นลงปูนซีเมนต์ | E48: 50 | F48: บาท/ตัน
C49: ที่มา : บัญชีค่าแรงงาน อ้างอิงหรือศึกษาได้จากแนวทางวิธีปฏิบัติและรายละเอียดประกอบการคำนวณราคากลางงานก่อสร้าง(หน้า 34 - 79)
C50: : ค่าขนขึ้นลงวัสดุ อ้างอิงหรือศึกษาได้จากหลักเกณฑ์การคำนวณราคากลางงานก่อสร้างทาง สะพานและท่อเหลี่ยม(หน้า 80)
C51: หลักเกณฑ์การคำนวณราคากลางงานก่อสร้างของทางราชการ ตามมติ ครม. เมื่อ วันที่ 13 มีนาคม 2555

Sheet Pr.5
A1: แบบฟอร์มสรุปผลการประมาณราคาค่าก่อสร้าง
A3: ส่วนราชการ | C3: =ข้อมูลโครงการ!L11 -> เทศบาลตำบลบ้านส้อง | G3: งบประมาณตั้งจ่ายประจำปี 2562
C4: =[21]Initial!B$3 -> 0 | G4: =[21]Initial!E$3 -> 0
A5: ประเภทงาน | C5: =ข้อมูลโครงการ!L10 -> ก่อสร้างสะพานข้ามคลองหล ม.18
A6: สถานที่ก่อสร้าง | C6: =ข้อมูลโครงการ!L13 -> หมู่ที่ 18 ตำบลบ้านส้อง อำเภอเวียงสระ จังหวัดสุราษฏร์ธานี
A7: =BOQ!A3 -> ปริมาณงาน ผิวจราจรสะพานชนิดไม่มีทางเท้า กว้าง 5.00 เมตร สะพานยาว 10.00 เมตร หนา เมตร หรือพื้นที่ไม่น้อยกว่า 50.00 ตารางเมตร
A8: สรุปประมาณราคาตามแบบฟอร์ม | D8: ปร. 4/1 ท | E8: จำนวน | F8: 2 | G8: แผ่น
A9: ประมาณราคา เมื่อวันที่ | D9: 2019-05-15
A10: ลำดับที่ | B10: รายการ | E10: รวมค่างานต้นทุน | F10: Factor F | G10: รวมค่าก่อสร้าง | H10: หมายเหตุ
A11: 1 | B11: ประเภทงานสะพาน | E11: =ปร.4สะพาน!N37 -> 769892 | F11: 1.2872 | G11: =ROUND(E11*F11,2) -> 991004.98 | H11: Factor F (พื้นที่ปกติ) | K11: CHECK
B12: =C5 -> ก่อสร้างสะพานข้ามคลองหล ม.18 | H12: - ภาษีมูลค่าเพิ่ม | I12: 0.07 | K12: =F11-[21]FACTORFชุก1_ROAD!E20 -> -0.064
A13: 2 | B13: ป้ายโครงการ | E13: 4000 | F13: - | G13: =E13 -> 4000 | H13: - ดอกเบี้ยเงินกู้ | I13: 0.06 | K13: =K12-[21]FACTORFชุก1_ROAD!E35 -> -1.422773002
A14: 0 | B14: 0 | E14: 0 | F14: 0 | G14: =E14 -> 0 | H14: - เงินประกันผลงานหัก | I14: 0% | K14: =F11+K13 -> -0.1355730022
H15: - ระยะเวลาก่อสร้าง 120 วัน
B16: รวมเป็นค่าก่อสร้าง | G16: =SUM(G11:G15) -> 995004.98
A17: สรุป | B17: คิดเป็นเงินค่าก่อสร้างประมาณ | G17: =ROUNDDOWN(G16,-3) -> 995000 | K17: ตามแผน | L17: =IF(G17>K18,"OVER","OK") -> OVER | M17: ได้ระยะทาง
B18: ตัวอักษร | C18: ="("&BAHTTEXT($G$17)&")" -> (เก้าแสนเก้าหมื่นห้าพันบาทถ้วน) | M18: =D7*K18/G17 -> 0
A20: ความยาวทั้งโครงการ | C20: 10 | D20: 10 | E20: ม. | F20: เฉลี่ยราคา ม..ละ | G20: =ROUNDDOWN($G$17/$D$20,-3) -> 99000 | H20: บาท
A21: คิดเป็นพื้นที่โครงการ | D21: 50 | E21: ตร.ม. | F21: เฉลี่ย ตรม.ละ | G21: =G17/D21 -> 19900 | H21: บาท
B24: คณะกรรมการกำหนดราคากลาง ตามคำสั่งที่
K26: ช
A27: (ลงชื่อ) | B27: ................................................................... | D27: ประธานกรรมการราคากลาง | E27: ประธานกรรมการาคากลาง | G27: ....................................................... | J27: เห็นชอบ
B28: (นายวัชรินทร์ ไชยยศ) | D28: ผู้อำนวยการกองช่าง | E28: ผู้อำนวยการกองช่าง | G28: (นายธีรพงศ์ เนื้ออ่อน)
A29: (ลงชื่อ) | B29: =B27 -> ................................................................... | D29: กรรมการ | E29: กรรมการ | G29: ปลัดเทศบาลตำบลบ้านส้อง
B30: (นายนริศ บุญช้าง) | D30: นายช่างไฟฟ้าชำนาญงาน | E30: นายช่างไฟฟ้าชำนาญงาน
A31: (ลงชื่อ) | B31: ....................................................................... | D31: กรรมการ | E31: กรรมการ | G31: .................................................... | J31: อนุมัติ
B32: (นายวรวิทย์ สมจิตร์) | D32: นายช่างโยธาชำนาญงาน | E32: นายช่างโยธาชำนาญงาน | G32: (นายคนองศิลป์ ชิตรกุล)
G33: นายกเทศมนตรีตำบลบ้านส้อง
D37: ประธานกรรมการฯ | E37: ( นายวัชรินทร์ ไชยยศ )
E38: ผู้อำนวยการกองช่าง
D39: ตำแหน่ง
F40: กรรมการ
A41: กรรมการ
C42: ( นางจิราวรรณ จันทร์พุธ ) | F42: ตำแหน่ง | G42: ( นายนพดล แก้วมหิทธิ์ )
B43: ตำแหน่ง | C43: ผู้อำนวยการกองคลัง | G43: ผู้อำนวยการกองสาธารณสุข
F44: กรรมการ
A45: กรรมการ
C46: ( นายจำลอง นวลสุทธิ์ ) | F46: ตำแหน่ง | G46: ( นายลิขิต วงค์จุ้ย )
B47: ตำแหน่ง | C47: หัวหน้าสำนักปลัด | G47: วิศวกรโยธาปฎิบัติการ

Sheet ราคาต่อหน่วยสะพานท่อเหลี่ยม (hidden)
A1: ราคาต้นทุนต่อหน่วยงานสะพานและท่อลอดเหลี่ยม | AA1: 1
A2: 1 | B2: งานสะพาน คสล. | AA2: =IF([8]ข้อมูลโครงสร้างทาง!N8>0,1,0) -> 1
AA3: =$AA$2 -> 1
B4: 1.1.1 | C4: งานเสาเข็ม | AA4: =$AA$2 -> 1
C5: =ปร.4สะพาน!E14 -> เสาเข็มตับริม 0.40*0.40*12.00 ม. คิดงานนั่งร้านตอกเสาเข็ม | AA5: 1
C6: คอนกรีต ค4 | E6: = | G6: =0.4*0.4*12 -> 1.92 | H6: ลบ.ม. @ | I6: =ข้อมูลงานคอนกรีต!I19 -> 2536.13648 | J6: บาท = | K6: =ROUNDDOWN(G6*I6,2) -> 4869.38 | L6: บาท | N6: [1] | AA6: 1
C7: ไม้แบบ (1) | E7: = | G7: =1.2*12 -> 14.4 | H7: ตร.ม. @ | I7: =ข้อมูลงานคอนกรีต!AH39 -> 416 | J7: บาท = | K7: =ROUNDDOWN(G7*I7,2) -> 5990.4 | L7: บาท | N7: [2] | AA7: 1
C8: เหล็กเสริม | E8: = | H8: กก. | AA8: 1
C9: RB6 | E9: = | G9: =128*0.222*1.05 -> 29.8368 | H9: กก. @ | I9: =สรุปวัสดุและค่าดำเนินการ!L13/1000 -> 24.63323 | J9: บาท = | K9: =ROUNDDOWN(G9*I9,2) -> 734.97 | L9: บาท | N9: [3] | O9: =1.5/0.15 -> 10 | P9: 2 | Q9: =O9*P9 -> 20 | R9: 1.6 | S9: =Q9*R9 -> 32 | AA9: 1
C10: DB12 SD40 | E10: = | G10: =1.5*6*0.888*1.09 -> 8.71128 | H10: กก. @ | I10: =สรุปวัสดุและค่าดำเนินการ!L15/1000 -> 23.39211 | J10: บาท = | K10: =ROUNDDOWN(G10*I10,2) -> 203.77 | L10: บาท | N10: [4] | O10: =9/0.15 -> 60 | P10: 47 | Q10: 60 | R10: 1.6 | S10: =Q10*R10 -> 96 | T10: =SUM(S9:S10) -> 128 | AA10: 1
C11: DB25 SD40 | E11: = | G11: =8*12*3.853*1.15 -> 425.3712 | H11: กก. @ | I11: =สรุปวัสดุและค่าดำเนินการ!L18/1000 -> 23.065 | J11: บาท = | K11: =ROUNDDOWN(G11*I11,2) -> 9811.18 | L11: บาท | N11: [5] | AA11: 1
C12: ค่าแรงงานเหล็ก | E12: = | G12: =SUM(G9:G11) -> 463.91928 | H12: กก. @ | I12: รวมในราคาเหล็ก | J12: บาท = | L12: บาท | N12: [6](จากบัญชีค่าแรงฯ) | AA12: 1
C13: ลวดผูกเหล็กใช้ 2.5% | E13: = | G13: =G12*2.5/100 -> 11.597982 | H13: กก. @ | I13: =สรุปวัสดุและค่าดำเนินการ!L21 -> 31.19 | J13: บาท = | K13: =ROUNDDOWN(G13*I13,2) -> 361.74 | L13: บาท | N13: [7] | AA13: 1
C14: เหล็กหล่อปลายเสาเข็ม | E14: = | G14: 1 | H14: ท่อน @ | I14: 2500 | J14: บาท = | K14: =ROUNDDOWN(G14*I14,2) -> 2500 | L14: บาท | N14: [8] | AA14: 1
C15: ค่างานต้นทุน | J15: = | K15: =SUM(K6:K14) -> 24471.44 | L15: บาท/ต้น | N15: [9] = [1] + ….. + [8] | AA15: 1
C16: เสาเข็มสำเร็จรูป 21 ม. | F16: 21396.59 | G16: นครศรี | H16: =F16/21*12 -> 12226.62286 | I16: =H16+K15 -> 36698.06286 | J16: = | K16: =I16/2 -> 18349.03143 | L16: ค่าเฉลี่ย เข็มสำเหร็จ+หล่อในที่ | AA16: 1
C17: นั่งร้านตอกเสาเข็ม (ถ้ามี) | AA17: 1
C18: กำหนดคิดที่ | F18: = | G18: 100 | H18: ตร.ม. @ | I18: ใช้งาน 3 ครั้ง | N18: [1] | AA18: 1
C19: เสาเข็มไม้ f 6" x 6.00 ม. | F19: = | G19: 121 | H19: ต้น @ | I19: =[8]ข้อมูลโครงการ!$Q$109/3 -> 50 | J19: บาท = | K19: =ROUNDDOWN(G19*I19,2) -> 6050 | L19: บาท | N19: [2] | AA19: 1
C20: คานไม้ 2" x 6" x 5.00 ม. | F20: = | G20: 30.1 | H20: ลบ.ฟ. @ | I20: =[8]ข้อมูลโครงการ!$Q$106/3 -> 218.07 | J20: บาท = | K20: 6563.9 | L20: บาท | N20: [3] | AA20: 1
C21: ตงไม้ 2" x 6" x 5.00 ม. | F21: = | G21: 60.2 | H21: ลบ.ฟ. @ | I21: =$I$20 -> 218.07 | J21: บาท = | K21: 13127.81 | L21: บาท | N21: [4] | AA21: 1
C22: พื้นไม้ 2" x 6" x 5.00 ม. | F22: = | G22: 13.68 | H22: ลบ.ฟ. @ | I22: =$I$21 -> 218.07 | J22: บาท = | K22: 2983.19 | L22: บาท | N22: [5] | AA22: 1
C23: น๊อต Ø 1/2" x 8" | F23: = | G23: 24.2 | H23: กก. @ | I23: =[8]ข้อมูลโครงการ!$Q$186 -> 63 | J23: บาท = | K23: 1524.6 | L23: บาท | N23: [6] | AA23: 1
C24: น๊อต Ø 1/2" x 10" | F24: = | G24: 60.5 | H24: กก. @ | I24: =[8]ข้อมูลโครงการ!$Q$186 -> 63 | J24: บาท = | K24: 3811.5 | L24: บาท | N24: [7] | AA24: 1
C25: ตะปูยึดนั่งร้าน | F25: = | G25: 25 | H25: กก. @ | I25: =[8]ข้อมูลโครงการ!$Q$110 -> 51.4 | J25: บาท = | K25: 1285 | L25: บาท | N25: [8] | AA25: 1
C26: ค่าแรงประกอบและรื้อถอน | F26: = | G26: 100 | H26: ตร.ม. @ | I26: =84 -> 84 | J26: บาท = | K26: 8400 | L26: บาท | N26: [9] | AA26: 1
C27: ค่างานต้นทุน | J27: = | K27: =SUM(K19:K26) -> 43746 | L27: บาท | N27: [10] = [2] + ….. + [9] | AA27: 1
C28: ค่างานต้นทุนเฉลี่ย | J28: = | K28: =ROUNDDOWN(K27/100,0) -> 437 | L28: บาท/ตร.ม. | N28: [11] = [10] / [1] | AA28: 1
AA29: 1
C30: สรุปงานเสาเข็มตับริม | AA30: 1
C31: =C5 -> เสาเข็มตับริม 0.40*0.40*12.00 ม. คิดงานนั่งร้านตอกเสาเข็ม | F31: = | G31: =2*6 -> 12 | H31: ต้น @ | I31: =ROUNDDOWN(K16,0) -> 18349 | J31: บาท = | K31: =ROUNDDOWN(G31*I31,2) -> 220188 | L31: บาท | N31: [1] | AA31: 1
C32: ตอกเสาเข็มขนาด 0.40 x 0.40 | F32: = | G32: =G31 -> 12 | H32: ต้น @ | I32: =2880*12/21 -> 1645.714286 | J32: บาท = | K32: 19748.57 | L32: บาท | N32: [2] | AA32: 1
C33: นั่งร้านตอกเสาเข็ม | F33: = | G33: 0 | H33: ตร.ม. @ | I33: =K28 -> 437 | J33: บาท = | K33: 0 | L33: บาท | N33: [3] | AA33: 1
C34: สกัดหัวเสาเข็ม | F34: = | G34: =G32 -> 12 | H34: ต้น @ | I34: 370 | J34: บาท = | K34: 4440 | L34: บาท | N34: [4] | AA34: 1
C35: ค่างานต้นทุน | J35: = | K35: =SUM(K31:K34) -> 244376.57 | L35: บาท | N35: [5] = [1] + ….. + [4] | AA35: 1
C36: ค่างานต้นทุนเฉลี่ย | J36: = | K36: =ROUNDDOWN(K35/G31,-1) -> 20360 | L36: บาท/ต้น | N36: [6] = [5] / จำนวนต้น | AA36: 1
AA37: 1
AA38: 1
AA39: 1
B40: 1.2.1(2) | C40: =ปร.4สะพาน!E15 -> งานรื้อถอนท่อเหลี่ยม คสล.เดิม + ขนทิ้ง | G40: ใช้แบบเดียวกับตับริม | AA40: 1
AA41: 1
C42: คอนกรีต ค2 | E42: = | H42: ลบ.ม. @ | J42: บาท = | K42: =ROUNDDOWN(G42*I42,2) -> 0 | L42: บาท | N42: [1] | AA42: 1
C43: ไม้แบบ (1) | E43: = | H43: ตร.ม. @ | J43: บาท = | K43: 0 | L43: บาท | N43: [2] | AA43: 1
C44: เหล็กเสริม | E44: = | H44: กก. | AA44: 1
C45: RB6 | E45: = | H45: กก. @ | J45: บาท = | K45: =ROUNDDOWN(G45*I45,2) -> 0 | L45: บาท | N45: [3] | AA45: 1
C46: DB12 SD40 | E46: = | H46: กก. @ | J46: บาท = | K46: 0 | L46: บาท | N46: [4] | AA46: 1
C47: DB25 SD40 | E47: = | H47: กก. @ | J47: บาท = | K47: 0 | L47: บาท | N47: [5] | AA47: 1
C48: ค่าแรงงานเหล็ก | E48: = | G48: =G44 -> 0 | H48: กก. @ | J48: บาท = | K48: 0 | L48: บาท | N48: [6](จากบัญชีค่าแรงฯ) | AA48: 1
C49: ลวดผูกเหล็กใช้ 2.5% | E49: = | G49: =G48*2.5/100 -> 0 | H49: กก. @ | J49: บาท = | K49: 0 | L49: บาท | N49: [7] | AA49: 1
C50: เหล็กหล่อปลายเสาเข็ม | E50: = | G50: 1 | H50: ท่อน @ | I50: 0 | J50: บาท = | K50: 0 | L50: บาท | N50: [8] | AA50: 1
C51: ค่างานต้นทุน | J51: = | K51: =SUM(K42:K50) -> 0 | L51: บาท/ต้น | N51: [9] = [1] + ….. + [8] | AA51: 1
AA52: 1
C53: นั่งร้านตอกเสาเข็ม | AA53: 1
C54: กำหนดคิดที่ | F54: = | G54: 100 | H54: ตร.ม. @ | I54: ใช้งาน 3 ครั้ง | N54: [1] | AA54: 1
C55: เสาเข็มไม้ Ø 6" x 6.00 ม. | F55: = | G55: 121 | H55: ต้น @ | I55: =[8]ข้อมูลโครงการ!$Q$109/3 -> 50 | J55: บาท = | K55: =ROUNDDOWN(G55*I55,2) -> 6050 | L55: บาท | N55: [2] | AA55: 1
C56: คานไม้ 2" x 6" x 5.00 ม. | F56: = | G56: 30.1 | H56: ลบ.ฟ. @ | I56: =[8]ข้อมูลโครงการ!$Q$106/3 -> 218.07 | J56: บาท = | K56: 6563.9 | L56: บาท | N56: [3] | AA56: 1
C57: ตงไม้ 2" x 6" x 5.00 ม. | F57: = | G57: 60.2 | H57: ลบ.ฟ. @ | I57: =I56 -> 218.07 | J57: บาท = | K57: 13127.81 | L57: บาท | N57: [4] | AA57: 1
C58: พื้นไม้ 2" x 6" x 5.00 ม. | F58: = | G58: 13.68 | H58: ลบ.ฟ. @ | I58: =I57 -> 218.07 | J58: บาท = | K58: 2983.19 | L58: บาท | N58: [5] | AA58: 1
C59: น๊อต Ø 1/2" x 8" | F59: = | G59: 24.2 | H59: กก. @ | I59: =[8]ข้อมูลโครงการ!$Q$186 -> 63 | J59: บาท = | K59: 1524.6 | L59: บาท | N59: [6] | AA59: 1
C60: น๊อต Ø 1/2" x 10" | F60: = | G60: 60.5 | H60: กก. @ | I60: =[8]ข้อมูลโครงการ!$Q$186 -> 63 | J60: บาท = | K60: 3811.5 | L60: บาท | N60: [7] | AA60: 1
C61: ตะปูยึดนั่งร้าน | F61: = | G61: 25 | H61: กก. @ | I61: =[8]ข้อมูลโครงการ!$Q$110 -> 51.4 | J61: บาท = | K61: 1285 | L61: บาท | N61: [8] | AA61: 1
C62: ค่าแรงประกอบและรื้อถอน | F62: = | G62: 100 | H62: ตร.ม. @ | I62: =84 -> 84 | J62: บาท = | K62: 8400 | L62: บาท | N62: [9] | AA62: 1
C63: ค่างานต้นทุน | J63: = | K63: =SUM(K55:K62) -> 43746 | L63: บาท | N63: [10] = [2] + ….. + [9] | AA63: 1
C64: ค่างานต้นทุนเฉลี่ย | J64: = | K64: =ROUNDDOWN(K63/G54,0) -> 437 | L64: บาท/ตร.ม. | N64: [11] = [10] / [1] | AA64: 1
AA65: 1
C66: สรุปงานเสาเข็มตับกลาง | AA66: 1
C67: =C31 -> เสาเข็มตับริม 0.40*0.40*12.00 ม. คิดงานนั่งร้านตอกเสาเข็ม | F67: = | G67: =[8]ข้อมูลสะพาน1!I17-ราคาต่อหน่วยสะพานท่อเหลี่ยม!G31 -> 12 | H67: ต้น @ | I67: =ROUNDDOWN(K51,0) -> 0 | J67: บาท = | K67: =ROUNDDOWN(G67*I67,2) -> 0 | L67: บาท | N67: [1] | AA67: 1
C68: ="ตอก"&C67 -> ตอก เสาเข็มตับริม 0.40*0.40*12.00 ม. คิดงานนั่งร้านตอกเสาเข็ม | F68: = | G68: =G67 -> 12 | H68: ต้น @ | I68: =[8]ข้อมูลโครงการ!$Q$202*[8]ข้อมูลคำนวณ1!เสาเข็มยาว ->  | J68: บาท = | L68: บาท | N68: [2] | AA68: =$AA$2 -> 1
C69: นั่งร้านตอกเสาเข็ม | F69: = | G69: =6*30 -> 180 | H69: ตร.ม. @ | I69: =K64 -> 437 | J69: บาท = | K69: 78660 | L69: บาท | N69: [3] | AA69: 1
C70: สกัดหัวเสาเข็ม | F70: = | G70: =G68 -> 12 | H70: ต้น @ | I70: =[8]ข้อมูลโครงการ!$Q$203 -> 320 | J70: บาท = | K70: 3840 | L70: บาท | N70: [4] | AA70: 1
C71: ค่างานต้นทุน | J71: = | K71: =SUM(K67:K70) ->  | L71: บาท | N71: [5] = [1] + ….. + [4] | AA71: 1
C72: ค่างานต้นทุนเฉลี่ย | H72: ................./................. | J72: = | K72: =ROUNDDOWN(K71/G67,-1) ->  | L72: บาท/ต้น | N72: [6] = [5] / จำนวนต้น | AA72: 1
AA73: 1
AA74: 1
AA75: 1
AA76: 1
AA77: 1
B78: 1.2.2 | C78: งานตอม่อรับพื้นสะพาน | AA78: 1
C79: 1.2.2(1) ตอม่อรับพื้นและกำแพงกันดินตับริม | AA79: 1
C80: ขุดดิน | E80: = | G80: 0 | H80: ลบ.ม. @ | J80: บาท = | K80: =ROUNDDOWN(G80*I80,2) -> 0 | L80: บาท | N80: [1] | AA80: 1
C81: คอนกรีต ค3 | E81: = | G81: =ปริมาณงาน!C151 -> 8.155 | H81: ลบ.ม. @ | I81: =I6 -> 2536.13648 | J81: บาท = | K81: =ROUNDDOWN(G81*I81,2) -> 20682.19 | L81: บาท | N81: [2] | AA81: 1
C82: ไม้แบบ (3) | E82: = | G82: =ปริมาณงาน!C152 -> 54.05 | H82: ตร.ม. @ | I82: =I7 -> 416 | J82: บาท = | K82: =ROUNDDOWN(G82*I82,2) -> 22484.8 | L82: บาท | N82: [3] | AA82: 1
C83: เหล็กเสริม | AA83: 1
C84: RB6 | E84: = | H84: กก. @ | J84: บาท = | K84: 0 | L84: บาท | N84: [4] | AA84: 1
C85: RB9 | E85: = | G85: =ปริมาณงาน!C154*1.07 -> 172.405997 | H85: กก. @ | I85: =สรุปวัสดุและค่าดำเนินการ!L14/1000 -> 23.95559 | J85: บาท = | K85: =ROUNDDOWN(G85*I85,2) -> 4130.08 | L85: บาท | N85: [5] | AA85: 1
C86: DB12 SD40 | E86: = | G86: =ปริมาณงาน!C155*1.09 -> 433.764628 | H86: กก. @ | I86: =สรุปวัสดุและค่าดำเนินการ!L15/1000 -> 23.39211 | J86: บาท = | K86: =ROUNDDOWN(G86*I86,2) -> 10146.66 | L86: บาท | N86: [6] | AA86: 1
C87: DB16 SD40 | E87: = | G87: =ปริมาณงาน!C156*1.11 -> 22.420224 | H87: กก. @ | I87: =สรุปวัสดุและค่าดำเนินการ!L16/1000 -> 23.065 | J87: บาท = | K87: =ROUNDDOWN(G87*I87,2) -> 517.12 | L87: บาท | N87: [7] | AA87: 1
C88: DB20 SD40 | E88: = | H88: กก. @ | I88: =สรุปวัสดุและค่าดำเนินการ!L17/1000 -> 22.665 | J88: บาท = | K88: 0 | L88: บาท | N88: [8] | AA88: 1
C89: DB25 SD40 | E89: = | G89: =ปริมาณงาน!C158*1.15 -> 396.85212 | H89: กก. @ | I89: =สรุปวัสดุและค่าดำเนินการ!L18/1000 -> 23.065 | J89: บาท = | K89: =ROUNDDOWN(G89*I89,2) -> 9153.39 | L89: บาท | N89: [9] | AA89: 1
C90: ค่าแรงงานเหล็ก | E90: = | G90: =SUM(G84:G89) -> 1025.442969 | H90: กก. @ | I90: =I12 -> รวมในราคาเหล็ก | J90: บาท = | K90: 0 | L90: บาท | N90: [10](จากบัญชีค่าแรงฯ) | AA90: 1
C91: ลวดผูกเหล็กใช้ 2.5% | E91: = | G91: =ROUNDDOWN(G90*2.5/100,2) -> 25.63 | H91: กก. @ | I91: =I13 -> 31.19 | J91: บาท = | K91: 799.39 | L91: บาท | N91: [11] | AA91: 1
C92: แผ่นยางรองคานสะพาน | E92: = | G92: 6.4 | H92: ม. @ | I92: 350 | J92: บาท = | K92: =ROUNDDOWN(G92*I92,2) -> 2240 | L92: บาท | N92: [12] | AA92: 1
C93: ค่างานต้นทุน | J93: = | K93: =ROUNDDOWN(SUM(K80:K92),2) -> 70153.63 | L93: บาท/ตับ | N93: [13] = [1] + ….. + [12] | AA93: 1
I94: ใช้ | J94: = | K94: =ROUNDDOWN(SUM(K80:K92),-1) -> 70150 | L94: บาท/ตับ | AA94: 1
AA95: 1
C96: 1.2.2(2) ตอม่อรับพื้นตับกลาง | K96: =K79 -> 0 | AA96: 1
C97: คอนกรีต ค2 | E97: = | G97: =ปริมาณงาน!C208 -> 3.808 | H97: ลบ.ม. @ | I97: =I81 -> 2536.13648 | J97: บาท = | K97: =ROUNDDOWN(G97*I97,2) -> 9657.6 | L97: บาท | N97: [1] | AA97: 1
C98: ไม้แบบ (3) | E98: = | G98: =ปริมาณงาน!C209 -> 23.41 | H98: ตร.ม. @ | I98: =I82 -> 416 | J98: บาท = | K98: =ROUNDDOWN(G98*I98,2) -> 9738.56 | L98: บาท | N98: [2] | AA98: 1
C99: เหล็กเสริม | AA99: 1
C100: RB6 | E100: = | H100: กก. @ | J100: บาท = | K100: =ROUNDDOWN(G100*I100,2) -> 0 | L100: บาท | N100: [3] | AA100: 1
C101: RB9 | E101: = | G101: =ปริมาณงาน!C211*1.07 -> 21.3572 | H101: กก. @ | I101: =I85 -> 23.95559 | J101: บาท = | K101: =ROUNDDOWN(G101*I101,2) -> 511.62 | L101: บาท | N101: [4] | AA101: 1
C102: DB12 SD40 | E102: = | G102: =ปริมาณงาน!C212*1.09 -> 146.867254 | H102: กก. @ | I102: 23.39211 | J102: บาท = | K102: =ROUNDDOWN(G102*I102,2) -> 3435.53 | L102: บาท | N102: [5] | AA102: 1
C103: DB16 SD40 | E103: = | H103: กก. @ | I103: 23.065 | J103: บาท = | K103: 0 | L103: บาท | N103: [6] | AA103: 1
C104: DB20 SD40 | E104: = | H104: กก. @ | I104: 22.665 | J104: บาท = | K104: 0 | L104: บาท | N104: [7] | AA104: 1
C105: DB25 SD40 | E105: = | G105: =ปริมาณงาน!C215*1.15 -> 423.223 | H105: กก. @ | I105: 23.065 | J105: บาท = | K105: =ROUNDDOWN(G105*I105,2) -> 9761.63 | L105: บาท | N105: [8] | AA105: 1
C106: ค่าแรงงานเหล็ก | E106: = | G106: =SUM(G100:G105) -> 591.447454 | H106: กก. @ | I106: รวมในราคาเหล็ก | J106: บาท = | K106: 0 | L106: บาท | N106: [9](จากบัญชีค่าแรงฯ) | AA106: 1
C107: ลวดผูกเหล็กใช้ 2.5% | E107: = | G107: =ROUNDDOWN(G106*2.5/100,2) -> 14.78 | H107: กก. @ | I107: 31.19 | J107: บาท = | K107: 460.98 | L107: บาท | N107: [10] | AA107: 1
C108: แผ่นยางรองคานสะพาน | E108: = | G108: 6.4 | H108: ม. @ | I108: 350 | J108: บาท = | K108: =ROUNDDOWN(G108*I108,2)*1.1 -> 2464 | L108: บาท | N108: [11] | AA108: 1
C109: ค่างานต้นทุน | J109: = | K109: =ROUNDDOWN(SUM(K97:K108),2) -> 36029.92 | L109: บาท/ตับ | N109: [12] = [1] + ….. + [11] | AA109: 1
I110: ใช้ | J110: = | K110: =ROUNDDOWN(SUM(K97:K108),-1) -> 36020 | L110: บาท/ตับ | AA110: 1
B111: 1.2.3 | C111: งานพื้นสะพานหล่อในที่ | AA111: 1
C112: พิจารณาจากพื้นที่ | E112: = | G112: =100*0 -> 0 | H112: ตร.ม. | N112: [1] | AA112: 1
C113: คอนกรีต ค2 | E113: = | G113: =[8]ข้อมูลคำนวณ1!N360 -> 125 | H113: ลบ.ม. @ | J113: บาท = | K113: =ROUNDDOWN(G113*I113,2) -> 0 | L113: บาท | N113: [2] | AA113: 1
C114: ไม้แบบ (3) | E114: = | G114: =[8]ข้อมูลคำนวณ1!P360 -> 272.86 | H114: ตร.ม. @ | J114: บาท = | K114: 0 | L114: บาท | N114: [3] | AA114: 1
C115: ไม้ค้ำยัน Ø 6" x 6.00 ม. | E115: = | H115: ต้น @ | J115: บาท = | K115: 0 | L115: บาท | N115: [4] | AA115: 1
C116: เหล็กเสริม | E116: = | AA116: 1
C117: RB9 | E117: = | G117: =[8]ข้อมูลคำนวณ1!J360*1000 -> 1500 | H117: กก. @ | J117: บาท = | K117: 0 | L117: บาท | N117: [5] | AA117: 1
C118: DB12 SD40 | E118: = | G118: =[8]ข้อมูลคำนวณ1!H360*1000 -> 1970 | H118: กก. @ | J118: บาท = | K118: 0 | L118: บาท | N118: [6] | AA118: 1
C119: DB16 SD40 | E119: = | G119: =[8]ข้อมูลคำนวณ1!F360*1000 -> 0 | H119: กก. @ | J119: บาท = | K119: 0 | L119: บาท | N119: [7] | AA119: 1
C120: DB25 SD40 | E120: = | G120: =[8]ข้อมูลคำนวณ1!D360*1000 -> 10710 | H120: กก. @ | J120: บาท = | K120: 0 | L120: บาท | N120: [8] | AA120: 1
C121: ค่าแรงงานเหล็ก | E121: = | G121: =SUM(G117:G120) -> 14180 | H121: กก. @ | J121: บาท = | K121: 0 | L121: บาท | N121: [9](จากบัญชีค่าแรงฯ) | AA121: 1
C122: ลวดผูกเหล็กใช้ 2.5% | E122: = | G122: =ROUNDDOWN(G121*2.5/100,2) -> 354.5 | H122: กก. @ | J122: บาท = | K122: 0 | L122: บาท | N122: [10] | AA122: 1
C123: ค่างานต้นทุน | J123: = | K123: =ROUNDDOWN(SUM(K113:K122),2) -> 0 | L123: บาท | N123: [11] = [2] + ….. + [10] | AA123: 1
C124: ค่างานต้นทุนเฉลี่ย | J124: = | L124: บาท/ตร.ม. | N124: [12] = [11] / [1] | AA124: 1
AA125: 1
B126: 1.2.4 | C126: งานพื้นสะพานหล่อสำเร็จ
C127: 1.2.4(1) หล่อ Plank grider สำหรับช่วงความยาว 10.00 ม.
C128: คอนกรีต ค4 | E128: = | H128: ลบ.ม. @ | I128: …..………...........บาท = …………………..บาท | J128: บาท = | L128: บาท | N128: [1]
C129: ไม้แบบ | E129: = | H129: ตร.ม. @ | I129: …..………...........บาท = …………………..บาท | J129: บาท = | L129: บาท | N129: [2]
C130: เหล็กเสริม | L130: บาท
C131: RB6 | E131: = | H131: กก. @ | I131: …..………...........บาท = …………………..บาท | J131: บาท = | L131: บาท | N131: [3]
C132: RB9 | E132: = | H132: กก. @ | I132: …..………...........บาท = …………………..บาท | J132: บาท = | L132: บาท | N132: [4]
C133: DB12 SD40 | E133: = | H133: กก. @ | I133: …..………...........บาท = …………………..บาท | J133: บาท = | L133: บาท | N133: [5]
C134: DB16 SD40 | E134: = | H134: กก. @ | I134: …..………...........บาท = …………………..บาท | J134: บาท = | L134: บาท | N134: [6]
C135: DB20 SD40 | E135: = | H135: กก. @ | I135: …..………...........บาท = …………………..บาท | J135: บาท = | L135: บาท | N135: [7]
C136: DB25 SD40 | E136: = | H136: กก. @ | I136: …..………...........บาท = …………………..บาท | J136: บาท = | L136: บาท | N136: [8]
C137: ค่าแรงงานเหล็ก | E137: = | H137: กก. @ | I137: =[8]ข้อมูลโครงการ!$P$198 -> 2.801 | J137: บาท = | K137: = …………………..บาท | L137: บาท | N137: [9](จากบัญชีค่าแรงฯ)
C138: ลวดผูกเหล็กใช้ 2.5% | E138: = | H138: กก. @ | I138: =[8]แหล่งวัสดุ!$M$43 -> 39.78 | J138: บาท = | L138: บาท | N138: [10]
C139: ลวดอัดแรง PC STRAND | E139: = | H139: กก. @ | I139: …..………...........บาท = …………………..บาท | J139: บาท = | L139: บาท | N139: [11]
C140: ค่างานต้นทุน | J140: = | K140: = …..………………บาท/คาน | L140: บาท/คาน | N140: [12] = [1] + ….. + [11]
C142: 1.2.4(2) ค่าติดตั้ง Plank grider สำหรับช่วงความยาว................ ม.
C143: ค่างานต้นทุน | J143: = | K143: = …..………………บาท/คาน | L143: บาท/คาน
C145: 1.2.4(3) งานคอนกรีต Topping
C146: พิจารณาที่ | E146: = | G146: =6*22 -> 132 | H146: ตร.ม. | N146: [1]
C147: คอนกรีต ค3 | E147: = | F147: =………………….. | G147: =132*0.1 -> 13.2 | H147: ลบ.ม. @ | I147: =ข้อมูลงานคอนกรีต!J19 -> 2422.1087 | J147: บาท = | K147: =I147*G147 -> 31971.83484 | L147: บาท | N147: [2]
C148: ไม้แบบ | E148: = | F148: =………………….. | G148: =22*0.1*2 -> 4.4 | H148: ตร.ม. @ | I148: =I98 -> 416 | J148: บาท = | K148: =I148*G148 -> 1830.4 | L148: บาท | N148: [3]
C149: เหล็กเสริม | E149: = | K149: 0 | L149: บาท
C150: RB6 | E150: = | F150: =………………….. | H150: กก. @ | I150: …..………...........บาท = …………………..บาท | J150: บาท = | K150: 0 | L150: บาท | N150: [4]
C151: RB9 | E151: = | F151: =………………….. | G151: =1084*0.499*1.07 -> 578.78012 | H151: กก. @ | I151: =I101 -> 23.95559 | J151: บาท = | K151: 13865.01925 | L151: บาท | N151: [5] | O151: =6/0.25 -> 24 | P151: 25 | Q151: =P151*22 -> 550
C152: DB12 SD40 | E152: = | F152: =………………….. | H152: กก. @ | I152: …..………...........บาท = …………………..บาท | J152: บาท = | K152: 0 | L152: บาท | N152: [6] | O152: =22/0.25 -> 88 | P152: 89 | Q152: =P152*6 -> 534
C153: DB16 SD40 | E153: = | F153: =………………….. | H153: กก. @ | I153: …..………...........บาท = …………………..บาท | J153: บาท = | K153: 0 | L153: บาท | N153: [7] | Q153: =SUM(Q151:Q152) -> 1084
C154: ค่าแรงงานเหล็ก | E154: = | F154: =………………….. | H154: กก. @ | I154: 0 | J154: บาท = | K154: 0 | L154: บาท | N154: [8](จากบัญชีค่าแรงฯ)
C155: ลวดผูกเหล็กใช้ 2.5% | E155: = | F155: =………………….. | G155: =G151*0.25 -> 144.69503 | H155: กก. @ | I155: =I107 -> 31.19 | J155: บาท = | K155: 4513.037986 | L155: บาท | N155: [9]
C156: ค่างานต้นทุน | J156: = | K156: =SUM(K147:K155) -> 52180.29208 | L156: บาท | N156: [10] = [2] + ….. + [9]
C157: ค่างานต้นทุนเฉลี่ย =……………../.................... | J157: = | K157: =K156/G146 -> 395.305243 | L157: บาท/ตร.ม. | N157: [11] = [10] / [1]
B159: 1.2.5 | C159: งานทางเท้า ราวสะพาน และงาน เบ็ดเตล็ด อื่น ๆ | AA159: =$AA$2 -> 1
C160: 1.2.5(1) งานราวสะพาน คสล. | AA160: 1
C161: พิจารณาที่ความยาว | E161: = | G161: =[8]ข้อมูลคำนวณ1!B357 -> 25 | H161: ม. | I161: ( คิด 2 ข้าง) | N161: [1] | AA161: 1
C162: คอนกรีต ค2 | E162: = | G162: =[8]ข้อมูลคำนวณ1!N357 -> 5.19 | H162: ลบ.ม. @ | I162: =I97 -> 2536.13648 | J162: บาท = | K162: =ROUNDDOWN(G162*I162,2) -> 13162.54 | L162: บาท | N162: [2] | AA162: 1
C163: ไม้แบบ | E163: = | G163: =[8]ข้อมูลคำนวณ1!P357 -> 88.04 | H163: ตร.ม. @ | I163: =I98 -> 416 | J163: บาท = | K163: 36624.64 | L163: บาท | N163: [3] | AA163: 1
C164: เหล็กเสริม | AA164: 1
C165: RB6 | E165: = | G165: =ROUNDDOWN([8]ข้อมูลคำนวณ1!L357*1000,2) -> 128.54 | H165: กก. @ | I165: =สรุปวัสดุและค่าดำเนินการ!L13/1000 -> 24.63323 | J165: บาท = | K165: 3166.35 | L165: บาท | N165: [4] | AA165: 1
C166: RB9 | E166: = | G166: =ROUNDDOWN([8]ข้อมูลคำนวณ1!J$357*1000,2) -> 0 | H166: กก. @ | I166: =I101 -> 23.95559 | J166: บาท = | K166: 0 | L166: บาท | N166: [4] | AA166: 1
C167: DB12 SD40 | E167: = | G167: =ROUNDDOWN([8]ข้อมูลคำนวณ1!H$357*1000,2) -> 366.3 | H167: กก. @ | I167: =I102 -> 23.39211 | J167: บาท = | K167: 8568.52 | L167: บาท | N167: [4] | AA167: 1
C168: DB16 SD40 | E168: = | G168: =ROUNDDOWN([8]ข้อมูลคำนวณ1!F$357*1000,2) -> 508.88 | H168: กก. @ | I168: =I103 -> 23.065 | J168: บาท = | K168: 11737.31 | L168: บาท | N168: [5] | AA168: 1
C169: ค่าแรงงานเหล็ก | E169: = | G169: =SUM(G165:G168) -> 1003.72 | H169: กก. @ | I169: =I106 -> รวมในราคาเหล็ก | J169: บาท = | K169: 0 | L169: บาท | N169: [6](จากบัญชีค่าแรงฯ) | AA169: 1
C170: ลวดผูกเหล็กใช้ 2.5% | E170: = | G170: =ROUNDDOWN(G169*2.5/100,2) -> 25.09 | H170: กก. @ | I170: =I107 -> 31.19 | J170: บาท = | K170: 782.55 | L170: บาท | N170: [7] | AA170: 1
C171: ค่างานต้นทุน | J171: = | K171: =ROUNDDOWN(SUM(K162:K170),2) -> 74041.91 | L171: บาท | N171: [8] = [2] + ….. + [7] | AA171: 1
C172: ค่างานต้นทุนเฉลี่ย (คิด 2 ข้าง) | J172: = | K172: =ROUNDDOWN(K171/G161,-1) -> 2960 | L172: บาท/ม. | N172: [9] = [8] / [1] | AA172: 1
C173: ค่างานต้นทุนเฉลี่ย (คิด 1 ข้าง) | J173: = | K173: =ROUNDDOWN(K171/(G161*2),-1) -> 1480 | L173: บาท/ม. | AA173: 1
AA174: 1
C175: 1.2.5(2) งานทางเท้าสะพาน คสล. | AA175: =IF(AA174=0,0,IF(TYPE=1,0,1)) -> 1
C176: พิจารณาที่ความยาว | E176: = | G176: =ราคาต่อหน่วยสะพานท่อเหลี่ยม!G161 -> 25 | H176: ม. | I176: (คิด 2 ข้าง) | N176: [1] | AA176: =$AA$175 -> 1
C177: คอนกรีต ค2 | E177: = | G177: =[8]ข้อมูลคำนวณ1!N358 -> 15 | H177: ลบ.ม. @ | J177: บาท = | K177: =ROUNDDOWN(G177*I177,2) -> 0 | L177: บาท | N177: [2] | AA177: =$AA$175 -> 1
C178: ไม้แบบ | E178: = | G178: =[8]ข้อมูลคำนวณ1!P358 -> 37.5 | H178: ตร.ม. @ | J178: บาท = | K178: 0 | L178: บาท | N178: [3] | AA178: 1
C179: เหล็กเสริม | AA179: 1
C180: RB6 | E180: = | G180: =ROUNDDOWN([8]ข้อมูลคำนวณ1!L$358*1000,2) -> 0 | H180: กก. @ | J180: บาท = | K180: 0 | L180: บาท | N180: [4] | AA180: 1
C181: RB9 | E181: = | G181: =ROUNDDOWN([8]ข้อมูลคำนวณ1!J$358*1000,2) -> 0 | H181: กก. @ | J181: บาท = | K181: 0 | L181: บาท | N181: [5] | AA181: 1
C182: DB12 SD40 | E182: = | G182: =ROUNDDOWN([8]ข้อมูลคำนวณ1!H$358*1000,2) -> 89.86 | H182: กก. @ | J182: บาท = | K182: 0 | L182: บาท | N182: [6] | AA182: 1
C183: DB16 SD40 | E183: = | G183: =ROUNDDOWN([8]ข้อมูลคำนวณ1!F$358*1000,2) -> 803.82 | H183: กก. @ | J183: บาท = | K183: 0 | L183: บาท | N183: [7] | AA183: 1
C184: ค่าแรงงานเหล็ก | E184: = | G184: =SUM(G180:G183) -> 893.68 | H184: กก. @ | J184: บาท = | K184: 0 | L184: บาท | N184: [8](จากบัญชีค่าแรงฯ) | AA184: 1
C185: ลวดผูกเหล็กใช้ 2.5% | E185: = | G185: =ROUNDDOWN(G184*2.5/100,2) -> 22.34 | H185: กก. @ | J185: บาท = | K185: 0 | L185: บาท | N185: [9] | AA185: 1
C186: ค่างานต้นทุน | J186: = | K186: =ROUNDDOWN(SUM(K177:K185),2) -> 0 | L186: บาท | N186: [10] = [2] + …. + [9] | AA186: 1
C187: ค่างานต้นทุนเฉลี่ย (คิด 2 ข้าง) | J187: = | K187: =ROUNDDOWN(K186/G176,-1) -> 0 | L187: บาท/ม. | N187: [11] = [10] / [1] | AA187: 1
C188: ค่างานต้นทุนเฉลี่ย (คิด 1 ข้าง) | J188: = | K188: =ROUNDDOWN(K186/(G176*2),-1) -> 0 | L188: บาท/ม. | AA188: 1
AA189: 1
C190: 1.2.5(3) ป้ายสะพานชนิด หินอ่อน ขนาด 0.25 x 0.85 ม. | AA190: =IF($AA$2=0,0,IF([8]ข้อมูลสะพาน1!M44=0,0,1)) -> 1
C191: ค่าวัสดุ | E191: = | G191: =0.25*0.85 -> 0.2125 | H191: ตร.ม. @ | I191: 5500 | J191: บาท = | K191: =ROUNDDOWN(G191*I191,2) -> 1168.75 | L191: บาท | N191: [1] | AA191: =$AA$190 -> 1
C192: ค่าแรง | E192: = | G192: LS. | H192: ตร.ม. @ | I192: 850 | J192: บาท = | K192: 850 | L192: บาท | N192: [2] | AA192: =$AA$190 -> 1
C193: ค่างานต้นทุน | J193: = | K193: =ROUNDDOWN(K191+K192,-2) -> 2000 | L193: บาท/ป้าย | N193: [3] = [1] + [2] | AA193: 1
AA194: 1
C195: 1.2.5(4) กระดาษชานอ้อย | AA195: =$AA$2 -> 1
C196: ค่าวัสดุ | E196: = | G196: =ROUNDUP(([8]ข้อมูลสะพาน1!E24+1)*(0.45*capbeam/2.88),0) -> 8 | H196: แผ่น @ | I196: =[8]ข้อมูลโครงการ!Q178 -> 400 | J196: บาท = | K196: =ROUNDDOWN(G196*I196,2) -> 3200 | L196: บาท | N196: [1] | AA196: 1
C197: ค่าแรง | E197: = | G197: =G196 -> 8 | H197: แผ่น @ | I197: 84 | J197: บาท = | K197: 672 | L197: บาท | N197: [2] | AA197: 1
C198: ค่างานต้นทุน | J198: = | K198: =ROUNDDOWN(SUM(K196:K197)/G196,0) -> 484 | L198: บาท/แผ่น | N198: [3] = [1] + [2] | AA198: 1
AA199: 1
AA200: 1
C201: 1.2.5(5) แอสฟัลท์อุดรอยต่อ | AA201: 1
C202: ค่าวัสดุ | E202: = | G202: 1 | H202: ลิตร @ | I202: =[8]ราคาต่อหน่วย!J325 -> 45 | J202: บาท = | K202: =I202 -> 45 | L202: บาท | N202: [1] | AA202: 1
C203: ค่าแรง | E203: = | G203: 1 | H203: ลิตร @ | I203: =[8]ราคาต่อหน่วย!J326 -> 12.74 | J203: บาท = | K203: =I203 -> 12.74 | L203: บาท | N203: [2] | AA203: 1
... 130 more rows

Sheet ปร.4สะพาน
A1: แบบประเมินราคางานก่อสร้างสะพานและท่อลอดเหลี่ยม
A2: ชื่อโครงการ | C2: =ข้อมูลโครงการ!L10 -> ก่อสร้างสะพานข้ามคลองหล ม.18 | AA2: 1
A3: สถานที่ก่อสร้าง | C3: คลองหล หมู่ที่ 18 ต.บ้านส้อง อ.เวียงสระ จ.สุราษฎร์ธานี | AA3: 1
A4: ผิวจราจร | C4: กว้าง 5.00 ม. ไม่มีทางเท้า | J4: กว้าง | L4: =[8]ข้อมูลโครงสร้างทาง!E19 -> 5 | M4: เมตร | N4: ยาว 10.00 ม. | AA4: 1
A5: ไหล่ทาง | C5: ไม่มี | E5: แบบ มาตรฐาน ทช. | J5: กว้างข้างละ | L5: - | M5: เมตร | AA5: 1
A6: ประมาณราคา | C6: =C2 -> ก่อสร้างสะพานข้ามคลองหล ม.18 | AA6: 1
A7: วันที่ | C7: 15 | D7: 2562-05-01 | AA7: 1
A8: ลำดับที่ | B8: รายการ | K8: หน่วย | L8: ปริมาณ | M8: ค่างานต้นทุน (บาท) | O8: Factor F | P8: ราคากลาง (บาท) | S8: แก้ไขปริมาณงานในช่องสีเหลือง | AA8: 1
M9: ราคาต่อหน่วย | N9: รวม | P9: ราคาต่อหน่วย | Q9: รวม | S9: โปรแกรม | T9: ป้อนค่าเอง | AA9: 1
B10: ประเภทงานสะพานและท่อลอดเหลี่ยม | AA10: 1
A11: =IF([8]ข้อมูลโครงสร้างทาง!N8>0,1,0) -> 1 | B11: งานสะพาน คสล. | AA11: =IF(A11>0,1,0) -> 1
B12: 1.2 | C12: งานสะพาน | E12: ความกว้างผิวจราจร | F12: 5.00 ม. ยาว 22.00 ม. (แบบตอกเข็ม) | AA12: =$AA$11 -> 1
C13: 1.2.1 | D13: งานเสาเข็ม ใช้แบบเดียวกันทุกตับ | AA13: =$AA$11 -> 1
D14: 1.2.1(1) | E14: เสาเข็มตับริม 0.40*0.40*12.00 ม. คิดงานนั่งร้านตอกเสาเข็ม | K14: ต้น | L14: 10 | M14: =ราคาต่อหน่วยสะพานท่อเหลี่ยม!K36 -> 20360 | N14: =M14*L14 -> 203600 | O14: 1.2872 | P14: =M14*O14 -> 26207.392 | Q14: =L14*P14 -> 262073.92 | S14: =IF([8]ข้อมูลโครงสร้างทาง!$N$8=0,0,$L$17*6) -> 12 | AA14: =$AA$11 -> 1
D15: 1.2.2 | E15: งานรื้อถอนท่อเหลี่ยม คสล.เดิม + ขนทิ้ง | K15: แห่ง | L15: เหมา | M15: 20000 | N15: =M15 -> 20000 | O15: 1.2872 | P15: =M15*O15 -> 25744 | Q15: =P15 -> 25744 | S15: =IF([8]ข้อมูลโครงสร้างทาง!$N$8=0,0,[8]ข้อมูลสะพาน1!$I$17-ปร.4สะพาน!$L$14) -> 14 | AA15: 1
C16: 1.2.2 | D16: งานตอม่อรับพื้นสะพาน | N16: =M16*L16 -> 0 | P16: =M16*O16 -> 0 | AA16: 1
D17: 1.2.2(1) ตอม่อรับพื้นและกำแพงกันดินตับริม | K17: ตับ | L17: 2 | M17: =ราคาต่อหน่วยสะพานท่อเหลี่ยม!K94 -> 70150 | N17: 140300 | O17: 1.2872 | P17: 90297.08 | Q17: =L17*P17 -> 180594.16 | S17: =IF([8]ข้อมูลโครงสร้างทาง!$N$8=0,0,[8]ข้อมูลคำนวณ1!$B$33) -> 2 | AA17: 1
D18: 1.2.2(2) ตอม่อรับพื้นตับกลาง | K18: ตับ | L18: - | S18: =IF([8]ข้อมูลโครงสร้างทาง!$N$8=0,0,[8]ข้อมูลคำนวณ1!$B$44) -> 2 | AA18: 1
C19: 1.2.3 | D19: งานพื้นสะพานหล่อในที่ | K19: ตร.ม. | L19: 0 | M19: =IF(L19=0,0,[8]ราคาต่อหน่วยสะพานท่อเหลี่ยม!K128) -> 0 | N19: 0 | P19: 0 | Q19: 0 | S19: =IF([8]ข้อมูลโครงสร้างทาง!$N$8=0,0,[8]ข้อมูลสะพาน1!$I$7*10) -> 250 | AA19: 1
C20: 1.2.4 | D20: งานพื้นสะพานหล่อสำเร็จ | N20: 0 | P20: 0 | AA20: 1
D21: 1.2.4(1) หล่อ Plank grider สำหรับช่วงความยาว.......6.00.... ม. | K21: คาน | N21: 0 | P21: 0 | Q21: =P21*L21 -> 0 | R21: ทช. | AA21: 1
D22: 1.2.4(2) ค่าติดตั้ง Plank grider สำหรับช่วงความยาว......6.00.... ม. | K22: คาน | N22: 0 | P22: 0 | Q22: =P22*L22 -> 0 | AA22: 1
D23: 1.2.4(3) หล่อ Plank grider สำหรับช่วงความยาว.......10.00.... ม. | K23: คาน | L23: 6 | M23: =32000*1.08 -> 34560 | N23: 207360 | O23: 1.2872 | P23: 44485.632 | Q23: 266913.792 | S23: =M23/10 -> 3456 | AA23: 1
D24: 1.2.4(4) ค่าติดตั้ง Plank grider สำหรับช่วงความยาว......10.00.... ม. | K24: คาน | L24: 6 | M24: 3500 | N24: 21000 | O24: 1.2872 | P24: 4505.2 | Q24: 27031.2 | AA24: 1
D25: 1.2.4(5) งานคอนกรีต Topping | K25: ตร.ม. | L25: =6*10 -> 60 | M25: 352 | N25: 21120 | O25: 1.2872 | P25: 453.0944 | Q25: 27185.664 | AA25: 1
C26: 1.2.5 | D26: งานทางเท้า ราวสะพาน และงาน เบ็ดเตล็ด อื่น ๆ | N26: 0 | P26: 0 | AA26: 1
D27: 1.2.5(1) งานราวสะพาน คสล. | K27: ม. | L27: 20 | M27: 1450 | N27: 29000 | O27: =O25 -> 1.2872 | P27: 1866.44 | Q27: 37328.8 | S27: =IF([8]ข้อมูลโครงสร้างทาง!$N$8=0,0,[8]ข้อมูลคำนวณ1!$B$357*2) -> 50 | AA27: 1
D28: 1.2.5(2) งานทางเท้าสะพาน คสล. | K28: ม. | L28: 0 | M28: =IF(L28=0,0,[8]ราคาต่อหน่วยสะพานท่อเหลี่ยม!K192) -> 0 | N28: 0 | O28: =IF(L28=0,0,[8]ปร.5ทช!$I$19) -> 0 | P28: 0 | Q28: 0 | S28: =IF([8]ข้อมูลโครงสร้างทาง!$N$8=0,0,IF(TYPE=1,0,[8]ข้อมูลสะพาน1!$I$7*2)) -> 50 | AA28: 1
D29: 1.2.5(3) ป้ายสะพานชนิด หินอ่อน / แกรนิต ขนาด 0.25 x 0.85 ม. | K29: ป้าย | L29: 1 | M29: 3500 | N29: 3500 | O29: =O27 -> 1.2872 | P29: 4505.2 | Q29: 4505.2 | S29: =IF([8]ข้อมูลโครงสร้างทาง!$N$8=0,0,[8]ข้อมูลสะพาน1!$M$44) -> 2 | AA29: 1
D30: 1.2.5(4) กระดาษชานอ้อย | K30: แผ่น | L30: =+IF(T30=0,ROUNDDOWN(S30,0),T30) -> 8 | M30: 484 | N30: 3872 | O30: =O29 -> 1.2872 | P30: 623.0048 | Q30: 4984.0384 | S30: =IF([8]ข้อมูลโครงสร้างทาง!$N$8=0,0,[8]ข้อมูลคำนวณ1!F376) -> 8 | AA30: 1
D31: 1.2.5(5) แอสฟัลท์อุดรอยต่อ | K31: ลิตร | L31: =+IF(T31=0,ROUNDDOWN(S31,2),T31) -> 10 | M31: 60 | N31: 600 | O31: =O30 -> 1.2872 | P31: 77.232 | Q31: 772.32 | S31: =IF([8]ข้อมูลโครงสร้างทาง!$N$8=0,0,[8]ข้อมูลคำนวณ1!F377) -> 10 | AA31: 1
D32: 1.2.5(6) สีสะท้อนแสงคอสะพาน | K32: แห่ง | L32: =+IF(T32=0,ROUNDDOWN(S32,2),T32) -> 4 | M32: 360 | N32: 1440 | O32: =O31 -> 1.2872 | P32: 463.392 | Q32: 1853.568 | S32: =IF([8]ข้อมูลโครงสร้างทาง!$N$8=0,0,4) -> 4 | AA32: 1
C33: 1.2.6 | D33: งานผิวจราจร คสล.คอสะพาน | K33: ตร.ม. | L33: 100 | M33: 456 | N33: 45600 | O33: =O32 -> 1.2872 | P33: 586.9632 | Q33: 58696.32 | S33: =IF([8]ข้อมูลสะพาน1!$D$40="ไม่มี",0,[8]ข้อมูลสะพาน1!$M$40) -> 0 | AA33: 1
C34: 1.2.7 | D34: งาน Concrete Slope Protection ( 2ข้าง ) | K34: ตร.ม. | L34: 60 | M34: 400 | N34: 24000 | O34: 1.2872 | P34: 514.88 | Q34: 30892.8 | S34: =[8]ข้อมูลสะพาน1!$H$37 -> 0 | AA34: 1
C35: 1.2.8 | D35: งานเจาะทดสอบดิน | K35: หลุม | L35: 1 | M35: 16000 | N35: 16000 | O35: 1.2872 | P35: 20595.2 | Q35: 20595.2 | S35: =[8]ข้อมูลสะพาน1!$L$33 -> 0 | AA35: 1
C36: 1.2.9 | D36: งานดินถมคอสะพานและงานยกระดีบถนนพร้อมอัดแน่น | K36: ลบ.ม. | L36: 130 | M36: 250 | N36: 32500 | O36: 1.2872 | P36: 321.8 | Q36: =L36*P36 -> 41834 | AA36: 1
D37: รวมราคาต้นทุน / 1 แห่ง | N37: =SUBTOTAL(9,N14:N36) -> 769892 | P37: =SUBTOTAL(9,P14:P36) -> 221246.5104 | Q37: =SUBTOTAL(9,Q14:Q36) -> 991004.9824
C39: ผู้ประมาณราคา | K39: ตรวจ
D40: นายวรวิทย์ สมจิตร์
C41: ตำแหน่ง | D41: นายช่างโยธาชำนาญงาน | S41: โปรแกรม | T41: ป้อนค่าเอง | AA41: 1
A42: =IF([8]ข้อมูลโครงสร้างทาง!C15>0,ปร.4สะพาน!A11+1,0) -> 0 | B42: งานท่อลอดเหลี่ยม คสล. | AA42: =IF(A42>0,1,0) -> 0
B43: 2.1 | C43: =[8]ราคาต่อหน่วยสะพานท่อเหลี่ยม!C255 -> งานท่อลอดเหลี่ยม กม.ที่ 0+000 ขนาด 2 - 2.10 x 2.10 เมตร ความยาว 0.00 เมตร | AA43: =$AA$42 -> 0
C44: 2.1.1 | D44: งานขุดดิน | K44: ลบ.ม. | L44: =+IF(T44=0,ROUNDDOWN(S44,2),T44) -> -41 | M44: =IF(L44=0,0,[8]ราคาต่อหน่วย!$Q$62) -> 37.15 | N44: =ROUNDDOWN(L44*M44,2) -> -1523.15 | O44: =IF(L44=0,0,[8]ปร.5ทช!$I$19) -> 1.2467 | P44: =ROUNDDOWN(M44*O44,2) -> 46.31 | Q44: =L44*P44 -> -1898.71 | S44: =[8]ราคาต่อหน่วยสะพานท่อเหลี่ยม!$G$256 -> -41 | AA44: =$AA$42 -> 0
C45: 2.1.2 | D45: งานคอนกรีตหยาบ | K45: ลบ.ม. | L45: 1.86 | M45: =IF(L45=0,0,[8]ราคาต่อหน่วย!$P$578) -> 1573 | N45: =ROUNDDOWN(L45*M45,2) -> 2925.78 | O45: =IF(L45=0,0,[8]ปร.5ทช!$I$19) -> 1.2467 | P45: 1961.05 | Q45: =L45*P45 -> 3647.553 | S45: =[8]ราคาต่อหน่วยสะพานท่อเหลี่ยม!$G$257 -> 1.86 | AA45: 0
C46: 2.1.3 | D46: งานคอนกรีตโครงสร้าง (ค.3) | K46: ลบ.ม. | L46: 18.72 | M46: =IF(L46=0,0,[8]ราคาต่อหน่วย!$P$603) -> 1812.26 | N46: 33925.5 | O46: =IF(L46=0,0,[8]ปร.5ทช!$I$19) -> 1.2467 | P46: 2259.34 | Q46: 42294.8448 | S46: =[8]ราคาต่อหน่วยสะพานท่อเหลี่ยม!$G$258 -> 18.72 | AA46: 0
C47: 2.1.4 | D47: งานไม้แบบ | K47: ตร.ม. | L47: 30.86 | M47: =IF(L47=0,0,[8]ราคาต่อหน่วย!$O$775) -> 394.26 | N47: 12166.86 | O47: =IF(L47=0,0,[8]ปร.5ทช!$I$19) -> 1.2467 | P47: 491.52 | Q47: 15168.3072 | S47: =[8]ราคาต่อหน่วยสะพานท่อเหลี่ยม!$G$259 -> 30.86 | AA47: 0
C48: 2.1.5 | D48: - งานไม้ค้ำยัน f 4.00 นิ้ว | K48: ต้น | L48: 0 | M48: =IF(L48=0,0,[8]ข้อมูลโครงการ!$Q$108) -> 0 | N48: 0 | O48: =IF(L48=0,0,[8]ปร.5ทช!$I$19) -> 0 | P48: 0 | Q48: 0 | S48: =[8]ราคาต่อหน่วยสะพานท่อเหลี่ยม!$G$260 -> 0 | AA48: 0
D49: - งานไม้ค้ำยัน f 6.00 นิ้ว | K49: ต้น | L49: 0 | M49: =IF(L49=0,0,[8]ข้อมูลโครงการ!$Q$109) -> 0 | N49: 0 | O49: =IF(L49=0,0,[8]ปร.5ทช!$I$19) -> 0 | P49: 0 | Q49: 0 | S49: =[8]ราคาต่อหน่วยสะพานท่อเหลี่ยม!G261 -> 0 | AA49: 0
C50: 2.1.6 | D50: งานเหล็กเสริม | AA50: 0
D51: - ขนาด RB 6 มม. | K51: กก. | L51: =+IF(T51=0,ROUNDDOWN(S51,2),T51) -> 28 | M51: =IF(L51=0,0,[8]ราคาต่อหน่วย!$O$629) -> 25.38 | N51: 710.64 | O51: =IF(L51=0,0,[8]ปร.5ทช!$I$19) -> 1.2467 | P51: 31.64 | Q51: 885.92 | S51: =[8]ราคาต่อหน่วยสะพานท่อเหลี่ยม!$G$263 -> 28 | AA51: 0
D52: - ขนาด RB 9 มม. | K52: กก. | L52: 247 | M52: =IF(L52=0,0,[8]ราคาต่อหน่วย!$O$637) -> 25.38 | N52: 6268.86 | O52: =IF(L52=0,0,[8]ปร.5ทช!$I$19) -> 1.2467 | P52: 31.64 | Q52: 7815.08 | S52: =[8]ราคาต่อหน่วยสะพานท่อเหลี่ยม!$G$264 -> 247 | AA52: 0
D53: - ขนาด DB 12 มม. | K53: กก. | L53: 1229 | M53: =IF(L53=0,0,[8]ราคาต่อหน่วย!$O$709) -> 23.98 | N53: 29471.42 | O53: =IF(L53=0,0,[8]ปร.5ทช!$I$19) -> 1.2467 | P53: 29.89 | Q53: 36734.81 | S53: =[8]ราคาต่อหน่วยสะพานท่อเหลี่ยม!$G$265 -> 1229 | AA53: 0
D54: - ขนาด DB 16 มม. | K54: กก. | L54: 18 | M54: =IF(L54=0,0,[8]ราคาต่อหน่วย!$O$717) -> 23.98 | N54: 431.64 | O54: =IF(L54=0,0,[8]ปร.5ทช!$I$19) -> 1.2467 | P54: 29.89 | Q54: 538.02 | S54: =[8]ราคาต่อหน่วยสะพานท่อเหลี่ยม!$G$266 -> 18 | AA54: 0
D55: - ขนาด DB 20 มม. | K55: กก. | L55: 0 | M55: =IF(L55=0,0,[8]ราคาต่อหน่วย!O725) -> 0 | N55: 0 | O55: =IF(L55=0,0,[8]ปร.5ทช!$I$19) -> 0 | P55: 0 | Q55: 0 | S55: =[8]ราคาต่อหน่วยสะพานท่อเหลี่ยม!$G$267 -> 0 | AA55: 0
D56: - ขนาด DB 25 มม. | K56: กก. | L56: 224 | M56: =IF(L56=0,0,[8]ราคาต่อหน่วย!$O$733) -> 23.98 | N56: 5371.52 | O56: =IF(L56=0,0,[8]ปร.5ทช!$I$19) -> 1.2467 | P56: 29.89 | Q56: 6695.36 | S56: =[8]ราคาต่อหน่วยสะพานท่อเหลี่ยม!$G$268 -> 224 | AA56: 0
D57: - ค่าแรงงานเหล็ก | K57: กก. | L57: 1746 | M57: =IF(L57=0,0,[8]ข้อมูลโครงการ!$Q$198/1000) -> 2.801 | N57: 4890.54 | O57: =IF(L57=0,0,[8]ปร.5ทช!$I$19) -> 1.2467 | P57: 3.49 | Q57: 6093.54 | S57: =[8]ราคาต่อหน่วยสะพานท่อเหลี่ยม!$G$269 -> 1746 | AA57: 0
D58: - ลวดผูกเหล็กใช้ 2.5% | K58: กก. | L58: 44 | M58: =IF(L58=0,0,[8]แหล่งวัสดุ!$M$43) -> 39.78 | N58: 1750.32 | O58: =IF(L58=0,0,[8]ปร.5ทช!$I$19) -> 1.2467 | P58: 49.59 | Q58: 2181.96 | S58: =[8]ราคาต่อหน่วยสะพานท่อเหลี่ยม!$G$270 -> 44 | AA58: 0
C59: 2.1.7 | D59: ทรายถมข้าง BOX | K59: ลบ.ม. | L59: 0 | M59: =IF(L59=0,0,[8]ราคาต่อหน่วย!$Q$102) -> 0 | N59: 0 | O59: =IF(L59=0,0,[8]ปร.5ทช!$I$19) -> 0 | P59: 0 | Q59: 0 | S59: =[8]ราคาต่อหน่วยสะพานท่อเหลี่ยม!$G$271 -> 0 | AA59: 0
C60: 2.1.8 | D60: CELOTEX WITH TAR | K60: ตร.ม. | L60: 4.47 | M60: =IF(L60=0,0,[8]ราคาต่อหน่วยสะพานท่อเหลี่ยม!$I$272) -> 138.89 | N60: 620.83 | O60: =IF(L60=0,0,[8]ปร.5ทช!$I$19) -> 1.2467 | P60: 173.15 | Q60: 773.9805 | S60: =[8]ราคาต่อหน่วยสะพานท่อเหลี่ยม!$G$272 -> 4.47 | AA60: 0
C61: 2.1.9 | D61: MASTIC JOINT SEALER | K61: ลิตร | L61: 7.15 | M61: =IF(L61=0,0,[8]ราคาต่อหน่วยสะพานท่อเหลี่ยม!$I$273) -> 58 | N61: 414.7 | O61: =IF(L61=0,0,[8]ปร.5ทช!$I$19) -> 1.2467 | P61: 72.3 | Q61: 516.945 | S61: =[8]ราคาต่อหน่วยสะพานท่อเหลี่ยม!G273 -> 7.15
AA62: 0
D63: รวมราคาต้นทุน / 1 แห่ง | N63: =ROUNDDOWN(SUM(N44:N62),0) -> 97425 | O63: =O58 -> 1.2467 | Q63: =SUM(Q44:Q62) -> 121447.6105 | S63: โปรแกรม | T63: ป้อนค่าเอง | AA63: 0
B64: =[8]ราคาต่อหน่วยสะพานท่อเหลี่ยม!B276 -> 2.2 | C64: =[8]ราคาต่อหน่วยสะพานท่อเหลี่ยม!C276 -> งานท่อลอดเหลี่ยม กม.ที่ 0+000 ขนาด 2 - 1.80 x 1.80 เมตร ความยาว 0.00 เมตร | AA64: =IF([8]ข้อมูลโครงสร้างทาง!BL6>0,1,0) -> 0
C65: 2.2.1 | D65: งานขุดดิน | K65: ลบ.ม. | L65: =+IF(T65=0,ROUNDDOWN(S65,2),T65) -> -31 | M65: =IF(L65=0,0,[8]ราคาต่อหน่วย!$Q$62) -> 37.15 | N65: =ROUNDDOWN(L65*M65,2) -> -1151.65 | O65: =IF(L65=0,0,[8]ปร.5ทช!$I$19) -> 1.2467 | P65: =ROUNDDOWN(M65*O65,2) -> 46.31 | Q65: =L65*P65 -> -1435.61 | S65: =[8]ราคาต่อหน่วยสะพานท่อเหลี่ยม!$G$277 -> -31 | AA65: =$AA$64 -> 0
C66: 2.2.2 | D66: งานคอนกรีตหยาบ | K66: ลบ.ม. | L66: 1.39 | M66: =IF(L66=0,0,[8]ราคาต่อหน่วย!$P$578) -> 1573 | N66: =ROUNDDOWN(L66*M66,2) -> 2186.47 | O66: =IF(L66=0,0,[8]ปร.5ทช!$I$19) -> 1.2467 | P66: 1961.05 | Q66: =L66*P66 -> 2725.8595 | S66: =[8]ราคาต่อหน่วยสะพานท่อเหลี่ยม!$G$278 -> 1.39 | AA66: =$AA$64 -> 0
C67: 2.2.3 | D67: งานคอนกรีตโครงสร้าง (ค.3) | K67: ลบ.ม. | L67: 14.12 | M67: =IF(L67=0,0,[8]ราคาต่อหน่วย!$P$603) -> 1812.26 | N67: 25589.11 | O67: =IF(L67=0,0,[8]ปร.5ทช!$I$19) -> 1.2467 | P67: 2259.34 | Q67: 31901.8808 | S67: =[8]ราคาต่อหน่วยสะพานท่อเหลี่ยม!$G$279 -> 14.12 | AA67: 0
C68: 2.2.4 | D68: งานไม้แบบ | K68: ตร.ม. | L68: 24.64 | M68: =IF(L68=0,0,[8]ราคาต่อหน่วย!$O$775) -> 394.26 | N68: 9714.56 | O68: =IF(L68=0,0,[8]ปร.5ทช!$I$19) -> 1.2467 | P68: 491.52 | Q68: 12111.0528 | S68: =[8]ราคาต่อหน่วยสะพานท่อเหลี่ยม!$G$280 -> 24.64 | AA68: 0
C69: 2.2.5 | D69: - งานไม้ค้ำยัน f 4.00 นิ้ว | K69: ต้น | L69: 0 | M69: =IF(L69=0,0,[8]ข้อมูลโครงการ!$Q$108) -> 0 | N69: 0 | O69: =IF(L69=0,0,[8]ปร.5ทช!$I$19) -> 0 | P69: 0 | Q69: 0 | S69: =[8]ราคาต่อหน่วยสะพานท่อเหลี่ยม!$G$281 -> 0 | AA69: 0
D70: - งานไม้ค้ำยัน f 6.00 นิ้ว | K70: ต้น | L70: 0 | M70: =IF(L70=0,0,[8]ข้อมูลโครงการ!$Q$109) -> 0 | N70: 0 | O70: =IF(L70=0,0,[8]ปร.5ทช!$I$19) -> 0 | P70: 0 | Q70: 0 | S70: =[8]ราคาต่อหน่วยสะพานท่อเหลี่ยม!G282 -> 0 | AA70: =$AA$42 -> 0
C71: 2.2.6 | D71: งานเหล็กเสริม | O71: =IF(L71=0,0,[8]ปร.5ทช!$I$19) -> 0 | Q71: 0 | AA71: 0
D72: - ขนาด RB 6 มม. | K72: กก. | L72: =+IF(T72=0,ROUNDDOWN(S72,2),T72) -> 25 | M72: =IF(L72=0,0,[8]ราคาต่อหน่วย!$O$629) -> 25.38 | N72: 634.5 | O72: =IF(L72=0,0,[8]ปร.5ทช!$I$19) -> 1.2467 | P72: =ROUNDDOWN(M72*O72,2) -> 31.64 | Q72: 791 | S72: =[8]ราคาต่อหน่วยสะพานท่อเหลี่ยม!$G$284 -> 25 | AA72: 0
D73: - ขนาด RB 9 มม. | K73: กก. | L73: 203 | M73: =IF(L73=0,0,[8]ราคาต่อหน่วย!$O$637) -> 25.38 | N73: 5152.14 | O73: =IF(L73=0,0,[8]ปร.5ทช!$I$19) -> 1.2467 | P73: 31.64 | Q73: 6422.92 | S73: =[8]ราคาต่อหน่วยสะพานท่อเหลี่ยม!$G$285 -> 203 | AA73: 0
D74: - ขนาด DB 12 มม. | K74: กก. | L74: 848 | M74: =IF(L74=0,0,[8]ราคาต่อหน่วย!$O$709) -> 23.98 | N74: 20335.04 | O74: =IF(L74=0,0,[8]ปร.5ทช!$I$19) -> 1.2467 | P74: 29.89 | Q74: 25346.72 | S74: =[8]ราคาต่อหน่วยสะพานท่อเหลี่ยม!$G$286 -> 848 | AA74: 0
D75: - ขนาด DB 16 มม. | K75: กก. | L75: 0 | M75: =IF(L75=0,0,[8]ราคาต่อหน่วย!$O$717) -> 0 | N75: 0 | O75: =IF(L75=0,0,[8]ปร.5ทช!$I$19) -> 0 | P75: 0 | Q75: 0 | S75: =[8]ราคาต่อหน่วยสะพานท่อเหลี่ยม!$G$287 -> 0 | AA75: 0
D76: - ขนาด DB 20 มม. | K76: กก. | L76: 0 | M76: =IF(L76=0,0,[8]ราคาต่อหน่วย!$O$725) -> 0 | N76: 0 | O76: =IF(L76=0,0,[8]ปร.5ทช!$I$19) -> 0 | P76: 0 | Q76: 0 | S76: =[8]ราคาต่อหน่วยสะพานท่อเหลี่ยม!$G$288 -> 0 | AA76: 0
D77: - ขนาด DB 25 มม. | K77: กก. | L77: 197 | M77: =IF(L77=0,0,[8]ราคาต่อหน่วย!$O$733) -> 23.98 | N77: 4724.06 | O77: =IF(L77=0,0,[8]ปร.5ทช!$I$19) -> 1.2467 | P77: 29.89 | Q77: 5888.33 | S77: =[8]ราคาต่อหน่วยสะพานท่อเหลี่ยม!$G$289 -> 197 | AA77: 0
D78: - ค่าแรงงานเหล็ก | K78: กก. | L78: 1273 | M78: =IF(L78=0,0,[8]ข้อมูลโครงการ!$Q$198/1000) -> 2.801 | N78: 3565.67 | O78: =IF(L78=0,0,[8]ปร.5ทช!$I$19) -> 1.2467 | P78: 3.49 | Q78: 4442.77 | S78: =[8]ราคาต่อหน่วยสะพานท่อเหลี่ยม!$G$290 -> 1273 | AA78: 0
D79: - ลวดผูกเหล็กใช้ 2.5% | K79: กก. | L79: 32 | M79: =IF(L79=0,0,[8]แหล่งวัสดุ!$M$43) -> 39.78 | N79: 1272.96 | O79: =IF(L79=0,0,[8]ปร.5ทช!$I$19) -> 1.2467 | P79: 49.59 | Q79: 1586.88 | S79: =[8]ราคาต่อหน่วยสะพานท่อเหลี่ยม!$G$291 -> 32 | AA79: 0
C80: 2.2.7 | D80: ทรายถมข้าง BOX | K80: ลบ.ม. | L80: 0 | M80: =IF(L80=0,0,[8]ราคาต่อหน่วย!$Q$102) -> 0 | N80: 0 | O80: =IF(L80=0,0,[8]ปร.5ทช!$I$19) -> 0 | P80: 0 | Q80: 0 | S80: =[8]ราคาต่อหน่วยสะพานท่อเหลี่ยม!$G$292 -> 0 | AA80: 0
C81: 2.2.8 | D81: CELOTEX WITH TAR | K81: ตร.ม. | L81: 3.88 | M81: =IF(L81=0,0,[8]ราคาต่อหน่วยสะพานท่อเหลี่ยม!$I$272) -> 138.89 | N81: 538.89 | O81: =IF(L81=0,0,[8]ปร.5ทช!$I$19) -> 1.2467 | P81: 173.15 | Q81: 671.822 | S81: =[8]ราคาต่อหน่วยสะพานท่อเหลี่ยม!$G$293 -> 3.88 | AA81: 0
C82: 2.2.9 | D82: MASTIC JOINT SEALER | K82: ลิตร | L82: 6.25 | M82: =IF(L82=0,0,[8]ราคาต่อหน่วยสะพานท่อเหลี่ยม!$I$294) -> 58 | N82: 362.5 | O82: =IF(L82=0,0,[8]ปร.5ทช!$I$19) -> 1.2467 | P82: 72.3 | Q82: 451.875 | S82: =[8]ราคาต่อหน่วยสะพานท่อเหลี่ยม!G294 -> 6.25
M83: =IF(L83=0,0,[8]ราคาต่อหน่วยสะพานท่อเหลี่ยม!$I$272) -> 0 | AA83: 0
D84: รวมราคาต้นทุน / 1 แห่ง | N84: =ROUNDDOWN(SUM(N65:N83),0) -> 72924 | O84: =O79 -> 1.2467 | Q84: =SUM(Q65:Q83) -> 90905.5001 | S84: โปรแกรม | T84: ป้อนค่าเอง | AA84: 0
B85: =[8]ราคาต่อหน่วยสะพานท่อเหลี่ยม!B297 -> 2.3 | C85: =[8]ราคาต่อหน่วยสะพานท่อเหลี่ยม!C297 -> งานท่อลอดเหลี่ยม กม.ที่ ขนาด 0 - 0 | AA85: =IF([8]ข้อมูลโครงสร้างทาง!BL7>0,1,0) -> 0
C86: 2.3.1 | D86: งานขุดดิน | K86: ลบ.ม. | L86: =+IF(T86=0,ROUNDDOWN(S86,2),T86) -> 0 | M86: =IF(L86=0,0,[8]ราคาต่อหน่วย!$Q$62) -> 0 | N86: =ROUNDDOWN(L86*M86,2) -> 0 | O86: =IF(L86=0,0,[8]ปร.5ทช!$I$19) -> 0 | P86: =ROUNDDOWN(M86*O86,2) -> 0 | Q86: =L86*P86 -> 0 | S86: =[8]ราคาต่อหน่วยสะพานท่อเหลี่ยม!$G$298 -> 0 | AA86: =$AA$85 -> 0
C87: 2.3.2 | D87: งานคอนกรีตหยาบ | K87: ลบ.ม. | L87: 0 | M87: =IF(L87=0,0,[8]ราคาต่อหน่วย!$P$578) -> 0 | N87: =ROUNDDOWN(L87*M87,2) -> 0 | O87: =IF(L87=0,0,[8]ปร.5ทช!$I$19) -> 0 | P87: 0 | Q87: =L87*P87 -> 0 | S87: =[8]ราคาต่อหน่วยสะพานท่อเหลี่ยม!$G$299 -> 0 | AA87: =$AA$85 -> 0
C88: 2.3.3 | D88: งานคอนกรีตโครงสร้าง (ค.3) | K88: ลบ.ม. | L88: 0 | M88: =IF(L88=0,0,[8]ราคาต่อหน่วย!$P$603) -> 0 | N88: 0 | O88: =IF(L88=0,0,[8]ปร.5ทช!$I$19) -> 0 | P88: 0 | Q88: 0 | S88: =[8]ราคาต่อหน่วยสะพานท่อเหลี่ยม!$G$300 -> 0 | AA88: 0
C89: 2.3.4 | D89: งานไม้แบบ | K89: ตร.ม. | L89: 0 | M89: =IF(L89=0,0,[8]ราคาต่อหน่วย!$O$775) -> 0 | N89: 0 | O89: =IF(L89=0,0,[8]ปร.5ทช!$I$19) -> 0 | P89: 0 | Q89: 0 | S89: =[8]ราคาต่อหน่วยสะพานท่อเหลี่ยม!$G$301 -> 0 | AA89: 0
C90: 2.3.5 | D90: - งานไม้ค้ำยัน f 4.00 นิ้ว | K90: ต้น | L90: 0 | M90: =IF(L90=0,0,[8]ข้อมูลโครงการ!$Q$108) -> 0 | N90: 0 | O90: =IF(L90=0,0,[8]ปร.5ทช!$I$19) -> 0 | P90: 0 | Q90: 0 | S90: =[8]ราคาต่อหน่วยสะพานท่อเหลี่ยม!$G$302 -> 0 | AA90: 0
D91: - งานไม้ค้ำยัน f 6.00 นิ้ว | K91: ต้น | L91: 0 | M91: =IF(L91=0,0,[8]ข้อมูลโครงการ!$Q$109) -> 0 | N91: 0 | O91: =IF(L91=0,0,[8]ปร.5ทช!$I$19) -> 0 | P91: 0 | Q91: 0 | S91: =[8]ราคาต่อหน่วยสะพานท่อเหลี่ยม!G303 -> 0 | AA91: 0
C92: 2.3.6 | D92: งานเหล็กเสริม | AA92: 0
D93: - ขนาด RB 6 มม. | K93: กก. | L93: =+IF(T93=0,ROUNDDOWN(S93,2),T93) -> 0 | M93: =IF(L93=0,0,[8]ราคาต่อหน่วย!$O$629) -> 0 | N93: =ROUNDDOWN(L93*M93,2) -> 0 | O93: =IF(L93=0,0,[8]ปร.5ทช!$I$19) -> 0 | P93: =ROUNDDOWN(M93*O93,2) -> 0 | Q93: =L93*P93 -> 0 | S93: =[8]ราคาต่อหน่วยสะพานท่อเหลี่ยม!$G$305 -> 0 | AA93: 0
D94: - ขนาด RB 9 มม. | K94: กก. | L94: 0 | M94: =IF(L94=0,0,[8]ราคาต่อหน่วย!$O$637) -> 0 | N94: 0 | O94: =IF(L94=0,0,[8]ปร.5ทช!$I$19) -> 0 | P94: 0 | Q94: 0 | S94: =[8]ราคาต่อหน่วยสะพานท่อเหลี่ยม!$G$306 -> 0 | AA94: 0
D95: - ขนาด DB 12 มม. | K95: กก. | L95: 0 | M95: =IF(L95=0,0,[8]ราคาต่อหน่วย!$O$709) -> 0 | N95: 0 | O95: =IF(L95=0,0,[8]ปร.5ทช!$I$19) -> 0 | P95: 0 | Q95: 0 | S95: =[8]ราคาต่อหน่วยสะพานท่อเหลี่ยม!$G$307 -> 0 | AA95: 0
D96: - ขนาด DB 16 มม. | K96: กก. | L96: 0 | M96: =IF(L96=0,0,[8]ราคาต่อหน่วย!$O$717) -> 0 | N96: 0 | O96: =IF(L96=0,0,[8]ปร.5ทช!$I$19) -> 0 | P96: 0 | Q96: 0 | S96: =[8]ราคาต่อหน่วยสะพานท่อเหลี่ยม!$G$308 -> 0 | AA96: 0
D97: - ขนาด DB 20 มม. | K97: กก. | L97: 0 | M97: =IF(L97=0,0,[8]ราคาต่อหน่วย!$O$725) -> 0 | N97: 0 | O97: =IF(L97=0,0,[8]ปร.5ทช!$I$19) -> 0 | P97: 0 | Q97: 0 | S97: =[8]ราคาต่อหน่วยสะพานท่อเหลี่ยม!$G$309 -> 0 | AA97: 0
D98: - ขนาด DB 25 มม. | K98: กก. | L98: 0 | M98: =IF(L98=0,0,[8]ราคาต่อหน่วย!$O$733) -> 0 | N98: 0 | O98: =IF(L98=0,0,[8]ปร.5ทช!$I$19) -> 0 | P98: 0 | Q98: 0 | S98: =[8]ราคาต่อหน่วยสะพานท่อเหลี่ยม!$G$310 -> 0 | AA98: 0
D99: - ค่าแรงงานเหล็ก | K99: กก. | L99: 0 | M99: =IF(L99=0,0,[8]ข้อมูลโครงการ!$Q$198/1000) -> 0 | N99: 0 | O99: =IF(L99=0,0,[8]ปร.5ทช!$I$19) -> 0 | P99: 0 | Q99: 0 | S99: =[8]ราคาต่อหน่วยสะพานท่อเหลี่ยม!$G$311 -> 0 | AA99: 0
D100: - ลวดผูกเหล็กใช้ 2.5% | K100: กก. | L100: 0 | M100: =IF(L100=0,0,[8]แหล่งวัสดุ!$M$43) -> 0 | N100: 0 | O100: =IF(L100=0,0,[8]ปร.5ทช!$I$19) -> 0 | P100: 0 | Q100: 0 | S100: =[8]ราคาต่อหน่วยสะพานท่อเหลี่ยม!$G$312 -> 0 | AA100: 0
C101: 2.3.7 | D101: ทรายถมข้าง BOX | K101: ลบ.ม. | L101: 0 | M101: =IF(L101=0,0,[8]ราคาต่อหน่วย!$Q$102) -> 0 | N101: 0 | O101: =IF(L101=0,0,[8]ปร.5ทช!$I$19) -> 0 | P101: 0 | Q101: 0 | S101: =[8]ราคาต่อหน่วยสะพานท่อเหลี่ยม!$G$313 -> 0 | AA101: 0
C102: 2.3.8 | D102: CELOTEX WITH TAR | K102: ตร.ม. | L102: 0 | M102: =IF(L102=0,0,[8]ราคาต่อหน่วยสะพานท่อเหลี่ยม!$I$272) -> 0 | N102: 0 | O102: =IF(L102=0,0,[8]ปร.5ทช!$I$19) -> 0 | P102: 0 | Q102: 0 | S102: =[8]ราคาต่อหน่วยสะพานท่อเหลี่ยม!$G$314 -> 0 | AA102: 0
C103: 2.3.9 | D103: MASTIC JOINT SEALER | K103: ลิตร | L103: 0 | M103: =IF(L103=0,0,[8]ราคาต่อหน่วยสะพานท่อเหลี่ยม!$I$315) -> 0 | N103: 0 | O103: =IF(L103=0,0,[8]ปร.5ทช!$I$19) -> 0 | P103: 0 | Q103: 0 | S103: =[8]ราคาต่อหน่วยสะพานท่อเหลี่ยม!G315 -> 0
AA104: 0
D105: รวมราคาต้นทุน / 1 แห่ง | N105: =ROUNDDOWN(SUM(N86:N104),0) -> 0 | O105: =O100 -> 0 | Q105: =SUM(Q86:Q104) -> 0 | S105: โปรแกรม | T105: ป้อนค่าเอง | AA105: 0
B106: =[8]ราคาต่อหน่วยสะพานท่อเหลี่ยม!B318 -> 2.4 | C106: =[8]ราคาต่อหน่วยสะพานท่อเหลี่ยม!C318 -> งานท่อลอดเหลี่ยม กม.ที่ ขนาด 0 - 0 | AA106: =IF([8]ข้อมูลโครงสร้างทาง!BL8>0,1,0) -> 0
C107: 2.4.1 | D107: งานขุดดิน | K107: ลบ.ม. | L107: =+IF(T107=0,ROUNDDOWN(S107,2),T107) -> 0 | M107: =IF(L107=0,0,[8]ราคาต่อหน่วย!$Q$62) -> 0 | N107: =ROUNDDOWN(L107*M107,2) -> 0 | O107: =IF(L107=0,0,[8]ปร.5ทช!$I$19) -> 0 | P107: =ROUNDDOWN(M107*O107,2) -> 0 | Q107: =L107*P107 -> 0 | S107: =[8]ราคาต่อหน่วยสะพานท่อเหลี่ยม!$G$319 -> 0 | AA107: =$AA$106 -> 0
C108: 2.4.2 | D108: งานคอนกรีตหยาบ | K108: ลบ.ม. | L108: 0 | M108: =IF(L108=0,0,[8]ราคาต่อหน่วย!$P$578) -> 0 | N108: =ROUNDDOWN(L108*M108,2) -> 0 | O108: =IF(L108=0,0,[8]ปร.5ทช!$I$19) -> 0 | P108: 0 | Q108: =L108*P108 -> 0 | S108: =[8]ราคาต่อหน่วยสะพานท่อเหลี่ยม!$G$320 -> 0 | AA108: =$AA$106 -> 0
C109: 2.4.3 | D109: งานคอนกรีตโครงสร้าง (ค.3) | K109: ลบ.ม. | L109: 0 | M109: =IF(L109=0,0,[8]ราคาต่อหน่วย!$P$603) -> 0 | N109: 0 | O109: =IF(L109=0,0,[8]ปร.5ทช!$I$19) -> 0 | P109: 0 | Q109: 0 | S109: =[8]ราคาต่อหน่วยสะพานท่อเหลี่ยม!$G$321 -> 0 | AA109: 0
C110: 2.4.4 | D110: งานไม้แบบ | K110: ตร.ม. | L110: 0 | M110: =IF(L110=0,0,[8]ราคาต่อหน่วย!$O$775) -> 0 | N110: 0 | O110: =IF(L110=0,0,[8]ปร.5ทช!$I$19) -> 0 | P110: 0 | Q110: 0 | S110: =[8]ราคาต่อหน่วยสะพานท่อเหลี่ยม!$G$322 -> 0 | AA110: 0
C111: 2.4.5 | D111: - งานไม้ค้ำยัน f 4.00 นิ้ว | K111: ต้น | L111: 0 | M111: =IF(L111=0,0,[8]ข้อมูลโครงการ!$Q$108) -> 0 | N111: 0 | O111: =IF(L111=0,0,[8]ปร.5ทช!$I$19) -> 0 | P111: 0 | Q111: 0 | S111: =[8]ราคาต่อหน่วยสะพานท่อเหลี่ยม!$G$323 -> 0 | AA111: 0
D112: - งานไม้ค้ำยัน f 6.00 นิ้ว | K112: ต้น | L112: 0 | M112: =IF(L112=0,0,[8]ข้อมูลโครงการ!$Q$109) -> 0 | N112: 0 | O112: =IF(L112=0,0,[8]ปร.5ทช!$I$19) -> 0 | P112: 0 | Q112: 0 | S112: =[8]ราคาต่อหน่วยสะพานท่อเหลี่ยม!G324 -> 0 | AA112: =$AA$42 -> 0
C113: 2.4.6 | D113: งานเหล็กเสริม | AA113: 0
D114: - ขนาด RB 6 มม. | K114: กก. | L114: =+IF(T114=0,ROUNDDOWN(S114,2),T114) -> 0 | M114: =IF(L114=0,0,[8]ราคาต่อหน่วย!$O$629) -> 0 | N114: =ROUNDDOWN(L114*M114,2) -> 0 | O114: =IF(L114=0,0,[8]ปร.5ทช!$I$19) -> 0 | P114: =ROUNDDOWN(M114*O114,2) -> 0 | Q114: =L114*P114 -> 0 | S114: =[8]ราคาต่อหน่วยสะพานท่อเหลี่ยม!$G$326 -> 0 | AA114: 0
D115: - ขนาด RB 9 มม. | K115: กก. | L115: 0 | M115: =IF(L115=0,0,[8]ราคาต่อหน่วย!$O$637) -> 0 | N115: 0 | O115: =IF(L115=0,0,[8]ปร.5ทช!$I$19) -> 0 | P115: 0 | Q115: 0 | S115: =[8]ราคาต่อหน่วยสะพานท่อเหลี่ยม!$G$327 -> 0 | AA115: 0
D116: - ขนาด DB 12 มม. | K116: กก. | L116: 0 | M116: =IF(L116=0,0,[8]ราคาต่อหน่วย!$O$709) -> 0 | N116: 0 | O116: =IF(L116=0,0,[8]ปร.5ทช!$I$19) -> 0 | P116: 0 | Q116: 0 | S116: =[8]ราคาต่อหน่วยสะพานท่อเหลี่ยม!$G$328 -> 0 | AA116: 0
D117: - ขนาด DB 16 มม. | K117: กก. | L117: 0 | M117: =IF(L117=0,0,[8]ราคาต่อหน่วย!$O$717) -> 0 | N117: 0 | O117: =IF(L117=0,0,[8]ปร.5ทช!$I$19) -> 0 | P117: 0 | Q117: 0 | S117: =[8]ราคาต่อหน่วยสะพานท่อเหลี่ยม!$G$329 -> 0 | AA117: 0
D118: - ขนาด DB 20 มม. | K118: กก. | L118: 0 | M118: =IF(L118=0,0,[8]ราคาต่อหน่วย!$O$725) -> 0 | N118: 0 | O118: =IF(L118=0,0,[8]ปร.5ทช!$I$19) -> 0 | P118: 0 | Q118: 0 | S118: =[8]ราคาต่อหน่วยสะพานท่อเหลี่ยม!$G$330 -> 0 | AA118: 0
D119: - ขนาด DB 25 มม. | K119: กก. | L119: 0 | M119: =IF(L119=0,0,[8]ราคาต่อหน่วย!$O$733) -> 0 | N119: 0 | O119: =IF(L119=0,0,[8]ปร.5ทช!$I$19) -> 0 | P119: 0 | Q119: 0 | S119: =[8]ราคาต่อหน่วยสะพานท่อเหลี่ยม!$G$331 -> 0 | AA119: 0
D120: - ค่าแรงงานเหล็ก | K120: กก. | L120: 0 | M120: =IF(L120=0,0,[8]ข้อมูลโครงการ!$Q$198/1000) -> 0 | N120: 0 | O120: =IF(L120=0,0,[8]ปร.5ทช!$I$19) -> 0 | P120: 0 | Q120: 0 | S120: =[8]ราคาต่อหน่วยสะพานท่อเหลี่ยม!$G$332 -> 0 | AA120: 0
D121: - ลวดผูกเหล็กใช้ 2.5% | K121: กก. | L121: 0 | M121: =IF(L121=0,0,[8]แหล่งวัสดุ!M43) -> 0 | N121: 0 | O121: =IF(L121=0,0,[8]ปร.5ทช!$I$19) -> 0 | P121: 0 | Q121: 0 | S121: =[8]ราคาต่อหน่วยสะพานท่อเหลี่ยม!$G$333 -> 0 | AA121: 0
C122: 2.4.7 | D122: ทรายถมข้าง BOX | K122: ลบ.ม. | L122: 0 | M122: =IF(L122=0,0,[8]ราคาต่อหน่วย!$Q$102) -> 0 | N122: 0 | O122: =IF(L122=0,0,[8]ปร.5ทช!$I$19) -> 0 | P122: 0 | Q122: 0 | S122: =[8]ราคาต่อหน่วยสะพานท่อเหลี่ยม!$G$334 -> 0 | AA122: 0
C123: 2.4.8 | D123: CELOTEX WITH TAR | K123: ตร.ม. | L123: 0 | M123: =IF(L123=0,0,[8]ราคาต่อหน่วยสะพานท่อเหลี่ยม!$I$272) -> 0 | N123: 0 | O123: =IF(L123=0,0,[8]ปร.5ทช!$I$19) -> 0 | P123: 0 | Q123: 0 | S123: =[8]ราคาต่อหน่วยสะพานท่อเหลี่ยม!$G$335 -> 0 | AA123: 0
C124: 2.1.9 | D124: MASTIC JOINT SEALER | K124: ลิตร | L124: 0 | M124: =IF(L124=0,0,[8]ราคาต่อหน่วยสะพานท่อเหลี่ยม!$I$336) -> 0 | N124: 0 | O124: =IF(L124=0,0,[8]ปร.5ทช!$I$19) -> 0 | P124: 0 | Q124: 0 | S124: =[8]ราคาต่อหน่วยสะพานท่อเหลี่ยม!G336 -> 0
AA125: 0
D126: รวมราคาต้นทุน / 1 แห่ง | N126: =ROUNDDOWN(SUM(N107:N125),0) -> 0 | O126: =O121 -> 0 | Q126: =SUM(Q107:Q125) -> 0 | S126: โปรแกรม | T126: ป้อนค่าเอง | AA126: 0
AA127: 1
B128: ="สรุปรวมค่างานสะพาน คสล. "&F12 -> สรุปรวมค่างานสะพาน คสล. 5.00 ม. ยาว 22.00 ม. (แบบตอกเข็ม) | K128: แห่ง | L128: =+IF(T128=0,ROUNDDOWN(S128,2),T128) -> 1 | M128: =IF(L128=0,0,N41) -> 0 | N128: =L128*M128 -> 0 | S128: =[8]ข้อมูลโครงสร้างทาง!$N$8 -> 1 | AA128: =$AA$11 -> 1
B129: =IF([8]ข้อมูลโครงสร้างทาง!BL5=0,"","สรุปรวมค่างานท่อลอดเหลี่ยม คสล. "&" ขนาด "&[8]ข้อมูลโครงสร้างทาง!$BE$5&" - "&[8]ข้อมูลโครงสร้างทาง!$BJ$5) ->  | K129: =IF(B129="","","แห่ง") ->  | L129: =+IF(T129=0,ROUNDDOWN(S129,2),T129) -> 0 | M129: =N63 -> 97425 | N129: =L129*M129 -> 0 | S129: =[8]ข้อมูลโครงสร้างทาง!$BL$5 -> 0 | AA129: =$AA$42 -> 0
B130: =IF([8]ข้อมูลโครงสร้างทาง!BL6=0,"","สรุปรวมค่างานท่อลอดเหลี่ยม คสล. "&" ขนาด "&[8]ข้อมูลโครงสร้างทาง!$BE$6&" - "&[8]ข้อมูลโครงสร้างทาง!$BJ$6) ->  | K130: =IF(B130="","","แห่ง") ->  | L130: =+IF(T130=0,ROUNDDOWN(S130,2),T130) -> 0 | M130: =N84 -> 72924 | N130: =L130*M130 -> 0 | S130: =[8]ข้อมูลโครงสร้างทาง!$BL$6 -> 0 | AA130: =$AA$64 -> 0
B131: =IF([8]ข้อมูลโครงสร้างทาง!BL7=0,"","สรุปรวมค่างานท่อลอดเหลี่ยม คสล. "&" ขนาด "&[8]ข้อมูลโครงสร้างทาง!$BE$7&" - "&[8]ข้อมูลโครงสร้างทาง!$BJ$7) ->  | L131: =+IF(T131=0,ROUNDDOWN(S131,2),T131) -> 0 | M131: =N105 -> 0 | N131: =L131*M131 -> 0 | S131: =[8]ข้อมูลโครงสร้างทาง!$BL$7 -> 0 | AA131: =AA85 -> 0
B132: =IF([8]ข้อมูลโครงสร้างทาง!BL8=0,"","สรุปรวมค่างานท่อลอดเหลี่ยม คสล. "&"ขนาด "&[8]ข้อมูลโครงสร้างทาง!$BE$8&" - "&[8]ข้อมูลโครงสร้างทาง!$BJ$8) ->  | L132: =+IF(T132=0,ROUNDDOWN(S132,2),T132) -> 0 | M132: =N126 -> 0 | N132: =L132*M132 -> 0 | S132: =[8]ข้อมูลโครงสร้างทาง!$BL$8 -> 0 | AA132: =AA107 -> 0
C133: รวมค่างานต้นทุนงานสะพานและท่อลอดเหลี่ยม | N133: =SUM(N128:N132) -> 0 | AA133: 1
C134: FACTOR F | O134: =O41 -> 0 | AA134: 1
C135: เป็นเงินค่างานประเมิน | Q135: =N133*O134 -> 0 | AA135: 1
AA136: 1
AA138: 1
L139: ตรวจ | AA139: 1
AA140: 1
L141: ตำแหน่ง | S141: =Q135/22 -> 0 | AA141: 1

Sheet BOQ (hidden)
A1: แบบสรุปราคากลางงานก่อสร้างทาง สะพาน และท่อเหลี่ยม
A2: ="โครงการ"&ข้อมูลโครงการ!L10&" สายทาง"&ข้อมูลโครงการ!L12&" "&ข้อมูลโครงการ!L13 -> โครงการก่อสร้างสะพานข้ามคลองหล ม.18 สายทาง หมู่ที่ 18 ตำบลบ้านส้อง อำเภอเวียงสระ จังหวัดสุราษฏร์ธานี
A3: ="ปริมาณงาน ผิวจราจรสะพานชนิดไม่มีทางเท้า กว้าง "&FIXED(ข้อมูลโครงการ!P26,2)&" เมตร สะพานยาว "&FIXED(ข้อมูลโครงการ!P28,2)&" เมตร หนา "&ข้อมูลโครงการ!P27&" เมตร หรือพื้นที่ไม่น้อยกว่า "&FIXED(ข้อมูลโครงการ!P26*ข้อมูลโครงการ!P28,2)&" ตารางเมตร" -> ปริมาณงาน ผิวจราจรสะพานชนิดไม่มีทางเท้า กว้าง 5.00 เมตร สะพานยาว 10.00 เมตร หนา เมตร หรือพื้นที่ไม่น้อยกว่า 50.00 ตารางเมตร | N3: ปริมาณงาน
A4: =Pr.5!#REF! ->  | C4: =Pr.5!#REF! ->  | I4: =Pr.5!F9 -> 0
A5: ลำดับ | B5: รายการ | E5: หน่วย | F5: จำนวน | G5: ราคาต่อหน่วย | H5: ราคาทุน | I5: FN | J5: ราคาต่อหน่วยxFN | K5: ราคากลาง | N5: กรอกข้อมูลเอง
A6: 1 | B6: งานปรับเกลี่ยงานกรุยทางถางป่า ขุดตอ ขนาดเบา | E6: ตร.ม. | F6: =IF(N6=0,ROUND(ปริมาณงาน!L12,2),N6)*1 -> 50 | G6: =ROUND(IF(F6=0,0,'Unit Cost'!L10),2) -> 1.7 | H6: =ROUND(F6*G6,2) -> 85 | I6: =IF(H6=0,0,$H$30) -> 1.3347 | J6: =ROUND(G6*I6,2) -> 2.27 | K6: =ROUND(H6*I6,2) -> 113.45 | N6: 0
A7: 2 | B7: งานขุดรื้อคันทางเดิมแล้วบดทับ(ลูกรัง) | E7: ตร.ม. | F7: =ปริมาณงาน!L12*1 -> 50 | G7: =ROUND(IF(F7=0,0,'Unit Cost'!L24),2) -> 10.74 | H7: =ROUND(F7*G7,2) -> 537 | I7: =IF(H7=0,0,$H$30) -> 1.3347 | J7: =ROUND(G7*I7,2) -> 14.33 | K7: =ROUND(H7*I7,2) -> 716.73 | N7: 0
A8: 3 | B8: งานขุดรื้อคันทางเดิมแล้วบดทับ(ผิว AC หนา 0.05 m.) | E8: ตร.ม. | F8: 0 | G8: ='Unit Cost'!L36*0 -> 0 | H8: 0 | I8: 0 | J8: 0 | K8: 0 | N8: 0
A9: 4 | B9: งานตัดขึ้นรูปคันทาง(คิดหนาเฉลี่ย 0.15 m. กว้าง 4.5 m.ยาว 250 m.) | E9: ลบ.ม. | F9: =ปริมาณงาน!L100 -> 0 | G9: =ROUND(IF(F9=0,0,'Unit Cost'!L89),2) -> 0 | H9: =ROUND(F9*G9,2) -> 0 | I9: 0 | J9: =ROUND(G9*I9,2) -> 0 | K9: 0 | N9: 0
A10: 5 | B10: งานดินถมคันทางจากแหล่งนอกที่ตั้งโครงการ | E10: ลบ.ม. | F10: =IF(N10=0,0,N10) -> 0 | G10: =ROUND(IF(F10=0,0,'Unit Cost'!L110),2) -> 0 | H10: 0 | I10: 0 | J10: 0 | K10: 0 | N10: 0
A11: 6 | B11: งานรองพื้นทาง(ลูกรัง) | E11: ลบ.ม. | F11: 0 | G11: =ROUND(IF(F11=0,0,'Unit Cost'!L130),2) -> 0 | H11: 0 | I11: 0 | J11: 0 | K11: 0 | N11: 0
A12: 7 | B12: งานพื้นทาง(หินคลุก) | E12: ลบ.ม. | F12: 0 | G12: =ROUND(IF(F12=0,0,'Unit Cost'!L140),2) -> 0 | H12: 0 | I12: 0 | J12: 0 | K12: 0 | N12: 0
A13: 8 | B13: งานทรายรองใต้ผิวทางคอนกรีต | E13: ลบ.ม. | F13: =ปริมาณงาน!L14*1 -> 2.5 | G13: =ROUND(IF(F13=0,0,'Unit Cost'!L159),2) -> 740.96 | H13: =ROUND(F13*G13,2) -> 1852.4 | I13: =IF(H13=0,0,$H$30) -> 1.3347 | J13: =ROUND(G13*I13,2) -> 988.96 | K13: =ROUND(H13*I13,2) -> 2472.4 | N13: =5*1950*0.05 -> 487.5
A14: 9 | B14: ="ผิวทางปอร์ตแลนด์ซีเมนต์คอนกรีต 240 ksc(Cube) หนา "&FIXED(ข้อมูลโครงการ!P27,2)&" ม." -> ผิวทางปอร์ตแลนด์ซีเมนต์คอนกรีต 240 ksc(Cube) หนา 0.00 ม. | E14: ตร.ม. | F14: =IF(N14=0,ROUND(ปริมาณงาน!L16,2),N14) -> 50 | G14: =ROUND(IF(F14=0,0,'Unit Cost'!L178),2) -> 39.61 | H14: 1980.5 | I14: 1.3347 | J14: 52.87 | K14: 2643.37 | N14: 0
A15: 10 | B15: Expansion Joint | E15: ม. | F15: =IF(N15=0,ROUND(ปริมาณงาน!L44,2),N15) -> -5 | G15: =ROUND(IF(F15=0,0,'Unit Cost'!J212),2) -> 97.1 | H15: -485.5 | I15: 1.3347 | J15: 129.6 | K15: -648 | N15: 0
A16: 11 | B16: Contraction Joint | E16: ม. | F16: =IF(N16=0,ROUND(ปริมาณงาน!L66,2),N16) -> 5 | G16: =ROUND(IF(F16=0,0,'Unit Cost'!J245),2) -> 90.48 | H16: 452.4 | I16: 1.3347 | J16: 120.76 | K16: 603.82 | N16: 0
A17: 12 | B17: Longitudinal Joint | E17: ม. | F17: =IF(N17=0,ROUND(ปริมาณงาน!L83,2),N17) -> 10 | G17: =ROUND(IF(F17=0,0,'Unit Cost'!J265),2) -> 52.37 | H17: 523.7 | I17: 1.3347 | J17: 69.9 | K17: 698.98 | N17: 0
A18: 13 | B18: งานไหล่ทาง(หินแอนไฮไลท์) | E18: ลบ.ม. | F18: =IF(N18=0,ROUND(ปริมาณงาน!L98,2),N18) -> 0 | G18: =ROUND(IF(F18=0,0,'Unit Cost'!L150),2) -> 0 | H18: 0 | I18: 0 | J18: 0 | K18: 0 | N18: 0 | O18: =0.2*0.5*800 -> 80
A19: 14 | B19: ="งานท่อระบายน้ำขนาด "&'Unit Cost'!H277&" x 1.00 ม." -> งานท่อระบายน้ำขนาด Ø 0.30 x 1.00 ม. | E19: ม. | F19: =IF(N19=0,0,N19) -> 0 | G19: =ROUND(IF(F19=0,0,'Unit Cost'!K283),2) -> 0 | H19: 0 | I19: =IF(H19=0,0,$H$30) -> 0 | J19: 0 | K19: 0 | N19: 0
A20: 15 | B20: ="งานท่อระบายน้ำขนาด "&'Unit Cost'!H290&" x 1.00 ม." -> งานท่อระบายน้ำขนาด Ø 0.40 x 1.00 ม. | E20: ม. | F20: 0 | G20: =ROUND(IF(F20=0,0,'Unit Cost'!K296),2) -> 0 | H20: 0 | I20: 0 | J20: 0 | K20: 0 | N20: 0
A21: 16 | B21: ="งานท่อระบายน้ำขนาด "&'Unit Cost'!H303&" x 1.00 ม." -> งานท่อระบายน้ำขนาด Ø 0.60 x 1.00 ม. | E21: ม. | F21: 0 | G21: =ROUND(IF(F21=0,0,'Unit Cost'!K309),2) -> 0 | H21: 0 | I21: 0 | J21: 0 | K21: 0 | N21: 0
A22: 17 | B22: ="งานท่อระบายน้ำขนาด "&'Unit Cost'!H316&" x 1.00 ม." -> งานท่อระบายน้ำขนาด Ø 0.80 x 1.00 ม. | E22: ม. | F22: 0 | G22: =ROUND(IF(F22=0,0,'Unit Cost'!K322),2) -> 0 | H22: 0 | I22: 0 | J22: 0 | K22: 0 | N22: 0
A23: 18 | B23: ="งานท่อระบายน้ำขนาด "&'Unit Cost'!H332&" x 1.00 ม." -> งานท่อระบายน้ำขนาด Ø 1.00 x 1.00 ม. | E23: ม. | F23: 0 | G23: =ROUND(IF(F23=0,0,'Unit Cost'!K338),2) -> 0 | H23: 0 | I23: 0 | J23: 0 | K23: 0 | N23: 0
A24: 19 | B24: ="งานท่อระบายน้ำขนาด "&'Unit Cost'!H345&" x 1.00 ม." -> งานท่อระบายน้ำขนาด Ø 1.20 x 1.00 ม. | E24: ม. | F24: 0 | G24: =ROUND(IF(F24=0,0,'Unit Cost'!K351),2) -> 0 | H24: 0 | I24: 0 | J24: 0 | K24: 0 | N24: 0
A25: 20 | B25: ="งานท่อระบายน้ำขนาด "&'Unit Cost'!H358&" x 1.00 ม." -> งานท่อระบายน้ำขนาด Ø 1.50 x 1.00 ม. | E25: ม. | F25: =IF(N25=0,0,N25) -> 0 | G25: =ROUND(IF(F25=0,0,'Unit Cost'!K364),2) -> 0 | H25: 0 | I25: =IF(H25=0,0,$H$30) -> 0 | J25: 0 | K25: 0 | N25: 0
G26: =J26 -> รวม | H26: =TRUNC(SUM(H6:H25),2) -> 4945.5 | J26: รวม | K26: =ROUND(SUM(K6:K25),2) -> 6600.75
I27: ="ตัวอักษร (-"&BAHTTEXT(K27)&"-)" -> ตัวอักษร (-หกพันหกร้อยบาทเจ็ดสิบห้าสตางค์-) | J27: ปรับยอด | K27: =ROUNDDOWN(K26,2) -> 6600.75 | N27: =K27/F14 -> 132.015 | P27: 1.3574 | Q27: =H26*1.3574 -> 6713.0217
Q28: =Q27/ปริมาณงาน!L16 -> 134.260434
A29: ① | B29: ผลรวมค่างานต้นทุนงานก่อสร้าง | G29: = | H29: =H26 -> 4945.5
A30: ② | B30: ค่า FACTOR F งานก่อสร้างทาง | G30: = | H30: ='Factor F'!I74 -> 1.3347
B32: =Pr.5!B34 -> 0
B38: (ลงชื่อ) | D38: กรรมการกำหนดราคากลาง | G38: (ลงชื่อ) | J38: กรรมการกำหนดราคากลาง
C39: =Pr.5!C42 -> ( นางจิราวรรณ จันทร์พุธ ) | H39: =Pr.5!G42 -> ( นายนพดล แก้วมหิทธิ์ )
B42: (ลงชื่อ) | D42: กรรมการกำหนดราคากลาง | G42: (ลงชื่อ) | J42: กรรมการกำหนดราคากลาง
C43: =Pr.5!C46 -> ( นายจำลอง นวลสุทธิ์ ) | H43: =Pr.5!G46 -> ( นายลิขิต วงค์จุ้ย )
E48: (ลงชื่อ) | H48: ผู้ประมาณการ
F49: (นายลิขิต วงค์จุ้ย)
F50: วิศวกรโยธาปฏิบัติการ

Sheet ปริมาณงาน (hidden)
B1: รายการคำนวณแสดงวิธีการหาปริมาณวัสดุเพื่อประมาณราคาค่าก่อสร้าง
B2: ="ถนนคอนกรีตเสริมเหล็กสาย"&ข้อมูลโครงการ!L12&" "&ข้อมูลโครงการ!L13 -> ถนนคอนกรีตเสริมเหล็กสาย หมู่ที่ 18 ตำบลบ้านส้อง อำเภอเวียงสระ จังหวัดสุราษฏร์ธานี
B3: ="ตามแบบ"&ข้อมูลโครงการ!L11&" เลขที่ "&ข้อมูลโครงการ!L14 -> ตามแบบเทศบาลตำบลบ้านส้อง เลขที่ ทต.บ้านส้อง
B4: ข้อมูลงานถนน คสล.
C5: กว้าง | K5: = | L5: =ข้อมูลโครงการ!P26 -> 5 | M5: ม. | N5: ="["&R5&"]" -> [1] | R5: 1
C6: ยาว | K6: = | L6: =ข้อมูลโครงการ!P28 -> 10 | M6: ม. | N6: ="["&R6&"]" -> [2] | R6: =R5+1 -> 2
C7: หนา | K7: = | L7: =ข้อมูลโครงการ!P27 -> 0 | M7: ม. | N7: [3] | R7: =R6+1 -> 3
C8: ทรายรองพื้น(หนา) | K8: = | L8: =ข้อมูลโครงการ!P30 -> 0.05 | M8: ม. | N8: [4] | R8: 4
C9: ความกว้างไหล่ทางลูกรัง(ข้างละ) | K9: = | L9: =ข้อมูลโครงการ!P29 -> 0 | M9: ม. | N9: [5] | R9: 5
B10: รายละเอียดการถอดปริมาณวัสดุ
B11: 1.งานปรับเกลี่ยแต่งคันทางเดิม
C12: =" - ปริมาณงาน = {"&FIXED(L5,2)&" + ("&FIXED(L9,2)&" x 2.00)"&"} x "&FIXED(L6,2) -> - ปริมาณงาน = {5.00 + (0.00 x 2.00)} x 10.00 | K12: = | L12: =ROUND((L5+(L9*2))*L6,2) -> 50 | M12: ตร.ม. | N12: ="["&R12&"]={["&R5&"]+(["&R9&"]x 2.00)}x["&R6&"]" -> [6]={[1]+([5]x 2.00)}x[2] | R12: 6
B13: 2. ทรายรองพื้น
C14: =" - ปริมาณงานทรายรองพื้น = "&FIXED(L5,2)&" x "&FIXED(L6,2)&" x "&FIXED(ข้อมูลโครงการ!P30,2) -> - ปริมาณงานทรายรองพื้น = 5.00 x 10.00 x 0.05 | K14: = | L14: =ROUND(L5*L6*ข้อมูลโครงการ!P30,2) -> 2.5 | M14: ลบ.ม. | N14: ="["&R14&"]="&N5&"x"&N6&"x"&N8 -> [7]=[1]x[2]x[4] | R14: 7
B15: 3. งานคอนกรีต
C16: ="3.1 ปริมาณงานคอนกรีตทั้งโครงการ = "&FIXED(L5,2)&" x "&FIXED(L6,2) -> 3.1 ปริมาณงานคอนกรีตทั้งโครงการ = 5.00 x 10.00 | K16: = | L16: =ROUND(L5*L6,2) -> 50 | M16: ตร.ม. | N16: ="["&R16&"]="&N5&"x"&N6 -> [8]=[1]x[2] | R16: 8
C17: 3.2 ปริมาณคอนกรีตต่อหนึ่งแผง
C18: - ความกว้างของแผงคอนกรีต(จากแบบ) | K18: = | L18: =ROUND(IF(ข้อมูลโครงการ!P43="มี",L5/2,L5),2) -> 2.5 | M18: ม. | N18: [9] | R18: 9
C19: - ความยาวของแผงคอนกรีต(จากแบบ ระยะ CONTRACTION JOINT) | K19: = | L19: =ข้อมูลโครงการ!P59 -> 10 | M19: ม. | N19: [10] | R19: 10
C20: ="…จะได้ปริมาณคอนกรีตต่อแผง = "&FIXED(L18,2)&" x "&FIXED(L19,2) -> …จะได้ปริมาณคอนกรีตต่อแผง = 2.50 x 10.00 | K20: = | L20: =ROUND(L18*L19,2) -> 25 | M20: ตร.ม. | N20: ="["&R20&"]="&N18&"x"&N19 -> [11]=[9]x[10] | R20: 11
B21: 4. เหล็กเสริมคอนกรีต
B22: 4.1 | C22: เหล็กเสริมคอนกรีต(คิดจากพื้นที่ 1 แผง)
C23: 4.1.1 กรณีที่ 1 ใช้เหล็ก WIRE MESH
D24: =IF(ข้อมูลโครงการ!P38="WIRE MESH","WIRE MESH Dia. "&ข้อมูลโครงการ!P39&" mm. @ "&FIXED(ข้อมูลโครงการ!P40,2)&" x "&FIXED(ข้อมูลโครงการ!P41,2)&" m.# = "&FIXED(L18,2)&" x "&FIXED(L19,2),"ดูกรณีที่ 2") -> WIRE MESH Dia. 4 mm. @ 0.15 x 0.30 m.# = 2.50 x 10.00 | K24: = | L24: =IF(ข้อมูลโครงการ!P38="WIRE MESH",FIXED(ROUND(L18*L19,2),2),"ดูกรณีที่ 2") -> 25.00 | M24: ตร.ม. | N24: ="["&R24&"]="&N18&"x"&N19 -> [12]=[9]x[10] | R24: 12
C25: ="4.1.2 กรณีที่ 2 ใช้เหล็ก "&IF(ข้อมูลโครงการ!P38="WIRE MESH","ดูกรณีที 1",IF(OR(ข้อมูลโครงการ!P38="เหล็กเส้นกลม",ข้อมูลโครงการ!P38="เหล็กข้ออ้อย"),ข้อมูลโครงการ!P38&" ขนาด "&ข้อมูลโครงการ!P39&" มม.")) -> 4.1.2 กรณีที่ 2 ใช้เหล็ก ดูกรณีที 1
C26: - | D26: เหล็กตามขวาง
D27: ระยะห่างเหล็กตามขวาง @ | K27: = | L27: =IF(ข้อมูลโครงการ!P38="WIRE MESH","ดูกรณีที่ 1",ข้อมูลโครงการ!P40) -> ดูกรณีที่ 1 | M27: ม. | N27: ="["&R27&"]" -> [13] | R27: 13
D28: =IF(ข้อมูลโครงการ!P38="WIRE MESH","ดูกรณีที่ 1","หาจำนวนเหล็กตามขวาง = "&FIXED(L19,2)&" / "&FIXED(ข้อมูลโครงการ!P40,2)) -> ดูกรณีที่ 1 | K28: = | L28: =IF(ข้อมูลโครงการ!P38="WIRE MESH","ดูกรณีที่ 1",ROUND(L19/ข้อมูลโครงการ!P40,2)) -> ดูกรณีที่ 1 | M28: ท่อน | N28: ="["&R28&"]= "&N19&"/"&N27 -> [14]= [10]/[13] | R28: 14
D29: =IF(ข้อมูลโครงการ!P38="WIRE MESH","ดูกรณีที่ 1","ความยาวเหล็กตามขวาง") -> ดูกรณีที่ 1 | K29: = | L29: =IF(ข้อมูลโครงการ!P38="WIRE MESH","ดูกรณีที่ 1",L18) -> ดูกรณีที่ 1 | M29: ม. | N29: ="["&R29&"]="&N18 -> [15]=[9] | R29: 15
D30: =IF(ข้อมูลโครงการ!P38="WIRE MESH","ดูกรณีที่ 1","จะได้ความยาวเหล็กตามขวาง = "&FIXED(L28,2)&" x "&FIXED(L29,2)) -> ดูกรณีที่ 1 | K30: = | L30: =IF(ข้อมูลโครงการ!P38="WIRE MESH","ดูกรณีที่ 1",ROUND(L28*L29,2)) -> ดูกรณีที่ 1 | M30: ม. | N30: ="["&R30&"]=["&R28&"]x["&R29&"]" -> [16]=[14]x[15] | R30: 16
C31: - | D31: เหล็กตามยาว
D32: ระยะเหล็กตามยาว @ | K32: = | L32: =IF(ข้อมูลโครงการ!P38="WIRE MESH","ดูกรณีที่ 1",ข้อมูลโครงการ!P41) -> ดูกรณีที่ 1 | M32: ม. | N32: [17] | R32: 17
D33: =IF(ข้อมูลโครงการ!P38="WIRE MESH","ดูกรณีที่ 1","หาจำนวนเหล็กตามยาว = "&FIXED(L18,2)&" / "&FIXED(ข้อมูลโครงการ!P41,2)) -> ดูกรณีที่ 1 | K33: = | L33: =IF(ข้อมูลโครงการ!P38="WIRE MESH","ดูกรณีที่ 1",INT(L18/ข้อมูลโครงการ!P41)) -> ดูกรณีที่ 1 | M33: ท่อน | N33: ="["&R33&"]= "&N18&"/"&N32 -> [18]= [9]/[17] | R33: 18
D34: =IF(ข้อมูลโครงการ!P38="WIRE MESH","ดูกรณีที่ 1","ความยาวเหล็กตามยาว") -> ดูกรณีที่ 1 | K34: = | L34: =IF(ข้อมูลโครงการ!P38="WIRE MESH","ดูกรณีที่ 1",L19) -> ดูกรณีที่ 1 | M34: ม. | N34: ="["&R34&"]="&N19 -> [19]=[10] | R34: 19
D35: =IF(ข้อมูลโครงการ!P38="WIRE MESH","ดูกรณีที่ 1","จะได้ความยาวเหล็กตามขวาง = "&FIXED(L33,2)&" x "&FIXED(L34,2)) -> ดูกรณีที่ 1 | K35: = | L35: =IF(ข้อมูลโครงการ!P38="WIRE MESH","ดูกรณีที่ 1",ROUND(L33*L34,2)) -> ดูกรณีที่ 1 | M35: ม. | N35: ="["&R35&"]=["&R33&"]x["&R34&"]" -> [20]=[18]x[19] | R35: 20
D36: =IF(ข้อมูลโครงการ!P38="WIRE MESH","ดูกรณีที่ 1","รวมความยาวเหล็ก"&ข้อมูลโครงการ!P38&" ขนาด "&ข้อมูลโครงการ!P39&" มม. = "&FIXED(L30,2)&" + "&FIXED(L35,2)) -> ดูกรณีที่ 1 | K36: = | L36: =IF(ข้อมูลโครงการ!P38="WIRE MESH","ดูกรณีที่ 1",ROUND(L30+L35,2)) -> ดูกรณีที่ 1 | M36: ม. | N36: ="["&R36&"=["&R30&"]+["&R35&"]" -> [21=[16]+[20] | R36: 21
D37: =IF(ข้อมูลโครงการ!P38="WIRE MESH","ดูกรณีที่ 1","หน่วยน้ำหนัก"&ข้อมูลโครงการ!P38&" ขนาด "&ข้อมูลโครงการ!P39&" มม. ความยาว 1 ม. หนัก ") -> ดูกรณีที่ 1 | K37: = | L37: =IF(ข้อมูลโครงการ!P38="WIRE MESH","ดูกรณีที่ 1",IF(AND(ข้อมูลโครงการ!$P$39=6,ข้อมูลโครงการ!$P$38="เหล็กเส้นกลม"),0.222,IF(AND(ข้อมูลโครงการ!$P$39=9,ข้อมูลโครงการ!$P$38="เหล็กเส้นกลม"),0.499,IF(AND(ข้อมูลโครงการ!$P$39=12,ข้อมูลโครงการ!$P$38="เหล็กเส้นกลม"),0.888,IF(AND(ข้อมูลโครงการ!$P$39=15,ข้อมูลโครงการ!$P$38="เหล็กเส้นกลม"),1.39,IF(AND(ข้อมูลโครงการ!$P$39=12,ข้อมูลโครงการ!$P$38="เหล็กข้ออ้อย"),0.888,IF(AND(ข้อมูลโครงการ!$P$39=16,ข้อมูลโครงการ!$P$38="เหล็กข้ออ้อย"),1.58,0))))))) -> ดูกรณีที่ 1 | M37: กก. | N37: [22] | O37: =IF(L37=0,"มีการกรอกข้อมูลชนิดและขนาดเหล็กผิดพลาด"," ") ->  | R37: 22
D38: =IF(ข้อมูลโครงการ!P38="WIRE MESH","ดูกรณีที่ 1","...จะได้ น้ำหนัก"&ข้อมูลโครงการ!P38&" ขนาด "&ข้อมูลโครงการ!P39&" มม. = "&FIXED(L36,2)&" x "&FIXED(L37,3)) -> ดูกรณีที่ 1 | K38: = | L38: =IF(ข้อมูลโครงการ!P38="WIRE MESH","ดูกรณีที่ 1",ROUND(L36*L37,2)) -> ดูกรณีที่ 1 | M38: กก. | N38: ="["&R38&"]=["&R36&"]x"&N37 -> [23]=[21]x[22] | R38: 23
C39: - | D39: =IF(ข้อมูลโครงการ!P38="WIRE MESH","ลวดผูกเหล็ก","ลวดผูกเหล็ก คิด 25 กก. ต่อเหล็กเสริม 1,000 กก.(หลักเกณฑ์การถอดแบบฯ ข้อ 14 หน้า 61) งานทางฯ") -> ลวดผูกเหล็ก
D40: =IF(ข้อมูลโครงการ!P38="WIRE MESH","ไม่นำมาคิดเนื่องจากใช้เหล็ก WIRE MESH","...จะได้ ลวดผูกเหล็ก = ("&FIXED(L38,2)&" x "&"25)/1,000") -> ไม่นำมาคิดเนื่องจากใช้เหล็ก WIRE MESH | K40: = | L40: =IF(ข้อมูลโครงการ!P38="WIRE MESH",0,ROUND((L38*25)/1000,2)) -> 0 | M40: กก. | N40: ="["&R40&"]=(["&R38&"]x25)/1,000" -> [24]=([23]x25)/1,000 | R40: 24
B41: 4.3 | C41: EXPANSION JOINT
C42: ระยะของ EXPANSION JOINT(จากแบบ) | K42: = | L42: =ข้อมูลโครงการ!P52 -> 50 | M42: ม. | N42: [25] | R42: 25
C43: =" - หาจำนวน EXPANSION JOINT = ("&FIXED(L6,2)&"/"&FIXED(L42,2)&") - 1" -> - หาจำนวน EXPANSION JOINT = (10.00/50.00) - 1 | K43: = | L43: =ROUNDUP((L6/L42)-1,0) -> -1 | M43: ช่วง | N43: ="["&R43&"]=("&N6&"/"&N42&")-1" -> [26]=([2]/[25])-1 | R43: =R42+1 -> 26
C44: =" - ความยาวทั้งหมดของ EXPANSION JOINT = "&FIXED(L5,2)&" x "&FIXED(L43,2) -> - ความยาวทั้งหมดของ EXPANSION JOINT = 5.00 x -1.00 | K44: = | L44: =ROUND(L5*L43,2) -> -5 | M44: ม. | N44: ="["&R44&"]="&N5&"x["&R43&"]" -> [27]=[1]x[26] | R44: 27
C45: คิดจากพื้นที่ 1 แผง ของ EXPANSION JOINT
C46: =C18 -> - ความกว้างของแผงคอนกรีต(จากแบบ) | K46: = | L46: =L18 -> 2.5 | M46: ม. | N46: ="["&R46&"]="&N18 -> [28]=[9] | R46: 28
C47: =" - Dowel bar เหล็กเส้นกลม(จากแบบ) ขนาด" -> - Dowel bar เหล็กเส้นกลม(จากแบบ) ขนาด | K47: = | L47: =ข้อมูลโครงการ!P54 -> 19 | M47: มม. | N47: ="["&R47&"]" -> [29] | R47: =R46+1 -> 29
C48: - ระยะห่างเหล็ก | K48: = | L48: =ข้อมูลโครงการ!P55 -> 0.5 | M48: ม. | N48: ="["&R48&"]" -> [30] | R48: =R47+1 -> 30
C49: =" - หาจำนวนเหล็ก = "&FIXED(L46,2)&" / "&FIXED(L48,2) -> - หาจำนวนเหล็ก = 2.50 / 0.50 | K49: = | L49: =ROUND(L46/L48,0) -> 5 | M49: ท่อน | N49: ="["&R49&"]=["&R44&"]/"&N48 -> [31]=[27]/[30] | R49: =R48+1 -> 31
C50: - เหล็ก Dowel bar 1 ท่อน ยาว | K50: = | L50: =ข้อมูลโครงการ!P53 -> 0.5 | M50: ม. | N50: [32] | R50: 32
C51: =" - หาความยาวเหล็ก Dowel bar = "&FIXED(L49,2)&" x "&FIXED(L50,2) -> - หาความยาวเหล็ก Dowel bar = 5.00 x 0.50 | K51: = | L51: =ROUND(L49*L50,2) -> 2.5 | M51: ม. | N51: ="["&R51&"]=["&R49&"]x"&N50 -> [33]=[31]x[32] | R51: 33
C52: ="หน่วยน้ำหนักเหล็กเส้นกลม ขนาด "&ข้อมูลโครงการ!P54&" มม. ความยาว 1 ม. หนัก " -> หน่วยน้ำหนักเหล็กเส้นกลม ขนาด 19 มม. ความยาว 1 ม. หนัก | K52: = | L52: =ROUND(IF(ข้อมูลโครงการ!P54=15,1.39,IF(ข้อมูลโครงการ!P54=19,2.23,"error")),3) -> 2.23 | M52: กก. | N52: [34] | R52: 34
C53: ="...จะได้ Dowel bar เหล็กเส้นกลม ขนาด "&ข้อมูลโครงการ!P54&" มม. หนัก = "&FIXED(L51,2)&" x "&FIXED(L52,2) -> ...จะได้ Dowel bar เหล็กเส้นกลม ขนาด 19 มม. หนัก = 2.50 x 2.23 | K53: = | L53: =ROUND(L51*L52,2) -> 5.58 | M53: กก. | N53: ="["&R53&"]=["&R51&"]x"&N52 -> [35]=[33]x[34] | R53: 35
C54: METAL CAP = จำนวนเหล็ก Dowel Bar | K54: = | L54: =L49 -> 5 | M54: ชุด | N54: ="["&R54&"]="&"["&R49&"]" -> [36]=[31] | R54: 36
C55: หา JOINT FILLTER
C56: - ความกว้างของร่องหยอดยาง(Joint Sealler) ตามแบบ | K56: = | L56: =ROUND(ข้อมูลโครงการ!P50/100,5) -> 0.02 | M56: ม. | N56: [37] | R56: 37
C57: - ความลึกของร่องหยอดยาง(Joint Sealler) ตามแบบ | K57: = | L57: =ROUND(ข้อมูลโครงการ!P51/100,5) -> 0.02 | M57: ม. | N57: [38] | R57: =R56+1 -> 38
C58: =" - พื้นที่ Joint Fillter = "&L46&" x ("&L7&" - "&L56&")" -> - พื้นที่ Joint Fillter = 2.5 x (0 - 0.02) | K58: = | L58: =ROUND(L46*(L7-L57),2) -> -0.05 | M58: ตร.ม. | N58: ="["&R58&"]=["&R46&"]x(["&R7&"]-["&R57&"])" -> [39]=[28]x([3]-[38]) | R58: =R57+1 -> 39
C59: หา JOINT SEALLER
C60: =" - ปริมาณ Joint Sealler = "&L46&" x "&L56&" x "&L57&" x 1,000" -> - ปริมาณ Joint Sealler = 2.5 x 0.02 x 0.02 x 1,000 | K60: = | L60: =ROUND((L46*L56*L57)*1000,2) -> 1 | M60: ลิตร | N60: [40] | R60: 40
C61: หาปริมาณไม้แบบ
C62: =" - ปริมาณไม้แบบ = "&L46&" x "&L7 -> - ปริมาณไม้แบบ = 2.5 x 0 | K62: = | L62: =L46*L7 -> 0 | M62: ตร.ม. | N62: [41] | R62: 41
B63: 4.4 | C63: CONTRACTION JOINT
C64: ระยะของ CONTRACTION JOINT | K64: = | L64: =ข้อมูลโครงการ!P59 -> 10 | M64: ม. | N64: [42] | R64: 42
C65: =" - จำนวน CONTRACTION JOINT = [("&FIXED(L6,2)&" / "&FIXED(L64,2)&") - 1] - "&FIXED(L43,2) -> - จำนวน CONTRACTION JOINT = [(10.00 / 10.00) - 1] - -1.00 | K65: = | L65: =ROUNDUP(((L6/L64)-1)-L43,0) -> 1 | M65: ช่วง | N65: ="["&R65&"]={("&N6&"/"&N64&") - 1} - ["&R43&"]" -> [43]={([2]/[42]) - 1} - [26] | R65: =R64+1 -> 43
C66: =" - ความยาวรวม CONTRACTION JOINT = "&FIXED(L5,2)&" x "&FIXED(L65,2) -> - ความยาวรวม CONTRACTION JOINT = 5.00 x 1.00 | K66: = | L66: =ROUND(L5*L65,2) -> 5 | M66: ม. | N66: ="["&R66&"]="&N5&"x["&R65&"]" -> [44]=[1]x[43] | R66: =R65+1 -> 44
C67: คิดจากพื้นที่ 1 แผง ของ CONTRACTION JOINT
C68: =C46 -> - ความกว้างของแผงคอนกรีต(จากแบบ) | K68: = | L68: =L46 -> 2.5 | M68: ม. | N68: [45] | R68: 45
C69: - Dowel bar เหล็กเส้นกลม(จากแบบ) ขนาด | K69: = | L69: =ข้อมูลโครงการ!P61 -> 19 | M69: มม. | N69: [46] | R69: =R68+1 -> 46
C70: - ระยะห่างเหล็ก | K70: = | L70: =ข้อมูลโครงการ!P62 -> 0.5 | M70: ม. | N70: [47] | R70: =R69+1 -> 47
C71: =" - หาจำนวนเหล็ก = "&FIXED(L68,2)&" / "&FIXED(L70,2) -> - หาจำนวนเหล็ก = 2.50 / 0.50 | K71: = | L71: =ROUND(L68/L70,0) -> 5 | M71: ท่อน | N71: ="["&R71&"]=["&R66&"]/"&N70 -> [48]=[44]/[47] | R71: 48
C72: - เหล็ก Dowel bar 1 ท่อน ยาว | L72: =ข้อมูลโครงการ!P60 -> 0.5 | M72: ม. | N72: [49] | R72: 49
C73: =" - หาความยาวเหล็ก Dowel bar = "&FIXED(L71,2)&" x "&FIXED(L72,2) -> - หาความยาวเหล็ก Dowel bar = 5.00 x 0.50 | K73: = | L73: =ROUND(L71*L72,2) -> 2.5 | M73: ม. | N73: ="["&R73&"]=["&R71&"]x"&N72 -> [50]=[48]x[49] | R73: 50
C74: ="หน่วยน้ำหนักเหล็กเส้นกลม ขนาด "&ข้อมูลโครงการ!P61&" มม. ความยาว 1 ม. หนัก " -> หน่วยน้ำหนักเหล็กเส้นกลม ขนาด 19 มม. ความยาว 1 ม. หนัก | K74: = | L74: =ROUND(IF(ข้อมูลโครงการ!P61=15,1.39,IF(ข้อมูลโครงการ!P61=19,2.23,"error")),3) -> 2.23 | M74: กก. | N74: [51] | R74: 51
C75: ="...จะได้ Dowel bar เหล็กเส้นกลม ขนาด "&ข้อมูลโครงการ!P61&" มม. หนัก = "&FIXED(L73,2)&" x "&FIXED(L74,3) -> ...จะได้ Dowel bar เหล็กเส้นกลม ขนาด 19 มม. หนัก = 2.50 x 2.230 | K75: = | L75: =ROUND(L73*L74,2) -> 5.58 | M75: กก. | N75: ="["&R75&"]=["&R73&"]x"&N74 -> [52]=[50]x[51] | R75: 52
C76: ความยาว Joint เท่ากับ ความกว้างของแผงคอนกรีต | K76: = | L76: =L68 -> 2.5 | M76: ม. | N76: ="["&R76&"]="&"["&R68&"]" -> [53]=[45] | R76: 53
C77: ปริมาณงานทาสี + จาระบี เท่ากับ จำนวนเหล็ก Dowel Bar | K77: = | L77: =L71 -> 5 | M77: ชุด | N77: ="["&R77&"]="&"["&R71&"]" -> [54]=[48] | R77: 54
C78: หา JOINT SEALLER
C79: - ความกว้างของร่องหยอดยาง(Joint Sealler) ตามแบบ | K79: = | L79: =ข้อมูลโครงการ!P57/100 -> 0.01 | M79: ม. | N79: ="["&R79&"]" -> [55] | R79: 55
C80: - ความลึกของร่องหยอดยาง(Joint Sealler) ตามแบบ | K80: = | L80: =ข้อมูลโครงการ!P58/100 -> 0.02 | M80: ม. | N80: [56] | R80: =R79+1 -> 56
C81: =" - ปริมาณ Joint Sealler = "&L68&" x "&L79&" x "&L80&" x 1,000" -> - ปริมาณ Joint Sealler = 2.5 x 0.01 x 0.02 x 1,000 | K81: = | L81: =ROUND((L68*L79*L80)*1000,2) -> 0.5 | M81: ลิตร | N81: ="["&R81&"]=["&R79&"]x"&N80&" x 1,000" -> [57]=[55]x[56] x 1,000 | R81: 57
B82: 4.2 | C82: LONGITUDINAL JOINT | F82: =IF(ข้อมูลโครงการ!P43="มี"," ",ข้อมูลโครงการ!P43) -> 
C83: ความยาวของ LONGITUDINAL JOINT | K83: = | L83: =IF(ข้อมูลโครงการ!P43="มี",L6,0) -> 10 | M83: ม. | N83: ="["&R83&"]="&N6 -> [58]=[2] | R83: 58
C84: คิดจากพื้นที่ 1 แผง ของ LONGITUDINAL JOINT
C85: =C19 -> - ความยาวของแผงคอนกรีต(จากแบบ ระยะ CONTRACTION JOINT) | K85: = | L85: =L19 -> 10 | M85: ม. | N85: ="["&R85&"]" -> [59] | R85: 59
C86: - Tie bar เหล็กข้ออ้อย(จากแบบ) ขนาด | K86: = | L86: =IF(ข้อมูลโครงการ!P43="มี",ข้อมูลโครงการ!P47,0) -> 12 | M86: มม. | N86: ="["&R86&"]" -> [60] | R86: =R85+1 -> 60
C87: - ระยะห่างเหล็ก(จากแบบ) | K87: = | L87: =IF(ข้อมูลโครงการ!P43="มี",ข้อมูลโครงการ!P48,0) -> 0.5 | M87: ม. | N87: ="["&R87&"]" -> [61] | R87: =R86+1 -> 61
C88: =" - หาจำนวนเหล็ก = "&FIXED(L85,2)&" / "&FIXED(L87,2) -> - หาจำนวนเหล็ก = 10.00 / 0.50 | K88: = | L88: =IF(ข้อมูลโครงการ!P43="มี",ROUND((L85/L87),2),0) -> 20 | M88: ท่อน | N88: ="["&R88&"]=["&R83&"]/"&N87 -> [62]=[58]/[61] | R88: 62
C89: - เหล็ก Tie bar 1 ท่อน ยาว(จากแบบ) | K89: = | L89: =IF(ข้อมูลโครงการ!P43="มี",ข้อมูลโครงการ!P46,0) -> 0.5 | M89: ม. | N89: ="["&R89&"]" -> [63] | R89: 63
C90: =" - หาความยาวเหล็ก Tie bar = "&FIXED(L88,2)&" x "&FIXED(L89,2) -> - หาความยาวเหล็ก Tie bar = 20.00 x 0.50 | K90: = | L90: =IF(ข้อมูลโครงการ!P43="มี",ROUND(L88*L89,2),0) -> 10 | M90: ม. | N90: ="["&R90&"]=["&R88&"]x"&N89 -> [64]=[62]x[63] | R90: =R89+1 -> 64
C91: ="หน่วยน้ำหนักเหล็กข้ออ้อย ขนาด "&ข้อมูลโครงการ!P47&" มม. ความยาว 1 ม. หนัก " -> หน่วยน้ำหนักเหล็กข้ออ้อย ขนาด 12 มม. ความยาว 1 ม. หนัก | K91: = | L91: =IF(ข้อมูลโครงการ!P43="มี",ROUND(IF(ข้อมูลโครงการ!P47=12,0.888,IF(ข้อมูลโครงการ!P47=16,1.58,IF(ข้อมูลโครงการ!P47=20,2.47,"error"))),3),0) -> 0.888 | M91: กก. | N91: ="["&R91&"]" -> [65] | R91: 65
C92: ="...จะได้ Tie bar เหล็กข้ออ้อย ขนาด "&ข้อมูลโครงการ!P47&" มม. หนัก = "&FIXED(L90,2)&" x "&FIXED(L91,3) -> ...จะได้ Tie bar เหล็กข้ออ้อย ขนาด 12 มม. หนัก = 10.00 x 0.888 | K92: = | L92: =IF(ข้อมูลโครงการ!P43="มี",ROUND(L90*L91,2),0) -> 8.88 | M92: กก. | N92: ="["&R92&"]=["&R90&"]x"&N91 -> [66]=[64]x[65] | R92: 66
C93: หา JOINT SEALLER
C94: - ความกว้างของร่องหยอดยาง(Joint Sealler) ตามแบบ | K94: = | L94: =ข้อมูลโครงการ!P44/100 -> 0.01 | M94: ม. | N94: ="["&R94&"]" -> [67] | R94: 67
C95: - ความลึกของร่องหยอดยาง(Joint Sealler) ตามแบบ | K95: = | L95: =ข้อมูลโครงการ!P45/100 -> 0.02 | M95: ม. | N95: [68] | R95: =R94+1 -> 68
C96: =" - ปริมาณ Joint Sealler = "&L85&" x "&L94&" x "&L95&" x 1,000" -> - ปริมาณ Joint Sealler = 10 x 0.01 x 0.02 x 1,000 | K96: = | L96: =ROUND((L85*L94*L95)*1000,2) -> 2 | M96: ลิตร | N96: ="["&R96&"]=["&R94&"]x"&N95&" x 1,000" -> [69]=[67]x[68] x 1,000 | R96: =R95+1 -> 69
B97: 5. งานไหล่ทาง
C98: =" - ปริมาณงาน = ("&FIXED(L7,2)&"+"&FIXED(L8,2)&") x "&FIXED(L9,2)&" x "&FIXED(L6,2)&" x 2.00" -> - ปริมาณงาน = (0.00+0.05) x 0.00 x 10.00 x 2.00 | K98: = | L98: =ROUND((L7+L8)*L6*L9*2,2) -> 0 | M98: ลบ.ม. | N98: ="["&R98&"]=("&N7&"+"&N8&")x"&N6&"x"&N9&"x2.00" -> [70]=([3]+[4])x[2]x[5]x2.00 | R98: 70
A100: 6 | B100: งานตัดขึ้นรูปคันทาง | K100: = | L100: 0 | M100: =M98 -> ลบ.ม.
B101: คิดงานขุดตัดแต่ง ดันและตักขึ้นรูปคันทาง โดยคิดหนาเฉลี่ยดินขุดตัด 0.15 ม.
A103: ปริมาณงานสะพาน
A104: ตอม่อตับริม
A105: คานขวาง
A106: คอนกรีต | C106: =0.4*0.4*5 | E106: =0.4*0.4*5 -> 0.8 | F106: ลบ.ม.
A107: ไม้แบบ | C107: = 1.2*5 | E107: =1.29*5 -> 6.45 | F107: ตร.ม.
A108: เหล็ก | C108: ม. | D108: นน/ม. | E108: กก.
A109: RB9 | C109: =25*1.6 -> 40 | D109: 0.499 | E109: =C109*D109 -> 19.96 | L109: =5/0.2 -> 25
A110: DB25 | C110: =5*4 -> 20 | D110: 3.853 | E110: =C110*D110 -> 77.06
A112: ตอม่อ คิดสูง 2.00 ม.
A113: คอนกรีต | C113: =0.4*0.4*2 | E113: =0.4*0.4*2 -> 0.32 | F113: ลบ.ม.
A114: ไม้แบบ | C114: = 1.60*2 | E114: =1.6*2 -> 3.2 | F114: ตร.ม.
A115: เหล็ก | C115: ม. | D115: นน/ม. | E115: กก.
A116: DB12 | C116: =10*1.6 -> 16 | D116: 0.499 | E116: =C116*D116 -> 7.984 | L116: =2/0.2 -> 10
A117: DB25 | C117: =8*2 -> 16 | D117: 3.853 | E117: =C117*D117 -> 61.648
A119: ผนัง คิดสูง 1.3 ม.
A120: คอนกรีต | C120: =0.25*1.3*9.4 | E120: =0.25*1.3*9.4 -> 3.055 | F120: ลบ.ม.
A121: ไม้แบบ | C121: = 2.60*9.4 | E121: =2.6*9.4 -> 24.44 | F121: ตร.ม.
A122: เหล็ก | C122: ม. | D122: นน/ม. | E122: กก.
A123: w1 RB9 | C123: =43*3.3 -> 141.9 | D123: 0.499 | E123: =C123*D123 -> 70.8081 | L123: =6.4/0.15 -> 42.66666667 | M123: 43
A124: B4 DB12 | C124: =9*6.4 -> 57.6 | D124: 0.888 | E124: =C124*D124 -> 51.1488 | L124: =1.3/0.15 -> 8.666666667 | M124: 9
A125: St2 RB9 | C125: =33*1.8 -> 59.4 | D125: 0.499 | E125: =C125*D125 -> 29.6406 | L125: =6.4/0.2 -> 32
A126: W2 RB9 | C126: =4*6.4 -> 25.6 | D126: 0.499 | E126: 12.7744
A128: หูช้าง คิดสูง 1.55*2.00 ม.
A129: คอนกรีต | C129: =1.55*2*0.2 | E129: =1.55*2*0.2 -> 0.62 | F129: ลบ.ม.
A130: ไม้แบบ | C130: =1.55*2*2 | E130: =1.55*2*2 -> 6.2 | F130: ตร.ม.
A131: เหล็ก | C131: ม. | D131: นน/ม. | E131: กก.
A132: D2 DB12 | C132: =14*2*2 -> 56 | D132: 0.888 | E132: =C132*D132 -> 49.728 | L132: =2/0.15 -> 13.33333333 | M132: 14
A133: D3 DB12 | C133: =14*2*2 -> 56 | D133: 0.888 | E133: =C133*D133 -> 49.728 | L133: =2/0.15 -> 13.33333333 | M133: 14
A134: D4 RB9 | C134: =14*2*2 -> 56 | D134: 0.499 | E134: =C134*D134 -> 27.944 | L134: =2/0.15 -> 13.33333333 | M134: 14
A135: D5 DB12 | C135: =7*2*2 -> 28 | D135: 0.888 | E135: 24.864 | L135: =2/0.3 -> 6.666666667 | M135: 7
A138: Cap beam คิดสูง 0.75*0.70 ม.ยาว 6.40
A139: คอนกรีต | C139: =0.75*0.7*6.4 | E139: =0.75*0.7*6.4 -> 3.36 | F139: ลบ.ม.
A140: ไม้แบบ | C140: =2.15*6.4 | E140: =2.15*6.4 -> 13.76 | F140: ตร.ม.
A141: เหล็ก | C141: ม. | D141: นน/ม. | E141: กก.
A142: B1 DB25 | C142: =8*6.4 -> 51.2 | D142: 3.583 | E142: =C142*D142 -> 183.4496
A143: B2 DB12 | C143: =6.4*2 -> 12.8 | D143: 0.888 | E143: =C143*D143 -> 11.3664
A144: B6 DB25 | C144: =6.4*1 -> 6.4 | D144: 3.583 | E144: =C144*D144 -> 22.9312
A145: B7 DB16 | C145: =6.4*2 -> 12.8 | D145: 1.578 | E145: 20.1984
A146: ST1DB12 | C146: =2.9*33 -> 95.7 | D146: 0.888 | E146: 84.9816 | L146: =6.4/0.2 -> 32 | M146: 33
A147: ST5DB12 | C147: =1.1*33 -> 36.3 | D147: 0.888 | E147: 32.2344 | L147: =6.4/0.2 -> 32 | M147: 33
A148: ST6DB12 | C148: =43*2.25 -> 96.75 | D148: 0.888 | E148: 85.914 | L148: =6.4/0.15 -> 42.66666667 | M148: 43
A150: สรุปตอม่อตับริม
A151: =A139 -> คอนกรีต | C151: =E139+E129+E120+E113+E106 -> 8.155
A152: =A140 -> ไม้แบบ | C152: =E140+E130+E121+E114+E107 -> 54.05
A153: =A141 -> เหล็ก
A154: =A109 -> RB9 | C154: =E109+E123+E125+E126+E134 -> 161.1271
A155: =A116 -> DB12 | C155: =E116+E124+E132+E133+E135+E143+E146+E147+E148 -> 397.9492
A156: DB16 | C156: =E145 -> 20.1984
A157: DB20
A158: DB25 | C158: =E110+E117+E142+E144 -> 345.0888
A161: ปริมาณงานสะพาน
A162: ตอม่อตับกลาง
A163: คานขวาง
A164: คอนกรีต | C164: =0.4*0.4*5 | E164: =0.4*0.4*5 -> 0.8 | F164: ลบ.ม.
A165: ไม้แบบ | C165: = 1.2*5 | E165: =1.29*5 -> 6.45 | F165: ตร.ม.
A166: เหล็ก | C166: ม. | D166: นน/ม. | E166: กก.
A167: RB9 | C167: =25*1.6 -> 40 | D167: 0.499 | E167: =C167*D167 -> 19.96 | L167: =5/0.2 -> 25
A168: DB25 | C168: =5*4 -> 20 | D168: 3.853 | E168: =C168*D168 -> 77.06
A170: ตอม่อ คิดสูง 2.00 ม.
A171: คอนกรีต | C171: =0.4*0.4*2 | E171: =0.4*0.4*2 -> 0.32 | F171: ลบ.ม.
A172: ไม้แบบ | C172: = 1.60*2 | E172: =1.6*2 -> 3.2 | F172: ตร.ม.
A173: เหล็ก | C173: ม. | D173: นน/ม. | E173: กก.
A174: DB12 | C174: =10*1.6 -> 16 | D174: 0.499 | E174: =C174*D174 -> 7.984 | L174: =2/0.2 -> 10
A175: DB25 | C175: =8*2 -> 16 | D175: 3.853 | E175: =C175*D175 -> 61.648
A177: ผนัง คิดสูง 1.3 ม.
A178: คอนกรีต | C178: =0.25*1.3*9.4 | E178: =0.25*1.3*9.4*0 -> 0 | F178: ลบ.ม.
A179: ไม้แบบ | C179: = 2.60*9.4 | E179: =2.6*9.4*0 -> 0 | F179: ตร.ม.
A180: เหล็ก | C180: ม. | D180: นน/ม. | E180: กก.
A181: w1 RB9 | C181: =43*3.3 -> 141.9 | D181: 0.499 | E181: =C181*D181*0 -> 0 | L181: =6.4/0.15 -> 42.66666667 | M181: 43
A182: B4 DB12 | C182: =9*6.4 -> 57.6 | D182: 0.888 | E182: =C182*D182*0 -> 0 | L182: =1.3/0.15 -> 8.666666667 | M182: 9
A183: St2 RB9 | C183: =33*1.8 -> 59.4 | D183: 0.499 | E183: =C183*D183*0 -> 0 | L183: =6.4/0.2 -> 32
A184: W2 RB9 | C184: =4*6.4 -> 25.6 | D184: 0.499 | E184: =C184*D184*0 -> 0
A186: หูช้าง คิดสูง 1.55*2.00 ม.
A187: คอนกรีต | C187: =1.55*2*0.2 | E187: =1.55*2*0.2*0 -> 0 | F187: ลบ.ม.
A188: ไม้แบบ | C188: =1.55*2*2 | E188: =1.55*2*2*0 -> 0 | F188: ตร.ม.
A189: เหล็ก | C189: ม. | D189: นน/ม. | E189: กก.
A190: D2 DB12 | C190: =14*2*2 -> 56 | D190: 0.888 | E190: =C190*D190*0 -> 0 | L190: =2/0.15 -> 13.33333333 | M190: 14
A191: D3 DB12 | C191: =14*2*2 -> 56 | D191: 0.888 | E191: =C191*D191*0 -> 0 | L191: =2/0.15 -> 13.33333333 | M191: 14
A192: D4 RB9 | C192: =14*2*2 -> 56 | D192: 0.499 | E192: =C192*D192*0 -> 0 | L192: =2/0.15 -> 13.33333333 | M192: 14
A193: D5 DB12 | C193: =7*2*2 -> 28 | D193: 0.888 | E193: =C193*D193*0 -> 0 | L193: =2/0.3 -> 6.666666667 | M193: 7
A196: Cap beam คิดสูง 0.60*0.70 ม.ยาว 6.40
A197: คอนกรีต | C197: =0.60*0.7*6.4 | E197: =0.6*0.7*6.4 -> 2.688 | F197: ลบ.ม.
A198: ไม้แบบ | C198: =2.15*6.4 | E198: =2.15*6.4 -> 13.76 | F198: ตร.ม.
A199: เหล็ก | C199: ม. | D199: นน/ม. | E199: กก.
A200: B1 DB25 | C200: =8*6.4 -> 51.2 | D200: 3.583 | E200: =C200*D200 -> 183.4496
A201: B2 DB12 | C201: =6.4*2 -> 12.8 | D201: 0.888 | E201: =C201*D201 -> 11.3664
A202: B4 DB25 | C202: =6.4*2 -> 12.8 | D202: 3.583 | E202: =C202*D202 -> 45.8624
A203: B5 DB12 | C203: =6.4*4 -> 25.6 | D203: 0.888 | E203: =C203*D203 -> 22.7328
A204: ST1DB12 | C204: =2.6*33 -> 85.8 | D204: 0.888 | E204: 76.1904 | L204: =6.4/0.2 -> 32 | M204: 33
A205: ST3DB12 | C205: =1*33 -> 33 | D205: 0.499 | E205: 16.467 | L205: =6.4/0.2 -> 32 | M205: 33
A207: สรุปตอม่อตับริม
A208: =A197 -> คอนกรีต | C208: =E197+E187+E178+E171+E164 -> 3.808
A209: =A198 -> ไม้แบบ | C209: =E198+E188+E179+E172+E165 -> 23.41
A210: =A199 -> เหล็ก
A211: =A167 -> RB9 | C211: =E167+E181+E183+E184+E192 -> 19.96
A212: =A174 -> DB12 | C212: =E174+E201+E203+E204+E205 -> 134.7406
A213: DB16 | C213: 0
A214: DB20
A215: DB25 | C215: =E200+E202+E175+E168 -> 368.02

Sheet สรุปวัสดุและค่าดำเนินการ (hidden)
A1: แบบสรุปข้อมูลค่าวัสดุและค่าดำเนินการ
A2: งานก่อสร้างทาง สะพานและท่อลอดเหลี่ยม
A3: =BOQ!A2 -> โครงการก่อสร้างสะพานข้ามคลองหล ม.18 สายทาง หมู่ที่ 18 ตำบลบ้านส้อง อำเภอเวียงสระ จังหวัดสุราษฏร์ธานี
A4: =BOQ!A3 -> ปริมาณงาน ผิวจราจรสะพานชนิดไม่มีทางเท้า กว้าง 5.00 เมตร สะพานยาว 10.00 เมตร หนา เมตร หรือพื้นที่ไม่น้อยกว่า 50.00 ตารางเมตร
A5: =ข้อมูลโครงการ!E6&" "&ข้อมูลโครงการ!L6&" "&ข้อมูลโครงการ!N6&" "&"ราคาน้ำมันโซล่า ณ อำเภอเมือง "&FIXED(ข้อมูลโครงการ!L5-0.5,2)&" - "&FIXED(ข้อมูลโครงการ!L5-0.5,0)&".99 "&ข้อมูลโครงการ!N5 -> อยู่ในท้องที่จังหวัด จังหวัดอื่นๆ เขตฝนปกติ ราคาน้ำมันโซล่า ณ อำเภอเมือง 28.00 - 28.99 บาท
A6: วัสดุก่อสร้างทั่วไปขนส่งโดย รถบรรทุก 10 ล้อ
A7: วัสดุเหล็กเส้น , ปูนซีเมนต์ , ยางแอสฟัลท์ ขนส่งโดยรถบรรทุก 10 ล้อ + ลากพ่วง
A8: อัตราดอกเบี้ยเงินกู้ ( MLR ) | D8: =ข้อมูลโครงการ!P74 -> 6 | E8: % | F8: เงินล่วงหน้าจ่าย | H8: 0 | I8: %
A9: เงินประกันผลงานหัก | D9: 0 | E9: % | F9: ภาษีมูลค่าเพิ่ม | H9: 7 | I9: %
B10: รายการ | G10: ค่า | H10: ระยะ | I10: ค่า | J10: ค่าขน | K10: ค่าตัด/ | L10: รวม
A11: ที่ | F11: หน่วย | G11: วัสดุ | H11: ขนส่ง | I11: ขนส่ง | J11: ขึ้นลง | K11: ดัดเหล็ก | M11: ขนส่งด้วยรถ | N11: แหล่งวัสดุ
G12: (บาท) | H12: (กม.) | I12: (บาท) | J12: (บาท) | K12: (บาท) | L12: (บาท)
A13: 1 | B13: =ข้อมูลวัสดุ!B7 -> เหล็กเส้นกลม RB 6 | F13: =ข้อมูลวัสดุ!C7 -> บ./ตัน | G13: =ข้อมูลวัสดุ!D7 -> 20338.32 | H13: =ระยะทางและค่าขนส่ง!AB6 -> 76 | I13: =ระยะทางและค่าขนส่ง!AE6 -> 114.91 | J13: =ข้อมูลค่าแรงงาน!E47 -> 80 | K13: =ข้อมูลค่าแรงงาน!F37 -> 4100 | L13: =ROUND(G13+I13+J13+K13,2) -> 24633.23 | M13: =ข้อมูลวัสดุ!L7 -> รถ 10 ล้อ + ลากพ่วง | N13: =ข้อมูลวัสดุ!N7 -> ราคาพานิชย์จังหวัดสุราษฏร์ธานี
A14: 2 | B14: =ข้อมูลวัสดุ!B8 -> เหล็กเส้นกลม RB 9 | F14: =ข้อมูลวัสดุ!C8 -> บ./ตัน | G14: =ข้อมูลวัสดุ!D8 -> 20460.68 | H14: =ระยะทางและค่าขนส่ง!AB7 -> 76 | I14: =ระยะทางและค่าขนส่ง!AE7 -> 114.91 | J14: =J13 -> 80 | K14: =ข้อมูลค่าแรงงาน!F38 -> 3300 | L14: =ROUND(G14+I14+J14+K14,2) -> 23955.59 | M14: =ข้อมูลวัสดุ!L8 -> รถ 10 ล้อ + ลากพ่วง | N14: =ข้อมูลวัสดุ!N8 -> ราคาพานิชย์จังหวัดสุราษฏร์ธานี
A15: 3 | B15: =ข้อมูลวัสดุ!B9 -> เหล็กข้ออ้อย DB 12 SD40 | F15: =ข้อมูลวัสดุ!C9 -> บ./ตัน | G15: =ข้อมูลวัสดุ!D9 -> 19897.2 | H15: =ระยะทางและค่าขนส่ง!AB8 -> 76 | I15: =ระยะทางและค่าขนส่ง!AE8 -> 114.91 | J15: =J14 -> 80 | K15: 3300 | L15: 23392.11 | M15: =ข้อมูลวัสดุ!L9 -> รถ 10 ล้อ + ลากพ่วง | N15: =ข้อมูลวัสดุ!N9 -> ราคาพานิชย์จังหวัดสุราษฏร์ธานี
A16: 4 | B16: =ข้อมูลวัสดุ!B10 -> เหล็กข้ออ้อย DB 16 SD40 | F16: =ข้อมูลวัสดุ!C10 -> บ./ตัน | G16: =ข้อมูลวัสดุ!D10 -> 19570.09 | H16: =ระยะทางและค่าขนส่ง!AB9 -> 76 | I16: =ระยะทางและค่าขนส่ง!AE9 -> 114.91 | J16: 80 | K16: 3300 | L16: 23065 | M16: =ข้อมูลวัสดุ!L10 -> รถ 10 ล้อ + ลากพ่วง | N16: =ข้อมูลวัสดุ!N10 -> ราคาพานิชย์จังหวัดสุราษฏร์ธานี
A17: 5 | B17: =ข้อมูลวัสดุ!B11 -> เหล็กข้ออ้อย DB 20 SD40 | F17: =ข้อมูลวัสดุ!C11 -> บ./ตัน | G17: =ข้อมูลวัสดุ!D11 -> 19570.09 | H17: =ระยะทางและค่าขนส่ง!AB10 -> 76 | I17: =ระยะทางและค่าขนส่ง!AE10 -> 114.91 | J17: 80 | K17: =ข้อมูลค่าแรงงาน!F39 -> 2900 | L17: 22665 | M17: =ข้อมูลวัสดุ!L11 -> รถ 10 ล้อ + ลากพ่วง | N17: =ข้อมูลวัสดุ!N11 -> ราคาพานิชย์จังหวัดสุราษฏร์ธานี
A18: 6 | B18: =ข้อมูลวัสดุ!B12 -> เหล็กข้ออ้อย DB 25 SD40 | F18: =ข้อมูลวัสดุ!C12 -> บ./ตัน | G18: =ข้อมูลวัสดุ!D12 -> 19570.09 | H18: =ระยะทางและค่าขนส่ง!AB11 -> 76 | I18: =ระยะทางและค่าขนส่ง!AE11 -> 114.91 | J18: 80 | K18: =K16 -> 3300 | L18: 23065 | M18: =ข้อมูลวัสดุ!L12 -> รถ 10 ล้อ + ลากพ่วง | N18: =ข้อมูลวัสดุ!N12 -> ราคาพานิชย์จังหวัดสุราษฏร์ธานี
A19: 7 | B19: =ข้อมูลวัสดุ!B13 -> เหล็กข้ออ้อย DB 28 SD40 | F19: =ข้อมูลวัสดุ!C13 -> บ./ตัน | G19: =ข้อมูลวัสดุ!D13 -> 19570.09 | H19: =ระยะทางและค่าขนส่ง!AB12 -> 76 | I19: =ระยะทางและค่าขนส่ง!AE12 -> 114.91 | J19: 80 | K19: 3300 | L19: 23065 | M19: =ข้อมูลวัสดุ!L13 -> รถ 10 ล้อ + ลากพ่วง | N19: =ข้อมูลวัสดุ!N13 -> ราคาพานิชย์จังหวัดสุราษฏร์ธานี
A20: 10 | B20: =ข้อมูลวัสดุ!B14 -> เหล็ก Wire Mesh Dia 4 มม. @ 0.15 x 0.30 ม. | F20: =ข้อมูลวัสดุ!C14 -> บ./ตร.ม. | G20: =ข้อมูลวัสดุ!D14 -> 0 | H20: 0 | I20: 0 | J20: 0 | K20: 5 | L20: 5 | M20: 0 | N20: =ข้อมูลวัสดุ!N14 -> ราคาร้านวัสดุในจังหวัดสุราษฏร์ธานี(รวมค่าขนส่ง)
A21: 11 | B21: =ข้อมูลวัสดุ!B15 -> ลวดผูกเหล็ก | F21: =ข้อมูลวัสดุ!C15 -> บ./กก. | G21: =ข้อมูลวัสดุ!D15 -> 31.19 | H21: 0 | I21: 0 | J21: 0 | K21: 0 | L21: 31.19 | M21: 0 | N21: =ข้อมูลวัสดุ!N15 -> ราคาพานิชย์จังหวัดสุราษฏร์ธานี
A22: 12 | B22: =ข้อมูลวัสดุ!B16 -> ปูนซีเมนต์ปอร์ตแลนด์ | F22: =ข้อมูลวัสดุ!C16 -> บ./ตัน | G22: =ข้อมูลวัสดุ!D16 -> 2766.36 | H22: =ระยะทางและค่าขนส่ง!AB13 -> 76 | I22: =ระยะทางและค่าขนส่ง!AE13 -> 114.91 | J22: =ข้อมูลค่าแรงงาน!E48*0 -> 0 | K22: 0 | L22: 2881.27 | M22: =ข้อมูลวัสดุ!L16 -> รถ 10 ล้อ + ลากพ่วง | N22: =ข้อมูลวัสดุ!N16 -> ราคาพานิชย์จังหวัดสุราษฏร์ธานี
A23: 13 | B23: =ข้อมูลวัสดุ!B17 -> หินผสมคอนกรีต | F23: =ข้อมูลวัสดุ!C17 -> บ./ลบ.ม. | G23: =ข้อมูลวัสดุ!D17 -> 350 | H23: =ระยะทางและค่าขนส่ง!AB14 -> 65 | I23: =ระยะทางและค่าขนส่ง!AE14 -> 222.07 | J23: 0 | K23: 0 | L23: 572.07 | M23: =ข้อมูลวัสดุ!L17 -> รถ 10 ล้อ | N23: =ข้อมูลวัสดุ!N17 -> โรงโม่หินผาทอง อ.กาญจนดิษฐ จ.สุราษ
A24: 14 | B24: =ข้อมูลวัสดุ!B18 -> หินคลุก | F24: =ข้อมูลวัสดุ!C18 -> บ./ลบ.ม. | G24: =ข้อมูลวัสดุ!D18 -> 280 | H24: =ระยะทางและค่าขนส่ง!AB15 -> 65 | I24: =ระยะทางและค่าขนส่ง!AE15 -> 222.07 | J24: 0 | K24: 0 | L24: 502.07 | M24: =ข้อมูลวัสดุ!L18 -> รถ 10 ล้อ | N24: =ข้อมูลวัสดุ!N18 -> โรงโม่หินผาทอง อ.กาญจนดิษฐ จ.สุราษ
A25: 15 | B25: =ข้อมูลวัสดุ!B19 -> ทรายหยาบ | F25: =ข้อมูลวัสดุ!C19 -> บ./ลบ.ม. | G25: =ข้อมูลวัสดุ!D19 -> 350 | H25: =ระยะทางและค่าขนส่ง!AB16 -> 60 | I25: =ระยะทางและค่าขนส่ง!AE16 -> 205.14 | J25: 0 | K25: 0 | L25: 555.14 | M25: =ข้อมูลวัสดุ!L19 -> รถ 10 ล้อ | N25: =ข้อมูลวัสดุ!N19 -> ท่าทรายโซนริมแม่น้ำตาปี ต.ทุ่งหลวง อ.เวียงสระ
A26: 16 | B26: =ข้อมูลวัสดุ!B20 -> ลูกรัง | F26: =ข้อมูลวัสดุ!C20 -> บ./ลบ.ม. | G26: =ข้อมูลวัสดุ!D20 -> 0 | H26: =ระยะทางและค่าขนส่ง!AB17 -> 0 | I26: =ระยะทางและค่าขนส่ง!AE17 -> 0 | J26: 0 | K26: 0 | L26: 0 | M26: =ข้อมูลวัสดุ!L20 -> รถ 10 ล้อ
A27: 17 | B27: =ข้อมูลวัสดุ!B21 -> ทรายถม | F27: =ข้อมูลวัสดุ!C21 -> บ./ลบ.ม. | G27: =ข้อมูลวัสดุ!D21 -> 250 | H27: =ระยะทางและค่าขนส่ง!AB18 -> 60 | I27: =ระยะทางและค่าขนส่ง!AE18 -> 205.14 | J27: 0 | K27: 0 | L27: 455.14 | M27: =ข้อมูลวัสดุ!L21 -> รถ 10 ล้อ | N27: =ข้อมูลวัสดุ!N21 -> ท่าทรายโซนริมแม่น้ำตาปี ต.ทุ่งหลวง อ.เวียงสระ
A28: 18 | B28: =ข้อมูลวัสดุ!B22 -> ดินถม | F28: =ข้อมูลวัสดุ!C22 -> บ./ลบ.ม. | G28: =ข้อมูลวัสดุ!D22 -> 0 | H28: =ระยะทางและค่าขนส่ง!AB19 -> 0 | I28: =ระยะทางและค่าขนส่ง!AE19 -> 0 | J28: 0 | K28: 0 | L28: 0 | M28: =ข้อมูลวัสดุ!L22 -> รถ 10 ล้อ | N28: =ข้อมูลวัสดุ!N22 -> อ.เวียงสระ
A29: 19 | B29: =ข้อมูลวัสดุ!B23 -> ท่อกลมขนาด ø 0.30 ม. | F29: =ข้อมูลวัสดุ!C23 -> ท่อน | G29: =ข้อมูลวัสดุ!D23 -> 350.47 | H29: =ระยะทางและค่าขนส่ง!AB20 -> 60 | I29: 0 | J29: 0 | K29: 0 | L29: 0 | M29: =ข้อมูลวัสดุ!L23 -> รถ 10 ล้อ | N29: =ข้อมูลวัสดุ!N23 -> ราคาพานิชย์จังหวัดสุราษฏร์ธานี
A30: 20 | B30: =ข้อมูลวัสดุ!B24 -> ท่อกลมขนาด ø 0.40 ม. | F30: =ข้อมูลวัสดุ!C24 -> ท่อน | G30: =ข้อมูลวัสดุ!D24 -> 455.6 | H30: =ระยะทางและค่าขนส่ง!AB21 -> 60 | I30: 0 | J30: 0 | K30: 0 | L30: 0 | M30: =ข้อมูลวัสดุ!L24 -> รถ 10 ล้อ | N30: =ข้อมูลวัสดุ!N24 -> ราคาพานิชย์จังหวัดสุราษฏร์ธานี
A31: 21 | B31: =ข้อมูลวัสดุ!B25 -> ท่อกลมขนาด ø 0.60 ม. | F31: =ข้อมูลวัสดุ!C25 -> ท่อน | G31: =ข้อมูลวัสดุ!D25 -> 602.81 | H31: =ระยะทางและค่าขนส่ง!AB22 -> 60 | I31: 0 | J31: 0 | K31: 0 | L31: 0 | M31: =ข้อมูลวัสดุ!L25 -> รถ 10 ล้อ | N31: =ข้อมูลวัสดุ!N25 -> ราคาพานิชย์จังหวัดสุราษฏร์ธานี
A32: 22 | B32: =ข้อมูลวัสดุ!B26 -> ท่อกลมขนาด ø 0.80 ม. | F32: =ข้อมูลวัสดุ!C26 -> ท่อน | G32: =ข้อมูลวัสดุ!D26 -> 1200.91 | H32: =ระยะทางและค่าขนส่ง!AB23 -> 60 | I32: 0 | J32: 0 | K32: 0 | L32: 0 | M32: =ข้อมูลวัสดุ!L26 -> รถ 10 ล้อ | N32: =ข้อมูลวัสดุ!N26 -> ราคาพานิชย์จังหวัดสุราษฏร์ธานี
A33: 23 | B33: =ข้อมูลวัสดุ!B27 -> ท่อกลมขนาด ø 1.00 ม. | F33: =ข้อมูลวัสดุ!C27 -> ท่อน | G33: =ข้อมูลวัสดุ!D27 -> 1785.05 | H33: =ระยะทางและค่าขนส่ง!AB24 -> 60 | I33: 0 | J33: 0 | K33: 0 | L33: 0 | M33: =ข้อมูลวัสดุ!L27 -> รถ 10 ล้อ | N33: =ข้อมูลวัสดุ!N27 -> ราคาพานิชย์จังหวัดสุราษฏร์ธานี
A34: 24 | B34: =ข้อมูลวัสดุ!B28 -> ท่อกลมขนาด ø 1.20 ม. | F34: =ข้อมูลวัสดุ!C28 -> ท่อน | G34: =ข้อมูลวัสดุ!D28 -> 2710.28 | H34: =ระยะทางและค่าขนส่ง!AB25 -> 60 | I34: 0 | J34: 0 | K34: 0 | L34: 0 | M34: =ข้อมูลวัสดุ!L28 -> รถ 10 ล้อ | N34: =ข้อมูลวัสดุ!N28 -> ราคาพานิชย์จังหวัดสุราษฏร์ธานี
A35: 25 | B35: =ข้อมูลวัสดุ!B29 -> ท่อกลมขนาด ø 1.50 ม. | F35: =ข้อมูลวัสดุ!C29 -> ท่อน | G35: =ข้อมูลวัสดุ!D29 -> 4485.98 | H35: =ระยะทางและค่าขนส่ง!AB26 -> 60 | I35: 0 | J35: 0 | K35: 0 | L35: 0 | M35: =ข้อมูลวัสดุ!L29 -> รถ 10 ล้อ | N35: =ข้อมูลวัสดุ!N29 -> ราคาพานิชย์จังหวัดสุราษฏร์ธานี
A36: 26 | B36: =ข้อมูลวัสดุ!B30 -> เสาเข็มสี่เหลี่ยมตัน 0.40x0.40x21 ม. | F36: =ข้อมูลวัสดุ!C30 -> ท่อน | G36: =ข้อมูลวัสดุ!D30 -> 21396.59 | H36: 94 | I36: 141.98 | J36: 3000 | L36: 24538.57 | M36: =ข้อมูลวัสดุ!L30 -> รถ 10 ล้อ + ลากพ่วง | N36: ราคาพานิชย์จังหวัดนครศรีธรรมราช
A37: 27 | B37: =ข้อมูลวัสดุ!B31 -> ไม้กระบากหรือไม้ยางหรือเทียบเท่า ขนาด 1" x 6" | F37: =ข้อมูลวัสดุ!C31 -> ลบ.ฟ. | G37: =ข้อมูลวัสดุ!D31 -> 514 | H37: 0 | I37: 0 | J37: 0 | K37: 0 | L37: 514 | M37: 0 | N37: =ข้อมูลวัสดุ!N31 -> ราคาพานิชย์จังหวัดสุราษฏร์ธานี
A38: 28 | B38: =ข้อมูลวัสดุ!B32 -> ไม้อัดยาง หนา 4 มม. | F38: =ข้อมูลวัสดุ!C32 -> แผ่น | G38: =ข้อมูลวัสดุ!D32 -> 272.69 | H38: 0 | I38: 0 | J38: 0 | K38: 0 | L38: 272.69 | M38: 0 | N38: =ข้อมูลวัสดุ!N32 -> ราคาพานิชย์จังหวัดกระบี่
A39: 29 | B39: =ข้อมูลวัสดุ!B33 -> ไม้คร่าว 1 1/2" x 3" | F39: =ข้อมูลวัสดุ!C33 -> ลบ.ฟ. | G39: =ข้อมูลวัสดุ!D33 -> 467.29 | H39: 0 | I39: 0 | J39: 0 | K39: 0 | L39: 467.29 | M39: 0 | N39: =ข้อมูลวัสดุ!N33 -> ราคาพานิชย์จังหวัดสุราษฏร์ธานี
A40: 30 | B40: =ข้อมูลวัสดุ!B34 -> ไม้ค้ำยัน 1 1/2" x 3" x 0.30 ม. | F40: =ข้อมูลวัสดุ!C34 -> ต้น | G40: =ข้อมูลวัสดุ!D34 -> 20 | H40: 0 | I40: 0 | J40: 0 | K40: 0 | L40: 20 | M40: 0 | N40: =ข้อมูลวัสดุ!N34 -> ราคาพานิชย์จังหวัดกระบี่
A41: 31 | B41: =ข้อมูลวัสดุ!B35 -> ไม้ค้ำยัน 1 1/2" x 3" x 0.50 ม. | F41: =ข้อมูลวัสดุ!C35 -> ต้น | G41: =ข้อมูลวัสดุ!D35 -> 25 | H41: 0 | I41: 0 | J41: 0 | K41: 0 | L41: 25 | M41: 0 | N41: =ข้อมูลวัสดุ!N35 -> ราคาพานิชย์จังหวัดสุราษฏร์ธานี
A42: 32 | B42: =ข้อมูลวัสดุ!B36 -> ตะปู | F42: =ข้อมูลวัสดุ!C36 -> กก. | G42: =ข้อมูลวัสดุ!D36 -> 37.38 | H42: 0 | I42: 0 | J42: 0 | K42: 0 | L42: 37.38 | M42: 0 | N42: =ข้อมูลวัสดุ!N36 -> ราคาพานิชย์จังหวัดกระบี่
A43: 33 | B43: =ข้อมูลวัสดุ!B37 -> แผ่นโฟม | F43: =ข้อมูลวัสดุ!C37 -> แผ่น | G43: =ข้อมูลวัสดุ!D37 -> 25 | H43: 0 | I43: 0 | J43: 0 | K43: 0 | L43: 25 | M43: 0 | N43: =ข้อมูลวัสดุ!N37 -> ราคาร้านวัสดุในจังหวัดสุราษฏร์ธานี(รวมค่าขนส่ง)
A44: 34 | B44: =ข้อมูลวัสดุ!B38 -> ท่อ พีวีซี | F44: =ข้อมูลวัสดุ!C38 -> ท่อน | G44: =ข้อมูลวัสดุ!D38 -> 57 | H44: 0 | I44: 0 | J44: 0 | K44: 0 | L44: 57 | M44: 0 | N44: =ข้อมูลวัสดุ!N38 -> ราคาพานิชย์จังหวัดกระบี่
B46: หมายเหตุ | C46: - ค่าตัด/ดัดเหล็ก ใช้ตามบัญชีค่าแรงงาน/ดำเนินการสำหรับถอดแบบคำนวณราคากลางงานก่อสร้าง กรมบัญชีกลาง กระทรวงการคลัง
C47: - ค่าขนขึ้น-ลงเหล็ก ใช้ตามหลักเกณฑ์การคำนวณราคากลางงานก่อสร้างทาง สะพาน และท่อเหลี่ยม กรมบัญชีกลาง กระทรวงการคลัง หน้า 80
C48: - เปอร์เซนต์ลวดผูกเหล็กใช้ตามหลักเกณฑ์การคำนวณราคากลางงานก่อสร้างทาง สะพาน และท่อเหลี่ยม กรมบัญชีกลาง กระทรวงการคลัง
C49: และจะแสดงไว้ในราคาต่อหน่วยของงานส่วนที่มีการเสริมเหล็ก

Sheet ระยะทางและค่าขนส่ง (hidden)
A1: การคำนวณระยะทางและค่าขนส่งวัสดุก่อสร้าง
A2: ข้อมูลวัสดุ | B2: หน่วย | C2: ระยะทางขนส่ง (กม.) | I2: ระยะขนส่ง | J2: รถบรรทุก 6 ล้อ | P2: รถบรรทุก 10 ล้อ | V2: รถบรรทุก 10 ล้อ + ลากพ่วง | AB2: รวมระยะ | AC2: ตัวแปร | AD2: ค่าขนส่ง | AE2: รวมค่าขนส่ง
C3: ผิวทางลาดยาง/คอนกรีต | F3: ผิวทางลูกรัง | I3: L | J3: ผิวทางลาดยาง/คอนกรีต | M3: ผิวทางลูกรัง | P3: ผิวทางลาดยาง/คอนกรีต | S3: ผิวทางลูกรัง | V3: ผิวทางลาดยาง/คอนกรีต | Y3: ผิวทางลูกรัง | AB3: ทาง | AC3: ค่าขนส่ง | AD3: จาก | AE3: เท่ากับ
C4: ที่ราบ | D4: ลูกเนิน | E4: ภูเขา | F4: ที่ราบ | G4: ลูกเนิน | H4: ภูเขา | I4: (กม.) | J4: ที่ราบ | K4: ลูกเนิน | L4: ภูเขา | M4: ที่ราบ | N4: ลูกเนิน | O4: ภูเขา | P4: ที่ราบ | Q4: ลูกเนิน | R4: ภูเขา | S4: ที่ราบ | T4: ลูกเนิน | U4: ภูเขา | V4: ที่ราบ | W4: ลูกเนิน | X4: ภูเขา | Y4: ที่ราบ | Z4: ลูกเนิน | AA4: ภูเขา | AB4: D | AC4: F=D/L | AD4: ตาราง | AE4: ตัวแปรคูณ
C5: (กม.) | D5: (กม.) | E5: (กม.) | F5: (กม.) | G5: (กม.) | H5: (กม.) | I5: ตัวแปร >> | J5: 1 | K5: 2.12 | L5: 2.56 | M5: 1.24 | N5: 2.36 | O5: 2.8 | P5: 1 | Q5: 1.95 | R5: 2.52 | S5: 1.23 | T5: 2.18 | U5: 2.75 | V5: 1 | W5: 2.13 | X5: 0 | Y5: 1.2 | Z5: 2.33 | AA5: 0 | AB5: (กม.) | AD5: ค่าขนส่ง | AE5: ด้วยค่าขนส่ง
A6: =ข้อมูลวัสดุ!B7 -> เหล็กเส้นกลม RB 6 | B6: =ข้อมูลวัสดุ!C7 -> บ./ตัน | C6: =ข้อมูลวัสดุ!E7 -> 76 | D6: =ข้อมูลวัสดุ!F7 -> 0 | E6: =ข้อมูลวัสดุ!G7 -> 0 | F6: =ข้อมูลวัสดุ!H7 -> 0 | G6: =ข้อมูลวัสดุ!I7 -> 0 | H6: =ข้อมูลวัสดุ!J7 -> 0 | I6: =SUM(C6:H6) -> 76 | J6: =ข้อมูลวัสดุ!S7 -> 0 | K6: =ข้อมูลวัสดุ!T7 -> 0 | L6: =ข้อมูลวัสดุ!U7 -> 0 | M6: =ข้อมูลวัสดุ!V7 -> 0 | N6: =ข้อมูลวัสดุ!W7 -> 0 | O6: =ข้อมูลวัสดุ!X7 -> 0 | P6: =ข้อมูลวัสดุ!Y7 -> 0 | Q6: =ข้อมูลวัสดุ!Z7 -> 0 | R6: =ข้อมูลวัสดุ!AA7 -> 0 | S6: =ข้อมูลวัสดุ!AB7 -> 0 | T6: =ข้อมูลวัสดุ!AC7 -> 0 | U6: =ข้อมูลวัสดุ!AD7 -> 0 | V6: =ข้อมูลวัสดุ!AE7 -> 76 | W6: =ข้อมูลวัสดุ!AF7 -> 0 | X6: =ข้อมูลวัสดุ!AG7 -> 0 | Y6: =ข้อมูลวัสดุ!AH7 -> 0 | Z6: =ข้อมูลวัสดุ!AI7 -> 0 | AA6: =ข้อมูลวัสดุ!AJ7 -> 0 | AB6: =ข้อมูลวัสดุ!AK7 -> 76 | AC6: =ข้อมูลวัสดุ!AL7 -> 1 | AD6: =ข้อมูลวัสดุ!AM7 -> 114.91 | AE6: =ข้อมูลวัสดุ!AN7 -> 114.91
A7: =ข้อมูลวัสดุ!B8 -> เหล็กเส้นกลม RB 9 | B7: =ข้อมูลวัสดุ!C8 -> บ./ตัน | C7: =ข้อมูลวัสดุ!E8 -> 76 | D7: =ข้อมูลวัสดุ!F8 -> 0 | E7: =ข้อมูลวัสดุ!G8 -> 0 | F7: =ข้อมูลวัสดุ!H8 -> 0 | G7: =ข้อมูลวัสดุ!I8 -> 0 | H7: =ข้อมูลวัสดุ!J8 -> 0 | I7: =SUM(C7:H7) -> 76 | J7: =ข้อมูลวัสดุ!S8 -> 0 | K7: =ข้อมูลวัสดุ!T8 -> 0 | L7: =ข้อมูลวัสดุ!U8 -> 0 | M7: =ข้อมูลวัสดุ!V8 -> 0 | N7: =ข้อมูลวัสดุ!W8 -> 0 | O7: =ข้อมูลวัสดุ!X8 -> 0 | P7: =ข้อมูลวัสดุ!Y8 -> 0 | Q7: =ข้อมูลวัสดุ!Z8 -> 0 | R7: =ข้อมูลวัสดุ!AA8 -> 0 | S7: =ข้อมูลวัสดุ!AB8 -> 0 | T7: =ข้อมูลวัสดุ!AC8 -> 0 | U7: =ข้อมูลวัสดุ!AD8 -> 0 | V7: =ข้อมูลวัสดุ!AE8 -> 76 | W7: =ข้อมูลวัสดุ!AF8 -> 0 | X7: =ข้อมูลวัสดุ!AG8 -> 0 | Y7: =ข้อมูลวัสดุ!AH8 -> 0 | Z7: =ข้อมูลวัสดุ!AI8 -> 0 | AA7: =ข้อมูลวัสดุ!AJ8 -> 0 | AB7: =ข้อมูลวัสดุ!AK8 -> 76 | AC7: =ข้อมูลวัสดุ!AL8 -> 1 | AD7: =ข้อมูลวัสดุ!AM8 -> 114.91 | AE7: =ข้อมูลวัสดุ!AN8 -> 114.91
A8: =ข้อมูลวัสดุ!B9 -> เหล็กข้ออ้อย DB 12 SD40 | B8: =ข้อมูลวัสดุ!C9 -> บ./ตัน | C8: =ข้อมูลวัสดุ!E9 -> 76 | D8: =ข้อมูลวัสดุ!F9 -> 0 | E8: =ข้อมูลวัสดุ!G9 -> 0 | F8: =ข้อมูลวัสดุ!H9 -> 0 | G8: =ข้อมูลวัสดุ!I9 -> 0 | H8: =ข้อมูลวัสดุ!J9 -> 0 | I8: 76 | J8: =ข้อมูลวัสดุ!S9 -> 0 | K8: =ข้อมูลวัสดุ!T9 -> 0 | L8: =ข้อมูลวัสดุ!U9 -> 0 | M8: =ข้อมูลวัสดุ!V9 -> 0 | N8: =ข้อมูลวัสดุ!W9 -> 0 | O8: =ข้อมูลวัสดุ!X9 -> 0 | P8: =ข้อมูลวัสดุ!Y9 -> 0 | Q8: =ข้อมูลวัสดุ!Z9 -> 0 | R8: =ข้อมูลวัสดุ!AA9 -> 0 | S8: =ข้อมูลวัสดุ!AB9 -> 0 | T8: =ข้อมูลวัสดุ!AC9 -> 0 | U8: =ข้อมูลวัสดุ!AD9 -> 0 | V8: =ข้อมูลวัสดุ!AE9 -> 76 | W8: =ข้อมูลวัสดุ!AF9 -> 0 | X8: =ข้อมูลวัสดุ!AG9 -> 0 | Y8: =ข้อมูลวัสดุ!AH9 -> 0 | Z8: =ข้อมูลวัสดุ!AI9 -> 0 | AA8: =ข้อมูลวัสดุ!AJ9 -> 0 | AB8: =ข้อมูลวัสดุ!AK9 -> 76 | AC8: =ข้อมูลวัสดุ!AL9 -> 1 | AD8: =ข้อมูลวัสดุ!AM9 -> 114.91 | AE8: =ข้อมูลวัสดุ!AN9 -> 114.91
A9: =ข้อมูลวัสดุ!B10 -> เหล็กข้ออ้อย DB 16 SD40 | B9: =ข้อมูลวัสดุ!C10 -> บ./ตัน | C9: =ข้อมูลวัสดุ!E10 -> 76 | D9: =ข้อมูลวัสดุ!F10 -> 0 | E9: =ข้อมูลวัสดุ!G10 -> 0 | F9: =ข้อมูลวัสดุ!H10 -> 0 | G9: =ข้อมูลวัสดุ!I10 -> 0 | H9: =ข้อมูลวัสดุ!J10 -> 0 | I9: 76 | J9: =ข้อมูลวัสดุ!S10 -> 0 | K9: =ข้อมูลวัสดุ!T10 -> 0 | L9: =ข้อมูลวัสดุ!U10 -> 0 | M9: =ข้อมูลวัสดุ!V10 -> 0 | N9: =ข้อมูลวัสดุ!W10 -> 0 | O9: =ข้อมูลวัสดุ!X10 -> 0 | P9: =ข้อมูลวัสดุ!Y10 -> 0 | Q9: =ข้อมูลวัสดุ!Z10 -> 0 | R9: =ข้อมูลวัสดุ!AA10 -> 0 | S9: =ข้อมูลวัสดุ!AB10 -> 0 | T9: =ข้อมูลวัสดุ!AC10 -> 0 | U9: =ข้อมูลวัสดุ!AD10 -> 0 | V9: =ข้อมูลวัสดุ!AE10 -> 76 | W9: =ข้อมูลวัสดุ!AF10 -> 0 | X9: =ข้อมูลวัสดุ!AG10 -> 0 | Y9: =ข้อมูลวัสดุ!AH10 -> 0 | Z9: =ข้อมูลวัสดุ!AI10 -> 0 | AA9: =ข้อมูลวัสดุ!AJ10 -> 0 | AB9: =ข้อมูลวัสดุ!AK10 -> 76 | AC9: =ข้อมูลวัสดุ!AL10 -> 1 | AD9: =ข้อมูลวัสดุ!AM10 -> 114.91 | AE9: =ข้อมูลวัสดุ!AN10 -> 114.91
A10: =ข้อมูลวัสดุ!B11 -> เหล็กข้ออ้อย DB 20 SD40 | B10: =ข้อมูลวัสดุ!C11 -> บ./ตัน | C10: =ข้อมูลวัสดุ!E11 -> 76 | D10: =ข้อมูลวัสดุ!F11 -> 0 | E10: =ข้อมูลวัสดุ!G11 -> 0 | F10: =ข้อมูลวัสดุ!H11 -> 0 | G10: =ข้อมูลวัสดุ!I11 -> 0 | H10: =ข้อมูลวัสดุ!J11 -> 0 | I10: 76 | J10: =ข้อมูลวัสดุ!S11 -> 0 | K10: =ข้อมูลวัสดุ!T11 -> 0 | L10: =ข้อมูลวัสดุ!U11 -> 0 | M10: =ข้อมูลวัสดุ!V11 -> 0 | N10: =ข้อมูลวัสดุ!W11 -> 0 | O10: =ข้อมูลวัสดุ!X11 -> 0 | P10: =ข้อมูลวัสดุ!Y11 -> 0 | Q10: =ข้อมูลวัสดุ!Z11 -> 0 | R10: =ข้อมูลวัสดุ!AA11 -> 0 | S10: =ข้อมูลวัสดุ!AB11 -> 0 | T10: =ข้อมูลวัสดุ!AC11 -> 0 | U10: =ข้อมูลวัสดุ!AD11 -> 0 | V10: =ข้อมูลวัสดุ!AE11 -> 76 | W10: =ข้อมูลวัสดุ!AF11 -> 0 | X10: =ข้อมูลวัสดุ!AG11 -> 0 | Y10: =ข้อมูลวัสดุ!AH11 -> 0 | Z10: =ข้อมูลวัสดุ!AI11 -> 0 | AA10: =ข้อมูลวัสดุ!AJ11 -> 0 | AB10: =ข้อมูลวัสดุ!AK11 -> 76 | AC10: =ข้อมูลวัสดุ!AL11 -> 1 | AD10: =ข้อมูลวัสดุ!AM11 -> 114.91 | AE10: =ข้อมูลวัสดุ!AN11 -> 114.91
A11: =ข้อมูลวัสดุ!B12 -> เหล็กข้ออ้อย DB 25 SD40 | B11: =ข้อมูลวัสดุ!C12 -> บ./ตัน | C11: =ข้อมูลวัสดุ!E12 -> 76 | D11: =ข้อมูลวัสดุ!F12 -> 0 | E11: =ข้อมูลวัสดุ!G12 -> 0 | F11: =ข้อมูลวัสดุ!H12 -> 0 | G11: =ข้อมูลวัสดุ!I12 -> 0 | H11: =ข้อมูลวัสดุ!J12 -> 0 | I11: 76 | J11: =ข้อมูลวัสดุ!S12 -> 0 | K11: =ข้อมูลวัสดุ!T12 -> 0 | L11: =ข้อมูลวัสดุ!U12 -> 0 | M11: =ข้อมูลวัสดุ!V12 -> 0 | N11: =ข้อมูลวัสดุ!W12 -> 0 | O11: =ข้อมูลวัสดุ!X12 -> 0 | P11: =ข้อมูลวัสดุ!Y12 -> 0 | Q11: =ข้อมูลวัสดุ!Z12 -> 0 | R11: =ข้อมูลวัสดุ!AA12 -> 0 | S11: =ข้อมูลวัสดุ!AB12 -> 0 | T11: =ข้อมูลวัสดุ!AC12 -> 0 | U11: =ข้อมูลวัสดุ!AD12 -> 0 | V11: =ข้อมูลวัสดุ!AE12 -> 76 | W11: =ข้อมูลวัสดุ!AF12 -> 0 | X11: =ข้อมูลวัสดุ!AG12 -> 0 | Y11: =ข้อมูลวัสดุ!AH12 -> 0 | Z11: =ข้อมูลวัสดุ!AI12 -> 0 | AA11: =ข้อมูลวัสดุ!AJ12 -> 0 | AB11: =ข้อมูลวัสดุ!AK12 -> 76 | AC11: =ข้อมูลวัสดุ!AL12 -> 1 | AD11: =ข้อมูลวัสดุ!AM12 -> 114.91 | AE11: =ข้อมูลวัสดุ!AN12 -> 114.91
A12: =ข้อมูลวัสดุ!B13 -> เหล็กข้ออ้อย DB 28 SD40 | B12: =ข้อมูลวัสดุ!C13 -> บ./ตัน | C12: =ข้อมูลวัสดุ!E13 -> 76 | D12: =ข้อมูลวัสดุ!F13 -> 0 | E12: =ข้อมูลวัสดุ!G13 -> 0 | F12: =ข้อมูลวัสดุ!H13 -> 0 | G12: =ข้อมูลวัสดุ!I13 -> 0 | H12: =ข้อมูลวัสดุ!J13 -> 0 | I12: 76 | J12: =ข้อมูลวัสดุ!S13 -> 0 | K12: =ข้อมูลวัสดุ!T13 -> 0 | L12: =ข้อมูลวัสดุ!U13 -> 0 | M12: =ข้อมูลวัสดุ!V13 -> 0 | N12: =ข้อมูลวัสดุ!W13 -> 0 | O12: =ข้อมูลวัสดุ!X13 -> 0 | P12: =ข้อมูลวัสดุ!Y13 -> 0 | Q12: =ข้อมูลวัสดุ!Z13 -> 0 | R12: =ข้อมูลวัสดุ!AA13 -> 0 | S12: =ข้อมูลวัสดุ!AB13 -> 0 | T12: =ข้อมูลวัสดุ!AC13 -> 0 | U12: =ข้อมูลวัสดุ!AD13 -> 0 | V12: =ข้อมูลวัสดุ!AE13 -> 76 | W12: =ข้อมูลวัสดุ!AF13 -> 0 | X12: =ข้อมูลวัสดุ!AG13 -> 0 | Y12: =ข้อมูลวัสดุ!AH13 -> 0 | Z12: =ข้อมูลวัสดุ!AI13 -> 0 | AA12: =ข้อมูลวัสดุ!AJ13 -> 0 | AB12: =ข้อมูลวัสดุ!AK13 -> 76 | AC12: =ข้อมูลวัสดุ!AL13 -> 1 | AD12: =ข้อมูลวัสดุ!AM13 -> 114.91 | AE12: =ข้อมูลวัสดุ!AN13 -> 114.91
A13: =ข้อมูลวัสดุ!B16 -> ปูนซีเมนต์ปอร์ตแลนด์ | B13: =ข้อมูลวัสดุ!C16 -> บ./ตัน | C13: =ข้อมูลวัสดุ!E16 -> 76 | D13: =ข้อมูลวัสดุ!F16 -> 0 | E13: =ข้อมูลวัสดุ!G16 -> 0 | F13: =ข้อมูลวัสดุ!H16 -> 0 | G13: =ข้อมูลวัสดุ!I16 -> 0 | H13: =ข้อมูลวัสดุ!J16 -> 0 | I13: 76 | J13: =ข้อมูลวัสดุ!S16 -> 0 | K13: =ข้อมูลวัสดุ!T16 -> 0 | L13: =ข้อมูลวัสดุ!U16 -> 0 | M13: =ข้อมูลวัสดุ!V16 -> 0 | N13: =ข้อมูลวัสดุ!W16 -> 0 | O13: =ข้อมูลวัสดุ!X16 -> 0 | P13: =ข้อมูลวัสดุ!Y16 -> 0 | Q13: =ข้อมูลวัสดุ!Z16 -> 0 | R13: =ข้อมูลวัสดุ!AA16 -> 0 | S13: =ข้อมูลวัสดุ!AB16 -> 0 | T13: =ข้อมูลวัสดุ!AC16 -> 0 | U13: =ข้อมูลวัสดุ!AD16 -> 0 | V13: =ข้อมูลวัสดุ!AE16 -> 76 | W13: =ข้อมูลวัสดุ!AF16 -> 0 | X13: =ข้อมูลวัสดุ!AG16 -> 0 | Y13: =ข้อมูลวัสดุ!AH16 -> 0 | Z13: =ข้อมูลวัสดุ!AI16 -> 0 | AA13: =ข้อมูลวัสดุ!AJ16 -> 0 | AB13: =ข้อมูลวัสดุ!AK16 -> 76 | AC13: =ข้อมูลวัสดุ!AL16 -> 1 | AD13: =ข้อมูลวัสดุ!AM16 -> 114.91 | AE13: =ข้อมูลวัสดุ!AN16 -> 114.91
A14: =ข้อมูลวัสดุ!B17 -> หินผสมคอนกรีต | B14: =ข้อมูลวัสดุ!C17 -> บ./ลบ.ม. | C14: =ข้อมูลวัสดุ!E17 -> 65 | D14: =ข้อมูลวัสดุ!F17 -> 0 | E14: =ข้อมูลวัสดุ!G17 -> 0 | F14: =ข้อมูลวัสดุ!H17 -> 0 | G14: =ข้อมูลวัสดุ!I17 -> 0 | H14: =ข้อมูลวัสดุ!J17 -> 0 | I14: 65 | J14: =ข้อมูลวัสดุ!S17 -> 0 | K14: =ข้อมูลวัสดุ!T17 -> 0 | L14: =ข้อมูลวัสดุ!U17 -> 0 | M14: =ข้อมูลวัสดุ!V17 -> 0 | N14: =ข้อมูลวัสดุ!W17 -> 0 | O14: =ข้อมูลวัสดุ!X17 -> 0 | P14: =ข้อมูลวัสดุ!Y17 -> 65 | Q14: =ข้อมูลวัสดุ!Z17 -> 0 | R14: =ข้อมูลวัสดุ!AA17 -> 0 | S14: =ข้อมูลวัสดุ!AB17 -> 0 | T14: =ข้อมูลวัสดุ!AC17 -> 0 | U14: =ข้อมูลวัสดุ!AD17 -> 0 | V14: =ข้อมูลวัสดุ!AE17 -> 0 | W14: =ข้อมูลวัสดุ!AF17 -> 0 | X14: =ข้อมูลวัสดุ!AG17 -> 0 | Y14: =ข้อมูลวัสดุ!AH17 -> 0 | Z14: =ข้อมูลวัสดุ!AI17 -> 0 | AA14: =ข้อมูลวัสดุ!AJ17 -> 0 | AB14: =ข้อมูลวัสดุ!AK17 -> 65 | AC14: =ข้อมูลวัสดุ!AL17 -> 1 | AD14: =ข้อมูลวัสดุ!AM17 -> 222.07 | AE14: =ข้อมูลวัสดุ!AN17 -> 222.07
A15: =ข้อมูลวัสดุ!B18 -> หินคลุก | B15: =ข้อมูลวัสดุ!C18 -> บ./ลบ.ม. | C15: =ข้อมูลวัสดุ!E18 -> 65 | D15: =ข้อมูลวัสดุ!F18 -> 0 | E15: =ข้อมูลวัสดุ!G18 -> 0 | F15: =ข้อมูลวัสดุ!H18 -> 0 | G15: =ข้อมูลวัสดุ!I18 -> 0 | H15: =ข้อมูลวัสดุ!J18 -> 0 | I15: 65 | J15: =ข้อมูลวัสดุ!S18 -> 0 | K15: =ข้อมูลวัสดุ!T18 -> 0 | L15: =ข้อมูลวัสดุ!U18 -> 0 | M15: =ข้อมูลวัสดุ!V18 -> 0 | N15: =ข้อมูลวัสดุ!W18 -> 0 | O15: =ข้อมูลวัสดุ!X18 -> 0 | P15: =ข้อมูลวัสดุ!Y18 -> 65 | Q15: =ข้อมูลวัสดุ!Z18 -> 0 | R15: =ข้อมูลวัสดุ!AA18 -> 0 | S15: =ข้อมูลวัสดุ!AB18 -> 0 | T15: =ข้อมูลวัสดุ!AC18 -> 0 | U15: =ข้อมูลวัสดุ!AD18 -> 0 | V15: =ข้อมูลวัสดุ!AE18 -> 0 | W15: =ข้อมูลวัสดุ!AF18 -> 0 | X15: =ข้อมูลวัสดุ!AG18 -> 0 | Y15: =ข้อมูลวัสดุ!AH18 -> 0 | Z15: =ข้อมูลวัสดุ!AI18 -> 0 | AA15: =ข้อมูลวัสดุ!AJ18 -> 0 | AB15: =ข้อมูลวัสดุ!AK18 -> 65 | AC15: =ข้อมูลวัสดุ!AL18 -> 1 | AD15: =ข้อมูลวัสดุ!AM18 -> 222.07 | AE15: =ข้อมูลวัสดุ!AN18 -> 222.07
A16: =ข้อมูลวัสดุ!B19 -> ทรายหยาบ | B16: =ข้อมูลวัสดุ!C19 -> บ./ลบ.ม. | C16: =ข้อมูลวัสดุ!E19 -> 60 | D16: =ข้อมูลวัสดุ!F19 -> 0 | E16: =ข้อมูลวัสดุ!G19 -> 0 | F16: =ข้อมูลวัสดุ!H19 -> 0 | G16: =ข้อมูลวัสดุ!I19 -> 0 | H16: =ข้อมูลวัสดุ!J19 -> 0 | I16: 60 | J16: =ข้อมูลวัสดุ!S19 -> 0 | K16: =ข้อมูลวัสดุ!T19 -> 0 | L16: =ข้อมูลวัสดุ!U19 -> 0 | M16: =ข้อมูลวัสดุ!V19 -> 0 | N16: =ข้อมูลวัสดุ!W19 -> 0 | O16: =ข้อมูลวัสดุ!X19 -> 0 | P16: =ข้อมูลวัสดุ!Y19 -> 60 | Q16: =ข้อมูลวัสดุ!Z19 -> 0 | R16: =ข้อมูลวัสดุ!AA19 -> 0 | S16: =ข้อมูลวัสดุ!AB19 -> 0 | T16: =ข้อมูลวัสดุ!AC19 -> 0 | U16: =ข้อมูลวัสดุ!AD19 -> 0 | V16: =ข้อมูลวัสดุ!AE19 -> 0 | W16: =ข้อมูลวัสดุ!AF19 -> 0 | X16: =ข้อมูลวัสดุ!AG19 -> 0 | Y16: =ข้อมูลวัสดุ!AH19 -> 0 | Z16: =ข้อมูลวัสดุ!AI19 -> 0 | AA16: =ข้อมูลวัสดุ!AJ19 -> 0 | AB16: =ข้อมูลวัสดุ!AK19 -> 60 | AC16: =ข้อมูลวัสดุ!AL19 -> 1 | AD16: =ข้อมูลวัสดุ!AM19 -> 205.14 | AE16: =ข้อมูลวัสดุ!AN19 -> 205.14
A17: =ข้อมูลวัสดุ!B20 -> ลูกรัง | B17: =ข้อมูลวัสดุ!C20 -> บ./ลบ.ม. | C17: =ข้อมูลวัสดุ!E20 -> 0 | D17: =ข้อมูลวัสดุ!F20 -> 0 | E17: =ข้อมูลวัสดุ!G20 -> 0 | F17: =ข้อมูลวัสดุ!H20 -> 0 | G17: =ข้อมูลวัสดุ!I20 -> 0 | H17: =ข้อมูลวัสดุ!J20 -> 0 | I17: 0 | J17: =ข้อมูลวัสดุ!S20 -> 0 | K17: =ข้อมูลวัสดุ!T20 -> 0 | L17: =ข้อมูลวัสดุ!U20 -> 0 | M17: =ข้อมูลวัสดุ!V20 -> 0 | N17: =ข้อมูลวัสดุ!W20 -> 0 | O17: =ข้อมูลวัสดุ!X20 -> 0 | P17: =ข้อมูลวัสดุ!Y20 -> 0 | Q17: =ข้อมูลวัสดุ!Z20 -> 0 | R17: =ข้อมูลวัสดุ!AA20 -> 0 | S17: =ข้อมูลวัสดุ!AB20 -> 0 | T17: =ข้อมูลวัสดุ!AC20 -> 0 | U17: =ข้อมูลวัสดุ!AD20 -> 0 | V17: =ข้อมูลวัสดุ!AE20 -> 0 | W17: =ข้อมูลวัสดุ!AF20 -> 0 | X17: =ข้อมูลวัสดุ!AG20 -> 0 | Y17: =ข้อมูลวัสดุ!AH20 -> 0 | Z17: =ข้อมูลวัสดุ!AI20 -> 0 | AA17: =ข้อมูลวัสดุ!AJ20 -> 0 | AB17: =ข้อมูลวัสดุ!AK20 -> 0 | AC17: =ข้อมูลวัสดุ!AL20 -> 0 | AD17: =ข้อมูลวัสดุ!AM20 -> 0 | AE17: =ข้อมูลวัสดุ!AN20 -> 0
A18: =ข้อมูลวัสดุ!B21 -> ทรายถม | B18: =ข้อมูลวัสดุ!C21 -> บ./ลบ.ม. | C18: =ข้อมูลวัสดุ!E21 -> 60 | D18: =ข้อมูลวัสดุ!F21 -> 0 | E18: =ข้อมูลวัสดุ!G21 -> 0 | F18: =ข้อมูลวัสดุ!H21 -> 0 | G18: =ข้อมูลวัสดุ!I21 -> 0 | H18: =ข้อมูลวัสดุ!J21 -> 0 | I18: 60 | J18: =ข้อมูลวัสดุ!S21 -> 0 | K18: =ข้อมูลวัสดุ!T21 -> 0 | L18: =ข้อมูลวัสดุ!U21 -> 0 | M18: =ข้อมูลวัสดุ!V21 -> 0 | N18: =ข้อมูลวัสดุ!W21 -> 0 | O18: =ข้อมูลวัสดุ!X21 -> 0 | P18: =ข้อมูลวัสดุ!Y21 -> 60 | Q18: =ข้อมูลวัสดุ!Z21 -> 0 | R18: =ข้อมูลวัสดุ!AA21 -> 0 | S18: =ข้อมูลวัสดุ!AB21 -> 0 | T18: =ข้อมูลวัสดุ!AC21 -> 0 | U18: =ข้อมูลวัสดุ!AD21 -> 0 | V18: =ข้อมูลวัสดุ!AE21 -> 0 | W18: =ข้อมูลวัสดุ!AF21 -> 0 | X18: =ข้อมูลวัสดุ!AG21 -> 0 | Y18: =ข้อมูลวัสดุ!AH21 -> 0 | Z18: =ข้อมูลวัสดุ!AI21 -> 0 | AA18: =ข้อมูลวัสดุ!AJ21 -> 0 | AB18: =ข้อมูลวัสดุ!AK21 -> 60 | AC18: =ข้อมูลวัสดุ!AL21 -> 1 | AD18: =ข้อมูลวัสดุ!AM21 -> 205.14 | AE18: =ข้อมูลวัสดุ!AN21 -> 205.14
A19: =ข้อมูลวัสดุ!B22 -> ดินถม | B19: =ข้อมูลวัสดุ!C22 -> บ./ลบ.ม. | C19: =ข้อมูลวัสดุ!E22 -> 0 | D19: =ข้อมูลวัสดุ!F22 -> 0 | E19: =ข้อมูลวัสดุ!G22 -> 0 | F19: =ข้อมูลวัสดุ!H22 -> 0 | G19: =ข้อมูลวัสดุ!I22 -> 0 | H19: =ข้อมูลวัสดุ!J22 -> 0 | I19: 0 | J19: =ข้อมูลวัสดุ!S22 -> 0 | K19: =ข้อมูลวัสดุ!T22 -> 0 | L19: =ข้อมูลวัสดุ!U22 -> 0 | M19: =ข้อมูลวัสดุ!V22 -> 0 | N19: =ข้อมูลวัสดุ!W22 -> 0 | O19: =ข้อมูลวัสดุ!X22 -> 0 | P19: =ข้อมูลวัสดุ!Y22 -> 0 | Q19: =ข้อมูลวัสดุ!Z22 -> 0 | R19: =ข้อมูลวัสดุ!AA22 -> 0 | S19: =ข้อมูลวัสดุ!AB22 -> 0 | T19: =ข้อมูลวัสดุ!AC22 -> 0 | U19: =ข้อมูลวัสดุ!AD22 -> 0 | V19: =ข้อมูลวัสดุ!AE22 -> 0 | W19: =ข้อมูลวัสดุ!AF22 -> 0 | X19: =ข้อมูลวัสดุ!AG22 -> 0 | Y19: =ข้อมูลวัสดุ!AH22 -> 0 | Z19: =ข้อมูลวัสดุ!AI22 -> 0 | AA19: =ข้อมูลวัสดุ!AJ22 -> 0 | AB19: =ข้อมูลวัสดุ!AK22 -> 0 | AC19: =ข้อมูลวัสดุ!AL22 -> 0 | AD19: =ข้อมูลวัสดุ!AM22 -> 0 | AE19: =ข้อมูลวัสดุ!AN22 -> 0
A20: =ข้อมูลวัสดุ!B23 -> ท่อกลมขนาด ø 0.30 ม. | B20: =ข้อมูลวัสดุ!C23 -> ท่อน | C20: =ข้อมูลวัสดุ!E23 -> 60 | D20: =ข้อมูลวัสดุ!F23 -> 0 | E20: =ข้อมูลวัสดุ!G23 -> 0 | F20: =ข้อมูลวัสดุ!H23 -> 0 | G20: =ข้อมูลวัสดุ!I23 -> 0 | H20: =ข้อมูลวัสดุ!J23 -> 0 | I20: 60 | J20: =ข้อมูลวัสดุ!S23 -> 0 | K20: =ข้อมูลวัสดุ!T23 -> 0 | L20: =ข้อมูลวัสดุ!U23 -> 0 | M20: =ข้อมูลวัสดุ!V23 -> 0 | N20: =ข้อมูลวัสดุ!W23 -> 0 | O20: =ข้อมูลวัสดุ!X23 -> 0 | P20: =ข้อมูลวัสดุ!Y23 -> 60 | Q20: =ข้อมูลวัสดุ!Z23 -> 0 | R20: =ข้อมูลวัสดุ!AA23 -> 0 | S20: =ข้อมูลวัสดุ!AB23 -> 0 | T20: =ข้อมูลวัสดุ!AC23 -> 0 | U20: =ข้อมูลวัสดุ!AD23 -> 0 | V20: =ข้อมูลวัสดุ!AE23 -> 0 | W20: =ข้อมูลวัสดุ!AF23 -> 0 | X20: =ข้อมูลวัสดุ!AG23 -> 0 | Y20: =ข้อมูลวัสดุ!AH23 -> 0 | Z20: =ข้อมูลวัสดุ!AI23 -> 0 | AA20: =ข้อมูลวัสดุ!AJ23 -> 0 | AB20: =ข้อมูลวัสดุ!AK23 -> 60 | AC20: =ข้อมูลวัสดุ!AL23 -> 1 | AD20: =ข้อมูลวัสดุ!AM23 -> 146.53 | AE20: =ข้อมูลวัสดุ!AN23 -> 146.53
A21: =ข้อมูลวัสดุ!B24 -> ท่อกลมขนาด ø 0.40 ม. | B21: =ข้อมูลวัสดุ!C24 -> ท่อน | C21: =ข้อมูลวัสดุ!E24 -> 60 | D21: =ข้อมูลวัสดุ!F24 -> 0 | E21: =ข้อมูลวัสดุ!G24 -> 0 | F21: =ข้อมูลวัสดุ!H24 -> 0 | G21: =ข้อมูลวัสดุ!I24 -> 0 | H21: =ข้อมูลวัสดุ!J24 -> 0 | I21: 60 | J21: =ข้อมูลวัสดุ!S24 -> 0 | K21: =ข้อมูลวัสดุ!T24 -> 0 | L21: =ข้อมูลวัสดุ!U24 -> 0 | M21: =ข้อมูลวัสดุ!V24 -> 0 | N21: =ข้อมูลวัสดุ!W24 -> 0 | O21: =ข้อมูลวัสดุ!X24 -> 0 | P21: =ข้อมูลวัสดุ!Y24 -> 60 | Q21: =ข้อมูลวัสดุ!Z24 -> 0 | R21: =ข้อมูลวัสดุ!AA24 -> 0 | S21: =ข้อมูลวัสดุ!AB24 -> 0 | T21: =ข้อมูลวัสดุ!AC24 -> 0 | U21: =ข้อมูลวัสดุ!AD24 -> 0 | V21: =ข้อมูลวัสดุ!AE24 -> 0 | W21: =ข้อมูลวัสดุ!AF24 -> 0 | X21: =ข้อมูลวัสดุ!AG24 -> 0 | Y21: =ข้อมูลวัสดุ!AH24 -> 0 | Z21: =ข้อมูลวัสดุ!AI24 -> 0 | AA21: =ข้อมูลวัสดุ!AJ24 -> 0 | AB21: =ข้อมูลวัสดุ!AK24 -> 60 | AC21: =ข้อมูลวัสดุ!AL24 -> 1 | AD21: =ข้อมูลวัสดุ!AM24 -> 146.53 | AE21: =ข้อมูลวัสดุ!AN24 -> 146.53
A22: =ข้อมูลวัสดุ!B25 -> ท่อกลมขนาด ø 0.60 ม. | B22: =ข้อมูลวัสดุ!C25 -> ท่อน | C22: =ข้อมูลวัสดุ!E25 -> 60 | D22: =ข้อมูลวัสดุ!F25 -> 0 | E22: =ข้อมูลวัสดุ!G25 -> 0 | F22: =ข้อมูลวัสดุ!H25 -> 0 | G22: =ข้อมูลวัสดุ!I25 -> 0 | H22: =ข้อมูลวัสดุ!J25 -> 0 | I22: 60 | J22: =ข้อมูลวัสดุ!S25 -> 0 | K22: =ข้อมูลวัสดุ!T25 -> 0 | L22: =ข้อมูลวัสดุ!U25 -> 0 | M22: =ข้อมูลวัสดุ!V25 -> 0 | N22: =ข้อมูลวัสดุ!W25 -> 0 | O22: =ข้อมูลวัสดุ!X25 -> 0 | P22: =ข้อมูลวัสดุ!Y25 -> 60 | Q22: =ข้อมูลวัสดุ!Z25 -> 0 | R22: =ข้อมูลวัสดุ!AA25 -> 0 | S22: =ข้อมูลวัสดุ!AB25 -> 0 | T22: =ข้อมูลวัสดุ!AC25 -> 0 | U22: =ข้อมูลวัสดุ!AD25 -> 0 | V22: =ข้อมูลวัสดุ!AE25 -> 0 | W22: =ข้อมูลวัสดุ!AF25 -> 0 | X22: =ข้อมูลวัสดุ!AG25 -> 0 | Y22: =ข้อมูลวัสดุ!AH25 -> 0 | Z22: =ข้อมูลวัสดุ!AI25 -> 0 | AA22: =ข้อมูลวัสดุ!AJ25 -> 0 | AB22: =ข้อมูลวัสดุ!AK25 -> 60 | AC22: =ข้อมูลวัสดุ!AL25 -> 1 | AD22: =ข้อมูลวัสดุ!AM25 -> 146.53 | AE22: =ข้อมูลวัสดุ!AN25 -> 146.53
A23: =ข้อมูลวัสดุ!B26 -> ท่อกลมขนาด ø 0.80 ม. | B23: =ข้อมูลวัสดุ!C26 -> ท่อน | C23: =ข้อมูลวัสดุ!E26 -> 60 | D23: =ข้อมูลวัสดุ!F26 -> 0 | E23: =ข้อมูลวัสดุ!G26 -> 0 | F23: =ข้อมูลวัสดุ!H26 -> 0 | G23: =ข้อมูลวัสดุ!I26 -> 0 | H23: =ข้อมูลวัสดุ!J26 -> 0 | I23: 60 | J23: =ข้อมูลวัสดุ!S26 -> 0 | K23: =ข้อมูลวัสดุ!T26 -> 0 | L23: =ข้อมูลวัสดุ!U26 -> 0 | M23: =ข้อมูลวัสดุ!V26 -> 0 | N23: =ข้อมูลวัสดุ!W26 -> 0 | O23: =ข้อมูลวัสดุ!X26 -> 0 | P23: =ข้อมูลวัสดุ!Y26 -> 60 | Q23: =ข้อมูลวัสดุ!Z26 -> 0 | R23: =ข้อมูลวัสดุ!AA26 -> 0 | S23: =ข้อมูลวัสดุ!AB26 -> 0 | T23: =ข้อมูลวัสดุ!AC26 -> 0 | U23: =ข้อมูลวัสดุ!AD26 -> 0 | V23: =ข้อมูลวัสดุ!AE26 -> 0 | W23: =ข้อมูลวัสดุ!AF26 -> 0 | X23: =ข้อมูลวัสดุ!AG26 -> 0 | Y23: =ข้อมูลวัสดุ!AH26 -> 0 | Z23: =ข้อมูลวัสดุ!AI26 -> 0 | AA23: =ข้อมูลวัสดุ!AJ26 -> 0 | AB23: =ข้อมูลวัสดุ!AK26 -> 60 | AC23: =ข้อมูลวัสดุ!AL26 -> 1 | AD23: =ข้อมูลวัสดุ!AM26 -> 146.53 | AE23: =ข้อมูลวัสดุ!AN26 -> 146.53
A24: =ข้อมูลวัสดุ!B27 -> ท่อกลมขนาด ø 1.00 ม. | B24: =ข้อมูลวัสดุ!C27 -> ท่อน | C24: =ข้อมูลวัสดุ!E27 -> 60 | D24: =ข้อมูลวัสดุ!F27 -> 0 | E24: =ข้อมูลวัสดุ!G27 -> 0 | F24: =ข้อมูลวัสดุ!H27 -> 0 | G24: =ข้อมูลวัสดุ!I27 -> 0 | H24: =ข้อมูลวัสดุ!J27 -> 0 | I24: 60 | J24: =ข้อมูลวัสดุ!S27 -> 0 | K24: =ข้อมูลวัสดุ!T27 -> 0 | L24: =ข้อมูลวัสดุ!U27 -> 0 | M24: =ข้อมูลวัสดุ!V27 -> 0 | N24: =ข้อมูลวัสดุ!W27 -> 0 | O24: =ข้อมูลวัสดุ!X27 -> 0 | P24: =ข้อมูลวัสดุ!Y27 -> 60 | Q24: =ข้อมูลวัสดุ!Z27 -> 0 | R24: =ข้อมูลวัสดุ!AA27 -> 0 | S24: =ข้อมูลวัสดุ!AB27 -> 0 | T24: =ข้อมูลวัสดุ!AC27 -> 0 | U24: =ข้อมูลวัสดุ!AD27 -> 0 | V24: =ข้อมูลวัสดุ!AE27 -> 0 | W24: =ข้อมูลวัสดุ!AF27 -> 0 | X24: =ข้อมูลวัสดุ!AG27 -> 0 | Y24: =ข้อมูลวัสดุ!AH27 -> 0 | Z24: =ข้อมูลวัสดุ!AI27 -> 0 | AA24: =ข้อมูลวัสดุ!AJ27 -> 0 | AB24: =ข้อมูลวัสดุ!AK27 -> 60 | AC24: =ข้อมูลวัสดุ!AL27 -> 1 | AD24: =ข้อมูลวัสดุ!AM27 -> 146.53 | AE24: =ข้อมูลวัสดุ!AN27 -> 146.53
A25: =ข้อมูลวัสดุ!B28 -> ท่อกลมขนาด ø 1.20 ม. | B25: =ข้อมูลวัสดุ!C28 -> ท่อน | C25: =ข้อมูลวัสดุ!E28 -> 60 | D25: =ข้อมูลวัสดุ!F28 -> 0 | E25: =ข้อมูลวัสดุ!G28 -> 0 | F25: =ข้อมูลวัสดุ!H28 -> 0 | G25: =ข้อมูลวัสดุ!I28 -> 0 | H25: =ข้อมูลวัสดุ!J28 -> 0 | I25: 60 | J25: =ข้อมูลวัสดุ!S28 -> 0 | K25: =ข้อมูลวัสดุ!T28 -> 0 | L25: =ข้อมูลวัสดุ!U28 -> 0 | M25: =ข้อมูลวัสดุ!V28 -> 0 | N25: =ข้อมูลวัสดุ!W28 -> 0 | O25: =ข้อมูลวัสดุ!X28 -> 0 | P25: =ข้อมูลวัสดุ!Y28 -> 60 | Q25: =ข้อมูลวัสดุ!Z28 -> 0 | R25: =ข้อมูลวัสดุ!AA28 -> 0 | S25: =ข้อมูลวัสดุ!AB28 -> 0 | T25: =ข้อมูลวัสดุ!AC28 -> 0 | U25: =ข้อมูลวัสดุ!AD28 -> 0 | V25: =ข้อมูลวัสดุ!AE28 -> 0 | W25: =ข้อมูลวัสดุ!AF28 -> 0 | X25: =ข้อมูลวัสดุ!AG28 -> 0 | Y25: =ข้อมูลวัสดุ!AH28 -> 0 | Z25: =ข้อมูลวัสดุ!AI28 -> 0 | AA25: =ข้อมูลวัสดุ!AJ28 -> 0 | AB25: =ข้อมูลวัสดุ!AK28 -> 60 | AC25: =ข้อมูลวัสดุ!AL28 -> 1 | AD25: =ข้อมูลวัสดุ!AM28 -> 146.53 | AE25: =ข้อมูลวัสดุ!AN28 -> 146.53
A26: =ข้อมูลวัสดุ!B29 -> ท่อกลมขนาด ø 1.50 ม. | B26: =ข้อมูลวัสดุ!C29 -> ท่อน | C26: =ข้อมูลวัสดุ!E29 -> 60 | D26: =ข้อมูลวัสดุ!F29 -> 0 | E26: =ข้อมูลวัสดุ!G29 -> 0 | F26: =ข้อมูลวัสดุ!H29 -> 0 | G26: =ข้อมูลวัสดุ!I29 -> 0 | H26: =ข้อมูลวัสดุ!J29 -> 0 | I26: 60 | J26: =ข้อมูลวัสดุ!S29 -> 0 | K26: =ข้อมูลวัสดุ!T29 -> 0 | L26: =ข้อมูลวัสดุ!U29 -> 0 | M26: =ข้อมูลวัสดุ!V29 -> 0 | N26: =ข้อมูลวัสดุ!W29 -> 0 | O26: =ข้อมูลวัสดุ!X29 -> 0 | P26: =ข้อมูลวัสดุ!Y29 -> 60 | Q26: =ข้อมูลวัสดุ!Z29 -> 0 | R26: =ข้อมูลวัสดุ!AA29 -> 0 | S26: =ข้อมูลวัสดุ!AB29 -> 0 | T26: =ข้อมูลวัสดุ!AC29 -> 0 | U26: =ข้อมูลวัสดุ!AD29 -> 0 | V26: =ข้อมูลวัสดุ!AE29 -> 0 | W26: =ข้อมูลวัสดุ!AF29 -> 0 | X26: =ข้อมูลวัสดุ!AG29 -> 0 | Y26: =ข้อมูลวัสดุ!AH29 -> 0 | Z26: =ข้อมูลวัสดุ!AI29 -> 0 | AA26: =ข้อมูลวัสดุ!AJ29 -> 0 | AB26: =ข้อมูลวัสดุ!AK29 -> 60 | AC26: =ข้อมูลวัสดุ!AL29 -> 1 | AD26: =ข้อมูลวัสดุ!AM29 -> 146.53 | AE26: =ข้อมูลวัสดุ!AN29 -> 146.53
B27: ค่าตัวแปรสภาพผิวทาง | N27: หลักเกณฑ์(สูตร) การคำนวณระยะทางและค่าขนส่งวัสดุก่อสร้าง (กรณีรถบรรทุก...ล้อ...)
B28: ลำดับ | C28: รายการ | G28: ผิวทางลาดยาง | J28: ผิวทางลูกรัง | N28: 1. ระยะทางขนส่งซึ่งเป็นทางราบปกติ จากแหล่งวัสดุถึงกึ่งกลางหน้างาน(กรณีสิ่งก่อสร้างเป็นทางยาว)
G29: ที่ราบ | H29: ลูกเนิน | I29: ภูเขา | J29: ที่ราบ | K29: ลูกเนิน | L29: ภูเขา | N29: หรือถึงสถานที่ก่อสร้าง(กรณีสิ่งก่อสร้างไม่มีลักษณะเป็นทางยาว) = L | W29: =………………กม.
B30: 1 | C30: รถบรรทุก 6 ล้อ | G30: 1 | H30: 2.12 | I30: 2.56 | J30: 1.24 | K30: 2.36 | L30: 2.8 | N30: 2. ทางผิวลาดยาง/ทางผิวคอนกรีต
B31: 2 | C31: รถบรรทุก 10 ล้อ | G31: 1 | H31: 1.95 | I31: 2.52 | J31: 1.23 | K31: 2.18 | L31: 2.75 | O31: ระยะทางราบ | Q31: ........................ กม. X ตัวแปรสภาพผิว | W31: =………………กม.
B32: 3 | C32: รถบรรทุก 10 ล้อ มีลากพ่วง | G32: 1 | H32: 2.13 | I32: 0 | J32: 1.2 | K32: 2.33 | L32: 0 | O32: ระยะทางลูกเนิน | Q32: ........................ กม. X ตัวแปรสภาพผิว | W32: =………………กม.
O33: ระยะทางภูเขา | Q33: ........................ กม. X ตัวแปรสภาพผิว | W33: =………………กม.
B34: หมายเหตุ | C34: - ทางลูกเนิน หมายถึงทางที่มีความลาดชัน 4 - 8 % | N34: 3. ทางผิวลูกรัง
C35: - ทางภูเขา หมายถึงทางที่มีความลาดชันมากกว่า 8 % | O35: ระยะทางราบ | Q35: ........................ กม. X ตัวแปรสภาพผิว | W35: =………………กม.
C36: - การคำนวณค่าขนส่งวัสดุ ให้นำตัวแปรสภาพผิวทางคูณกับระยะทางตามตัวอย่าง | O36: ระยะทางลูกเนิน | Q36: ........................ กม. X ตัวแปรสภาพผิว | W36: =………………กม.
O37: ระยะทางภูเขา | Q37: ........................ กม. X ตัวแปรสภาพผิว | W37: =………………กม.
R38: รวมระยะทาง | U38: = D | W38: =………………กม.
N39: 4. ตัวแปรค่าขนส่ง | Q39: = F = D/L = ………………………
N40: 5. ค่าขนส่ง | Q40: = F x ค่าขนส่งจากตารางค่าขนส่งของระยะทางขนส่งกิโลเมตรที่ L
Q41: = ………………………. บาท/ลบ.ม. หรือ บาท/ตัน (แล้วแต่กรณี)
B42: ที่มา : ตารางและหลักเกณ์การคำนวณค่าขนส่งวัสดุก่อสร้าง อ้างอิงหรือศึกษาได้จากแนวทางวิธีปฏิบัติและรายละเอียดประกอบการคำนวณราคากลางงานก่อสร้าง(หน้า 80 - 362) หลักเกณฑ์การคำนวณราคากลางงานก่อสร้างของทางราชการ ตามมติ ครม. เมื่อ วันที่ 13 มีนาคม 2555

Sheet ข้อมูลงานคอนกรีต (hidden)
B1: ข้อมูลงานคอนกรีต | O1: อัตราส่วนของวัสดุใน Class ต่างๆ( 1 ลบ.ม.แน่น) | Z1: ไม้แบบ | AM1: ทรายหยาบบดอัดแน่น
B2: ข้อมูลงานคอนกรีต Class ต่างๆ ตามมาตรฐานกรมทางหลวงชนบท | O2: อัตราส่วนของวัสดุใน Class ต่างๆ( 1 ลบ.ม.แน่น) ตามมาตรฐานกรมทางหลวงชนบท | Z2: ไม้แบบสำหรับงานทั่วไป = ไม้แบบ (1) พื้นที่ 1 ตารางเมตร | AN2: ค่าวัสดุจากแหล่งรวมค่าตัก | AS2: = | AT2: =สรุปวัสดุและค่าดำเนินการ!L25 -> 555.14 | AU2: บาท/ลบ.ม. | AV2: [1] | BC2: =ข้อมูลโครงการ!P31 -> ค3
B3: กรณีทรายและหินมีหน่วยเป็นน้ำหนัก(สภาพอิ่มตัวผิวแห้ง) | O3: 1.กรณีทรายและหินมีหน่วยเป็นน้ำหนัก | Z3: คิดจากพื้นที่ | AC3: 1 | AD3: ตร.ม. | AN3: ค่าขนส่ง = | AO3: =สรุปวัสดุและค่าดำเนินการ!H25 -> 60 | AP3: กม. | AS3: = | AT3: =สรุปวัสดุและค่าดำเนินการ!I25 -> 205.14 | AU3: บาท/ลบ.ม. | AV3: [2] (จากตารางค่าขนส่ง)
B4: Class of Concrete | I4: ค4 | J4: ค3 | K4: ค2 | L4: ค1 | M4: Lean 1 : 3 : 5 | O4: Class | Q4: ซีเมนต์ | R4: ทราย(อิ่มตัวผิวแห้ง) | U4: หิน(อิ่มตัวผิวแห้ง) | Z4: ไม้กระบากหรือไม้ยางหรือเทียบเท่า | AC4: 1 | AD4: ลบ.ฟ. @ | AE4: =สรุปวัสดุและค่าดำเนินการ!L37 -> 514 | AF4: บาท | AG4: = | AH4: =ROUND(AE4*AC4,2) -> 514 | AI4: บาท/ตร.ม. | AJ4: [1] | AN4: รวม | AS4: = | AT4: =SUM(AT2:AT3) -> 760.28 | AU4: บาท/ลบ.ม. | AV4: [3]
B5: ส่วนผสมคอนกรีต | I5: 400:734:1019 | J5: 350:800:1030 | K5: 320:835:1070 | L5: 290:868:1015 | M5: 240:728:1218 | O5: (ชั้น) | Q5: (กก.) | S5: (กก.) | V5: (กก.) | Z5: ไม้คร่าว | AC5: 0.3 | AD5: ลบ.ฟ. @ | AE5: =สรุปวัสดุและค่าดำเนินการ!L39 -> 467.29 | AF5: บาท | AG5: = | AH5: =ROUND(AE5*AC5,2) -> 140.19 | AI5: บาท/ตร.ม. | AJ5: [2] | AN5: ส่วนยุบตัว ………[3]……. x (1.40) | AS5: = | AT5: =ROUND(AT3*1.4,2) -> 287.2 | AU5: บาท/ลบ.ม. | AV5: [4]=[3]x1.40
B6: 1 | C6: ปูนซีเมนต์ซีเมนต์ | D6: 1.05 | E6: x | F6: =สรุปวัสดุและค่าดำเนินการ!L22 -> 2881.27 | G6: = | H6: =TRUNC(D6*F6,2) -> 3025.33 | I6: =0.4*$H$6 -> 1210.132 | J6: =0.35*$H$6 -> 1058.8655 | K6: =0.32*$H$6 -> 968.1056 | L6: =0.29*$H$6 -> 877.3457 | M6: =0.24*$H$6 -> 726.0792 | R6: ต่ำสุด | T6: สูงสุด | U6: ต่ำสุด | W6: สูงสุด | Z6: ไม้ค้ำยันแบบ | AC6: 0.3 | AD6: ต้น @ | AE6: =สรุปวัสดุและค่าดำเนินการ!L41 -> 25 | AF6: บาท | AG6: = | AH6: =ROUND(AE6*AC6,2) -> 7.5 | AI6: บาท/ตร.ม. | AJ6: [3] | AN6: ค่าดำเนินการและค่าเสื่อมบดทับ 75 % | AS6: = | AT6: =ROUND(รวมตารางคำนวณ!Q16*0.75,2) -> 33.77 | AU6: บาท/ลบ.ม. | AV6: [5] (จากตารางค่าดำเนินการ)x0.75
B7: 2 | C7: ทราย | D7: 1.05 | E7: x | F7: =สรุปวัสดุและค่าดำเนินการ!L25 -> 555.14 | G7: = | H7: =TRUNC(D7*F7,2) -> 582.89 | I7: =0.734*$H$7 -> 427.84126 | J7: =0.8*$H$7 -> 466.312 | K7: =0.835*$H$7 -> 486.71315 | L7: =0.868*$H$7 -> 505.94852 | M7: =0.728*$H$7 -> 424.34392 | O7: ค4 | Q7: 400 | R7: 715 | S7: (734) | T7: 753 | U7: 1001 | V7: (1019) | W7: 1037 | Z7: ตะปู | AC7: 0.25 | AD7: กก. @ | AE7: =สรุปวัสดุและค่าดำเนินการ!L42 -> 37.38 | AF7: บาท | AG7: = | AH7: =ROUND(AE7*AC7,2) -> 9.35 | AI7: บาท/ตร.ม. | AJ7: [4] | AN7: ค่างานต้นทุน | AS7: = | AT7: =ROUNDDOWN(SUM(AT5:AT6),2) -> 320.97 | AU7: บาท/ลบ.ม. | AV7: [6]=[4]+[5]
B8: 3 | C8: หิน | D8: 1.05 | E8: x | F8: =สรุปวัสดุและค่าดำเนินการ!L23 -> 572.07 | G8: = | H8: =TRUNC(D8*F8,2) -> 600.67 | I8: =1.019*$H$8 -> 612.08273 | J8: =1.03*$H$8 -> 618.6901 | K8: =1.07*$H$8 -> 642.7169 | L8: =1.015*$H$8 -> 609.68005 | M8: =1.218*$H$8 -> 731.61606 | O8: ค3 | Q8: 350 | R8: 768 | S8: (800) | T8: 833 | U8: 1001 | V8: (1030) | W8: 1060 | AF8: รวม | AG8: = | AH8: =ROUND(SUM(AH4:AH7),2) -> 671.04 | AI8: บาท/ตร.ม. | AJ8: [5]=[1]+[2]+[3]+[4]
B9: 4 | C9: ค่าแรงผสม - เท | I9: 0 | J9: 0 | K9: 0 | L9: 0 | M9: 0 | O9: ค2 | Q9: 320 | R9: 809 | S9: (835) | T9: 861 | U9: 1001 | V9: (1070) | W9: 1140 | Z9: เนื่องจากใช้งานได้ประมาณ 4 ครั้ง คิดจาก [5] | AG9: = | AH9: =ROUND(AH8/4,2) -> 167.76 | AI9: บาท/ตร.ม. | AJ9: [6]=[5]/4
B10: รวม | I10: =SUM(I6:I9) -> 2250.05599 | J10: =SUM(J6:J9) -> 2143.8676 | K10: =SUM(K6:K9) -> 2097.53565 | L10: =SUM(L6:L9) -> 1992.97427 | M10: =SUM(M6:M9) -> 1882.03918 | O10: ค1 | Q10: 290 | R10: 852 | S10: (868) | T10: 885 | U10: 1001 | V10: (1015) | W10: 1029 | Z10: น้ำมันทาผิวไม้(ไม่คิดค่าใช้จ่าย) | AG10: = | AH10: 0 | AI10: บาท/ตร.ม. | AJ10: [7] | AN10: ค่าแรงผสมและเทคอนกรีต
Z11: ค่าแรงไม้แบบ | AG11: = | AH11: =ข้อมูลค่าแรงงาน!F30 -> 133 | AI11: บาท/ตร.ม. | AJ11: [8] (จากบัญชีค่าแรงงานฯ)
B12: กรณีทรายและหินมีหน่วยเป็นปริมาตร | O12: LEAN CONCRETE 1 : 3 : 5 | Q12: 240 | S12: 728 | V12: 1218 | Z12: รวมค่างานต้นทุน | AG12: = | AH12: =ROUND(AH9+AH10+AH11,2) -> 300.76 | AI12: บาท/ตร.ม. | AJ12: [9]=[6]+[7]+[8] | AN12: 1 | AO12: งานสะพาน
B13: Class of Concrete | I13: ค4 | J13: ค3 | K13: ค2 | L13: ค1 | M13: Lean 1 : 3 : 5 | Z13: ราคาที่กำหนด | AG13: = | AH13: =ROUNDDOWN(AH12,-0.1) -> 300 | AI13: บาท/ตร.ม. | AJ13: [10]=[9] | AN13: 2 | AO13: กำแพงกันดินคอนกรีตเสริมเหล็ก (R.C. Retaining Wall)
B14: ส่วนผสมคอนกรีต | I14: 400:524:728 | J14: 350:572:736 | K14: 320:596:764 | L14: 290:520:725 | M14: 240:520:870 | O14: 2.กรณีทรายและหินมีหน่วยเป็นปริมาตร | AN14: 3 | AO14: อ่างรับน้ำคอนกรีตเสริมเหล็ก (R.C. Manhole)
B15: 1 | C15: ปูนซีเมนต์ซีเมนต์ | D15: 1.05 | E15: x | F15: =สรุปวัสดุและค่าดำเนินการ!L22 -> 2881.27 | G15: = | H15: =TRUNC(D15*F15,2) -> 3025.33 | I15: =0.4*$H$15 -> 1210.132 | J15: =0.35*$H$15 -> 1058.8655 | K15: =0.32*$H$15 -> 968.1056 | L15: =0.29*$H$15 -> 877.3457 | M15: =0.24*$H$15 -> 726.0792 | O15: Class | Q15: ซีเมนต์ | R15: ทราย | U15: หิน | Z15: ไม้แบบสำหรับงานอย่างง่าย = ไม้แบบ (2) พื้นที่ 1 ตารางเมตร | AN15: 4 | AO15: บ่อพักรับน้ำบริเวณเกาะกลาง (Medain Drop Inlet)
B16: 2 | C16: ทราย | D16: 1.2 | E16: x | F16: =สรุปวัสดุและค่าดำเนินการ!L25 -> 555.14 | G16: = | H16: 666.16 | I16: =0.524*$H$16 -> 349.06784 | J16: =0.572*$H$16 -> 381.04352 | K16: =0.596*$H$16 -> 397.03136 | L16: =0.52*$H$16 -> 346.4032 | M16: =0.52*$H$16 -> 346.4032 | O16: (ชั้น) | Q16: (กก.) | S16: (ลิตร) | V16: =S16 -> (ลิตร) | Z16: คิดจากพื้นที่ | AC16: 1 | AD16: ตร.ม. | AN16: 5 | AO16: แผงกั้นคอนกรีต (Concrete Barrier)
B17: 3 | C17: หิน | D17: 1.15 | E17: x | F17: =สรุปวัสดุและค่าดำเนินการ!L23 -> 572.07 | G17: = | H17: 657.88 | I17: =0.728*$H$17 -> 478.93664 | J17: =0.736*$H$17 -> 484.19968 | K17: =0.764*$H$17 -> 502.62032 | L17: =0.725*$H$17 -> 476.963 | M17: =0.87*$H$17 -> 572.3556 | R17: ต่ำสุด | T17: สูงสุด | U17: ต่ำสุด | W17: สูงสุด | Z17: ไม้กระบากหรือไม้ยางหรือเทียบเท่า | AC17: 1 | AD17: ลบ.ฟ. @ | AE17: =AE4 -> 514 | AF17: บาท | AG17: = | AH17: =ROUND(AE17*AC17,2) -> 514 | AI17: บาท/ตร.ม. | AJ17: [1] | AN17: 6 | AO17: กำแพงปากท่อคอนกรีตเสริมเหล็ก (R.C. Concrete Head Wall)
B18: 4 | C18: ค่าแรงผสม - เท | I18: 498 | J18: 498 | K18: 498 | L18: 0 | M18: 0 | O18: ค4 | Q18: 400 | R18: 511 | S18: (524) | T18: 538 | U18: 715 | V18: (728) | W18: 741 | Z18: ไม้คร่าว | AC18: 0.3 | AD18: ลบ.ฟ. @ | AE18: =AE5 -> 467.29 | AF18: บาท | AG18: = | AH18: =ROUND(AE18*AC18,2) -> 140.19 | AI18: บาท/ตร.ม. | AJ18: [2] | AN18: 7 | AO18: งานคอนกรีตโครงสร้างทั่วไป
B19: รวม | I19: =SUM(I15:I18) -> 2536.13648 | J19: =SUM(J15:J18) -> 2422.1087 | K19: =SUM(K15:K18) -> 2365.75728 | L19: =SUM(L15:L18) -> 1700.7119 | M19: =SUM(M15:M18) -> 1644.838 | O19: ค3 | Q19: 350 | R19: 549 | S19: (572) | T19: 595 | U19: 715 | V19: (736) | W19: 757 | Z19: ไม้ค้ำยันแบบ | AC19: 0.3 | AD19: ต้น @ | AE19: =AE6 -> 25 | AF19: บาท | AG19: = | AH19: =ROUND(AE19*AC19,2) -> 7.5 | AI19: บาท/ตร.ม. | AJ19: [3]
O20: ค2 | Q20: 320 | R20: 578 | S20: (596) | T20: 615 | U20: 715 | V20: (764) | W20: 841 | Z20: ตะปู | AC20: 0.25 | AD20: กก. @ | AE20: =AE7 -> 37.38 | AF20: บาท | AG20: = | AH20: =ROUND(AE20*AC20,2) -> 9.35 | AI20: บาท/ตร.ม. | AJ20: [4] | AN20: หมายเหตุ
B21: หมายเหตุ | O21: ค1 | Q21: 290 | R21: 609 | S21: (620) | T21: 632 | U21: 715 | V21: (725) | W21: 735 | AF21: รวม | AG21: = | AH21: =ROUND(SUM(AH17:AH20),2) -> 671.04 | AI21: บาท/ตร.ม. | AJ21: [5]=[1]+[2]+[3]+[4] | AN21: 1 | AO21: ค่าแรงงานรายการ ข้อ 1 - ข้อ 6 ให้ใช้ค่าแรงงานต่อหน่วยตามบัญชีค่าแรงงาน/ดำเนินการสำหรับการถอดแบบคำนวณราคากลางงานก่อสร้าง
C22: ในส่วนของข้อมูลงานคอนกรีตนี้ ผู้มีหน้าที่คำนวณราคากลางสามารถปรับใช้ตามตารางข้อมูลงานคอนกรีต Class ต่างๆ ตามมาตรฐานของกรมทางหลวงหรือกรมทางหลวง | Z22: เนื่องจากใช้งานได้ประมาณ 5 ครั้ง คิดจาก [5] | AG22: = | AH22: =ROUND(AH21/5,2) -> 134.21 | AI22: บาท/ตร.ม. | AJ22: [6]=[5]/5 | AO22: ที่ใช้กับงานก่อสร้างอาคารในส่วนของงานโครงสร้างและส่วนประกอบสำหรับอาคารชั้นเดียว
C23: ชนบท ได้ตามข้อมูล/ข้อเท็จจริงสำหรับโครงการ/งานก่อสร้างนั้น ส่วนกรณีที่เป็นกำลังคอนกรีตอื่นนอกเหนือจากมาตรฐานของกรมทางหลวงหรือกรมทางหลวงชนบทตาม | O23: LEAN CONCRETE 1 : 3 : 5 | Q23: 240 | S23: 520 | V23: 870 | Z23: น้ำมันทาผิวไม้(ไม่คิดค่าใช้จ่าย) | AG23: = | AH23: =AH10 -> 0 | AI23: บาท/ตร.ม. | AJ23: [7] | AN23: 2 | AO23: ค่าแรงงานรายการ ข้อ 7 ให้ใช้ค่าแรงงานต่อหน่วยตามบัญชีค่าแรงงาน/ดำเนินการสำหรับการถอดแบบคำนวณราคากลางงานก่อสร้าง
C24: ตารางดังกล่าวให้ผู้ออกแบบโครงการ/งานก่อสร้างนั้น กำหนดสัดส่วนหรืออัตราส่วนผสมขึ้นใหม่ตามหลักการทางวิศวกรรม โดยต้องระบุปริมาณปูนซีเมนต์และหรือวัสดุที่ให้ใช้ | Z24: ค่าแรงไม้แบบ | AG24: = | AH24: =ROUND(AH11,2) -> 133 | AI24: บาท/ตร.ม. | AJ24: [8] (จากบัญชีค่าแรงงานฯ) | AO24: ที่ใช้กับงานก่อสร้างอาคารในส่วนของงานทางเท้า ทางระบายน้ำ บ่อพัก และถนนภายในบริเวณอาคาร
C25: ขั้นต่ำในขั้นตอนการก่อสร้างไว้ด้วย และให้ผู้มีหน้าที่ในการคำนวณราคากลางใช้ปริมาณปูนซีเมนต์และหรือวัสดุขั้นต่ำนั้นในการกำหนดข้อมูลเพื่อคำนวณราคากลาง | O25: หมายเหตุ | P25: - ตัวเลขในวงเล็บเป็นค่ากลางที่ใช้ในการคำนวณราคากลาง | Z25: รวมค่างานต้นทุน | AG25: = | AH25: =ROUND(AH22+AH23+AH24,2) -> 267.21 | AI25: บาท/ตร.ม. | AJ25: [9]=[6]+[7]+[8]
P26: - กรณีที่มีการออกแบบอัตราส่วนของวัสดุในคอนกรีตไว้แล้ว อาจใช้อัตราส่วนของวัสดุในคอนกรีตในการคำนวณราคากลาง | Z26: ราคาที่กำหนด | AG26: = | AH26: =ROUNDDOWN(AH25,-0.1) -> 267 | AI26: บาท/ตร.ม. | AJ26: [10]=[9]
B27: ที่มา : ตารางและข้อมูลงาน Class ต่างๆ ตามมาตรฐานทางหลวงชนบท อ้างอิงหรือศึกษาได้จากหลักเกณฑ์การคำนวณราคากลางงานก่อสร้างทาง สะพาน และท่อเหลี่ยม(หน้า 22 - 23) | P27: - อัตราส่วนของวัสดุใน Class ต่างๆ ตามตาราง คำนวณจากปริมาตรคอนกรีต 1 ลบ.ม.(แน่น) ซึ่งปริมาตรของทรายและหินที่แสดงใน
C28: ทั้งนี้ ตามหลักเกณฑ์การคำนวณราคากลางงานก่อสร้างของทางราชการ มติ ครม. เมื่อ วันที่ 13 มีนาคม 2555 | P28: ตารางที่ 2 เป็นปริมาตรหลวม | Z28: ไม้แบบสำหรับงานสะพานและท่อเหลี่ยม = ไม้แบบ (3) พื้นที่ 1 ตารางเมตร
P29: - การคำนวณอัตราส่วนของวัสดุใน Class ต่างๆ นั้น จะต้องเผื่อส่วนยุบตัวและสูญเสียไว้ด้วย ดังนี้ | Z29: คิดจากพื้นที่ | AC29: 1 | AD29: ตร.ม.
P30: (1) เผื่อส่วนยุบตัวและสูญเสียของหิน สัดส่วน 1.15 หรือ 15 % | Z30: ไม้กระบากหรือไม้ยางหรือเทียบเท่า | AC30: 1 | AD30: ลบ.ฟ. @ | AE30: =AE17 -> 514 | AF30: บาท | AG30: = | AH30: =ROUND(AE30*AC30,2) -> 514 | AI30: บาท/ตร.ม. | AJ30: [1]
P31: (2) เผื่อส่วนยุบตัวและสูญเสียของทราย สัดส่วน 1.20 หรือ 20 % | Z31: ไม้อัดยาง หนา 4 มม. | AC31: 1 | AD31: ตร.ม. | AE31: =TRUNC(สรุปวัสดุและค่าดำเนินการ!L38/(1.2*2.4),2) -> 94.68 | AF31: บาท | AG31: = | AH31: =ROUND(AE31*AC31,2) -> 94.68 | AI31: บาท/ตร.ม. | AJ31: [2]
P32: (3) เผื่อส่วนยุบตัวและสูญเสียของซีเมนต์ สัดส่วน 1.05 หรือ 5 % | Z32: ไม้คร่าว | AC32: 0.3 | AD32: ลบ.ฟ. @ | AE32: =AE18 -> 467.29 | AF32: บาท | AG32: = | AH32: =ROUND(AE32*AC32,2) -> 140.19 | AI32: บาท/ตร.ม. | AJ32: [3]
Z33: ตะปู | AC33: 0.25 | AD33: กก. @ | AE33: =AE20 -> 37.38 | AF33: บาท | AG33: = | AH33: =ROUND(AE33*AC33,2) -> 9.35 | AI33: บาท/ตร.ม. | AJ33: [4]
AF34: รวม | AG34: = | AH34: =ROUND(SUM(AH30:AH33),2) -> 758.22 | AI34: บาท/ตร.ม. | AJ34: [5]=[1]+[2]+[3]+[4]
O35: ที่มา : อัตราส่วนวัสดุใน Class ต่างๆ (1 ลบ.ม.แน่น) อ้างอิงหรือศึกษาได้จากหลักเกณฑ์การคำนวณราคากลางงานก่อสร้างทาง สะพาน และท่อเหลี่ยม(หน้า 57 - 59) | Z35: เนื่องจากใช้งานได้ประมาณ 3 ครั้ง คิดจาก [5] | AG35: = | AH35: =ROUND(AH34/3,2) -> 252.74 | AI35: บาท/ตร.ม. | AJ35: [6]=[5]/3
O36: ทั้งนี้ ตามหลักเกณฑ์การคำนวณราคากลางงานก่อสร้างของทางราชการ มติ ครม. เมื่อ วันที่ 13 มีนาคม 2555 | Z36: น้ำมันทาผิวไม้(ไม่คิดค่าใช้จ่าย) | AG36: = | AH36: 10 | AI36: บาท/ตร.ม. | AJ36: [7]
Z37: ค่าแรงไม้แบบ | AG37: = | AH37: 154 | AI37: บาท/ตร.ม. | AJ37: [8] (จากบัญชีค่าแรงงานฯ)
Z38: รวมค่างานต้นทุน | AG38: = | AH38: =ROUND(AH35+AH36+AH37,2) -> 416.74 | AI38: บาท/ตร.ม. | AJ38: [9]=[6]+[7]+[8]
Z39: ราคาที่กำหนด | AG39: = | AH39: =ROUNDDOWN(AH38,-0.1) -> 416 | AI39: บาท/ตร.ม. | AJ39: [10]=[9]

Sheet Unit Cost (hidden)
A1: ราคาค่างานต้นทุนต่อหน่วย
A2: ="(ใช้ราคาเฉลี่ยน้ำมัน ลิตรละ "&ข้อมูลโครงการ!L5&" หาค่าขนส่ง,ค่าดำเนินการและค่าเสื่อมราคา)" -> (ใช้ราคาเฉลี่ยน้ำมัน ลิตรละ 28.5 หาค่าขนส่ง,ค่าดำเนินการและค่าเสื่อมราคา)
A3: =BOQ!A2 -> โครงการก่อสร้างสะพานข้ามคลองหล ม.18 สายทาง หมู่ที่ 18 ตำบลบ้านส้อง อำเภอเวียงสระ จังหวัดสุราษฏร์ธานี
A4: ="ตามแบบ "&ข้อมูลโครงการ!L14 -> ตามแบบ ทต.บ้านส้อง
A7: งานถางป่าและขุดตอ (Clearing and Grubbing)
B8: พิจารณาตามสภาพพื้นที่ | E8: ="ถางป่าขุดตอขนาด"&IF(AA8=1,"เบา",IF(AA8=2,"กลาง","หนัก")) -> ถางป่าขุดตอขนาดเบา | AA8: 1
B9: ค่าดำเนินการ + ค่าเสื่อมราคาเครื่องจักร | K9: = | L9: =IF(AA8=1,รวมตารางคำนวณ!Q11,IF(AA8=2,รวมตารางคำนวณ!Q12,รวมตารางคำนวณ!Q13)) -> 1.7 | M9: บาท/ตร.ม. | N9: [1] (ตารางค่าดำเนินการฯ)
J10: ค่างานต้นทุน | K10: = | L10: =L9 -> 1.7 | M10: บาท/ตร.ม. | N10: [2]=[1]
B11: หมายเหตุ
B12: งานถางป่าขุดตอขนาดเบา | E12: มีเฉพาะการถากถางวัชพืชเท่านั้น
B13: งานถางป่าขุดตอขนาดกลาง | E13: มีการถากถางวัชพืชเท่านั้นและปาดหน้าดินเดิมออกด้วย
B14: งานถางป่าขุดตอขนาดหนัก | E14: มีการตัดโค่นต้นไม้ ขุดตอ ถากถางวัชพืชและปาดหน้าดินเดิมออกด้วย
A16: งานปรับเกลี่ยแต่งคันทางเดิม
B17: ลักษณะงานที่ทำ : ใช้รถเกลี่ยดินถางวัชพืชหน้าดินบริเวณคันทางเดิมและมีการไถปรับคราดหน้าดินด้วย
B18: ใช้ค่างานค่าดำเนินการงานถางป่าขุดตอ ขนาดเบา เนื่องจากมีลักษณะงานใกล้เคียงกัน | K18: = | L18: =Oถางป่า_เบา -> 1.7 | M18: บาท/ตร.ม. | N18: [1] (ตารางค่าดำเนินการฯ)
J19: ค่างานต้นทุน | K19: = | L19: =L18 -> 1.7 | M19: บาท/ตร.ม. | N19: [2]=[1]
A21: งานขุดรื้อคันทางเดิมแล้วบดทับ(ลูกรัง 10 ซม.)
B22: ลักษณะงานที่ทำ : เนื่องจากมีการใช้ผิวทางลูกรังเป็นส่วนหนึ่งของรองพื้นทางใหม่หรือเพื่อรื้อรองพื้นทางเดิมขึ้นมาบดทับใหม่ให้ได้ความหนาแน่นตามข้อกำหนด
B23: ค่าดำเนินการ + ค่าเสื่อมราคาเครื่องจักร | K23: = | L23: =Oขุดรื้อบดทับ_ลูกรัง -> 10.74 | M23: บาท/ตร.ม. | N23: [1] (ตารางค่าดำเนินการฯ)
J24: ค่างานต้นทุน | K24: = | L24: =L23 -> 10.74 | M24: บาท/ตร.ม. | N24: [2]=[1]
A26: งานขุดรื้อคันทางเดิมแล้วบดทับ(หินคลุก 10 ซม.)
B27: ลักษณะงานที่ทำ : เนื่องจากมีการใช้ผิวทางหินคลุกเป็นส่วนหนึ่งของรองพื้นทางใหม่หรือเพื่อรื้อรองพื้นทางเดิมขึ้นมาบดทับใหม่ให้ได้ความหนาแน่นตามข้อกำหนด
B28: ค่าดำเนินการ + ค่าเสื่อมราคาเครื่องจักร | K28: = | L28: =Oขุดรื้อบดทับ_หินคลุก -> 13.9 | M28: บาท/ตร.ม. | N28: [1] (ตารางค่าดำเนินการฯ)
J29: ค่างานต้นทุน | K29: = | L29: =L28 -> 13.9 | M29: บาท/ตร.ม. | N29: [2]=[1]
A31: งานรื้อผิวลาดยางเดิม (Removal of Existing Asphalt Concrete Surface)
B32: ลักษณะงานที่ทำ : ไถคราดลึก 5 ซม. ด้วยรถเกลี่ยติดเล็บคราดและดันรวมกอง ตักออกขึ้นรถบรรทุกด้วยรถตัก การไถคราดใช้ความเร็วและทำงานเหมือนพื้นทาง
C33: แค่คราดลึกเพียงครึ่งของพื้นทาง ดังนั้นค่าดำเนินการและค่าเสื่อมราคาจึงเป็น 2 เท่าของงานขุดพื้นทางรวมกับค่าตักขึ้นรถบรรทุก ค่าตักบรรทุก
C34: เพื่อขนทิ้งเท่ากับค่าดันและตักหินผุ
B35: คิดจากความหนาของผิวทางแอสฟัลท์คอนกรีต = 5 ซม.
B36: ค่าดำเนินการ + ค่าเสื่อม รื้อผิวทางเดิมหนา 5 ซม. | K36: = | L36: =Oขุดรื้อบดทับ_AC -> 11.17 | M36: บาท/ตร.ม. | N36: [1] (ตารางค่าดำเนินการฯ)
B37: ปริมาตรวัสดุที่รื้อออก | G37: = | H37: 0.05 | I37: ลบ.ม.
B38: ส่วนขยาย = | D38: =H37 -> 0.05 | E38: x | F38: 1.6 | G38: = | H38: =TRUNC(D38*F38,2) -> 0.08 | I38: ลบ.ม.
B39: ค่าดำเนินการ + ค่าเสื่อมดันและตัก(หินผุ) | G39: = | H39: =H38 -> 0.08 | I39: x | J39: =Oหินผุ_ดันและตัก -> 39.46 | K39: = | L39: =TRUNC(H39*J39,2) -> 3.15 | M39: บาท/ตร.ม. | N39: [2]
B40: ค่าขนทิ้ง | C40: 0 | D40: กม. | G40: = | H40: =H39 -> 0.08 | I40: x | J40: =IF(C40<1,0,VLOOKUP($C$40,รวมตารางคำนวณ!$F$11:$H$210,3)) -> 0 | K40: = | L40: =TRUNC(H40*J40,2) -> 0 | M40: บาท/ตร.ม. | N40: [3]
B41: (ระยะขนทิ้งให้คิดระยะทางตามความเป็นจริงพร้อมชี้แจงเหตุผลและแสดงหลักฐานประกอบ)
J42: ค่างานต้นทุน | K42: = | L42: =TRUNC(SUM(L36:L40),2) -> 14.32 | M42: บาท/ตร.ม. | N42: [4]=[1]+[2]+[3]
A45: งานรื้อผิวคอนกรีตเดิม (Removal of Existing Concrete Pavement)
B46: ลักษณะงานที่ทำ : ทุบรื้อผิวทางคอนกรีตเดิมพร้อมดันรวมกองและตักขึ้นรถบรรทุกเพื่อขนทิ้ง ค่าตักบรรทุกและขนทิ้งเท่ากับค่าดันและตักหินผุ
B47: คิดจากความหนาของผิวทางคอนกรีต | G47: = | H47: 15 | I47: ซม. | N47: [1]
B48: ปริมาตรคอนกรีต | G48: = | H48: =H47/100 -> 0.15 | I48: ลบ.ม./ตร.ม. | N48: [2]=[1]xพื้นที่ 1 ตร.ม.
B49: ส่วนขยาย = | D49: =H48 -> 0.15 | E49: x | F49: 1.7 | G49: = | H49: =TRUNC(D49*F49,2) -> 0.25 | I49: ลบ.ม. | N49: [3]=[2]xส่วนขยาย 1.7
B50: ค่าทุบคอนกรีตเดิม | G50: = | H50: 400 | I50: บาท/ลบ.ม. | N50: [4]
B51: ค่าทุบคอนกรีต = | E51: =H49 -> 0.25 | F51: x | G51: =H50 -> 400 | K51: = | L51: =TRUNC(E51*G51,2) -> 100 | M51: บาท/ตร.ม. | N51: [5]=[3]x[4]
B52: ค่าดำเนินการ + ค่าเสื่อมดันและตัก(หินผุ) | G52: = | H52: =H49 -> 0.25 | I52: x | J52: =รวมตารางคำนวณ!Q21 -> 39.46 | K52: = | L52: =TRUNC(H52*J52,2) -> 9.86 | M52: บาท/ตร.ม. | N52: [6]
B53: ค่าขนทิ้ง | C53: 0 | D53: กม. | G53: = | H53: =H52 -> 0.25 | I53: x | J53: =IF(C53<1,0,VLOOKUP($C$53,รวมตารางคำนวณ!$F$11:$H$210,3)) -> 0 | K53: = | L53: =TRUNC(H53*J53,2) -> 0 | M53: บาท/ตร.ม. | N53: [7]
B54: (ระยะขนทิ้งให้คิดระยะทางตามความเป็นจริงพร้อมชี้แจงเหตุผลและแสดงหลักฐานประกอบ)
J55: ค่างานต้นทุน | K55: = | L55: =TRUNC(SUM(L51:L53),2) -> 109.86 | M55: บาท/ตร.ม. | N55: [8]=[5]+[6]+[7]
A58: งานรื้อท่อกลมเดิม (Removal of Existing Pipe Culverts)
B59: ลักษณะงานที่ทำ : ขุดรื้อท่อกลมเดิมเพื่อดำเนินการก่อสร้างใหม่หรือเพื่อดำเนินการก่อสร้างสิ่งอื่นทดแทน
B60: คิดจากการขุดรื้อท่อเดิมออกกรณีกำหนดให้รักษาสภาพท่อเดิมไว้ใช้งานต่อ
B61: ขุดห่างจากริมท่อด้านนอกข้างละ 0.50 ม.
B62: คิดจากความยาวท่อ 1.00 ม.
B63: ปริมาตรงานขุด | E63: = | F63: 2 | G63: x | H63: 1.5 | K63: = | L63: =TRUNC(F63*H63,2) -> 3 | M63: ลบ.ม.
B64: ค่าขุดดินและรื้อท่อออก | E64: = | F64: =L63 -> 3 | G64: ลบ.ม. @ | H64: =รวมตารางคำนวณ!Q18 -> 21.09 | K64: = | L64: =TRUNC(F64*H64,2) -> 63.27 | M64: บาท/ม.
B65: กรณีกำหนดให้ขนท่อไปไว้ที่หน่วยงาน คิดค่าขนส่งท่อเพิ่มตามระยะทางขนส่ง
B66: วิธีคิดค่าขนส่งเทียบเคียงการคิดค่าขนส่งท่องานวางท่อ
A68: งานตัดดิน(Earth Excavation)
B69: ลักษณะงานที่ทำ : เป็นงานตัดดินเดิมหรือคันทางเดิมเพื่อขึ้นรูปคันทางให้ได้รูปร่างและระดับตามกำหนด ตัดดันรวมกองและตักขึ้นรถบรรทุกไปทิ้ง โดยใช้รถตักๆ ขึ้นรถ
B70: ค่าดำเนินการ + ค่าเสื่อมราคา (ตัก) | K70: = | L70: =Oดิน_ตัก -> 7.94 | M70: บาท/ลบ.ม. | N70: [1] (ตารางค่าดำเนินการฯ)
B71: ค่าขนทิ้ง | C71: 0 | D71: กม. | K71: = | L71: =IF(C71<1,0,VLOOKUP($C$71,รวมตารางคำนวณ!$F$11:$H$210,3)) -> 0 | M71: บาท/ลบ.ม. | N71: [2] (ตารางค่าขนส่ง)
B72: (ระยะขนทิ้งให้คิดระยะทางตามความเป็นจริงพร้อมชี้แจงเหตุผลและแสดงหลักฐานประกอบ)
C73: รวม | K73: = | L73: =TRUNC(SUM(L70:L71),2) -> 7.94 | M73: บาท/ลบ.ม. | N73: [3]=[1]+[2]
B74: ส่วนขยายตัว | D74: =L73 -> 7.94 | E74: x | F74: 0 | K74: = | L74: =TRUNC(D74*F74,2) -> 0 | M74: บาท/ลบ.ม. | N74: ="[4]=[3]x"&F74 -> [4]=[3]x0
B75: ค่าดำเนินการ + ค่าเสื่อมราคา (ขุดตัด) | K75: = | L75: =Oดิน_ขุดตัด -> 21.09 | M75: บาท/ลบ.ม. | N75: [5] (ตารางค่าดำเนินการฯ)
J76: ค่างานต้นทุน | K76: = | L76: =TRUNC(SUM(L74:L75),2) -> 21.09 | M76: บาท/ลบ.ม. | N76: [6]=[4]+[5]
B77: หมายเหตุ
B78: ส่วนขยายตัวของทราย | G78: = | H78: 1.15
B79: ส่วนขยายตัวของดิน, ดินปนทราย | G79: = | H79: 1.25
A81: งานตัดหินผุ(Soft Rock Excavation)
B82: ลักษณะงานที่ทำ : เป็นงานตัดหินผุเดิมเพื่อขึ้นรูปคันทางให้ได้รูปร่างและระดับตามกำหนด ตัดดันรวมกองและตักขึ้นรถบรรทุกไปทิ้ง โดยใช้รถตักๆ ขึ้นรถ
B83: ค่าดำเนินการ + ค่าเสื่อมราคา (ขุดตัก) | K83: = | L83: =รวมตารางคำนวณ!Q20 -> 31.9 | M83: บาท/ลบ.ม. | N83: [1] (ตารางค่าดำเนินการฯ)
B84: ค่าขนทิ้ง | C84: 0 | D84: กม. | K84: = | L84: =IF(C84<1,0,VLOOKUP($C$84,รวมตารางคำนวณ!$F$11:$H$210,3)) -> 0 | M84: บาท/ลบ.ม. | N84: [2] (ตารางค่าขนส่ง)
B85: (ระยะขนทิ้งให้คิดระยะทางตามความเป็นจริงพร้อมชี้แจงเหตุผลและแสดงหลักฐานประกอบ)
C86: รวม | K86: = | L86: =TRUNC(SUM(L83:L84),2) -> 31.9 | M86: บาท/ลบ.ม. | N86: [3]=[1]+[2]
B87: ส่วนขยายตัว | D87: =L86 -> 31.9 | E87: x | F87: 1.25 | K87: = | L87: =TRUNC(D87*F87,2) -> 39.87 | M87: บาท/ลบ.ม. | N87: ="[4]=[3]x"&F87 -> [4]=[3]x1.25
B88: ค่าดำเนินการ + ค่าเสื่อมราคา (ดันและตัก) | K88: = | L88: =Oหินผุ_ดันและตัก -> 39.46 | M88: บาท/ลบ.ม. | N88: [5] (ตารางค่าดำเนินการฯ)
J89: ค่างานต้นทุน | K89: = | L89: =TRUNC(SUM(L87:L88),2) -> 79.33 | M89: บาท/ลบ.ม. | N89: [6]=[4]+[5]
A91: งานตัดคันทางเดิม งานตัดขึ้นรูปคันทาง(Roadway Excavation)
B92: ลักษณะงานที่ทำ : เป็นงานตัดดินเดิมหรือคันทางเดิมเพื่อขึ้นรูปคันทางให้ได้รูปร่างและระดับตามกำหนด
B93: ค่าวัสดุจากแหล่ง | K93: = | L93: 0 | M93: บาท/ลบ.ม. | N93: [1] ใช้ดินเดิมไม่มีค่าวัสดุ
B94: ค่าดำเนินการ + ค่าเสื่อมราคา (ดิน-ขุดตัด) | K94: = | L94: =รวมตารางคำนวณ!Q18 -> 21.09 | M94: บาท/ลบ.ม. | N94: [2] (ตารางค่าดำเนินการฯ)
C95: รวม | K95: = | L95: =SUM(L93:L94) -> 21.09 | M95: บาท/ลบ.ม. | N95: [3]=[2]+[1]
B96: ส่วนยุบตัว | C96: =L95 -> 21.09 | D96: x | E96: 0 | K96: = | L96: =IF(E96=0,L95,TRUNC(C96*E96,2)) -> 21.09 | M96: บาท/ลบ.ม. | N96: [4]
B97: ค่าตัดแต่งขั้นบันได | L97: =IF(AA97=1,Oตัดแต่งขั้นบันได,0) -> 0 | M97: บาท/ลบ.ม. | N97: [5] | AA97: 2
B98: ค่าดำเนินการ + ค่าเสื่อมราคา (บดทับ) | K98: = | L98: =IF(E96=0,0,Oดิน_บดทับ) -> 0 | M98: บาท/ลบ.ม. | N98: [6] (ตารางค่าดำเนินการ)
J99: ค่างานต้นทุน | K99: = | L99: =TRUNC(SUM(L96:L98),2) -> 21.09 | M99: บาท/ลบ.ม. | N99: [7]=[4]+[5]+[6]
A101: งานดินถมคันทาง(Earth Embankment)
B102: ลักษณะงานที่ทำ : เป็นการขุดเอาวัสดุดินคันทางจากบ่อดินขุดตักขึ้นรถบรรทุกด้วยรถขุดตักมาใช้ทำคันทาง
B103: ค่าวัสดุจากแหล่ง | K103: = | L103: 15 | M103: บาท/ลบ.ม. | N103: [1]
B104: ค่าดำเนินการ + ค่าเสื่อมราคา (ขุด-ขน) | K104: = | L104: =Oดิน_ขุดขน -> 21.34 | M104: บาท/ลบ.ม. | N104: [2] (ตารางค่าดำเนินการฯ)
B105: ค่าขนส่ง | C105: 3 | D105: กม. | K105: = | L105: =IF(C105<1,0,VLOOKUP(C105,รวมตารางคำนวณ!$F$11:$H$210,3)) -> 16.22 | M105: บาท/ลบ.ม. | N105: [3] (ตารางค่าขนส่ง)
C106: รวม | K106: = | L106: =TRUNC(SUM(L103:L105),2) -> 52.56 | M106: บาท/ลบ.ม. | N106: [4]=[1]+[2]+[3]
B107: ส่วนยุบตัว | C107: =L106 -> 52.56 | D107: x | E107: 1.6 | K107: = | L107: =IF(E107=0,L106,TRUNC(C107*E107,2)) -> 84.09 | M107: บาท/ลบ.ม. | N107: [5]
B108: ค่าตัดแต่งขั้นบันได | L108: =IF(AA108=1,Oตัดแต่งขั้นบันได,0)*0 -> 0 | M108: บาท/ลบ.ม. | N108: [6] | AA108: 1
B109: ค่าดำเนินการ + ค่าเสื่อมราคา (บดทับ) | K109: = | L109: =IF(E107=0,0,Oดิน_บดทับ) -> 45.03 | M109: บาท/ลบ.ม. | N109: [7] (ตารางค่าดำเนินการ)
J110: ค่างานต้นทุน | K110: = | L110: =TRUNC(SUM(L107:L109),2) -> 129.12 | M110: บาท/ลบ.ม. | N110: [8]=[5]+[6]+[7]
B113: หมายเหตุ | F113: แนวเก่า | H113: แนวใหม่
B114: ส่วนยุบตัวของทรายถมคันทาง | F114: 1.4 | H114: 1.45
B115: ดิน,ดินปนทราย ถมคันทาง | F115: 1.6 | H115: 1.7
B116: ดินเหนียว ถมคันทาง | F116: 1.85 | H116: 1.9
B117: (ดินเหนียวมีค่า CBR น้อยกว่า 2)
B118: ค่าดินที่แหล่ง | D118: = | E118: ราคาที่ดิน | G118: (บาท/ไร่) | H118: x | I118: 1 | J118: x | K118: 1
E119: 2 | I119: 1600 | K119: 3
A122: งานรองพื้นทางวัสดุมวลรวม(Soil Aggregate Subbase)
B123: ลักษณะงานที่ทำ : เป็นการขุดเอาวัสดุลูกรังจากบ่อดินลูกรังขุดตักขึ้นรถบรรทุกด้วยรถขุดตักมาใช้ทำรองพื้นทางหรือพื้นทางหรือผิวทาง
B124: ค่าวัสดุจากแหล่ง | K124: = | L124: =สรุปวัสดุและค่าดำเนินการ!G26 -> 0 | M124: บาท/ลบ.ม. | N124: [1]
B125: ค่าดำเนินการ + ค่าเสื่อมราคา (ขุด-ขน) | K125: = | L125: =Oลูกรังคัดเลือกรองพื้นทาง_ขุดขน -> 31.47 | M125: บาท/ลบ.ม. | N125: [2] (ตารางค่าดำเนินการฯ)
B126: ค่าขนส่ง | C126: =สรุปวัสดุและค่าดำเนินการ!H26 -> 0 | D126: กม. | K126: = | L126: =IF(C126<1,0,VLOOKUP(C126,รวมตารางคำนวณ!$F$11:$H$210,3)) -> 0 | M126: บาท/ลบ.ม. | N126: [3] (ตารางค่าขนส่ง)
C127: รวม | K127: = | L127: =TRUNC(SUM(L124:L126),2) -> 31.47 | M127: บาท/ลบ.ม. | N127: [4]=[1]+[2]+[3]
B128: ส่วนยุบตัว | C128: =L127 -> 31.47 | D128: x | E128: 1.6 | K128: = | L128: =IF(E128=0,L127,TRUNC(C128*E128,2)) -> 50.35 | M128: บาท/ลบ.ม. | N128: [5]
B129: ค่าดำเนินการ + ค่าเสื่อมราคา (บดทับ) | K129: = | L129: =IF(E128=0,0,Oลูกรังคัดเลือกรองพื้นทาง_บดทับ) -> 54.04 | M129: บาท/ลบ.ม. | N129: [6] (ตารางค่าดำเนินการ)
J130: ค่างานต้นทุน | K130: = | L130: =TRUNC(SUM(L128:L129),2) -> 104.39 | M130: บาท/ลบ.ม. | N130: [7]=[5]+[6]
A132: งานพื้นทางหินคลุก(Crushed Rock Soil Aggregate Type Base)
B133: ลักษณะงานที่ทำ : เป็นการขนวัสดุจากโรงโม่มาทำพื้นทาง มีการคลุกเคล้าหินคลุกด้วยรถเกลี่ยดิน ก่อนที่จะทำการบดอัดและต้องได้ความแน่นตามที่กำหนด
B134: ค่าวัสดุจากปากโม่(รวมค่าตัก) | K134: = | L134: =สรุปวัสดุและค่าดำเนินการ!G24 -> 280 | M134: บาท/ลบ.ม. | N134: [1]
B135: ค่าขนส่ง | C135: =สรุปวัสดุและค่าดำเนินการ!H24 -> 65 | D135: กม. | K135: = | L135: =IF(C135<1,0,VLOOKUP(C135,รวมตารางคำนวณ!$F$11:$H$210,3)) -> 222.07 | M135: บาท/ลบ.ม. | N135: [2] (ตารางค่าขนส่ง)
C136: รวม | K136: = | L136: =TRUNC(SUM(L134:L135),2) -> 502.07 | M136: บาท/ลบ.ม. | N136: [3]=[2]+[3]
B137: ส่วนยุบตัว | C137: =L136 -> 502.07 | D137: x | E137: 1.5 | K137: = | L137: =IF(E137=0,L136,TRUNC(C137*E137,2)) -> 753.1 | M137: บาท/ลบ.ม. | N137: [4]
B138: ค่าดำเนินการ + ค่าเสื่อมราคา (ผสม) | K138: = | L138: =Oหินคลุก_ผสม -> 24.42 | M138: บาท/ลบ.ม. | N138: [5] (ตารางค่าดำเนินการ)
B139: ค่าดำเนินการ + ค่าเสื่อมราคา (บดทับ) | K139: = | L139: =Oหินคลุก_บดทับ -> 85.77 | M139: บาท/ลบ.ม. | N139: [6] (ตารางค่าดำเนินการ)
J140: ค่างานต้นทุน | K140: = | L140: =TRUNC(SUM(L137:L139),2) -> 863.29 | M140: บาท/ลบ.ม. | N140: [7]=[4]+[5]+[6]
A142: งานไหล่ทางวัสดุมวลรวม(Soil Aggregate Shoulder)
B143: ลักษณะงานที่ทำ : ใช้หินแอนไฮไลท์มาใช้ทำไหล่ทาง
B144: ค่าวัสดุจากแหล่ง | K144: = | L144: 150 | M144: บาท/ลบ.ม. | N144: [1]
B145: ค่าดำเนินการ + ค่าเสื่อมราคา (ขุด-ขน) | K145: = | L145: =Oลูกรังคัดเลือกรองพื้นทาง_ขุดขน*0 -> 0 | M145: บาท/ลบ.ม. | N145: [2] (ตารางค่าดำเนินการฯ)
B146: ค่าขนส่ง | C146: 2 | D146: กม. | K146: = | L146: =IF(C146<1,0,VLOOKUP(C146,รวมตารางคำนวณ!$F$11:$H$210,3)) -> 13.76 | M146: บาท/ลบ.ม. | N146: [3] (ตารางค่าขนส่ง)
C147: รวม | K147: = | L147: =TRUNC(SUM(L144:L146),2) -> 163.76 | M147: บาท/ลบ.ม. | N147: [4]=[1]+[2]+[3]
B148: ส่วนยุบตัว | C148: =L147 -> 163.76 | D148: x | E148: 1.5 | K148: = | L148: =IF(E148=0,L147,TRUNC(C148*E148,2)) -> 245.64 | M148: บาท/ลบ.ม. | N148: [5]
B149: ค่าดำเนินการ + ค่าเสื่อมราคา (บดทับ) ใช้แรงงานคนคิด 30% | K149: = | L149: =IF(E148=0,0,Oไหล่ทางลูกรัง_บดทับ)*0.3 -> 20.967 | M149: บาท/ลบ.ม. | N149: [6] (ตารางค่าดำเนินการ)
J150: ค่างานต้นทุน | K150: = | L150: =TRUNC(SUM(L148:L149),2) -> 266.6 | M150: บาท/ลบ.ม. | N150: [7]=[5]+[6]
A152: ="งานทรายรองใต้ผิวจราจรคอนกรีต(Sand Cushion Under Concrete Pavement) หนา "&ข้อมูลโครงการ!P30&" ม." -> งานทรายรองใต้ผิวจราจรคอนกรีต(Sand Cushion Under Concrete Pavement) หนา 0.05 ม.
B153: ลักษณะงานที่ทำ : เป็นการขนทรายจากท่าทราย(กรณีนี้ราคาทรายรวมค่าขุดตักแล้ว)มาเกลี่ยแต่งและบดทับให้ได้แนว ระดับ และรูปร่าวตามที่แสดงไว้ในแบบ
B154: ค่าวัสดุจากแหล่ง(ทรายหยาบ+ทรายถม)/2 | K154: = | L154: =(TRUNC(สรุปวัสดุและค่าดำเนินการ!G25,2)+(สรุปวัสดุและค่าดำเนินการ!G27))/2 -> 300 | M154: บาท/ลบ.ม. | N154: [1]
B155: ค่าขนส่ง = | C155: =สรุปวัสดุและค่าดำเนินการ!H25 -> 60 | D155: กม. | K155: = | L155: =สรุปวัสดุและค่าดำเนินการ!I25 -> 205.14 | M155: บาท/ลบ.ม. | N155: [2] (ตารางค่าขนส่ง)
C156: รวม | K156: = | L156: =TRUNC(SUM(L154:L155),2) -> 505.14 | M156: บาท/ลบ.ม. | N156: [3]=[1]+[2]
B157: ส่วนยุบตัว | C157: =L156 -> 505.14 | D157: x | E157: 1.4 | K157: = | L157: =IF(E157=0,L156,TRUNC(C157*E157,2)) -> 707.19 | M157: บาท/ลบ.ม. | N157: [4]
B158: ค่าดำเนินการ + ค่าเสื่อมราคา (บดทับ 75%) | K158: = | L158: =IF(E157=0,0,TRUNC(Oดิน_บดทับ*0.75,2)) -> 33.77 | M158: บาท/ลบ.ม. | N158: [5] (ตารางค่าดำเนินการ)x75%
J159: ค่างานต้นทุน | K159: = | L159: =ROUND(SUM(L157:L158),2) -> 740.96 | M159: บาท/ลบ.ม. | N159: [6]=[4]+[5]
A163: =BOQ!B14&" (Portland Cement Concrete Pavement)" -> ผิวทางปอร์ตแลนด์ซีเมนต์คอนกรีต 240 ksc(Cube) หนา 0.00 ม. (Portland Cement Concrete Pavement)
B164: ="PANEL SIZE " -> PANEL SIZE | D164: =ปริมาณงาน!L18 -> 2.5 | E164: x | F164: =ปริมาณงาน!L19 -> 10 | G164: ม.
B165: ปริมาณงานทั้งโครงการ | E165: =ปริมาณงาน!L16 -> 50 | G165: ตร.ม.
B166: ค่าติดตั้งเครื่องผสม | D166: ='[22]ค่าดำเนินการ+ค่าเสื่อมราคา'!K54 -> 150000 | F166: / | G166: =IF(E165<28000,28000,E165) -> 28000 | K166: = | L166: =TRUNC(D166/G166,2)*1 -> 5.35 | M166: บาท/ตร.ม.
B167: ค่าคอนกรีต + ค่าผสม = | D167: =IF(ข้อมูลโครงการ!$P$31=ข้อมูลงานคอนกรีต!L4,ข้อมูลงานคอนกรีต!L13,IF(ข้อมูลโครงการ!$P$31=ข้อมูลงานคอนกรีต!K4,ข้อมูลงานคอนกรีต!K19,IF(ข้อมูลโครงการ!$P$31=ข้อมูลงานคอนกรีต!J4,ข้อมูลงานคอนกรีต!J10,IF(ข้อมูลโครงการ!$P$31=ข้อมูลงานคอนกรีต!I4,ข้อมูลงานคอนกรีต!I10,0)))) -> 2143.8676 | F167: + | G167: =Oค่าผสมคอนกรีต -> 188.4 | K167: = | L167: =TRUNC(D167+G167,2) -> 2332.26 | M167: บาท/ลบ.ม.
B168: คิดจากพื้นที่ | D168: =TRUNC(ปริมาณงาน!L20,2) -> 25 | F168: ตร.ม. | N168: [1]
B169: ค่าติดตั้งเครื่องผสม = | E169: =D168 -> 25 | F169: x | G169: =L166 -> 5.35 | K169: = | L169: =TRUNC(E169*G169,2) -> 133.75 | M169: บาท | N169: [2]=[1]xค่าติดตั้งเครื่องผสม
B170: ค่าคอนกรีต | E170: =TRUNC(ปริมาณงาน!L20*ปริมาณงาน!L7,2) -> 0 | F170: ลบ.ม. @ | G170: =L167 -> 2332.26 | K170: = | L170: =TRUNC(E170*G170,2) -> 0 | M170: บาท | N170: [3]
B171: ค่าขนส่ง | C171: =(ปริมาณงาน!L6/1000)/4*1 -> 0.0025 | D171: กม. | E171: =E170 -> 0 | F171: x | G171: =C171 -> 0.0025 | H171: x | I171: =รวมตารางคำนวณ!$Q$61 -> 14.08 | K171: = | L171: =TRUNC(E171*G171*I171,2) -> 0 | M171: บาท | N171: [4]
B172: ค่าเหล็กเสริม | E172: =IF(ข้อมูลโครงการ!$P$38="WIRE MESH",ปริมาณงาน!L24,ปริมาณงาน!L38) -> 25.00 | F172: =IF(ข้อมูลโครงการ!$P$38="WIRE MESH","ตร.ม. @","กก. @") -> ตร.ม. @ | G172: =IF(ข้อมูลโครงการ!$P$38="WIRE MESH",สรุปวัสดุและค่าดำเนินการ!$L$20,IF(AND(ข้อมูลโครงการ!$P$38="เหล็กเส้นกลม",ข้อมูลโครงการ!$P$39=6),TRUNC(สรุปวัสดุและค่าดำเนินการ!$L$13/1000,2),IF(AND(ข้อมูลโครงการ!$P$38="เหล็กเส้นกลม",ข้อมูลโครงการ!$P$39=9),TRUNC(สรุปวัสดุและค่าดำเนินการ!$L$14/1000,2),0))) -> 5 | K172: = | L172: =TRUNC(E172*G172,2) -> 125 | M172: บาท | N172: [5]
B173: ลวดผูกเหล็ก | E173: =ปริมาณงาน!L40 -> 0 | F173: กก. @ | G173: =IF(E173=0,0,สรุปวัสดุและค่าดำเนินการ!L21) -> 0 | K173: = | L173: =TRUNC(E173*G173,2) -> 0 | M173: บาท | N173: [6]
B174: ค่าแบบเหล็ก | E174: =Oค่าแบบข้างตามยาว -> 20.6 | F174: x | G174: =ปริมาณงาน!L19 -> 10 | K174: = | L174: =TRUNC(G174*E174,2) -> 206 | M174: บาท | N174: ="[7]=ค่าดำเนินการx"&G174 -> [7]=ค่าดำเนินการx10
B175: ค่า PAVER | E175: =Oค่าปูผิวคอนกรีต -> 12.02 | F175: x | G175: =ปริมาณงาน!L20 -> 25 | K175: = | L175: =TRUNC(G175*E175,2) -> 300.5 | M175: บาท | N175: [8]=ค่าดำเนินการx[1]
B176: ค่าบ่ม | E176: =Oค่าบ่มผิวทาง -> 9 | F176: x | G176: 25 | K176: = | L176: =TRUNC(G176*E176,2) -> 225 | M176: บาท | N176: [9]=ค่าดำเนินการx[1]
B177: ค่าใช้จ่ายรวม | K177: = | L177: =TRUNC(SUM(L169:L176),2) -> 990.25 | M177: บาท | N177: [10]=[2]+[3]+...+[7]+[9]
B178: ค่างานต้นทุน | D178: =L177 -> 990.25 | F178: / | G178: =D168 -> 25 | K178: = | L178: =TRUNC(D178/G178,2) -> 39.61 | M178: บาท/ตร.ม. | N178: [11]=[10]/[1]
B181: หมายเหตุ
C182: 1. กรณีปริมาณงานทั้งโครงการน้อยกว่า 28,000 ตร.ม. ให้ใช้ค่าติดตั้งโรงงานสำหรับปริมาณงาน 28,000 ตร.ม. ในการประเมินราคา
C183: (คิดจาก ถนน 4 เลน ยาว 2 กม.)
C184: 2. ค่าแบบจากตารางค่าดำเนินการฯ รวม 2 ข้างแล้ว
C185: 3. เหล็กเสริมผิวทางคอนกรีต
B187: ผิวทางคอนกรีต | D187: กว้าง | F187: พื้นที่ | H187: ปริมาณ | J187: ปริมาณ | L187: ปริมาณ | N187: ปริมาณ
H188: คอนกรีต | J188: เหล็กเสริม RB 6 | L188: เหล็กเสริม RB 9 | N188: เหล็ก wire mesh
B189: หนา (ม.) | D189: (ม.) | F189: (ตร.ม.) | H189: (ลบ.ม.) | J189: (กก.) | L189: (กก.) | N189: (ตร.ม.)
B190: =ข้อมูลโครงการ!P27 -> 0 | D190: 2 | F190: =ROUND(D190*$F$164,2) -> 20 | H190: =ROUND(F190*B$190,2) -> 0 | J190: =ROUND(((INT(D190/ข้อมูลโครงการ!$P$41)*$F$164)+(INT('Unit Cost'!$F$164/ข้อมูลโครงการ!$P$40)*D190))*0.222,2) -> 42.62 | L190: =ROUND((INT((D190/ข้อมูลโครงการ!$P$41)*$F$164)+(INT('Unit Cost'!$F$164/ข้อมูลโครงการ!$P$40)*D190))*0.499,2) -> 98.8 | N190: =F190 -> 20
D191: 2.5 | F191: 25 | H191: =ROUND(F191*B$190,2) -> 0 | J191: =ROUND(((INT(D191/ข้อมูลโครงการ!$P$41)*$F$164)+(INT('Unit Cost'!$F$164/ข้อมูลโครงการ!$P$40)*D191))*0.222,2) -> 54.39 | L191: =ROUND((INT((D191/ข้อมูลโครงการ!$P$41)*$F$164)+(INT('Unit Cost'!$F$164/ข้อมูลโครงการ!$P$40)*D191))*0.499,2) -> 123.75 | N191: 25
D192: 3 | F192: 30 | H192: =ROUND(F192*B$190,2) -> 0 | J192: =ROUND(((INT(D192/ข้อมูลโครงการ!$P$41)*$F$164)+(INT('Unit Cost'!$F$164/ข้อมูลโครงการ!$P$40)*D192))*0.222,2) -> 66.16 | L192: =ROUND((INT((D192/ข้อมูลโครงการ!$P$41)*$F$164)+(INT('Unit Cost'!$F$164/ข้อมูลโครงการ!$P$40)*D192))*0.499,2) -> 148.7 | N192: 30
D193: 3.5 | F193: 35 | H193: 0 | J193: =ROUND(((INT(D193/ข้อมูลโครงการ!$P$41)*$F$164)+(INT('Unit Cost'!$F$164/ข้อมูลโครงการ!$P$40)*D193))*0.222,2) -> 75.7 | L193: =ROUND((INT((D193/ข้อมูลโครงการ!$P$41)*$F$164)+(INT('Unit Cost'!$F$164/ข้อมูลโครงการ!$P$40)*D193))*0.499,2) -> 173.15 | N193: 35
D194: 4 | F194: 40 | H194: 0 | J194: =ROUND(((INT(D194/ข้อมูลโครงการ!$P$41)*$F$164)+(INT('Unit Cost'!$F$164/ข้อมูลโครงการ!$P$40)*D194))*0.222,2) -> 87.47 | L194: =ROUND((INT((D194/ข้อมูลโครงการ!$P$41)*$F$164)+(INT('Unit Cost'!$F$164/ข้อมูลโครงการ!$P$40)*D194))*0.499,2) -> 198.1 | N194: 40
D195: 4.5 | F195: 45 | H195: 0 | J195: =ROUND(((INT(D195/ข้อมูลโครงการ!$P$41)*$F$164)+(INT('Unit Cost'!$F$164/ข้อมูลโครงการ!$P$40)*D195))*0.222,2) -> 99.23 | L195: =ROUND((INT((D195/ข้อมูลโครงการ!$P$41)*$F$164)+(INT('Unit Cost'!$F$164/ข้อมูลโครงการ!$P$40)*D195))*0.499,2) -> 223.05 | N195: 45
D196: 5 | F196: 50 | H196: 0 | J196: =ROUND(((INT(D196/ข้อมูลโครงการ!$P$41)*$F$164)+(INT('Unit Cost'!$F$164/ข้อมูลโครงการ!$P$40)*D196))*0.222,2) -> 108.78 | L196: =ROUND((INT((D196/ข้อมูลโครงการ!$P$41)*$F$164)+(INT('Unit Cost'!$F$164/ข้อมูลโครงการ!$P$40)*D196))*0.499,2) -> 247.5 | N196: 50
D197: 6 | F197: 60 | H197: 0 | J197: =ROUND(((INT(D197/ข้อมูลโครงการ!$P$41)*$F$164)+(INT('Unit Cost'!$F$164/ข้อมูลโครงการ!$P$40)*D197))*0.222,2) -> 132.31 | L197: =ROUND((INT((D197/ข้อมูลโครงการ!$P$41)*$F$164)+(INT('Unit Cost'!$F$164/ข้อมูลโครงการ!$P$40)*D197))*0.499,2) -> 297.4 | N197: 60
B198: ปริมาณวัสดุยังไม่รวมส่วนสูญเสีย
A202: รอยต่อเพื่อขยายตัวตามขวาง(Expansion Joint)
B203: คิดจากความยาว | E203: =ปริมาณงาน!L18 -> 2.5 | F203: ม. | L203: [1]
B204: ="ค่าเหล็ก RB "&ข้อมูลโครงการ!$P$54 -> ค่าเหล็ก RB 19 | E204: =HLOOKUP($E$203,$E$221:$L$228,3) -> 5.58 | F204: กก. @ | G204: =TRUNC(IF(ข้อมูลโครงการ!$P$54=15,สรุปวัสดุและค่าดำเนินการ!$L$16/1000,สรุปวัสดุและค่าดำเนินการ!$L$17/1000),2) -> 22.66 | H204: บาท | I204: = | J204: =TRUNC(G204*E204,2) -> 126.44 | K204: บาท | L204: [2]
B205: CAP + ทาสี + จาระบี | E205: =HLOOKUP($E$203,$E$221:$L$228,4) -> 5 | F205: ชุด @ | G205: =ROUND(H$230+H$234,2) -> 7.56 | H205: บาท | I205: = | J205: =TRUNC(G205*E205,2) -> 37.8 | K205: บาท | L205: [3]
B206: JOINT FILLER | E206: =HLOOKUP($E$203,$E$221:$L$228,5) -> -0.05 | F206: ตร.ม. @ | G206: =H$231 -> 34.72 | H206: บาท | I206: = | J206: -1.73 | K206: บาท | L206: [4]
B207: JOINT SEALER | E207: =HLOOKUP($E$203,$E$221:$L$228,6) -> 1 | F207: ลิตร @ | G207: =H$232 -> 45 | H207: บาท | I207: = | J207: 45 | K207: บาท | L207: [5]
B208: ค่าหยอดยาง | E208: =E203 -> 2.5 | F208: ม. @ | G208: =รวมตารางคำนวณ!Q65 -> 14.1 | H208: บาท | I208: = | J208: 35.25 | K208: บาท | L208: [6] (จากตารางค่าดำเนินการฯ)
B209: แผ่นพลาสติก | E209: =HLOOKUP($E$203,$E$221:$L$228,7) -> 3 | F209: ม. @ | G209: =H$233 -> 10 | H209: บาท | I209: = | J209: 0 | K209: บาท | L209: [7] (ไม่คิดค่าใช้จ่าย)
B210: ไม้แบบ (2) | E210: =HLOOKUP($E$203,$E$221:$L$228,8) -> 0 | F210: ตร.ม. @ | G210: =ข้อมูลงานคอนกรีต!AH26 -> 267 | H210: บาท | I210: = | J210: 0 | K210: บาท | L210: [8]
B211: ค่าใช้จ่ายรวม | I211: = | J211: =TRUNC(SUM(J204:J210),2) -> 242.76 | K211: บาท | L211: [9]=[2]+[3]+[4]+[5]+[6]+[7]+[8]
B212: ค่างานต้นทุน | E212: =J211 -> 242.76 | F212: / | G212: =E203 -> 2.5 | I212: = | J212: =TRUNC(J211/G212,2) -> 97.1 | K212: บาท/ม. | L212: [10]=[9]/[1]
B220: หมายเหตุ
B221: ความกว้างช่องจราจร (ม.) | E221: 2 | F221: 2.5 | G221: 3 | H221: 3.5 | I221: 4 | J221: 4.5 | K221: 5 | L221: 6
B222: ความหนา (ม.) | E222: =B190 -> 0 | F222: =E222 -> 0 | G222: =F222 -> 0 | H222: =G222 -> 0 | I222: 0 | J222: 0 | K222: 0 | L222: 0
B223: ="DOWEL BAR RB "&ข้อมูลโครงการ!P54&" (กก.)" -> DOWEL BAR RB 19 (กก.) | E223: =ROUND(((INT((E221/ข้อมูลโครงการ!$P$55))*ข้อมูลโครงการ!$P$53))*IF(ข้อมูลโครงการ!$P$54=15,1.39,IF(ข้อมูลโครงการ!$P$54=19,2.23)),2) -> 4.46 | F223: =ROUND(((INT((F221/ข้อมูลโครงการ!$P$55))*ข้อมูลโครงการ!$P$53))*IF(ข้อมูลโครงการ!$P$54=15,1.39,IF(ข้อมูลโครงการ!$P$54=19,2.23)),2) -> 5.58 | G223: =ROUND(((INT((G221/ข้อมูลโครงการ!$P$55))*ข้อมูลโครงการ!$P$53))*IF(ข้อมูลโครงการ!$P$54=15,1.39,IF(ข้อมูลโครงการ!$P$54=19,2.23)),2) -> 6.69 | H223: =ROUND(((INT((H221/ข้อมูลโครงการ!$P$55))*ข้อมูลโครงการ!$P$53))*IF(ข้อมูลโครงการ!$P$54=15,1.39,IF(ข้อมูลโครงการ!$P$54=19,2.23)),2) -> 7.81 | I223: =ROUND(((INT((I221/ข้อมูลโครงการ!$P$55))*ข้อมูลโครงการ!$P$53))*IF(ข้อมูลโครงการ!$P$54=15,1.39,IF(ข้อมูลโครงการ!$P$54=19,2.23)),2) -> 8.92 | J223: =ROUND(((INT((J221/ข้อมูลโครงการ!$P$55))*ข้อมูลโครงการ!$P$53))*IF(ข้อมูลโครงการ!$P$54=15,1.39,IF(ข้อมูลโครงการ!$P$54=19,2.23)),2) -> 10.04 | K223: =ROUND(((INT((K221/ข้อมูลโครงการ!$P$55))*ข้อมูลโครงการ!$P$53))*IF(ข้อมูลโครงการ!$P$54=15,1.39,IF(ข้อมูลโครงการ!$P$54=19,2.23)),2) -> 11.15 | L223: =ROUND(((INT((L221/ข้อมูลโครงการ!$P$55))*ข้อมูลโครงการ!$P$53))*IF(ข้อมูลโครงการ!$P$54=15,1.39,IF(ข้อมูลโครงการ!$P$54=19,2.23)),2) -> 13.38
B224: METAL CAP (ชุด) | E224: =INT(E221/ข้อมูลโครงการ!$P$55) -> 4 | F224: =INT(F221/ข้อมูลโครงการ!$P$55) -> 5 | G224: =INT(G221/ข้อมูลโครงการ!$P$55) -> 6 | H224: =INT(H221/ข้อมูลโครงการ!$P$55) -> 7 | I224: =INT(I221/ข้อมูลโครงการ!$P$55) -> 8 | J224: =INT(J221/ข้อมูลโครงการ!$P$55) -> 9 | K224: =INT(K221/ข้อมูลโครงการ!$P$55) -> 10 | L224: =INT(L221/ข้อมูลโครงการ!$P$55) -> 12
B225: JOINT FILLER (ตร.ม.) | E225: =ROUND(E221*(E222-ข้อมูลโครงการ!$P$51/100),2) -> -0.04 | F225: =ROUND(F221*(F222-ข้อมูลโครงการ!$P$51/100),2) -> -0.05 | G225: =ROUND(G221*(G222-ข้อมูลโครงการ!$P$51/100),2) -> -0.06 | H225: =ROUND(H221*(H222-ข้อมูลโครงการ!$P$51/100),2) -> -0.07 | I225: =ROUND(I221*(I222-ข้อมูลโครงการ!$P$51/100),2) -> -0.08 | J225: =ROUND(J221*(J222-ข้อมูลโครงการ!$P$51/100),2) -> -0.09 | K225: =ROUND(K221*(K222-ข้อมูลโครงการ!$P$51/100),2) -> -0.1 | L225: =ROUND(L221*(L222-ข้อมูลโครงการ!$P$51/100),2) -> -0.12
B226: JOINT SEALER (ลิตร) | E226: =ROUND(E221*(ข้อมูลโครงการ!$P$50/100)*(ข้อมูลโครงการ!$P$51/100)*1000,2) -> 0.8 | F226: =ROUND(F221*(ข้อมูลโครงการ!$P$50/100)*(ข้อมูลโครงการ!$P$51/100)*1000,2) -> 1 | G226: =ROUND(G221*(ข้อมูลโครงการ!$P$50/100)*(ข้อมูลโครงการ!$P$51/100)*1000,2) -> 1.2 | H226: =ROUND(H221*(ข้อมูลโครงการ!$P$50/100)*(ข้อมูลโครงการ!$P$51/100)*1000,2) -> 1.4 | I226: =ROUND(I221*(ข้อมูลโครงการ!$P$50/100)*(ข้อมูลโครงการ!$P$51/100)*1000,2) -> 1.6 | J226: =ROUND(J221*(ข้อมูลโครงการ!$P$50/100)*(ข้อมูลโครงการ!$P$51/100)*1000,2) -> 1.8 | K226: =ROUND(K221*(ข้อมูลโครงการ!$P$50/100)*(ข้อมูลโครงการ!$P$51/100)*1000,2) -> 2 | L226: =ROUND(L221*(ข้อมูลโครงการ!$P$50/100)*(ข้อมูลโครงการ!$P$51/100)*1000,2) -> 2.4
B227: แผ่นพลาสติก (ตร.ม.) | E227: =ROUND(E221*1.2,2) -> 2.4 | F227: 3 | G227: 3.6 | H227: 4.2 | I227: 4.8 | J227: 5.4 | K227: 6 | L227: 7.2
B228: ไม้แบบ (ตร.ม.) | E228: =ROUND(E221*E222,2) -> 0 | F228: 0 | G228: 0 | H228: 0 | I228: 0 | J228: 0 | K228: 0 | L228: 0
B230: Cap | E230: ราคาชุดละ | G230: @ | H230: =ROUND(สรุปวัสดุและค่าดำเนินการ!L44/(4/(ข้อมูลโครงการ!P53/2)),2) -> 3.56 | I230: บาท (ประมาณ)
B231: Joint Filler(แผ่นโฟม) | E231: ราคาตารางเมตรละ | G231: @ | H231: =ROUND(สรุปวัสดุและค่าดำเนินการ!L43/(0.6*1.2),2) -> 34.72 | I231: บาท (ประมาณ)
B232: Joint Sealer | E232: ลิตรละ | G232: @ | H232: 45 | I232: บาท (ประมาณ)
B233: แผ่นพลาสติก | E233: เมตรละ | G233: @ | H233: 10 | I233: บาท (ประมาณ)
B234: ทาสี + จาระบี | E234: ราคาชุดละ | G234: @ | H234: 4 | I234: บาท (ประมาณ)
B235: (ราคาวัสดุต่าง ๆ ให้ตรวจสอบในท้องตลาดก่อนประเมินราคา)
A237: รอยต่อเพื่อหดตามขวาง(Contraction Joint)
B238: คิดจากความยาว | E238: =E203 -> 2.5 | F238: ม. | L238: [1]
B239: ="ค่าเหล็ก RB "&ข้อมูลโครงการ!$P$54 -> ค่าเหล็ก RB 19 | E239: =HLOOKUP($E$238,$E$248:$L$254,3) -> 5.58 | F239: กก. @ | G239: =TRUNC(IF(ข้อมูลโครงการ!$P$61=15,สรุปวัสดุและค่าดำเนินการ!$L$16/1000,สรุปวัสดุและค่าดำเนินการ!$L$17/1000),2) -> 22.66 | H239: บาท | I239: = | J239: =TRUNC(G239*E239,2) -> 126.44 | K239: บาท | L239: [2]
... 122 more rows

Sheet รวมตารางคำนวณ (hidden)
B2: แนะนำการนำข้อมูลไปใช้
C3: การดึงข้อมูลไปใช้ด้วยฟังก์ชั่น VLOOKUP ตัวอย่างกรณีหาค่าขนส่งรถ 10 ล้อ ระยะขนส่ง 5 กม. ต้องการค่าบรรทุกหน่วยเป็น บาท/ ลบ.ม. พิมพ์ =VLOOKUP(E4,F10:H209,3)
C4: E4 คือ ระยะขนส่ง 5 กม. F10:H209 ขอบเขตของตารางค่าขนส่งรถ 10 ล้อ เลข 3 คือ คอลัมน์ของขอบเขตตารางที่ให้แสดงค่า ในที่นี้ต้องการให้แสดงค่าบรรทุกหน่วยเป็น ลบ.ม. จึงเป็น คอลัมน์ที่ 3 หากต้องการหน่วยเป็นตันให้เปลี่ยนเป็นเลข 2
B5: Ex. | C5: ระยะขนส่ง | E5: 5 | F5: กม. | G5: ผลลัพธ์ | H5: =VLOOKUP(E5,F11:H210,3) -> 21.15 | I5: บาท/ลบ.ม.
B7: ตารางค่าขนส่งรถ 6 ล้อ | F7: ตารางค่าขนส่งรถ 10 ล้อ | J7: ตารางค่าขนส่งรถ 10 ล้อ + พ่วง | N7: ='ค่าดำเนินการ+ค่าเสื่อมราคา'!B1 -> ตารางค่าดำเนินการและค่าเสื่อมราคา
B8: น้ำมัน | C8: ='รถ 6 ล้อ'!C2:E2 -> 28.5 | F8: น้ำมัน | G8: ='รถ 10 ล้อ'!C2 -> 28.5 | J8: น้ำมัน | K8: ='รถ 10 ล้อ+พ่วง'!C2 -> 28.5 | N8: ลำดับ | O8: ลักษณะงาน | P8: หน่วย | Q8: พื้นที่
B9: ='รถ 6 ล้อ'!B2:D2 -> ระยะขนส่ง | C9: ='รถ 6 ล้อ'!C3:E3 -> ค่าบรรทุก | D9: ='รถ 6 ล้อ'!D3:F3 -> ค่าบรรทุก | F9: ='รถ 10 ล้อ'!B2 -> ระยะขนส่ง | G9: ='รถ 10 ล้อ'!C3 -> ค่าบรรทุก | H9: ='รถ 10 ล้อ'!D3 -> ค่าบรรทุก | J9: ='รถ 10 ล้อ+พ่วง'!B2 -> ระยะขนส่ง | K9: ='รถ 10 ล้อ+พ่วง'!C3 -> ค่าบรรทุก | L9: ='รถ 10 ล้อ+พ่วง'!D3 -> ค่าบรรทุก | Q9: =IF(ข้อมูลโครงการ!L6="จังหวัดอื่นๆ","ปกติ","ฝนชุก") -> ปกติ
B10: ='รถ 6 ล้อ'!B3:D3 -> กม. | C10: ='รถ 6 ล้อ'!C4:E4 -> บาท/ตัน | D10: ='รถ 6 ล้อ'!D4:F4 -> บาท/ลบ.ม. | F10: ='รถ 10 ล้อ'!B3 -> กม. | G10: ='รถ 10 ล้อ'!C4 -> บาท/ตัน | H10: ='รถ 10 ล้อ'!D4 -> บาท/ลบ.ม. | J10: ='รถ 10 ล้อ+พ่วง'!B3 -> กม. | K10: ='รถ 10 ล้อ+พ่วง'!C4 -> บาท/ตัน | L10: ='รถ 10 ล้อ+พ่วง'!D4 -> บาท/ลบ.ม. | N10: 1 | O10: งานถางป่าขุดตอ
B11: ='รถ 6 ล้อ'!B5:D5 -> 1 | C11: ='รถ 6 ล้อ'!C5:E5 -> 13.61 | D11: ='รถ 6 ล้อ'!D5:F5 -> 19.05 | F11: ='รถ 10 ล้อ'!B5 -> 1 | G11: ='รถ 10 ล้อ'!C5 -> 8.07 | H11: ='รถ 10 ล้อ'!D5 -> 11.29 | J11: ='รถ 10 ล้อ+พ่วง'!B5 -> 1 | K11: ='รถ 10 ล้อ+พ่วง'!C5 -> 4.45 | L11: ='รถ 10 ล้อ+พ่วง'!D5 -> 6.23 | O11: ขนาดเบา | P11: ตรม. | Q11: =IF($Q$9="ปกติ",'ค่าดำเนินการ+ค่าเสื่อมราคา'!H6,'ค่าดำเนินการ+ค่าเสื่อมราคา'!I6) -> 1.7
B12: ='รถ 6 ล้อ'!B6:D6 -> 2 | C12: ='รถ 6 ล้อ'!C6:E6 -> 15.31 | D12: ='รถ 6 ล้อ'!D6:F6 -> 21.44 | F12: ='รถ 10 ล้อ'!B6 -> 2 | G12: ='รถ 10 ล้อ'!C6 -> 9.83 | H12: ='รถ 10 ล้อ'!D6 -> 13.76 | J12: ='รถ 10 ล้อ+พ่วง'!B6 -> 2 | K12: ='รถ 10 ล้อ+พ่วง'!C6 -> 5.78 | L12: ='รถ 10 ล้อ+พ่วง'!D6 -> 8.1 | O12: ขนาดกลาง | P12: ตรม. | Q12: =IF($Q$9="ปกติ",'ค่าดำเนินการ+ค่าเสื่อมราคา'!H7,'ค่าดำเนินการ+ค่าเสื่อมราคา'!I7) -> 3.6
B13: ='รถ 6 ล้อ'!B7:D7 -> 3 | C13: ='รถ 6 ล้อ'!C7:E7 -> 17.02 | D13: ='รถ 6 ล้อ'!D7:F7 -> 23.82 | F13: ='รถ 10 ล้อ'!B7 -> 3 | G13: ='รถ 10 ล้อ'!C7 -> 11.59 | H13: ='รถ 10 ล้อ'!D7 -> 16.22 | J13: ='รถ 10 ล้อ+พ่วง'!B7 -> 3 | K13: ='รถ 10 ล้อ+พ่วง'!C7 -> 7.12 | L13: ='รถ 10 ล้อ+พ่วง'!D7 -> 9.96 | O13: ขนาดหนัก | P13: ตรม. | Q13: =IF($Q$9="ปกติ",'ค่าดำเนินการ+ค่าเสื่อมราคา'!H8,'ค่าดำเนินการ+ค่าเสื่อมราคา'!I8) -> 5.41
B14: ='รถ 6 ล้อ'!B8:D8 -> 4 | C14: ='รถ 6 ล้อ'!C8:E8 -> 18.72 | D14: ='รถ 6 ล้อ'!D8:F8 -> 26.21 | F14: ='รถ 10 ล้อ'!B8 -> 4 | G14: ='รถ 10 ล้อ'!C8 -> 13.35 | H14: ='รถ 10 ล้อ'!D8 -> 18.69 | J14: ='รถ 10 ล้อ+พ่วง'!B8 -> 4 | K14: ='รถ 10 ล้อ+พ่วง'!C8 -> 8.45 | L14: ='รถ 10 ล้อ+พ่วง'!D8 -> 11.83 | N14: 2 | O14: งานดินคันทาง
B15: ='รถ 6 ล้อ'!B9:D9 -> 5 | C15: ='รถ 6 ล้อ'!C9:E9 -> 20.42 | D15: ='รถ 6 ล้อ'!D9:F9 -> 28.59 | F15: ='รถ 10 ล้อ'!B9 -> 5 | G15: ='รถ 10 ล้อ'!C9 -> 15.11 | H15: ='รถ 10 ล้อ'!D9 -> 21.15 | J15: ='รถ 10 ล้อ+พ่วง'!B9 -> 5 | K15: ='รถ 10 ล้อ+พ่วง'!C9 -> 9.78 | L15: ='รถ 10 ล้อ+พ่วง'!D9 -> 13.7 | O15: ขุด - ขน | P15: ลบม. หลวม | Q15: =IF($Q$9="ปกติ",'ค่าดำเนินการ+ค่าเสื่อมราคา'!H10,'ค่าดำเนินการ+ค่าเสื่อมราคา'!I10) -> 21.34
B16: ='รถ 6 ล้อ'!B10:D10 -> 6 | C16: ='รถ 6 ล้อ'!C10:E10 -> 22.13 | D16: ='รถ 6 ล้อ'!D10:F10 -> 30.98 | F16: ='รถ 10 ล้อ'!B10 -> 6 | G16: ='รถ 10 ล้อ'!C10 -> 16.87 | H16: ='รถ 10 ล้อ'!D10 -> 23.62 | J16: ='รถ 10 ล้อ+พ่วง'!B10 -> 6 | K16: ='รถ 10 ล้อ+พ่วง'!C10 -> 11.12 | L16: ='รถ 10 ล้อ+พ่วง'!D10 -> 15.56 | O16: บดทับ | P16: ลบม. แน่น | Q16: =IF($Q$9="ปกติ",'ค่าดำเนินการ+ค่าเสื่อมราคา'!H11,'ค่าดำเนินการ+ค่าเสื่อมราคา'!I11) -> 45.03
B17: ='รถ 6 ล้อ'!B11:D11 -> 7 | C17: ='รถ 6 ล้อ'!C11:E11 -> 24.5 | D17: ='รถ 6 ล้อ'!D11:F11 -> 34.31 | F17: ='รถ 10 ล้อ'!B11 -> 7 | G17: ='รถ 10 ล้อ'!C11 -> 18.63 | H17: ='รถ 10 ล้อ'!D11 -> 26.08 | J17: ='รถ 10 ล้อ+พ่วง'!B11 -> 7 | K17: ='รถ 10 ล้อ+พ่วง'!C11 -> 12.45 | L17: ='รถ 10 ล้อ+พ่วง'!D11 -> 17.43 | N17: 3 | O17: งานตัด - ขึ้นรูปคันทาง
B18: ='รถ 6 ล้อ'!B12:D12 -> 8 | C18: ='รถ 6 ล้อ'!C12:E12 -> 27.66 | D18: ='รถ 6 ล้อ'!D12:F12 -> 38.73 | F18: ='รถ 10 ล้อ'!B12 -> 8 | G18: ='รถ 10 ล้อ'!C12 -> 20.63 | H18: ='รถ 10 ล้อ'!D12 -> 28.88 | J18: ='รถ 10 ล้อ+พ่วง'!B12 -> 8 | K18: ='รถ 10 ล้อ+พ่วง'!C12 -> 13.78 | L18: ='รถ 10 ล้อ+พ่วง'!D12 -> 19.3 | O18: ดิน - ขุดตัด | P18: ลบม. ปกติ | Q18: =IF($Q$9="ปกติ",'ค่าดำเนินการ+ค่าเสื่อมราคา'!H13,'ค่าดำเนินการ+ค่าเสื่อมราคา'!I13) -> 21.09
B19: ='รถ 6 ล้อ'!B13:D13 -> 9 | C19: ='รถ 6 ล้อ'!C13:E13 -> 30.82 | D19: ='รถ 6 ล้อ'!D13:F13 -> 43.15 | F19: ='รถ 10 ล้อ'!B13 -> 9 | G19: ='รถ 10 ล้อ'!C13 -> 23.05 | H19: ='รถ 10 ล้อ'!D13 -> 32.27 | J19: ='รถ 10 ล้อ+พ่วง'!B13 -> 9 | K19: ='รถ 10 ล้อ+พ่วง'!C13 -> 15.12 | L19: ='รถ 10 ล้อ+พ่วง'!D13 -> 21.17 | O19: - ตัก | P19: ลบม. หลวม | Q19: =IF($Q$9="ปกติ",'ค่าดำเนินการ+ค่าเสื่อมราคา'!H14,'ค่าดำเนินการ+ค่าเสื่อมราคา'!I14) -> 7.94
B20: ='รถ 6 ล้อ'!B14:D14 -> 10 | C20: ='รถ 6 ล้อ'!C14:E14 -> 33.99 | D20: ='รถ 6 ล้อ'!D14:F14 -> 47.58 | F20: ='รถ 10 ล้อ'!B14 -> 10 | G20: ='รถ 10 ล้อ'!C14 -> 25.47 | H20: ='รถ 10 ล้อ'!D14 -> 35.66 | J20: ='รถ 10 ล้อ+พ่วง'!B14 -> 10 | K20: ='รถ 10 ล้อ+พ่วง'!C14 -> 16.45 | L20: ='รถ 10 ล้อ+พ่วง'!D14 -> 23.03 | O20: หินผุ - ขุดตัด | P20: ลบม. ปกติ | Q20: =IF($Q$9="ปกติ",'ค่าดำเนินการ+ค่าเสื่อมราคา'!H15,'ค่าดำเนินการ+ค่าเสื่อมราคา'!I15) -> 31.9
B21: ='รถ 6 ล้อ'!B15:D15 -> 11 | C21: ='รถ 6 ล้อ'!C15:E15 -> 37.15 | D21: ='รถ 6 ล้อ'!D15:F15 -> 52 | F21: ='รถ 10 ล้อ'!B15 -> 11 | G21: ='รถ 10 ล้อ'!C15 -> 27.89 | H21: ='รถ 10 ล้อ'!D15 -> 39.05 | J21: ='รถ 10 ล้อ+พ่วง'!B15 -> 11 | K21: ='รถ 10 ล้อ+พ่วง'!C15 -> 17.79 | L21: ='รถ 10 ล้อ+พ่วง'!D15 -> 24.9 | O21: - ดันและตัก | P21: ลบม. หลวม | Q21: =IF($Q$9="ปกติ",'ค่าดำเนินการ+ค่าเสื่อมราคา'!H16,'ค่าดำเนินการ+ค่าเสื่อมราคา'!I16) -> 39.46
B22: ='รถ 6 ล้อ'!B16:D16 -> 12 | C22: ='รถ 6 ล้อ'!C16:E16 -> 40.31 | D22: ='รถ 6 ล้อ'!D16:F16 -> 56.43 | F22: ='รถ 10 ล้อ'!B16 -> 12 | G22: ='รถ 10 ล้อ'!C16 -> 30.31 | H22: ='รถ 10 ล้อ'!D16 -> 42.43 | J22: ='รถ 10 ล้อ+พ่วง'!B16 -> 12 | K22: ='รถ 10 ล้อ+พ่วง'!C16 -> 19.12 | L22: ='รถ 10 ล้อ+พ่วง'!D16 -> 26.77 | O22: หินแข็ง - เจาะระเบิด | P22: ลบม. ปกติ | Q22: =IF($Q$9="ปกติ",'ค่าดำเนินการ+ค่าเสื่อมราคา'!H17,'ค่าดำเนินการ+ค่าเสื่อมราคา'!I17) -> 66.7
B23: ='รถ 6 ล้อ'!B17:D17 -> 13 | C23: ='รถ 6 ล้อ'!C17:E17 -> 43.47 | D23: ='รถ 6 ล้อ'!D17:F17 -> 60.85 | F23: ='รถ 10 ล้อ'!B17 -> 13 | G23: ='รถ 10 ล้อ'!C17 -> 32.73 | H23: ='รถ 10 ล้อ'!D17 -> 45.82 | J23: ='รถ 10 ล้อ+พ่วง'!B17 -> 13 | K23: ='รถ 10 ล้อ+พ่วง'!C17 -> 20.45 | L23: ='รถ 10 ล้อ+พ่วง'!D17 -> 28.64 | O23: - ดันและตัก | P23: ลบม. หลวม | Q23: =IF($Q$9="ปกติ",'ค่าดำเนินการ+ค่าเสื่อมราคา'!H18,'ค่าดำเนินการ+ค่าเสื่อมราคา'!I18) -> 74.79
B24: ='รถ 6 ล้อ'!B18:D18 -> 14 | C24: ='รถ 6 ล้อ'!C18:E18 -> 46.63 | D24: ='รถ 6 ล้อ'!D18:F18 -> 65.28 | F24: ='รถ 10 ล้อ'!B18 -> 14 | G24: ='รถ 10 ล้อ'!C18 -> 35.15 | H24: ='รถ 10 ล้อ'!D18 -> 49.21 | J24: ='รถ 10 ล้อ+พ่วง'!B18 -> 14 | K24: ='รถ 10 ล้อ+พ่วง'!C18 -> 21.79 | L24: ='รถ 10 ล้อ+พ่วง'!D18 -> 30.5 | N24: 4 | O24: งานวัสดุคัดเลือก ลูกรังรองพื้นทาง
B25: ='รถ 6 ล้อ'!B19:D19 -> 15 | C25: ='รถ 6 ล้อ'!C19:E19 -> 49.79 | D25: ='รถ 6 ล้อ'!D19:F19 -> 69.7 | F25: ='รถ 10 ล้อ'!B19 -> 15 | G25: ='รถ 10 ล้อ'!C19 -> 37.57 | H25: ='รถ 10 ล้อ'!D19 -> 52.6 | J25: ='รถ 10 ล้อ+พ่วง'!B19 -> 15 | K25: ='รถ 10 ล้อ+พ่วง'!C19 -> 23.18 | L25: ='รถ 10 ล้อ+พ่วง'!D19 -> 32.45 | O25: ขุด - ขน | P25: ลบม. หลวม | Q25: =IF($Q$9="ปกติ",'ค่าดำเนินการ+ค่าเสื่อมราคา'!H20,'ค่าดำเนินการ+ค่าเสื่อมราคา'!I20) -> 31.47
B26: ='รถ 6 ล้อ'!B20:D20 -> 16 | C26: ='รถ 6 ล้อ'!C20:E20 -> 52.95 | D26: ='รถ 6 ล้อ'!D20:F20 -> 74.13 | F26: ='รถ 10 ล้อ'!B20 -> 16 | G26: ='รถ 10 ล้อ'!C20 -> 40 | H26: ='รถ 10 ล้อ'!D20 -> 55.99 | J26: ='รถ 10 ล้อ+พ่วง'!B20 -> 16 | K26: ='รถ 10 ล้อ+พ่วง'!C20 -> 24.68 | L26: ='รถ 10 ล้อ+พ่วง'!D20 -> 34.55 | O26: ผสม ( ผสมกับวัสดุอื่นๆ ) | P26: ลบม. แน่น | Q26: =IF($Q$9="ปกติ",'ค่าดำเนินการ+ค่าเสื่อมราคา'!H21,'ค่าดำเนินการ+ค่าเสื่อมราคา'!I21) -> 9.59
B27: ='รถ 6 ล้อ'!B21:D21 -> 17 | C27: ='รถ 6 ล้อ'!C21:E21 -> 56.11 | D27: ='รถ 6 ล้อ'!D21:F21 -> 78.55 | F27: ='รถ 10 ล้อ'!B21 -> 17 | G27: ='รถ 10 ล้อ'!C21 -> 42.41 | H27: ='รถ 10 ล้อ'!D21 -> 59.38 | J27: ='รถ 10 ล้อ+พ่วง'!B21 -> 17 | K27: ='รถ 10 ล้อ+พ่วง'!C21 -> 26.19 | L27: ='รถ 10 ล้อ+พ่วง'!D21 -> 36.66 | O27: บดทับ | P27: ลบม. แน่น | Q27: =IF($Q$9="ปกติ",'ค่าดำเนินการ+ค่าเสื่อมราคา'!H22,'ค่าดำเนินการ+ค่าเสื่อมราคา'!I22) -> 54.04
B28: ='รถ 6 ล้อ'!B22:D22 -> 18 | C28: ='รถ 6 ล้อ'!C22:E22 -> 59.27 | D28: ='รถ 6 ล้อ'!D22:F22 -> 82.98 | F28: ='รถ 10 ล้อ'!B22 -> 18 | G28: ='รถ 10 ล้อ'!C22 -> 44.83 | H28: ='รถ 10 ล้อ'!D22 -> 62.77 | J28: ='รถ 10 ล้อ+พ่วง'!B22 -> 18 | K28: ='รถ 10 ล้อ+พ่วง'!C22 -> 27.69 | L28: ='รถ 10 ล้อ+พ่วง'!D22 -> 38.76 | N28: 5 | O28: งานไหล่ทางลูกรัง ผสม - บดทับ
B29: ='รถ 6 ล้อ'!B23:D23 -> 19 | C29: ='รถ 6 ล้อ'!C23:E23 -> 62.43 | D29: ='รถ 6 ล้อ'!D23:F23 -> 87.4 | F29: ='รถ 10 ล้อ'!B23 -> 19 | G29: ='รถ 10 ล้อ'!C23 -> 47.26 | H29: ='รถ 10 ล้อ'!D23 -> 66.16 | J29: ='รถ 10 ล้อ+พ่วง'!B23 -> 19 | K29: ='รถ 10 ล้อ+พ่วง'!C23 -> 29.19 | L29: ='รถ 10 ล้อ+พ่วง'!D23 -> 40.87 | O29: ผสม ( ผสมกับวัสดุอื่นๆ ) | P29: ลบม. แน่น | Q29: =IF($Q$9="ปกติ",'ค่าดำเนินการ+ค่าเสื่อมราคา'!H24,'ค่าดำเนินการ+ค่าเสื่อมราคา'!I24) -> 18.05
B30: ='รถ 6 ล้อ'!B24:D24 -> 20 | C30: ='รถ 6 ล้อ'!C24:E24 -> 65.59 | D30: ='รถ 6 ล้อ'!D24:F24 -> 91.83 | F30: ='รถ 10 ล้อ'!B24 -> 20 | G30: ='รถ 10 ล้อ'!C24 -> 49.68 | H30: ='รถ 10 ล้อ'!D24 -> 69.55 | J30: ='รถ 10 ล้อ+พ่วง'!B24 -> 20 | K30: ='รถ 10 ล้อ+พ่วง'!C24 -> 30.7 | L30: ='รถ 10 ล้อ+พ่วง'!D24 -> 42.98 | O30: บดทับ | P30: ลบม. แน่น | Q30: =IF($Q$9="ปกติ",'ค่าดำเนินการ+ค่าเสื่อมราคา'!H25,'ค่าดำเนินการ+ค่าเสื่อมราคา'!I25) -> 69.89
B31: ='รถ 6 ล้อ'!B25:D25 -> 21 | C31: ='รถ 6 ล้อ'!C25:E25 -> 68.75 | D31: ='รถ 6 ล้อ'!D25:F25 -> 96.25 | F31: ='รถ 10 ล้อ'!B25 -> 21 | G31: ='รถ 10 ล้อ'!C25 -> 52.1 | H31: ='รถ 10 ล้อ'!D25 -> 72.94 | J31: ='รถ 10 ล้อ+พ่วง'!B25 -> 21 | K31: ='รถ 10 ล้อ+พ่วง'!C25 -> 32.2 | L31: ='รถ 10 ล้อ+พ่วง'!D25 -> 45.08 | N31: 6 | O31: งานพื้นทาง ( หินคลุก )
B32: ='รถ 6 ล้อ'!B26:D26 -> 22 | C32: ='รถ 6 ล้อ'!C26:E26 -> 71.91 | D32: ='รถ 6 ล้อ'!D26:F26 -> 100.68 | F32: ='รถ 10 ล้อ'!B26 -> 22 | G32: ='รถ 10 ล้อ'!C26 -> 54.52 | H32: ='รถ 10 ล้อ'!D26 -> 76.33 | J32: ='รถ 10 ล้อ+พ่วง'!B26 -> 22 | K32: ='รถ 10 ล้อ+พ่วง'!C26 -> 33.7 | L32: ='รถ 10 ล้อ+พ่วง'!D26 -> 47.18 | O32: ผสม ( Blend ) | P32: ลบม. แน่น | Q32: =IF($Q$9="ปกติ",'ค่าดำเนินการ+ค่าเสื่อมราคา'!H27,'ค่าดำเนินการ+ค่าเสื่อมราคา'!I27) -> 24.42
B33: ='รถ 6 ล้อ'!B27:D27 -> 23 | C33: ='รถ 6 ล้อ'!C27:E27 -> 75.07 | D33: ='รถ 6 ล้อ'!D27:F27 -> 105.1 | F33: ='รถ 10 ล้อ'!B27 -> 23 | G33: ='รถ 10 ล้อ'!C27 -> 56.94 | H33: ='รถ 10 ล้อ'!D27 -> 79.71 | J33: ='รถ 10 ล้อ+พ่วง'!B27 -> 23 | K33: ='รถ 10 ล้อ+พ่วง'!C27 -> 35.21 | L33: ='รถ 10 ล้อ+พ่วง'!D27 -> 49.29 | O33: บดทับ | P33: ลบม. แน่น | Q33: =IF($Q$9="ปกติ",'ค่าดำเนินการ+ค่าเสื่อมราคา'!H28,'ค่าดำเนินการ+ค่าเสื่อมราคา'!I28) -> 85.77
B34: ='รถ 6 ล้อ'!B28:D28 -> 24 | C34: ='รถ 6 ล้อ'!C28:E28 -> 78.23 | D34: ='รถ 6 ล้อ'!D28:F28 -> 109.52 | F34: ='รถ 10 ล้อ'!B28 -> 24 | G34: ='รถ 10 ล้อ'!C28 -> 59.36 | H34: ='รถ 10 ล้อ'!D28 -> 83.11 | J34: ='รถ 10 ล้อ+พ่วง'!B28 -> 24 | K34: ='รถ 10 ล้อ+พ่วง'!C28 -> 36.71 | L34: ='รถ 10 ล้อ+พ่วง'!D28 -> 51.4 | N34: 7 | O34: งานตัดแต่งขั้นบันได | P34: ลบม. แน่น | Q34: =IF($Q$9="ปกติ",'ค่าดำเนินการ+ค่าเสื่อมราคา'!H29,'ค่าดำเนินการ+ค่าเสื่อมราคา'!I29) -> 7.93
B35: ='รถ 6 ล้อ'!B29:D29 -> 25 | C35: ='รถ 6 ล้อ'!C29:E29 -> 81.39 | D35: ='รถ 6 ล้อ'!D29:F29 -> 113.95 | F35: ='รถ 10 ล้อ'!B29 -> 25 | G35: ='รถ 10 ล้อ'!C29 -> 61.79 | H35: ='รถ 10 ล้อ'!D29 -> 86.5 | J35: ='รถ 10 ล้อ+พ่วง'!B29 -> 25 | K35: ='รถ 10 ล้อ+พ่วง'!C29 -> 38.22 | L35: ='รถ 10 ล้อ+พ่วง'!D29 -> 53.5 | N35: 8 | O35: งานขุดรื้อคันทางเดิมแล้วบดทับ
B36: ='รถ 6 ล้อ'!B30:D30 -> 26 | C36: ='รถ 6 ล้อ'!C30:E30 -> 84.55 | D36: ='รถ 6 ล้อ'!D30:F30 -> 118.37 | F36: ='รถ 10 ล้อ'!B30 -> 26 | G36: ='รถ 10 ล้อ'!C30 -> 64.21 | H36: ='รถ 10 ล้อ'!D30 -> 89.89 | J36: ='รถ 10 ล้อ+พ่วง'!B30 -> 26 | K36: ='รถ 10 ล้อ+พ่วง'!C30 -> 39.72 | L36: ='รถ 10 ล้อ+พ่วง'!D30 -> 55.6 | O36: ลูกรัง 10 ซม. | P36: ตรม. | Q36: =IF($Q$9="ปกติ",'ค่าดำเนินการ+ค่าเสื่อมราคา'!H31,'ค่าดำเนินการ+ค่าเสื่อมราคา'!I31) -> 10.74
B37: ='รถ 6 ล้อ'!B31:D31 -> 27 | C37: ='รถ 6 ล้อ'!C31:E31 -> 87.71 | D37: ='รถ 6 ล้อ'!D31:F31 -> 122.8 | F37: ='รถ 10 ล้อ'!B31 -> 27 | G37: ='รถ 10 ล้อ'!C31 -> 66.63 | H37: ='รถ 10 ล้อ'!D31 -> 93.28 | J37: ='รถ 10 ล้อ+พ่วง'!B31 -> 27 | K37: ='รถ 10 ล้อ+พ่วง'!C31 -> 41.22 | L37: ='รถ 10 ล้อ+พ่วง'!D31 -> 57.71 | O37: หินคลุก 10 ซม. | P37: ตรม. | Q37: =IF($Q$9="ปกติ",'ค่าดำเนินการ+ค่าเสื่อมราคา'!H32,'ค่าดำเนินการ+ค่าเสื่อมราคา'!I32) -> 13.9
B38: ='รถ 6 ล้อ'!B32:D32 -> 28 | C38: ='รถ 6 ล้อ'!C32:E32 -> 90.88 | D38: ='รถ 6 ล้อ'!D32:F32 -> 127.23 | F38: ='รถ 10 ล้อ'!B32 -> 28 | G38: ='รถ 10 ล้อ'!C32 -> 69.05 | H38: ='รถ 10 ล้อ'!D32 -> 96.68 | J38: ='รถ 10 ล้อ+พ่วง'!B32 -> 28 | K38: ='รถ 10 ล้อ+พ่วง'!C32 -> 42.73 | L38: ='รถ 10 ล้อ+พ่วง'!D32 -> 59.82 | O38: ผิว AC 5 ซม. | P38: ตรม. | Q38: =IF($Q$9="ปกติ",'ค่าดำเนินการ+ค่าเสื่อมราคา'!H33,'ค่าดำเนินการ+ค่าเสื่อมราคา'!I33) -> 11.17
B39: ='รถ 6 ล้อ'!B33:D33 -> 29 | C39: ='รถ 6 ล้อ'!C33:E33 -> 94.04 | D39: ='รถ 6 ล้อ'!D33:F33 -> 131.65 | F39: ='รถ 10 ล้อ'!B33 -> 29 | G39: ='รถ 10 ล้อ'!C33 -> 71.46 | H39: ='รถ 10 ล้อ'!D33 -> 100.04 | J39: ='รถ 10 ล้อ+พ่วง'!B33 -> 29 | K39: ='รถ 10 ล้อ+พ่วง'!C33 -> 44.23 | L39: ='รถ 10 ล้อ+พ่วง'!D33 -> 61.92 | N39: 9 | O39: งานราดยางไพรม์โค้ต | P39: ตรม. | Q39: =IF($Q$9="ปกติ",'ค่าดำเนินการ+ค่าเสื่อมราคา'!H34,'ค่าดำเนินการ+ค่าเสื่อมราคา'!I34) -> 7.02
B40: ='รถ 6 ล้อ'!B34:D34 -> 30 | C40: ='รถ 6 ล้อ'!C34:E34 -> 97.19 | D40: ='รถ 6 ล้อ'!D34:F34 -> 136.07 | F40: ='รถ 10 ล้อ'!B34 -> 30 | G40: ='รถ 10 ล้อ'!C34 -> 73.89 | H40: ='รถ 10 ล้อ'!D34 -> 103.45 | J40: ='รถ 10 ล้อ+พ่วง'!B34 -> 30 | K40: ='รถ 10 ล้อ+พ่วง'!C34 -> 45.74 | L40: ='รถ 10 ล้อ+พ่วง'!D34 -> 64.03 | N40: 10 | O40: งานราดยางแทคโค้ต | P40: ตรม. | Q40: =IF($Q$9="ปกติ",'ค่าดำเนินการ+ค่าเสื่อมราคา'!H35,'ค่าดำเนินการ+ค่าเสื่อมราคา'!I35) -> 6.81
B41: ='รถ 6 ล้อ'!B35:D35 -> 31 | C41: ='รถ 6 ล้อ'!C35:E35 -> 100.36 | D41: ='รถ 6 ล้อ'!D35:F35 -> 140.5 | F41: ='รถ 10 ล้อ'!B35 -> 31 | G41: ='รถ 10 ล้อ'!C35 -> 76.3 | H41: ='รถ 10 ล้อ'!D35 -> 106.82 | J41: ='รถ 10 ล้อ+พ่วง'!B35 -> 31 | K41: ='รถ 10 ล้อ+พ่วง'!C35 -> 47.24 | L41: ='รถ 10 ล้อ+พ่วง'!D35 -> 66.13 | N41: 11 | O41: งานผิวทางแบบบาง
B42: ='รถ 6 ล้อ'!B36:D36 -> 32 | C42: ='รถ 6 ล้อ'!C36:E36 -> 103.52 | D42: ='รถ 6 ล้อ'!D36:F36 -> 144.92 | F42: ='รถ 10 ล้อ'!B36 -> 32 | G42: ='รถ 10 ล้อ'!C36 -> 78.74 | H42: ='รถ 10 ล้อ'!D36 -> 110.23 | J42: ='รถ 10 ล้อ+พ่วง'!B36 -> 32 | K42: ='รถ 10 ล้อ+พ่วง'!C36 -> 48.74 | L42: ='รถ 10 ล้อ+พ่วง'!D36 -> 68.24 | O42: ชั้นเดียว ( 1/2 ") | P42: ตรม. | Q42: =IF($Q$9="ปกติ",'ค่าดำเนินการ+ค่าเสื่อมราคา'!H37,'ค่าดำเนินการ+ค่าเสื่อมราคา'!I37) -> 16.11
B43: ='รถ 6 ล้อ'!B37:D37 -> 33 | C43: ='รถ 6 ล้อ'!C37:E37 -> 106.68 | D43: ='รถ 6 ล้อ'!D37:F37 -> 149.35 | F43: ='รถ 10 ล้อ'!B37 -> 33 | G43: ='รถ 10 ล้อ'!C37 -> 81.16 | H43: ='รถ 10 ล้อ'!D37 -> 113.62 | J43: ='รถ 10 ล้อ+พ่วง'!B37 -> 33 | K43: ='รถ 10 ล้อ+พ่วง'!C37 -> 50.24 | L43: ='รถ 10 ล้อ+พ่วง'!D37 -> 70.34 | O43: ชั้นเดียว ( 3/4 ") | P43: ตรม. | Q43: =IF($Q$9="ปกติ",'ค่าดำเนินการ+ค่าเสื่อมราคา'!H38,'ค่าดำเนินการ+ค่าเสื่อมราคา'!I38) -> 22.26
B44: ='รถ 6 ล้อ'!B38:D38 -> 34 | C44: ='รถ 6 ล้อ'!C38:E38 -> 109.84 | D44: ='รถ 6 ล้อ'!D38:F38 -> 153.77 | F44: ='รถ 10 ล้อ'!B38 -> 34 | G44: ='รถ 10 ล้อ'!C38 -> 83.58 | H44: ='รถ 10 ล้อ'!D38 -> 117.02 | J44: ='รถ 10 ล้อ+พ่วง'!B38 -> 34 | K44: ='รถ 10 ล้อ+พ่วง'!C38 -> 51.75 | L44: ='รถ 10 ล้อ+พ่วง'!D38 -> 72.45 | O44: สองชั้น ( 3/4 " + 3/8 ") | P44: ตรม. | Q44: =IF($Q$9="ปกติ",'ค่าดำเนินการ+ค่าเสื่อมราคา'!H39,'ค่าดำเนินการ+ค่าเสื่อมราคา'!I39) -> 33.1
B45: ='รถ 6 ล้อ'!B39:D39 -> 35 | C45: ='รถ 6 ล้อ'!C39:E39 -> 113 | D45: ='รถ 6 ล้อ'!D39:F39 -> 158.2 | F45: ='รถ 10 ล้อ'!B39 -> 35 | G45: ='รถ 10 ล้อ'!C39 -> 85.99 | H45: ='รถ 10 ล้อ'!D39 -> 120.39 | J45: ='รถ 10 ล้อ+พ่วง'!B39 -> 35 | K45: ='รถ 10 ล้อ+พ่วง'!C39 -> 53.25 | L45: ='รถ 10 ล้อ+พ่วง'!D39 -> 74.55 | O45: สองชั้น ( 1 " + 1/2 ") | P45: ตรม. | Q45: =IF($Q$9="ปกติ",'ค่าดำเนินการ+ค่าเสื่อมราคา'!H40,'ค่าดำเนินการ+ค่าเสื่อมราคา'!I40) -> 48.46
B46: ='รถ 6 ล้อ'!B40:D40 -> 36 | C46: ='รถ 6 ล้อ'!C40:E40 -> 116.16 | D46: ='รถ 6 ล้อ'!D40:F40 -> 162.62 | F46: ='รถ 10 ล้อ'!B40 -> 36 | G46: ='รถ 10 ล้อ'!C40 -> 88.42 | H46: ='รถ 10 ล้อ'!D40 -> 123.79 | J46: ='รถ 10 ล้อ+พ่วง'!B40 -> 36 | K46: ='รถ 10 ล้อ+พ่วง'!C40 -> 54.76 | L46: ='รถ 10 ล้อ+พ่วง'!D40 -> 76.66 | N46: 12 | O46: งานเคลือบหิน ขจัดฝุ่น ( Pre - Coat )
B47: ='รถ 6 ล้อ'!B41:D41 -> 37 | C47: ='รถ 6 ล้อ'!C41:E41 -> 119.32 | D47: ='รถ 6 ล้อ'!D41:F41 -> 167.05 | F47: ='รถ 10 ล้อ'!B41 -> 37 | G47: ='รถ 10 ล้อ'!C41 -> 90.85 | H47: ='รถ 10 ล้อ'!D41 -> 127.18 | J47: ='รถ 10 ล้อ+พ่วง'!B41 -> 37 | K47: ='รถ 10 ล้อ+พ่วง'!C41 -> 56.26 | L47: ='รถ 10 ล้อ+พ่วง'!D41 -> 78.76 | O47: ชั้นเดียว ( 1/2 ") | P47: ลบม. หลวม | Q47: =IF($Q$9="ปกติ",'ค่าดำเนินการ+ค่าเสื่อมราคา'!H42,'ค่าดำเนินการ+ค่าเสื่อมราคา'!I42) -> 2.26
B48: ='รถ 6 ล้อ'!B42:D42 -> 38 | C48: ='รถ 6 ล้อ'!C42:E42 -> 122.48 | D48: ='รถ 6 ล้อ'!D42:F42 -> 171.47 | F48: ='รถ 10 ล้อ'!B42 -> 38 | G48: ='รถ 10 ล้อ'!C42 -> 93.27 | H48: ='รถ 10 ล้อ'!D42 -> 130.58 | J48: ='รถ 10 ล้อ+พ่วง'!B42 -> 38 | K48: ='รถ 10 ล้อ+พ่วง'!C42 -> 57.76 | L48: ='รถ 10 ล้อ+พ่วง'!D42 -> 80.87 | O48: ชั้นเดียว ( 3/4 ") | P48: ลบม. หลวม | Q48: =IF($Q$9="ปกติ",'ค่าดำเนินการ+ค่าเสื่อมราคา'!H43,'ค่าดำเนินการ+ค่าเสื่อมราคา'!I43) -> 3.13
B49: ='รถ 6 ล้อ'!B43:D43 -> 39 | C49: ='รถ 6 ล้อ'!C43:E43 -> 125.64 | D49: ='รถ 6 ล้อ'!D43:F43 -> 175.89 | F49: ='รถ 10 ล้อ'!B43 -> 39 | G49: ='รถ 10 ล้อ'!C43 -> 95.69 | H49: ='รถ 10 ล้อ'!D43 -> 133.97 | J49: ='รถ 10 ล้อ+พ่วง'!B43 -> 39 | K49: ='รถ 10 ล้อ+พ่วง'!C43 -> 59.27 | L49: ='รถ 10 ล้อ+พ่วง'!D43 -> 82.98 | O49: สองชั้น ( 3/4 " + 3/8 ") | P49: ลบม. หลวม | Q49: =IF($Q$9="ปกติ",'ค่าดำเนินการ+ค่าเสื่อมราคา'!H44,'ค่าดำเนินการ+ค่าเสื่อมราคา'!I44) -> 4.64
B50: ='รถ 6 ล้อ'!B44:D44 -> 40 | C50: ='รถ 6 ล้อ'!C44:E44 -> 128.8 | D50: ='รถ 6 ล้อ'!D44:F44 -> 180.33 | F50: ='รถ 10 ล้อ'!B44 -> 40 | G50: ='รถ 10 ล้อ'!C44 -> 98.1 | H50: ='รถ 10 ล้อ'!D44 -> 137.34 | J50: ='รถ 10 ล้อ+พ่วง'!B44 -> 40 | K50: ='รถ 10 ล้อ+พ่วง'!C44 -> 60.77 | L50: ='รถ 10 ล้อ+พ่วง'!D44 -> 85.08 | O50: สองชั้น ( 1 " + 1/2 ") | P50: ลบม. หลวม | Q50: =IF($Q$9="ปกติ",'ค่าดำเนินการ+ค่าเสื่อมราคา'!H45,'ค่าดำเนินการ+ค่าเสื่อมราคา'!I45) -> 6.8
B51: ='รถ 6 ล้อ'!B45:D45 -> 41 | C51: ='รถ 6 ล้อ'!C45:E45 -> 131.96 | D51: ='รถ 6 ล้อ'!D45:F45 -> 184.75 | F51: ='รถ 10 ล้อ'!B45 -> 41 | G51: ='รถ 10 ล้อ'!C45 -> 100.54 | H51: ='รถ 10 ล้อ'!D45 -> 140.75 | J51: ='รถ 10 ล้อ+พ่วง'!B45 -> 41 | K51: ='รถ 10 ล้อ+พ่วง'!C45 -> 62.28 | L51: ='รถ 10 ล้อ+พ่วง'!D45 -> 87.19 | N51: 13 | O51: งานผิวทางแอสฟัลท์ติกคอนกรีต
B52: ='รถ 6 ล้อ'!B46:D46 -> 42 | C52: ='รถ 6 ล้อ'!C46:E46 -> 135.12 | D52: ='รถ 6 ล้อ'!D46:F46 -> 189.17 | F52: ='รถ 10 ล้อ'!B46 -> 42 | G52: ='รถ 10 ล้อ'!C46 -> 102.96 | H52: ='รถ 10 ล้อ'!D46 -> 144.14 | J52: ='รถ 10 ล้อ+พ่วง'!B46 -> 42 | K52: ='รถ 10 ล้อ+พ่วง'!C46 -> 63.78 | L52: ='รถ 10 ล้อ+พ่วง'!D46 -> 89.3 | O52: ค่าผสมวัสดุแอสฟัลท์ติกคอนกรีต | P52: ตัน | Q52: =IF($Q$9="ปกติ",'ค่าดำเนินการ+ค่าเสื่อมราคา'!H47,'ค่าดำเนินการ+ค่าเสื่อมราคา'!I47) -> 361.64
B53: ='รถ 6 ล้อ'!B47:D47 -> 43 | C53: ='รถ 6 ล้อ'!C47:E47 -> 138.28 | D53: ='รถ 6 ล้อ'!D47:F47 -> 193.59 | F53: ='รถ 10 ล้อ'!B47 -> 43 | G53: ='รถ 10 ล้อ'!C47 -> 105.37 | H53: ='รถ 10 ล้อ'!D47 -> 147.52 | J53: ='รถ 10 ล้อ+พ่วง'!B47 -> 43 | K53: ='รถ 10 ล้อ+พ่วง'!C47 -> 65.28 | L53: ='รถ 10 ล้อ+พ่วง'!D47 -> 91.39 | O53: ค่าขนส่งอุปกรณ์ 80 ตัน ระยะขนส่ง100-300 กม. | Q53: =IF($Q$9="ปกติ",'ค่าดำเนินการ+ค่าเสื่อมราคา'!H48,'ค่าดำเนินการ+ค่าเสื่อมราคา'!I48) -> 0
B54: ='รถ 6 ล้อ'!B48:D48 -> 44 | C54: ='รถ 6 ล้อ'!C48:E48 -> 141.44 | D54: ='รถ 6 ล้อ'!D48:F48 -> 198.02 | F54: ='รถ 10 ล้อ'!B48 -> 44 | G54: ='รถ 10 ล้อ'!C48 -> 107.8 | H54: ='รถ 10 ล้อ'!D48 -> 150.92 | J54: ='รถ 10 ล้อ+พ่วง'!B48 -> 44 | K54: ='รถ 10 ล้อ+พ่วง'!C48 -> 66.79 | L54: ='รถ 10 ล้อ+พ่วง'!D48 -> 93.5 | O54: ค่าติดตั้งเครื่องผสม | P54: ครั้ง | Q54: ='ค่าดำเนินการ+ค่าเสื่อมราคา'!E49 -> 250000
B55: ='รถ 6 ล้อ'!B49:D49 -> 45 | C55: ='รถ 6 ล้อ'!C49:E49 -> 144.6 | D55: ='รถ 6 ล้อ'!D49:F49 -> 202.44 | F55: ='รถ 10 ล้อ'!B49 -> 45 | G55: ='รถ 10 ล้อ'!C49 -> 110.21 | H55: ='รถ 10 ล้อ'!D49 -> 154.29 | J55: ='รถ 10 ล้อ+พ่วง'!B49 -> 45 | K55: ='รถ 10 ล้อ+พ่วง'!C49 -> 68.29 | L55: ='รถ 10 ล้อ+พ่วง'!D49 -> 95.61 | O55: งานปูลาดและบดทับ ผิว AC หนา 5 ซม.
B56: ='รถ 6 ล้อ'!B50:D50 -> 46 | C56: ='รถ 6 ล้อ'!C50:E50 -> 147.77 | D56: ='รถ 6 ล้อ'!D50:F50 -> 206.87 | F56: ='รถ 10 ล้อ'!B50 -> 46 | G56: ='รถ 10 ล้อ'!C50 -> 112.64 | H56: ='รถ 10 ล้อ'!D50 -> 157.7 | J56: ='รถ 10 ล้อ+พ่วง'!B50 -> 46 | K56: ='รถ 10 ล้อ+พ่วง'!C50 -> 69.8 | L56: ='รถ 10 ล้อ+พ่วง'!D50 -> 97.72 | O56: บนผิวไพรม์โค้ต | P56: ตรม. | Q56: =IF($Q$9="ปกติ",'ค่าดำเนินการ+ค่าเสื่อมราคา'!H51,'ค่าดำเนินการ+ค่าเสื่อมราคา'!I51) -> 14.69
B57: ='รถ 6 ล้อ'!B51:D51 -> 47 | C57: ='รถ 6 ล้อ'!C51:E51 -> 150.93 | D57: ='รถ 6 ล้อ'!D51:F51 -> 211.3 | F57: ='รถ 10 ล้อ'!B51 -> 47 | G57: ='รถ 10 ล้อ'!C51 -> 115.05 | H57: ='รถ 10 ล้อ'!D51 -> 161.07 | J57: ='รถ 10 ล้อ+พ่วง'!B51 -> 47 | K57: ='รถ 10 ล้อ+พ่วง'!C51 -> 71.3 | L57: ='รถ 10 ล้อ+พ่วง'!D51 -> 99.82 | O57: บนผิวแทคโค้ต | P57: ตรม. | Q57: =IF($Q$9="ปกติ",'ค่าดำเนินการ+ค่าเสื่อมราคา'!H52,'ค่าดำเนินการ+ค่าเสื่อมราคา'!I52) -> 11.52
B58: ='รถ 6 ล้อ'!B52:D52 -> 48 | C58: ='รถ 6 ล้อ'!C52:E52 -> 154.09 | D58: ='รถ 6 ล้อ'!D52:F52 -> 215.72 | F58: ='รถ 10 ล้อ'!B52 -> 48 | G58: ='รถ 10 ล้อ'!C52 -> 117.48 | H58: ='รถ 10 ล้อ'!D52 -> 164.47 | J58: ='รถ 10 ล้อ+พ่วง'!B52 -> 48 | K58: ='รถ 10 ล้อ+พ่วง'!C52 -> 72.8 | L58: ='รถ 10 ล้อ+พ่วง'!D52 -> 101.92 | N58: 14 | O58: งานผิวทางคอนกรีต
B59: ='รถ 6 ล้อ'!B53:D53 -> 49 | C59: ='รถ 6 ล้อ'!C53:E53 -> 157.25 | D59: ='รถ 6 ล้อ'!D53:F53 -> 220.15 | F59: ='รถ 10 ล้อ'!B53 -> 49 | G59: ='รถ 10 ล้อ'!C53 -> 119.88 | H59: ='รถ 10 ล้อ'!D53 -> 167.83 | J59: ='รถ 10 ล้อ+พ่วง'!B53 -> 49 | K59: ='รถ 10 ล้อ+พ่วง'!C53 -> 74.31 | L59: ='รถ 10 ล้อ+พ่วง'!D53 -> 104.03 | O59: ค่าติดตั้งเครื่องผสม | P59: ครั้ง | Q59: 150000
B60: ='รถ 6 ล้อ'!B54:D54 -> 50 | C60: ='รถ 6 ล้อ'!C54:E54 -> 160.41 | D60: ='รถ 6 ล้อ'!D54:F54 -> 224.58 | F60: ='รถ 10 ล้อ'!B54 -> 50 | G60: ='รถ 10 ล้อ'!C54 -> 122.3 | H60: ='รถ 10 ล้อ'!D54 -> 171.22 | J60: ='รถ 10 ล้อ+พ่วง'!B54 -> 50 | K60: ='รถ 10 ล้อ+พ่วง'!C54 -> 75.81 | L60: ='รถ 10 ล้อ+พ่วง'!D54 -> 106.14 | O60: ค่าผสมคอนกรีต | P60: ลบม. | Q60: =IF($Q$9="ปกติ",'ค่าดำเนินการ+ค่าเสื่อมราคา'!H55,'ค่าดำเนินการ+ค่าเสื่อมราคา'!I55) -> 188.4
B61: ='รถ 6 ล้อ'!B55:D55 -> 51 | C61: ='รถ 6 ล้อ'!C55:E55 -> 163.57 | D61: ='รถ 6 ล้อ'!D55:F55 -> 229 | F61: ='รถ 10 ล้อ'!B55 -> 51 | G61: ='รถ 10 ล้อ'!C55 -> 124.74 | H61: ='รถ 10 ล้อ'!D55 -> 174.63 | J61: ='รถ 10 ล้อ+พ่วง'!B55 -> 51 | K61: ='รถ 10 ล้อ+พ่วง'!C55 -> 77.32 | L61: ='รถ 10 ล้อ+พ่วง'!D55 -> 108.25 | O61: ค่าขนส่งคอนกรีต | P61: ลบม./กม. | Q61: =IF($Q$9="ปกติ",'ค่าดำเนินการ+ค่าเสื่อมราคา'!H56,'ค่าดำเนินการ+ค่าเสื่อมราคา'!I56) -> 14.08
B62: ='รถ 6 ล้อ'!B56:D56 -> 52 | C62: ='รถ 6 ล้อ'!C56:E56 -> 166.73 | D62: ='รถ 6 ล้อ'!D56:F56 -> 233.42 | F62: ='รถ 10 ล้อ'!B56 -> 52 | G62: ='รถ 10 ล้อ'!C56 -> 127.15 | H62: ='รถ 10 ล้อ'!D56 -> 178 | J62: ='รถ 10 ล้อ+พ่วง'!B56 -> 52 | K62: ='รถ 10 ล้อ+พ่วง'!C56 -> 78.82 | L62: ='รถ 10 ล้อ+พ่วง'!D56 -> 110.34 | O62: ค่าแบบข้างติดตามยาว 2 ข้าง | P62: เมตร | Q62: =IF($Q$9="ปกติ",'ค่าดำเนินการ+ค่าเสื่อมราคา'!H57,'ค่าดำเนินการ+ค่าเสื่อมราคา'!I57) -> 20.6
B63: ='รถ 6 ล้อ'!B57:D57 -> 53 | C63: ='รถ 6 ล้อ'!C57:E57 -> 169.89 | D63: ='รถ 6 ล้อ'!D57:F57 -> 237.84 | F63: ='รถ 10 ล้อ'!B57 -> 53 | G63: ='รถ 10 ล้อ'!C57 -> 129.57 | H63: ='รถ 10 ล้อ'!D57 -> 181.39 | J63: ='รถ 10 ล้อ+พ่วง'!B57 -> 53 | K63: ='รถ 10 ล้อ+พ่วง'!C57 -> 80.32 | L63: ='รถ 10 ล้อ+พ่วง'!D57 -> 112.44 | O63: ค่าปูผิวคอนกรีต | P63: ตรม. | Q63: =IF($Q$9="ปกติ",'ค่าดำเนินการ+ค่าเสื่อมราคา'!H58,'ค่าดำเนินการ+ค่าเสื่อมราคา'!I58) -> 12.02
B64: ='รถ 6 ล้อ'!B58:D58 -> 54 | C64: ='รถ 6 ล้อ'!C58:E58 -> 173.05 | D64: ='รถ 6 ล้อ'!D58:F58 -> 242.27 | F64: ='รถ 10 ล้อ'!B58 -> 54 | G64: ='รถ 10 ล้อ'!C58 -> 132.01 | H64: ='รถ 10 ล้อ'!D58 -> 184.81 | J64: ='รถ 10 ล้อ+พ่วง'!B58 -> 54 | K64: ='รถ 10 ล้อ+พ่วง'!C58 -> 81.82 | L64: ='รถ 10 ล้อ+พ่วง'!D58 -> 114.55 | O64: ค่าตัดรอยต่อคอนกรีต และหยอดยาง | P64: เมตร | Q64: =IF($Q$9="ปกติ",'ค่าดำเนินการ+ค่าเสื่อมราคา'!H59,'ค่าดำเนินการ+ค่าเสื่อมราคา'!I59) -> 22.9
B65: ='รถ 6 ล้อ'!B59:D59 -> 55 | C65: ='รถ 6 ล้อ'!C59:E59 -> 176.21 | D65: ='รถ 6 ล้อ'!D59:F59 -> 246.7 | F65: ='รถ 10 ล้อ'!B59 -> 55 | G65: ='รถ 10 ล้อ'!C59 -> 134.41 | H65: ='รถ 10 ล้อ'!D59 -> 188.17 | J65: ='รถ 10 ล้อ+พ่วง'!B59 -> 55 | K65: ='รถ 10 ล้อ+พ่วง'!C59 -> 83.33 | L65: ='รถ 10 ล้อ+พ่วง'!D59 -> 116.66 | O65: ค่าหยอดยางรอยต่อคอนกรีต | P65: เมตร | Q65: =IF($Q$9="ปกติ",'ค่าดำเนินการ+ค่าเสื่อมราคา'!H60,'ค่าดำเนินการ+ค่าเสื่อมราคา'!I60) -> 14.1
B66: ='รถ 6 ล้อ'!B60:D60 -> 56 | C66: ='รถ 6 ล้อ'!C60:E60 -> 179.37 | D66: ='รถ 6 ล้อ'!D60:F60 -> 251.12 | F66: ='รถ 10 ล้อ'!B60 -> 56 | G66: ='รถ 10 ล้อ'!C60 -> 136.83 | H66: ='รถ 10 ล้อ'!D60 -> 191.56 | J66: ='รถ 10 ล้อ+พ่วง'!B60 -> 56 | K66: ='รถ 10 ล้อ+พ่วง'!C60 -> 84.83 | L66: ='รถ 10 ล้อ+พ่วง'!D60 -> 118.76 | O66: ค่าบ่มผิวทางคอนกรีต | P66: ตรม. | Q66: =IF($Q$9="ปกติ",'ค่าดำเนินการ+ค่าเสื่อมราคา'!H61,'ค่าดำเนินการ+ค่าเสื่อมราคา'!I61) -> 9
B67: ='รถ 6 ล้อ'!B61:D61 -> 57 | C67: ='รถ 6 ล้อ'!C61:E61 -> 182.53 | D67: ='รถ 6 ล้อ'!D61:F61 -> 255.55 | F67: ='รถ 10 ล้อ'!B61 -> 57 | G67: ='รถ 10 ล้อ'!C61 -> 139.26 | H67: ='รถ 10 ล้อ'!D61 -> 194.96 | J67: ='รถ 10 ล้อ+พ่วง'!B61 -> 57 | K67: ='รถ 10 ล้อ+พ่วง'!C61 -> 86.33 | L67: ='รถ 10 ล้อ+พ่วง'!D61 -> 120.86 | N67: 15 | O67: งาน Stabilized Layer
B68: ='รถ 6 ล้อ'!B62:D62 -> 58 | C68: ='รถ 6 ล้อ'!C62:E62 -> 185.69 | D68: ='รถ 6 ล้อ'!D62:F62 -> 259.96 | F68: ='รถ 10 ล้อ'!B62 -> 58 | G68: ='รถ 10 ล้อ'!C62 -> 141.71 | H68: ='รถ 10 ล้อ'!D62 -> 198.39 | J68: ='รถ 10 ล้อ+พ่วง'!B62 -> 58 | K68: ='รถ 10 ล้อ+พ่วง'!C62 -> 87.84 | L68: ='รถ 10 ล้อ+พ่วง'!D62 -> 122.97 | O68: ค่าผสมวัสดุ ลูกรัง | P68: ลบม. แน่น | Q68: =IF($Q$9="ปกติ",'ค่าดำเนินการ+ค่าเสื่อมราคา'!H63,'ค่าดำเนินการ+ค่าเสื่อมราคา'!I63) -> 42.95
B69: ='รถ 6 ล้อ'!B63:D63 -> 59 | C69: ='รถ 6 ล้อ'!C63:E63 -> 188.85 | D69: ='รถ 6 ล้อ'!D63:F63 -> 264.39 | F69: ='รถ 10 ล้อ'!B63 -> 59 | G69: ='รถ 10 ล้อ'!C63 -> 144.11 | H69: ='รถ 10 ล้อ'!D63 -> 201.75 | J69: ='รถ 10 ล้อ+พ่วง'!B63 -> 59 | K69: ='รถ 10 ล้อ+พ่วง'!C63 -> 89.34 | L69: ='รถ 10 ล้อ+พ่วง'!D63 -> 125.08 | O69: ค่าบ่มวัสดุ ลูกรัง | P69: ลบม. แน่น | Q69: =IF($Q$9="ปกติ",'ค่าดำเนินการ+ค่าเสื่อมราคา'!H64,'ค่าดำเนินการ+ค่าเสื่อมราคา'!I64) -> 45.01
B70: ='รถ 6 ล้อ'!B64:D64 -> 60 | C70: ='รถ 6 ล้อ'!C64:E64 -> 192.01 | D70: ='รถ 6 ล้อ'!D64:F64 -> 268.82 | F70: ='รถ 10 ล้อ'!B64 -> 60 | G70: ='รถ 10 ล้อ'!C64 -> 146.53 | H70: ='รถ 10 ล้อ'!D64 -> 205.14 | J70: ='รถ 10 ล้อ+พ่วง'!B64 -> 60 | K70: ='รถ 10 ล้อ+พ่วง'!C64 -> 90.86 | L70: ='รถ 10 ล้อ+พ่วง'!D64 -> 127.2 | O70: ค่าผสมวัสดุ หินคลุก | P70: ลบม. แน่น | Q70: =IF($Q$9="ปกติ",'ค่าดำเนินการ+ค่าเสื่อมราคา'!H65,'ค่าดำเนินการ+ค่าเสื่อมราคา'!I65) -> 46.14
B71: ='รถ 6 ล้อ'!B65:D65 -> 61 | C71: ='รถ 6 ล้อ'!C65:E65 -> 195.18 | D71: ='รถ 6 ล้อ'!D65:F65 -> 273.25 | F71: ='รถ 10 ล้อ'!B65 -> 61 | G71: ='รถ 10 ล้อ'!C65 -> 148.96 | H71: ='รถ 10 ล้อ'!D65 -> 208.54 | J71: ='รถ 10 ล้อ+พ่วง'!B65 -> 61 | K71: ='รถ 10 ล้อ+พ่วง'!C65 -> 92.35 | L71: ='รถ 10 ล้อ+พ่วง'!D65 -> 129.3 | O71: ค่าบ่มวัสดุ หินคลุก | P71: ลบม. แน่น | Q71: =IF($Q$9="ปกติ",'ค่าดำเนินการ+ค่าเสื่อมราคา'!H66,'ค่าดำเนินการ+ค่าเสื่อมราคา'!I66) -> 45.01
B72: ='รถ 6 ล้อ'!B66:D66 -> 62 | C72: ='รถ 6 ล้อ'!C66:E66 -> 198.34 | D72: ='รถ 6 ล้อ'!D66:F66 -> 277.67 | F72: ='รถ 10 ล้อ'!B66 -> 62 | G72: ='รถ 10 ล้อ'!C66 -> 151.41 | H72: ='รถ 10 ล้อ'!D66 -> 211.97 | J72: ='รถ 10 ล้อ+พ่วง'!B66 -> 62 | K72: ='รถ 10 ล้อ+พ่วง'!C66 -> 93.86 | L72: ='รถ 10 ล้อ+พ่วง'!D66 -> 131.4 | N72: 16 | O72: งาน Pavement In Place Recycling
B73: ='รถ 6 ล้อ'!B67:D67 -> 63 | C73: ='รถ 6 ล้อ'!C67:E67 -> 201.5 | D73: ='รถ 6 ล้อ'!D67:F67 -> 282.1 | F73: ='รถ 10 ล้อ'!B67 -> 63 | G73: ='รถ 10 ล้อ'!C67 -> 153.8 | H73: ='รถ 10 ล้อ'!D67 -> 215.32 | J73: ='รถ 10 ล้อ+พ่วง'!B67 -> 63 | K73: ='รถ 10 ล้อ+พ่วง'!C67 -> 95.36 | L73: ='รถ 10 ล้อ+พ่วง'!D67 -> 133.51 | O73: ขุดลึกเฉลี่ย 15 ซม. | P73: ตรม. | Q73: =IF($Q$9="ปกติ",'ค่าดำเนินการ+ค่าเสื่อมราคา'!H68,'ค่าดำเนินการ+ค่าเสื่อมราคา'!I68) -> 28.52
B74: ='รถ 6 ล้อ'!B68:D68 -> 64 | C74: ='รถ 6 ล้อ'!C68:E68 -> 204.65 | D74: ='รถ 6 ล้อ'!D68:F68 -> 286.52 | F74: ='รถ 10 ล้อ'!B68 -> 64 | G74: ='รถ 10 ล้อ'!C68 -> 156.2 | H74: ='รถ 10 ล้อ'!D68 -> 218.68 | J74: ='รถ 10 ล้อ+พ่วง'!B68 -> 64 | K74: ='รถ 10 ล้อ+พ่วง'!C68 -> 96.87 | L74: ='รถ 10 ล้อ+พ่วง'!D68 -> 135.62 | O74: ขุดลึกเฉลี่ย 20 ซม. | P74: ตรม. | Q74: =IF($Q$9="ปกติ",'ค่าดำเนินการ+ค่าเสื่อมราคา'!H69,'ค่าดำเนินการ+ค่าเสื่อมราคา'!I69) -> 35.64
B75: ='รถ 6 ล้อ'!B69:D69 -> 65 | C75: ='รถ 6 ล้อ'!C69:E69 -> 207.82 | D75: ='รถ 6 ล้อ'!D69:F69 -> 290.95 | F75: ='รถ 10 ล้อ'!B69 -> 65 | G75: ='รถ 10 ล้อ'!C69 -> 158.62 | H75: ='รถ 10 ล้อ'!D69 -> 222.07 | J75: ='รถ 10 ล้อ+พ่วง'!B69 -> 65 | K75: ='รถ 10 ล้อ+พ่วง'!C69 -> 98.36 | L75: ='รถ 10 ล้อ+พ่วง'!D69 -> 137.71 | O75: ขุดลึกเฉลี่ย 25 ซม. | P75: ตรม. | Q75: =IF($Q$9="ปกติ",'ค่าดำเนินการ+ค่าเสื่อมราคา'!H70,'ค่าดำเนินการ+ค่าเสื่อมราคา'!I70) -> 47.53
B76: ='รถ 6 ล้อ'!B70:D70 -> 66 | C76: ='รถ 6 ล้อ'!C70:E70 -> 210.98 | D76: ='รถ 6 ล้อ'!D70:F70 -> 295.37 | F76: ='รถ 10 ล้อ'!B70 -> 66 | G76: ='รถ 10 ล้อ'!C70 -> 161.05 | H76: ='รถ 10 ล้อ'!D70 -> 225.47 | J76: ='รถ 10 ล้อ+พ่วง'!B70 -> 66 | K76: ='รถ 10 ล้อ+พ่วง'!C70 -> 99.88 | L76: ='รถ 10 ล้อ+พ่วง'!D70 -> 139.83 | O76: ขุดลึกเฉลี่ย 30 ซม. | P76: ตรม. | Q76: =IF($Q$9="ปกติ",'ค่าดำเนินการ+ค่าเสื่อมราคา'!H71,'ค่าดำเนินการ+ค่าเสื่อมราคา'!I71) -> 57.04
B77: ='รถ 6 ล้อ'!B71:D71 -> 67 | C77: ='รถ 6 ล้อ'!C71:E71 -> 214.14 | D77: ='รถ 6 ล้อ'!D71:F71 -> 299.8 | F77: ='รถ 10 ล้อ'!B71 -> 67 | G77: ='รถ 10 ล้อ'!C71 -> 163.49 | H77: ='รถ 10 ล้อ'!D71 -> 228.89 | J77: ='รถ 10 ล้อ+พ่วง'!B71 -> 67 | K77: ='รถ 10 ล้อ+พ่วง'!C71 -> 101.37 | L77: ='รถ 10 ล้อ+พ่วง'!D71 -> 141.92 | N77: 17 | O77: งาน Slurry Seal | P77: ตรม. | Q77: =IF($Q$9="ปกติ",'ค่าดำเนินการ+ค่าเสื่อมราคา'!H72,'ค่าดำเนินการ+ค่าเสื่อมราคา'!I72) -> 12
B78: ='รถ 6 ล้อ'!B72:D72 -> 68 | C78: ='รถ 6 ล้อ'!C72:E72 -> 217.3 | D78: ='รถ 6 ล้อ'!D72:F72 -> 304.22 | F78: ='รถ 10 ล้อ'!B72 -> 68 | G78: ='รถ 10 ล้อ'!C72 -> 165.87 | H78: ='รถ 10 ล้อ'!D72 -> 232.22 | J78: ='รถ 10 ล้อ+พ่วง'!B72 -> 68 | K78: ='รถ 10 ล้อ+พ่วง'!C72 -> 102.87 | L78: ='รถ 10 ล้อ+พ่วง'!D72 -> 144.02 | N78: 18 | O78: งาน Fog Spray | P78: ตรม. | Q78: =IF($Q$9="ปกติ",'ค่าดำเนินการ+ค่าเสื่อมราคา'!H73,'ค่าดำเนินการ+ค่าเสื่อมราคา'!I73) -> 2.66
B79: ='รถ 6 ล้อ'!B73:D73 -> 69 | C79: ='รถ 6 ล้อ'!C73:E73 -> 220.46 | D79: ='รถ 6 ล้อ'!D73:F73 -> 308.65 | F79: ='รถ 10 ล้อ'!B73 -> 69 | G79: ='รถ 10 ล้อ'!C73 -> 168.34 | H79: ='รถ 10 ล้อ'!D73 -> 235.68 | J79: ='รถ 10 ล้อ+พ่วง'!B73 -> 69 | K79: ='รถ 10 ล้อ+พ่วง'!C73 -> 104.38 | L79: ='รถ 10 ล้อ+พ่วง'!D73 -> 146.13 | N79: 19 | O79: งาน Hot Mixed Recycling
B80: ='รถ 6 ล้อ'!B74:D74 -> 70 | C80: ='รถ 6 ล้อ'!C74:E74 -> 223.62 | D80: ='รถ 6 ล้อ'!D74:F74 -> 313.07 | F80: ='รถ 10 ล้อ'!B74 -> 70 | G80: ='รถ 10 ล้อ'!C74 -> 170.74 | H80: ='รถ 10 ล้อ'!D74 -> 239.04 | J80: ='รถ 10 ล้อ+พ่วง'!B74 -> 70 | K80: ='รถ 10 ล้อ+พ่วง'!C74 -> 105.88 | L80: ='รถ 10 ล้อ+พ่วง'!D74 -> 148.24 | O80: ขุดลึก 3 ซม. | P80: ตรม. | Q80: =IF($Q$9="ปกติ",'ค่าดำเนินการ+ค่าเสื่อมราคา'!H75,'ค่าดำเนินการ+ค่าเสื่อมราคา'!I75) -> 49.6
B81: ='รถ 6 ล้อ'!B75:D75 -> 71 | C81: ='รถ 6 ล้อ'!C75:E75 -> 226.79 | D81: ='รถ 6 ล้อ'!D75:F75 -> 317.51 | F81: ='รถ 10 ล้อ'!B75 -> 71 | G81: ='รถ 10 ล้อ'!C75 -> 173.15 | H81: ='รถ 10 ล้อ'!D75 -> 242.41 | J81: ='รถ 10 ล้อ+พ่วง'!B75 -> 71 | K81: ='รถ 10 ล้อ+พ่วง'!C75 -> 107.39 | L81: ='รถ 10 ล้อ+พ่วง'!D75 -> 150.35 | O81: ขุดลึก 4 ซม. | P81: ตรม. | Q81: =IF($Q$9="ปกติ",'ค่าดำเนินการ+ค่าเสื่อมราคา'!H76,'ค่าดำเนินการ+ค่าเสื่อมราคา'!I76) -> 67.19
B82: ='รถ 6 ล้อ'!B76:D76 -> 72 | C82: ='รถ 6 ล้อ'!C76:E76 -> 229.95 | D82: ='รถ 6 ล้อ'!D76:F76 -> 321.92 | F82: ='รถ 10 ล้อ'!B76 -> 72 | G82: ='รถ 10 ล้อ'!C76 -> 175.58 | H82: ='รถ 10 ล้อ'!D76 -> 245.81 | J82: ='รถ 10 ล้อ+พ่วง'!B76 -> 72 | K82: ='รถ 10 ล้อ+พ่วง'!C76 -> 108.91 | L82: ='รถ 10 ล้อ+พ่วง'!D76 -> 152.47 | O82: ขุดลึก 5 ซม. | P82: ตรม. | Q82: =IF($Q$9="ปกติ",'ค่าดำเนินการ+ค่าเสื่อมราคา'!H77,'ค่าดำเนินการ+ค่าเสื่อมราคา'!I77) -> 80.53
B83: ='รถ 6 ล้อ'!B77:D77 -> 73 | C83: ='รถ 6 ล้อ'!C77:E77 -> 233.11 | D83: ='รถ 6 ล้อ'!D77:F77 -> 326.35 | F83: ='รถ 10 ล้อ'!B77 -> 73 | G83: ='รถ 10 ล้อ'!C77 -> 178.01 | H83: ='รถ 10 ล้อ'!D77 -> 249.22 | J83: ='รถ 10 ล้อ+พ่วง'!B77 -> 73 | K83: ='รถ 10 ล้อ+พ่วง'!C77 -> 110.4 | L83: ='รถ 10 ล้อ+พ่วง'!D77 -> 154.56 | O83: ขุดลึก 6 ซม. | P83: ตรม. | Q83: =IF($Q$9="ปกติ",'ค่าดำเนินการ+ค่าเสื่อมราคา'!H78,'ค่าดำเนินการ+ค่าเสื่อมราคา'!I78) -> 66.8
B84: ='รถ 6 ล้อ'!B78:D78 -> 74 | C84: ='รถ 6 ล้อ'!C78:E78 -> 236.25 | D84: ='รถ 6 ล้อ'!D78:F78 -> 330.76 | F84: ='รถ 10 ล้อ'!B78 -> 74 | G84: ='รถ 10 ล้อ'!C78 -> 180.46 | H84: ='รถ 10 ล้อ'!D78 -> 252.65 | J84: ='รถ 10 ล้อ+พ่วง'!B78 -> 74 | K84: ='รถ 10 ล้อ+พ่วง'!C78 -> 111.92 | L84: ='รถ 10 ล้อ+พ่วง'!D78 -> 156.68 | N84: 20 | O84: งาน Milling
B85: ='รถ 6 ล้อ'!B79:D79 -> 75 | C85: ='รถ 6 ล้อ'!C79:E79 -> 239.43 | D85: ='รถ 6 ล้อ'!D79:F79 -> 335.2 | F85: ='รถ 10 ล้อ'!B79 -> 75 | G85: ='รถ 10 ล้อ'!C79 -> 182.83 | H85: ='รถ 10 ล้อ'!D79 -> 255.96 | J85: ='รถ 10 ล้อ+พ่วง'!B79 -> 75 | K85: ='รถ 10 ล้อ+พ่วง'!C79 -> 113.41 | L85: ='รถ 10 ล้อ+พ่วง'!D79 -> 158.78 | O85: ขุดลึก 5 ซม. | P85: ตร.ม. | Q85: =IF($Q$9="ปกติ",'ค่าดำเนินการ+ค่าเสื่อมราคา'!H80,'ค่าดำเนินการ+ค่าเสื่อมราคา'!I80) -> 12.22
B86: ='รถ 6 ล้อ'!B80:D80 -> 76 | C86: ='รถ 6 ล้อ'!C80:E80 -> 242.58 | D86: ='รถ 6 ล้อ'!D80:F80 -> 339.61 | F86: ='รถ 10 ล้อ'!B80 -> 76 | G86: ='รถ 10 ล้อ'!C80 -> 185.3 | H86: ='รถ 10 ล้อ'!D80 -> 259.42 | J86: ='รถ 10 ล้อ+พ่วง'!B80 -> 76 | K86: ='รถ 10 ล้อ+พ่วง'!C80 -> 114.91 | L86: ='รถ 10 ล้อ+พ่วง'!D80 -> 160.88 | O86: ขุดลึก 10 ซม. | P86: ตร.ม. | Q86: =IF($Q$9="ปกติ",'ค่าดำเนินการ+ค่าเสื่อมราคา'!H81,'ค่าดำเนินการ+ค่าเสื่อมราคา'!I81) -> 14.26
B87: ='รถ 6 ล้อ'!B81:D81 -> 77 | C87: ='รถ 6 ล้อ'!C81:E81 -> 245.74 | D87: ='รถ 6 ล้อ'!D81:F81 -> 344.03 | F87: ='รถ 10 ล้อ'!B81 -> 77 | G87: ='รถ 10 ล้อ'!C81 -> 187.68 | H87: ='รถ 10 ล้อ'!D81 -> 262.76 | J87: ='รถ 10 ล้อ+พ่วง'!B81 -> 77 | K87: ='รถ 10 ล้อ+พ่วง'!C81 -> 116.41 | L87: ='รถ 10 ล้อ+พ่วง'!D81 -> 162.98
B88: ='รถ 6 ล้อ'!B82:D82 -> 78 | C88: ='รถ 6 ล้อ'!C82:E82 -> 248.9 | D88: ='รถ 6 ล้อ'!D82:F82 -> 348.46 | F88: ='รถ 10 ล้อ'!B82 -> 78 | G88: ='รถ 10 ล้อ'!C82 -> 190.08 | H88: ='รถ 10 ล้อ'!D82 -> 266.11 | J88: ='รถ 10 ล้อ+พ่วง'!B82 -> 78 | K88: ='รถ 10 ล้อ+พ่วง'!C82 -> 117.92 | L88: ='รถ 10 ล้อ+พ่วง'!D82 -> 165.08
B89: ='รถ 6 ล้อ'!B83:D83 -> 79 | C89: ='รถ 6 ล้อ'!C83:E83 -> 252.06 | D89: ='รถ 6 ล้อ'!D83:F83 -> 352.88 | F89: ='รถ 10 ล้อ'!B83 -> 79 | G89: ='รถ 10 ล้อ'!C83 -> 192.59 | H89: ='รถ 10 ล้อ'!D83 -> 269.63 | J89: ='รถ 10 ล้อ+พ่วง'!B83 -> 79 | K89: ='รถ 10 ล้อ+พ่วง'!C83 -> 119.42 | L89: ='รถ 10 ล้อ+พ่วง'!D83 -> 167.19
B90: ='รถ 6 ล้อ'!B84:D84 -> 80 | C90: ='รถ 6 ล้อ'!C84:E84 -> 255.22 | D90: ='รถ 6 ล้อ'!D84:F84 -> 357.31 | F90: ='รถ 10 ล้อ'!B84 -> 80 | G90: ='รถ 10 ล้อ'!C84 -> 195.01 | H90: ='รถ 10 ล้อ'!D84 -> 273.01 | J90: ='รถ 10 ล้อ+พ่วง'!B84 -> 80 | K90: ='รถ 10 ล้อ+พ่วง'!C84 -> 120.93 | L90: ='รถ 10 ล้อ+พ่วง'!D84 -> 169.31
B91: ='รถ 6 ล้อ'!B85:D85 -> 81 | C91: ='รถ 6 ล้อ'!C85:E85 -> 258.38 | D91: ='รถ 6 ล้อ'!D85:F85 -> 361.74 | F91: ='รถ 10 ล้อ'!B85 -> 81 | G91: ='รถ 10 ล้อ'!C85 -> 197.44 | H91: ='รถ 10 ล้อ'!D85 -> 276.41 | J91: ='รถ 10 ล้อ+พ่วง'!B85 -> 81 | K91: ='รถ 10 ล้อ+พ่วง'!C85 -> 122.45 | L91: ='รถ 10 ล้อ+พ่วง'!D85 -> 171.42
B92: ='รถ 6 ล้อ'!B86:D86 -> 82 | C92: ='รถ 6 ล้อ'!C86:E86 -> 261.54 | D92: ='รถ 6 ล้อ'!D86:F86 -> 366.16 | F92: ='รถ 10 ล้อ'!B86 -> 82 | G92: ='รถ 10 ล้อ'!C86 -> 199.76 | H92: ='รถ 10 ล้อ'!D86 -> 279.66 | J92: ='รถ 10 ล้อ+พ่วง'!B86 -> 82 | K92: ='รถ 10 ล้อ+พ่วง'!C86 -> 123.93 | L92: ='รถ 10 ล้อ+พ่วง'!D86 -> 173.5
B93: ='รถ 6 ล้อ'!B87:D87 -> 83 | C93: ='รถ 6 ล้อ'!C87:E87 -> 264.7 | D93: ='รถ 6 ล้อ'!D87:F87 -> 370.58 | F93: ='รถ 10 ล้อ'!B87 -> 83 | G93: ='รถ 10 ล้อ'!C87 -> 202.21 | H93: ='รถ 10 ล้อ'!D87 -> 283.09 | J93: ='รถ 10 ล้อ+พ่วง'!B87 -> 83 | K93: ='รถ 10 ล้อ+พ่วง'!C87 -> 125.45 | L93: ='รถ 10 ล้อ+พ่วง'!D87 -> 175.63
B94: ='รถ 6 ล้อ'!B88:D88 -> 84 | C94: ='รถ 6 ล้อ'!C88:E88 -> 267.88 | D94: ='รถ 6 ล้อ'!D88:F88 -> 375.04 | F94: ='รถ 10 ล้อ'!B88 -> 84 | G94: ='รถ 10 ล้อ'!C88 -> 204.67 | H94: ='รถ 10 ล้อ'!D88 -> 286.53 | J94: ='รถ 10 ล้อ+พ่วง'!B88 -> 84 | K94: ='รถ 10 ล้อ+พ่วง'!C88 -> 126.94 | L94: ='รถ 10 ล้อ+พ่วง'!D88 -> 177.71
B95: ='รถ 6 ล้อ'!B89:D89 -> 85 | C95: ='รถ 6 ล้อ'!C89:E89 -> 271.03 | D95: ='รถ 6 ล้อ'!D89:F89 -> 379.45 | F95: ='รถ 10 ล้อ'!B89 -> 85 | G95: ='รถ 10 ล้อ'!C89 -> 207.14 | H95: ='รถ 10 ล้อ'!D89 -> 289.99 | J95: ='รถ 10 ล้อ+พ่วง'!B89 -> 85 | K95: ='รถ 10 ล้อ+พ่วง'!C89 -> 128.46 | L95: ='รถ 10 ล้อ+พ่วง'!D89 -> 179.85
B96: ='รถ 6 ล้อ'!B90:D90 -> 86 | C96: ='รถ 6 ล้อ'!C90:E90 -> 274.18 | D96: ='รถ 6 ล้อ'!D90:F90 -> 383.85 | F96: ='รถ 10 ล้อ'!B90 -> 86 | G96: ='รถ 10 ล้อ'!C90 -> 209.49 | H96: ='รถ 10 ล้อ'!D90 -> 293.29 | J96: ='รถ 10 ล้อ+พ่วง'!B90 -> 86 | K96: ='รถ 10 ล้อ+พ่วง'!C90 -> 129.95 | L96: ='รถ 10 ล้อ+พ่วง'!D90 -> 181.94
B97: ='รถ 6 ล้อ'!B91:D91 -> 87 | C97: ='รถ 6 ล้อ'!C91:E91 -> 277.35 | D97: ='รถ 6 ล้อ'!D91:F91 -> 388.29 | F97: ='รถ 10 ล้อ'!B91 -> 87 | G97: ='รถ 10 ล้อ'!C91 -> 211.86 | H97: ='รถ 10 ล้อ'!D91 -> 296.6 | J97: ='รถ 10 ล้อ+พ่วง'!B91 -> 87 | K97: ='รถ 10 ล้อ+พ่วง'!C91 -> 131.45 | L97: ='รถ 10 ล้อ+พ่วง'!D91 -> 184.03
B98: ='รถ 6 ล้อ'!B92:D92 -> 88 | C98: ='รถ 6 ล้อ'!C92:E92 -> 280.51 | D98: ='รถ 6 ล้อ'!D92:F92 -> 392.71 | F98: ='รถ 10 ล้อ'!B92 -> 88 | G98: ='รถ 10 ล้อ'!C92 -> 214.36 | H98: ='รถ 10 ล้อ'!D92 -> 300.11 | J98: ='รถ 10 ล้อ+พ่วง'!B92 -> 88 | K98: ='รถ 10 ล้อ+พ่วง'!C92 -> 132.95 | L98: ='รถ 10 ล้อ+พ่วง'!D92 -> 186.13
B99: ='รถ 6 ล้อ'!B93:D93 -> 89 | C99: ='รถ 6 ล้อ'!C93:E93 -> 283.66 | D99: ='รถ 6 ล้อ'!D93:F93 -> 397.13 | F99: ='รถ 10 ล้อ'!B93 -> 89 | G99: ='รถ 10 ล้อ'!C93 -> 216.75 | H99: ='รถ 10 ล้อ'!D93 -> 303.44 | J99: ='รถ 10 ล้อ+พ่วง'!B93 -> 89 | K99: ='รถ 10 ล้อ+พ่วง'!C93 -> 134.45 | L99: ='รถ 10 ล้อ+พ่วง'!D93 -> 188.23
B100: ='รถ 6 ล้อ'!B94:D94 -> 90 | C100: ='รถ 6 ล้อ'!C94:E94 -> 286.84 | D100: ='รถ 6 ล้อ'!D94:F94 -> 401.57 | F100: ='รถ 10 ล้อ'!B94 -> 90 | G100: ='รถ 10 ล้อ'!C94 -> 219.14 | H100: ='รถ 10 ล้อ'!D94 -> 306.79 | J100: ='รถ 10 ล้อ+พ่วง'!B94 -> 90 | K100: ='รถ 10 ล้อ+พ่วง'!C94 -> 135.99 | L100: ='รถ 10 ล้อ+พ่วง'!D94 -> 190.38
B101: ='รถ 6 ล้อ'!B95:D95 -> 91 | C101: ='รถ 6 ล้อ'!C95:E95 -> 290 | D101: ='รถ 6 ล้อ'!D95:F95 -> 406 | F101: ='รถ 10 ล้อ'!B95 -> 91 | G101: ='รถ 10 ล้อ'!C95 -> 221.68 | H101: ='รถ 10 ล้อ'!D95 -> 310.35 | J101: ='รถ 10 ล้อ+พ่วง'!B95 -> 91 | K101: ='รถ 10 ล้อ+พ่วง'!C95 -> 137.49 | L101: ='รถ 10 ล้อ+พ่วง'!D95 -> 192.49
B102: ='รถ 6 ล้อ'!B96:D96 -> 92 | C102: ='รถ 6 ล้อ'!C96:E96 -> 293.16 | D102: ='รถ 6 ล้อ'!D96:F96 -> 410.42 | F102: ='รถ 10 ล้อ'!B96 -> 92 | G102: ='รถ 10 ล้อ'!C96 -> 224.09 | H102: ='รถ 10 ล้อ'!D96 -> 313.72 | J102: ='รถ 10 ล้อ+พ่วง'!B96 -> 92 | K102: ='รถ 10 ล้อ+พ่วง'!C96 -> 138.96 | L102: ='รถ 10 ล้อ+พ่วง'!D96 -> 194.54
B103: ='รถ 6 ล้อ'!B97:D97 -> 93 | C103: ='รถ 6 ล้อ'!C97:E97 -> 296.3 | D103: ='รถ 6 ล้อ'!D97:F97 -> 414.82 | F103: ='รถ 10 ล้อ'!B97 -> 93 | G103: ='รถ 10 ล้อ'!C97 -> 226.51 | H103: ='รถ 10 ล้อ'!D97 -> 317.11 | J103: ='รถ 10 ล้อ+พ่วง'!B97 -> 93 | K103: ='รถ 10 ล้อ+พ่วง'!C97 -> 140.47 | L103: ='รถ 10 ล้อ+พ่วง'!D97 -> 196.66
B104: ='รถ 6 ล้อ'!B98:D98 -> 94 | C104: ='รถ 6 ล้อ'!C98:E98 -> 299.47 | D104: ='รถ 6 ล้อ'!D98:F98 -> 419.25 | F104: ='รถ 10 ล้อ'!B98 -> 94 | G104: ='รถ 10 ล้อ'!C98 -> 228.94 | H104: ='รถ 10 ล้อ'!D98 -> 320.51 | J104: ='รถ 10 ล้อ+พ่วง'!B98 -> 94 | K104: ='รถ 10 ล้อ+พ่วง'!C98 -> 141.98 | L104: ='รถ 10 ล้อ+พ่วง'!D98 -> 198.77
B105: ='รถ 6 ล้อ'!B99:D99 -> 95 | C105: ='รถ 6 ล้อ'!C99:E99 -> 302.65 | D105: ='รถ 6 ล้อ'!D99:F99 -> 423.71 | F105: ='รถ 10 ล้อ'!B99 -> 95 | G105: ='รถ 10 ล้อ'!C99 -> 231.22 | H105: ='รถ 10 ล้อ'!D99 -> 323.71 | J105: ='รถ 10 ล้อ+พ่วง'!B99 -> 95 | K105: ='รถ 10 ล้อ+พ่วง'!C99 -> 143.5 | L105: ='รถ 10 ล้อ+พ่วง'!D99 -> 200.89
B106: ='รถ 6 ล้อ'!B100:D100 -> 96 | C106: ='รถ 6 ล้อ'!C100:E100 -> 305.79 | D106: ='รถ 6 ล้อ'!D100:F100 -> 428.11 | F106: ='รถ 10 ล้อ'!B100 -> 96 | G106: ='รถ 10 ล้อ'!C100 -> 233.67 | H106: ='รถ 10 ล้อ'!D100 -> 327.13 | J106: ='รถ 10 ล้อ+พ่วง'!B100 -> 96 | K106: ='รถ 10 ล้อ+พ่วง'!C100 -> 145.01 | L106: ='รถ 10 ล้อ+พ่วง'!D100 -> 203.02
B107: ='รถ 6 ล้อ'!B101:D101 -> 97 | C107: ='รถ 6 ล้อ'!C101:E101 -> 308.95 | D107: ='รถ 6 ล้อ'!D101:F101 -> 432.53 | F107: ='รถ 10 ล้อ'!B101 -> 97 | G107: ='รถ 10 ล้อ'!C101 -> 236.12 | H107: ='รถ 10 ล้อ'!D101 -> 330.57 | J107: ='รถ 10 ล้อ+พ่วง'!B101 -> 97 | K107: ='รถ 10 ล้อ+พ่วง'!C101 -> 146.49 | L107: ='รถ 10 ล้อ+พ่วง'!D101 -> 205.08
B108: ='รถ 6 ล้อ'!B102:D102 -> 98 | C108: ='รถ 6 ล้อ'!C102:E102 -> 312.13 | D108: ='รถ 6 ล้อ'!D102:F102 -> 436.98 | F108: ='รถ 10 ล้อ'!B102 -> 98 | G108: ='รถ 10 ล้อ'!C102 -> 238.59 | H108: ='รถ 10 ล้อ'!D102 -> 334.02 | J108: ='รถ 10 ล้อ+พ่วง'!B102 -> 98 | K108: ='รถ 10 ล้อ+พ่วง'!C102 -> 148.01 | L108: ='รถ 10 ล้อ+พ่วง'!D102 -> 207.22
B109: ='รถ 6 ล้อ'!B103:D103 -> 99 | C109: ='รถ 6 ล้อ'!C103:E103 -> 315.29 | D109: ='รถ 6 ล้อ'!D103:F103 -> 441.4 | F109: ='รถ 10 ล้อ'!B103 -> 99 | G109: ='รถ 10 ล้อ'!C103 -> 241.06 | H109: ='รถ 10 ล้อ'!D103 -> 337.49 | J109: ='รถ 10 ล้อ+พ่วง'!B103 -> 99 | K109: ='รถ 10 ล้อ+พ่วง'!C103 -> 149.49 | L109: ='รถ 10 ล้อ+พ่วง'!D103 -> 209.29
B110: ='รถ 6 ล้อ'!B104:D104 -> 100 | C110: ='รถ 6 ล้อ'!C104:E104 -> 318.43 | D110: ='รถ 6 ล้อ'!D104:F104 -> 445.8 | F110: ='รถ 10 ล้อ'!B104 -> 100 | G110: ='รถ 10 ล้อ'!C104 -> 243.38 | H110: ='รถ 10 ล้อ'!D104 -> 340.74 | J110: ='รถ 10 ล้อ+พ่วง'!B104 -> 100 | K110: ='รถ 10 ล้อ+พ่วง'!C104 -> 151.02 | L110: ='รถ 10 ล้อ+พ่วง'!D104 -> 211.42
B111: ='รถ 6 ล้อ'!B105:D105 -> 101 | C111: ='รถ 6 ล้อ'!C105:E105 -> 321.59 | D111: ='รถ 6 ล้อ'!D105:F105 -> 450.23 | F111: ='รถ 10 ล้อ'!B105 -> 101 | G111: ='รถ 10 ล้อ'!C105 -> 245.88 | H111: ='รถ 10 ล้อ'!D105 -> 344.23 | J111: ='รถ 10 ล้อ+พ่วง'!B105 -> 101 | K111: ='รถ 10 ล้อ+พ่วง'!C105 -> 152.5 | L111: ='รถ 10 ล้อ+พ่วง'!D105 -> 213.5
B112: ='รถ 6 ล้อ'!B106:D106 -> 102 | C112: ='รถ 6 ล้อ'!C106:E106 -> 324.78 | D112: ='รถ 6 ล้อ'!D106:F106 -> 454.69 | F112: ='รถ 10 ล้อ'!B106 -> 102 | G112: ='รถ 10 ล้อ'!C106 -> 248.21 | H112: ='รถ 10 ล้อ'!D106 -> 347.49 | J112: ='รถ 10 ล้อ+พ่วง'!B106 -> 102 | K112: ='รถ 10 ล้อ+พ่วง'!C106 -> 154.03 | L112: ='รถ 10 ล้อ+พ่วง'!D106 -> 215.65
B113: ='รถ 6 ล้อ'!B107:D107 -> 103 | C113: ='รถ 6 ล้อ'!C107:E107 -> 327.94 | D113: ='รถ 6 ล้อ'!D107:F107 -> 459.11 | F113: ='รถ 10 ล้อ'!B107 -> 103 | G113: ='รถ 10 ล้อ'!C107 -> 250.72 | H113: ='รถ 10 ล้อ'!D107 -> 351.01 | J113: ='รถ 10 ล้อ+พ่วง'!B107 -> 103 | K113: ='รถ 10 ล้อ+พ่วง'!C107 -> 155.52 | L113: ='รถ 10 ล้อ+พ่วง'!D107 -> 217.73
B114: ='รถ 6 ล้อ'!B108:D108 -> 104 | C114: ='รถ 6 ล้อ'!C108:E108 -> 331.08 | D114: ='รถ 6 ล้อ'!D108:F108 -> 463.51 | F114: ='รถ 10 ล้อ'!B108 -> 104 | G114: ='รถ 10 ล้อ'!C108 -> 253.07 | H114: ='รถ 10 ล้อ'!D108 -> 354.3 | J114: ='รถ 10 ล้อ+พ่วง'!B108 -> 104 | K114: ='รถ 10 ล้อ+พ่วง'!C108 -> 157.01 | L114: ='รถ 10 ล้อ+พ่วง'!D108 -> 219.81
B115: ='รถ 6 ล้อ'!B109:D109 -> 105 | C115: ='รถ 6 ล้อ'!C109:E109 -> 334.24 | D115: ='รถ 6 ล้อ'!D109:F109 -> 467.93 | F115: ='รถ 10 ล้อ'!B109 -> 105 | G115: ='รถ 10 ล้อ'!C109 -> 255.61 | H115: ='รถ 10 ล้อ'!D109 -> 357.85 | J115: ='รถ 10 ล้อ+พ่วง'!B109 -> 105 | K115: ='รถ 10 ล้อ+พ่วง'!C109 -> 158.55 | L115: ='รถ 10 ล้อ+พ่วง'!D109 -> 221.97
B116: ='รถ 6 ล้อ'!B110:D110 -> 106 | C116: ='รถ 6 ล้อ'!C110:E110 -> 337.42 | D116: ='รถ 6 ล้อ'!D110:F110 -> 472.38 | F116: ='รถ 10 ล้อ'!B110 -> 106 | G116: ='รถ 10 ล้อ'!C110 -> 257.96 | H116: ='รถ 10 ล้อ'!D110 -> 361.15 | J116: ='รถ 10 ล้อ+พ่วง'!B110 -> 106 | K116: ='รถ 10 ล้อ+พ่วง'!C110 -> 160.04 | L116: ='รถ 10 ล้อ+พ่วง'!D110 -> 224.06
B117: ='รถ 6 ล้อ'!B111:D111 -> 107 | C117: ='รถ 6 ล้อ'!C111:E111 -> 340.57 | D117: ='รถ 6 ล้อ'!D111:F111 -> 476.8 | F117: ='รถ 10 ล้อ'!B111 -> 107 | G117: ='รถ 10 ล้อ'!C111 -> 260.33 | H117: ='รถ 10 ล้อ'!D111 -> 364.46 | J117: ='รถ 10 ล้อ+พ่วง'!B111 -> 107 | K117: ='รถ 10 ล้อ+พ่วง'!C111 -> 161.54 | L117: ='รถ 10 ล้อ+พ่วง'!D111 -> 226.15
B118: ='รถ 6 ล้อ'!B112:D112 -> 108 | C118: ='รถ 6 ล้อ'!C112:E112 -> 343.74 | D118: ='รถ 6 ล้อ'!D112:F112 -> 481.24 | F118: ='รถ 10 ล้อ'!B112 -> 108 | G118: ='รถ 10 ล้อ'!C112 -> 262.7 | H118: ='รถ 10 ล้อ'!D112 -> 367.78 | J118: ='รถ 10 ล้อ+พ่วง'!B112 -> 108 | K118: ='รถ 10 ล้อ+พ่วง'!C112 -> 163.03 | L118: ='รถ 10 ล้อ+พ่วง'!D112 -> 228.24
B119: ='รถ 6 ล้อ'!B113:D113 -> 109 | C119: ='รถ 6 ล้อ'!C113:E113 -> 346.89 | D119: ='รถ 6 ล้อ'!D113:F113 -> 485.64 | F119: ='รถ 10 ล้อ'!B113 -> 109 | G119: ='รถ 10 ล้อ'!C113 -> 265.28 | H119: ='รถ 10 ล้อ'!D113 -> 371.39 | J119: ='รถ 10 ล้อ+พ่วง'!B113 -> 109 | K119: ='รถ 10 ล้อ+พ่วง'!C113 -> 164.53 | L119: ='รถ 10 ล้อ+พ่วง'!D113 -> 230.34
B120: ='รถ 6 ล้อ'!B114:D114 -> 110 | C120: ='รถ 6 ล้อ'!C114:E114 -> 350.05 | D120: ='รถ 6 ล้อ'!D114:F114 -> 490.07 | F120: ='รถ 10 ล้อ'!B114 -> 110 | G120: ='รถ 10 ล้อ'!C114 -> 267.66 | H120: ='รถ 10 ล้อ'!D114 -> 374.73 | J120: ='รถ 10 ล้อ+พ่วง'!B114 -> 110 | K120: ='รถ 10 ล้อ+พ่วง'!C114 -> 166.03 | L120: ='รถ 10 ล้อ+พ่วง'!D114 -> 232.44
B121: ='รถ 6 ล้อ'!B115:D115 -> 111 | C121: ='รถ 6 ล้อ'!C115:E115 -> 353.23 | D121: ='รถ 6 ล้อ'!D115:F115 -> 494.52 | F121: ='รถ 10 ล้อ'!B115 -> 111 | G121: ='รถ 10 ล้อ'!C115 -> 270.06 | H121: ='รถ 10 ล้อ'!D115 -> 378.08 | J121: ='รถ 10 ล้อ+พ่วง'!B115 -> 111 | K121: ='รถ 10 ล้อ+พ่วง'!C115 -> 167.53 | L121: ='รถ 10 ล้อ+พ่วง'!D115 -> 234.54
B122: ='รถ 6 ล้อ'!B116:D116 -> 112 | C122: ='รถ 6 ล้อ'!C116:E116 -> 356.38 | D122: ='รถ 6 ล้อ'!D116:F116 -> 498.94 | F122: ='รถ 10 ล้อ'!B116 -> 112 | G122: ='รถ 10 ล้อ'!C116 -> 272.46 | H122: ='รถ 10 ล้อ'!D116 -> 381.44 | J122: ='รถ 10 ล้อ+พ่วง'!B116 -> 112 | K122: ='รถ 10 ล้อ+พ่วง'!C116 -> 169.03 | L122: ='รถ 10 ล้อ+พ่วง'!D116 -> 236.65
B123: ='รถ 6 ล้อ'!B117:D117 -> 113 | C123: ='รถ 6 ล้อ'!C117:E117 -> 359.55 | D123: ='รถ 6 ล้อ'!D117:F117 -> 503.38 | F123: ='รถ 10 ล้อ'!B117 -> 113 | G123: ='รถ 10 ล้อ'!C117 -> 274.87 | H123: ='รถ 10 ล้อ'!D117 -> 384.81 | J123: ='รถ 10 ล้อ+พ่วง'!B117 -> 113 | K123: ='รถ 10 ล้อ+พ่วง'!C117 -> 170.54 | L123: ='รถ 10 ล้อ+พ่วง'!D117 -> 238.75
B124: ='รถ 6 ล้อ'!B118:D118 -> 114 | C124: ='รถ 6 ล้อ'!C118:E118 -> 362.69 | D124: ='รถ 6 ล้อ'!D118:F118 -> 507.77 | F124: ='รถ 10 ล้อ'!B118 -> 114 | G124: ='รถ 10 ล้อ'!C118 -> 277.28 | H124: ='รถ 10 ล้อ'!D118 -> 388.2 | J124: ='รถ 10 ล้อ+พ่วง'!B118 -> 114 | K124: ='รถ 10 ล้อ+พ่วง'!C118 -> 172.05 | L124: ='รถ 10 ล้อ+พ่วง'!D118 -> 240.86
B125: ='รถ 6 ล้อ'!B119:D119 -> 115 | C125: ='รถ 6 ล้อ'!C119:E119 -> 365.85 | D125: ='รถ 6 ล้อ'!D119:F119 -> 512.19 | F125: ='รถ 10 ล้อ'!B119 -> 115 | G125: ='รถ 10 ล้อ'!C119 -> 279.7 | H125: ='รถ 10 ล้อ'!D119 -> 391.59 | J125: ='รถ 10 ล้อ+พ่วง'!B119 -> 115 | K125: ='รถ 10 ล้อ+พ่วง'!C119 -> 173.55 | L125: ='รถ 10 ล้อ+พ่วง'!D119 -> 242.98
B126: ='รถ 6 ล้อ'!B120:D120 -> 116 | C126: ='รถ 6 ล้อ'!C120:E120 -> 369.02 | D126: ='รถ 6 ล้อ'!D120:F120 -> 516.63 | F126: ='รถ 10 ล้อ'!B120 -> 116 | G126: ='รถ 10 ล้อ'!C120 -> 282.14 | H126: ='รถ 10 ล้อ'!D120 -> 394.99 | J126: ='รถ 10 ล้อ+พ่วง'!B120 -> 116 | K126: ='รถ 10 ล้อ+พ่วง'!C120 -> 175.07 | L126: ='รถ 10 ล้อ+พ่วง'!D120 -> 245.09
B127: ='รถ 6 ล้อ'!B121:D121 -> 117 | C127: ='รถ 6 ล้อ'!C121:E121 -> 372.16 | D127: ='รถ 6 ล้อ'!D121:F121 -> 521.03 | F127: ='รถ 10 ล้อ'!B121 -> 117 | G127: ='รถ 10 ล้อ'!C121 -> 284.57 | H127: ='รถ 10 ล้อ'!D121 -> 398.4 | J127: ='รถ 10 ล้อ+พ่วง'!B121 -> 117 | K127: ='รถ 10 ล้อ+พ่วง'!C121 -> 176.58 | L127: ='รถ 10 ล้อ+พ่วง'!D121 -> 247.21
B128: ='รถ 6 ล้อ'!B122:D122 -> 118 | C128: ='รถ 6 ล้อ'!C122:E122 -> 375.32 | D128: ='รถ 6 ล้อ'!D122:F122 -> 525.44 | F128: ='รถ 10 ล้อ'!B122 -> 118 | G128: ='รถ 10 ล้อ'!C122 -> 287.02 | H128: ='รถ 10 ล้อ'!D122 -> 401.83 | J128: ='รถ 10 ล้อ+พ่วง'!B122 -> 118 | K128: ='รถ 10 ล้อ+พ่วง'!C122 -> 178.09 | L128: ='รถ 10 ล้อ+พ่วง'!D122 -> 249.33
B129: ='รถ 6 ล้อ'!B123:D123 -> 119 | C129: ='รถ 6 ล้อ'!C123:E123 -> 378.49 | D129: ='รถ 6 ล้อ'!D123:F123 -> 529.88 | F129: ='รถ 10 ล้อ'!B123 -> 119 | G129: ='รถ 10 ล้อ'!C123 -> 289.47 | H129: ='รถ 10 ล้อ'!D123 -> 405.26 | J129: ='รถ 10 ล้อ+พ่วง'!B123 -> 119 | K129: ='รถ 10 ล้อ+พ่วง'!C123 -> 179.61 | L129: ='รถ 10 ล้อ+พ่วง'!D123 -> 251.46
B130: ='รถ 6 ล้อ'!B124:D124 -> 120 | C130: ='รถ 6 ล้อ'!C124:E124 -> 381.67 | D130: ='รถ 6 ล้อ'!D124:F124 -> 534.34 | F130: ='รถ 10 ล้อ'!B124 -> 120 | G130: ='รถ 10 ล้อ'!C124 -> 291.94 | H130: ='รถ 10 ล้อ'!D124 -> 408.71 | J130: ='รถ 10 ล้อ+พ่วง'!B124 -> 120 | K130: ='รถ 10 ล้อ+พ่วง'!C124 -> 181.07 | L130: ='รถ 10 ล้อ+พ่วง'!D124 -> 253.5
B131: ='รถ 6 ล้อ'!B125:D125 -> 121 | C131: ='รถ 6 ล้อ'!C125:E125 -> 384.83 | D131: ='รถ 6 ล้อ'!D125:F125 -> 538.76 | F131: ='รถ 10 ล้อ'!B125 -> 121 | G131: ='รถ 10 ล้อ'!C125 -> 294.16 | H131: ='รถ 10 ล้อ'!D125 -> 411.83 | J131: ='รถ 10 ล้อ+พ่วง'!B125 -> 121 | K131: ='รถ 10 ล้อ+พ่วง'!C125 -> 182.59 | L131: ='รถ 10 ล้อ+พ่วง'!D125 -> 255.63
B132: ='รถ 6 ล้อ'!B126:D126 -> 122 | C132: ='รถ 6 ล้อ'!C126:E126 -> 387.99 | D132: ='รถ 6 ล้อ'!D126:F126 -> 543.19 | F132: ='รถ 10 ล้อ'!B126 -> 122 | G132: ='รถ 10 ล้อ'!C126 -> 296.64 | H132: ='รถ 10 ล้อ'!D126 -> 415.29 | J132: ='รถ 10 ล้อ+พ่วง'!B126 -> 122 | K132: ='รถ 10 ล้อ+พ่วง'!C126 -> 184.11 | L132: ='รถ 10 ล้อ+พ่วง'!D126 -> 257.76
B133: ='รถ 6 ล้อ'!B127:D127 -> 123 | C133: ='รถ 6 ล้อ'!C127:E127 -> 391.12 | D133: ='รถ 6 ล้อ'!D127:F127 -> 547.57 | F133: ='รถ 10 ล้อ'!B127 -> 123 | G133: ='รถ 10 ล้อ'!C127 -> 299.12 | H133: ='รถ 10 ล้อ'!D127 -> 418.77 | J133: ='รถ 10 ล้อ+พ่วง'!B127 -> 123 | K133: ='รถ 10 ล้อ+พ่วง'!C127 -> 185.57 | L133: ='รถ 10 ล้อ+พ่วง'!D127 -> 259.8
B134: ='รถ 6 ล้อ'!B128:D128 -> 124 | C134: ='รถ 6 ล้อ'!C128:E128 -> 394.32 | D134: ='รถ 6 ล้อ'!D128:F128 -> 552.04 | F134: ='รถ 10 ล้อ'!B128 -> 124 | G134: ='รถ 10 ล้อ'!C128 -> 301.62 | H134: ='รถ 10 ล้อ'!D128 -> 422.27 | J134: ='รถ 10 ล้อ+พ่วง'!B128 -> 124 | K134: ='รถ 10 ล้อ+พ่วง'!C128 -> 187.1 | L134: ='รถ 10 ล้อ+พ่วง'!D128 -> 261.94
B135: ='รถ 6 ล้อ'!B129:D129 -> 125 | C135: ='รถ 6 ล้อ'!C129:E129 -> 397.47 | D135: ='รถ 6 ล้อ'!D129:F129 -> 556.46 | F135: ='รถ 10 ล้อ'!B129 -> 125 | G135: ='รถ 10 ล้อ'!C129 -> 303.86 | H135: ='รถ 10 ล้อ'!D129 -> 425.4 | J135: ='รถ 10 ล้อ+พ่วง'!B129 -> 125 | K135: ='รถ 10 ล้อ+พ่วง'!C129 -> 188.63 | L135: ='รถ 10 ล้อ+พ่วง'!D129 -> 264.08
B136: ='รถ 6 ล้อ'!B130:D130 -> 126 | C136: ='รถ 6 ล้อ'!C130:E130 -> 400.65 | D136: ='รถ 6 ล้อ'!D130:F130 -> 560.91 | F136: ='รถ 10 ล้อ'!B130 -> 126 | G136: ='รถ 10 ล้อ'!C130 -> 306.37 | H136: ='รถ 10 ล้อ'!D130 -> 428.92 | J136: ='รถ 10 ล้อ+พ่วง'!B130 -> 126 | K136: ='รถ 10 ล้อ+พ่วง'!C130 -> 190.09 | L136: ='รถ 10 ล้อ+พ่วง'!D130 -> 266.13
B137: ='รถ 6 ล้อ'!B131:D131 -> 127 | C137: ='รถ 6 ล้อ'!C131:E131 -> 403.78 | D137: ='รถ 6 ล้อ'!D131:F131 -> 565.29 | F137: ='รถ 10 ล้อ'!B131 -> 127 | G137: ='รถ 10 ล้อ'!C131 -> 308.89 | H137: ='รถ 10 ล้อ'!D131 -> 432.44 | J137: ='รถ 10 ล้อ+พ่วง'!B131 -> 127 | K137: ='รถ 10 ล้อ+พ่วง'!C131 -> 191.63 | L137: ='รถ 10 ล้อ+พ่วง'!D131 -> 268.28
B138: ='รถ 6 ล้อ'!B132:D132 -> 128 | C138: ='รถ 6 ล้อ'!C132:E132 -> 406.92 | D138: ='รถ 6 ล้อ'!D132:F132 -> 569.69 | F138: ='รถ 10 ล้อ'!B132 -> 128 | G138: ='รถ 10 ล้อ'!C132 -> 311.14 | H138: ='รถ 10 ล้อ'!D132 -> 435.6 | J138: ='รถ 10 ล้อ+พ่วง'!B132 -> 128 | K138: ='รถ 10 ล้อ+พ่วง'!C132 -> 193.16 | L138: ='รถ 10 ล้อ+พ่วง'!D132 -> 270.43
B139: ='รถ 6 ล้อ'!B133:D133 -> 129 | C139: ='รถ 6 ล้อ'!C133:E133 -> 410.08 | D139: ='รถ 6 ล้อ'!D133:F133 -> 574.11 | F139: ='รถ 10 ล้อ'!B133 -> 129 | G139: ='รถ 10 ล้อ'!C133 -> 313.68 | H139: ='รถ 10 ล้อ'!D133 -> 439.15 | J139: ='รถ 10 ล้อ+พ่วง'!B133 -> 129 | K139: ='รถ 10 ล้อ+พ่วง'!C133 -> 194.63 | L139: ='รถ 10 ล้อ+พ่วง'!D133 -> 272.48
B140: ='รถ 6 ล้อ'!B134:D134 -> 130 | C140: ='รถ 6 ล้อ'!C134:E134 -> 413.25 | D140: ='รถ 6 ล้อ'!D134:F134 -> 578.55 | F140: ='รถ 10 ล้อ'!B134 -> 130 | G140: ='รถ 10 ล้อ'!C134 -> 316.22 | H140: ='รถ 10 ล้อ'!D134 -> 442.71 | J140: ='รถ 10 ล้อ+พ่วง'!B134 -> 130 | K140: ='รถ 10 ล้อ+พ่วง'!C134 -> 196.17 | L140: ='รถ 10 ล้อ+พ่วง'!D134 -> 274.64
B141: ='รถ 6 ล้อ'!B135:D135 -> 131 | C141: ='รถ 6 ล้อ'!C135:E135 -> 416.44 | D141: ='รถ 6 ล้อ'!D135:F135 -> 583.02 | F141: ='รถ 10 ล้อ'!B135 -> 131 | G141: ='รถ 10 ล้อ'!C135 -> 318.49 | H141: ='รถ 10 ล้อ'!D135 -> 445.88 | J141: ='รถ 10 ล้อ+พ่วง'!B135 -> 131 | K141: ='รถ 10 ล้อ+พ่วง'!C135 -> 197.64 | L141: ='รถ 10 ล้อ+พ่วง'!D135 -> 276.69
B142: ='รถ 6 ล้อ'!B136:D136 -> 132 | C142: ='รถ 6 ล้อ'!C136:E136 -> 419.58 | D142: ='รถ 6 ล้อ'!D136:F136 -> 587.41 | F142: ='รถ 10 ล้อ'!B136 -> 132 | G142: ='รถ 10 ล้อ'!C136 -> 321.05 | H142: ='รถ 10 ล้อ'!D136 -> 449.47 | J142: ='รถ 10 ล้อ+พ่วง'!B136 -> 132 | K142: ='รถ 10 ล้อ+พ่วง'!C136 -> 199.1 | L142: ='รถ 10 ล้อ+พ่วง'!D136 -> 278.75
B143: ='รถ 6 ล้อ'!B137:D137 -> 133 | C143: ='รถ 6 ล้อ'!C137:E137 -> 422.73 | D143: ='รถ 6 ล้อ'!D137:F137 -> 591.83 | F143: ='รถ 10 ล้อ'!B137 -> 133 | G143: ='รถ 10 ล้อ'!C137 -> 323.33 | H143: ='รถ 10 ล้อ'!D137 -> 452.66 | J143: ='รถ 10 ล้อ+พ่วง'!B137 -> 133 | K143: ='รถ 10 ล้อ+พ่วง'!C137 -> 200.65 | L143: ='รถ 10 ล้อ+พ่วง'!D137 -> 280.91
B144: ='รถ 6 ล้อ'!B138:D138 -> 134 | C144: ='รถ 6 ล้อ'!C138:E138 -> 425.9 | D144: ='รถ 6 ล้อ'!D138:F138 -> 596.26 | F144: ='รถ 10 ล้อ'!B138 -> 134 | G144: ='รถ 10 ล้อ'!C138 -> 325.91 | H144: ='รถ 10 ล้อ'!D138 -> 456.27 | J144: ='รถ 10 ล้อ+พ่วง'!B138 -> 134 | K144: ='รถ 10 ล้อ+พ่วง'!C138 -> 202.12 | L144: ='รถ 10 ล้อ+พ่วง'!D138 -> 282.97
B145: ='รถ 6 ล้อ'!B139:D139 -> 135 | C145: ='รถ 6 ล้อ'!C139:E139 -> 429.09 | D145: ='รถ 6 ล้อ'!D139:F139 -> 600.72 | F145: ='รถ 10 ล้อ'!B139 -> 135 | G145: ='รถ 10 ล้อ'!C139 -> 328.19 | H145: ='รถ 10 ล้อ'!D139 -> 459.47 | J145: ='รถ 10 ล้อ+พ่วง'!B139 -> 135 | K145: ='รถ 10 ล้อ+พ่วง'!C139 -> 203.67 | L145: ='รถ 10 ล้อ+พ่วง'!D139 -> 285.14
B146: ='รถ 6 ล้อ'!B140:D140 -> 136 | C146: ='รถ 6 ล้อ'!C140:E140 -> 432.22 | D146: ='รถ 6 ล้อ'!D140:F140 -> 605.1 | F146: ='รถ 10 ล้อ'!B140 -> 136 | G146: ='รถ 10 ล้อ'!C140 -> 330.48 | H146: ='รถ 10 ล้อ'!D140 -> 462.67 | J146: ='รถ 10 ล้อ+พ่วง'!B140 -> 136 | K146: ='รถ 10 ล้อ+พ่วง'!C140 -> 205.15 | L146: ='รถ 10 ล้อ+พ่วง'!D140 -> 287.21
B147: ='รถ 6 ล้อ'!B141:D141 -> 137 | C147: ='รถ 6 ล้อ'!C141:E141 -> 435.36 | D147: ='รถ 6 ล้อ'!D141:F141 -> 609.51 | F147: ='รถ 10 ล้อ'!B141 -> 137 | G147: ='รถ 10 ล้อ'!C141 -> 333.08 | H147: ='รถ 10 ล้อ'!D141 -> 466.32 | J147: ='รถ 10 ล้อ+พ่วง'!B141 -> 137 | K147: ='รถ 10 ล้อ+พ่วง'!C141 -> 206.7 | L147: ='รถ 10 ล้อ+พ่วง'!D141 -> 289.39
B148: ='รถ 6 ล้อ'!B142:D142 -> 138 | C148: ='รถ 6 ล้อ'!C142:E142 -> 438.59 | D148: ='รถ 6 ล้อ'!D142:F142 -> 614.02 | F148: ='รถ 10 ล้อ'!B142 -> 138 | G148: ='รถ 10 ล้อ'!C142 -> 335.38 | H148: ='รถ 10 ล้อ'!D142 -> 469.53 | J148: ='รถ 10 ล้อ+พ่วง'!B142 -> 138 | K148: ='รถ 10 ล้อ+พ่วง'!C142 -> 208.18 | L148: ='รถ 10 ล้อ+พ่วง'!D142 -> 291.45
B149: ='รถ 6 ล้อ'!B143:D143 -> 139 | C149: ='รถ 6 ล้อ'!C143:E143 -> 441.69 | D149: ='รถ 6 ล้อ'!D143:F143 -> 618.37 | F149: ='รถ 10 ล้อ'!B143 -> 139 | G149: ='รถ 10 ล้อ'!C143 -> 338 | H149: ='รถ 10 ล้อ'!D143 -> 473.2 | J149: ='รถ 10 ล้อ+พ่วง'!B143 -> 139 | K149: ='รถ 10 ล้อ+พ่วง'!C143 -> 209.66 | L149: ='รถ 10 ล้อ+พ่วง'!D143 -> 293.52
B150: ='รถ 6 ล้อ'!B144:D144 -> 140 | C150: ='รถ 6 ล้อ'!C144:E144 -> 444.88 | D150: ='รถ 6 ล้อ'!D144:F144 -> 622.83 | F150: ='รถ 10 ล้อ'!B144 -> 140 | G150: ='รถ 10 ล้อ'!C144 -> 340.31 | H150: ='รถ 10 ล้อ'!D144 -> 476.43 | J150: ='รถ 10 ล้อ+พ่วง'!B144 -> 140 | K150: ='รถ 10 ล้อ+พ่วง'!C144 -> 211.13 | L150: ='รถ 10 ล้อ+พ่วง'!D144 -> 295.59
B151: ='รถ 6 ล้อ'!B145:D145 -> 141 | C151: ='รถ 6 ล้อ'!C145:E145 -> 448 | D151: ='รถ 6 ล้อ'!D145:F145 -> 627.21 | F151: ='รถ 10 ล้อ'!B145 -> 141 | G151: ='รถ 10 ล้อ'!C145 -> 342.62 | H151: ='รถ 10 ล้อ'!D145 -> 479.67 | J151: ='รถ 10 ล้อ+พ่วง'!B145 -> 141 | K151: ='รถ 10 ล้อ+พ่วง'!C145 -> 212.7 | L151: ='รถ 10 ล้อ+พ่วง'!D145 -> 297.78
B152: ='รถ 6 ล้อ'!B146:D146 -> 142 | C152: ='รถ 6 ล้อ'!C146:E146 -> 451.22 | D152: ='รถ 6 ล้อ'!D146:F146 -> 631.71 | F152: ='รถ 10 ล้อ'!B146 -> 142 | G152: ='รถ 10 ล้อ'!C146 -> 345.27 | H152: ='รถ 10 ล้อ'!D146 -> 483.38 | J152: ='รถ 10 ล้อ+พ่วง'!B146 -> 142 | K152: ='รถ 10 ล้อ+พ่วง'!C146 -> 214.18 | L152: ='รถ 10 ล้อ+พ่วง'!D146 -> 299.85
B153: ='รถ 6 ล้อ'!B147:D147 -> 143 | C153: ='รถ 6 ล้อ'!C147:E147 -> 454.37 | D153: ='รถ 6 ล้อ'!D147:F147 -> 636.12 | F153: ='รถ 10 ล้อ'!B147 -> 143 | G153: ='รถ 10 ล้อ'!C147 -> 347.59 | H153: ='รถ 10 ล้อ'!D147 -> 486.63 | J153: ='รถ 10 ล้อ+พ่วง'!B147 -> 143 | K153: ='รถ 10 ล้อ+พ่วง'!C147 -> 215.66 | L153: ='รถ 10 ล้อ+พ่วง'!D147 -> 301.92
B154: ='รถ 6 ล้อ'!B148:D148 -> 144 | C154: ='รถ 6 ล้อ'!C148:E148 -> 457.54 | D154: ='รถ 6 ล้อ'!D148:F148 -> 640.56 | F154: ='รถ 10 ล้อ'!B148 -> 144 | G154: ='รถ 10 ล้อ'!C148 -> 349.92 | H154: ='รถ 10 ล้อ'!D148 -> 489.89 | J154: ='รถ 10 ล้อ+พ่วง'!B148 -> 144 | K154: ='รถ 10 ล้อ+พ่วง'!C148 -> 217.23 | L154: ='รถ 10 ล้อ+พ่วง'!D148 -> 304.13
B155: ='รถ 6 ล้อ'!B149:D149 -> 145 | C155: ='รถ 6 ล้อ'!C149:E149 -> 460.65 | D155: ='รถ 6 ล้อ'!D149:F149 -> 644.9 | F155: ='รถ 10 ล้อ'!B149 -> 145 | G155: ='รถ 10 ล้อ'!C149 -> 352.6 | H155: ='รถ 10 ล้อ'!D149 -> 493.64 | J155: ='รถ 10 ล้อ+พ่วง'!B149 -> 145 | K155: ='รถ 10 ล้อ+พ่วง'!C149 -> 218.72 | L155: ='รถ 10 ล้อ+พ่วง'!D149 -> 306.21
B156: ='รถ 6 ล้อ'!B150:D150 -> 146 | C156: ='รถ 6 ล้อ'!C150:E150 -> 463.84 | D156: ='รถ 6 ล้อ'!D150:F150 -> 649.38 | F156: ='รถ 10 ล้อ'!B150 -> 146 | G156: ='รถ 10 ล้อ'!C150 -> 354.93 | H156: ='รถ 10 ล้อ'!D150 -> 496.91 | J156: ='รถ 10 ล้อ+พ่วง'!B150 -> 146 | K156: ='รถ 10 ล้อ+พ่วง'!C150 -> 220.2 | L156: ='รถ 10 ล้อ+พ่วง'!D150 -> 308.29
B157: ='รถ 6 ล้อ'!B151:D151 -> 147 | C157: ='รถ 6 ล้อ'!C151:E151 -> 466.97 | D157: ='รถ 6 ล้อ'!D151:F151 -> 653.76 | F157: ='รถ 10 ล้อ'!B151 -> 147 | G157: ='รถ 10 ล้อ'!C151 -> 357.27 | H157: ='รถ 10 ล้อ'!D151 -> 500.18 | J157: ='รถ 10 ล้อ+พ่วง'!B151 -> 147 | K157: ='รถ 10 ล้อ+พ่วง'!C151 -> 221.69 | L157: ='รถ 10 ล้อ+พ่วง'!D151 -> 310.37
B158: ='รถ 6 ล้อ'!B152:D152 -> 148 | C158: ='รถ 6 ล้อ'!C152:E152 -> 470.19 | D158: ='รถ 6 ล้อ'!D152:F152 -> 658.27 | F158: ='รถ 10 ล้อ'!B152 -> 148 | G158: ='รถ 10 ล้อ'!C152 -> 359.62 | H158: ='รถ 10 ล้อ'!D152 -> 503.47 | J158: ='รถ 10 ล้อ+พ่วง'!B152 -> 148 | K158: ='รถ 10 ล้อ+พ่วง'!C152 -> 223.18 | L158: ='รถ 10 ล้อ+พ่วง'!D152 -> 312.45
B159: ='รถ 6 ล้อ'!B153:D153 -> 149 | C159: ='รถ 6 ล้อ'!C153:E153 -> 473.35 | D159: ='รถ 6 ล้อ'!D153:F153 -> 662.69 | F159: ='รถ 10 ล้อ'!B153 -> 149 | G159: ='รถ 10 ล้อ'!C153 -> 361.97 | H159: ='รถ 10 ล้อ'!D153 -> 506.75 | J159: ='รถ 10 ล้อ+พ่วง'!B153 -> 149 | K159: ='รถ 10 ล้อ+พ่วง'!C153 -> 224.76 | L159: ='รถ 10 ล้อ+พ่วง'!D153 -> 314.67
B160: ='รถ 6 ล้อ'!B154:D154 -> 150 | C160: ='รถ 6 ล้อ'!C154:E154 -> 476.52 | D160: ='รถ 6 ล้อ'!D154:F154 -> 667.12 | F160: ='รถ 10 ล้อ'!B154 -> 150 | G160: ='รถ 10 ล้อ'!C154 -> 364.69 | H160: ='รถ 10 ล้อ'!D154 -> 510.57 | J160: ='รถ 10 ล้อ+พ่วง'!B154 -> 150 | K160: ='รถ 10 ล้อ+พ่วง'!C154 -> 226.25 | L160: ='รถ 10 ล้อ+พ่วง'!D154 -> 316.76
B161: ='รถ 6 ล้อ'!B155:D155 -> 151 | C161: ='รถ 6 ล้อ'!C155:E155 -> 479.61 | D161: ='รถ 6 ล้อ'!D155:F155 -> 671.46 | F161: ='รถ 10 ล้อ'!B155 -> 151 | G161: ='รถ 10 ล้อ'!C155 -> 367.05 | H161: ='รถ 10 ล้อ'!D155 -> 513.88 | J161: ='รถ 10 ล้อ+พ่วง'!B155 -> 151 | K161: ='รถ 10 ล้อ+พ่วง'!C155 -> 227.75 | L161: ='รถ 10 ล้อ+พ่วง'!D155 -> 318.84
B162: ='รถ 6 ล้อ'!B156:D156 -> 152 | C162: ='รถ 6 ล้อ'!C156:E156 -> 482.81 | D162: ='รถ 6 ล้อ'!D156:F156 -> 675.93 | F162: ='รถ 10 ล้อ'!B156 -> 152 | G162: ='รถ 10 ล้อ'!C156 -> 369.42 | H162: ='รถ 10 ล้อ'!D156 -> 517.19 | J162: ='รถ 10 ล้อ+พ่วง'!B156 -> 152 | K162: ='รถ 10 ล้อ+พ่วง'!C156 -> 229.24 | L162: ='รถ 10 ล้อ+พ่วง'!D156 -> 320.93
B163: ='รถ 6 ล้อ'!B157:D157 -> 153 | C163: ='รถ 6 ล้อ'!C157:E157 -> 485.93 | D163: ='รถ 6 ล้อ'!D157:F157 -> 680.3 | F163: ='รถ 10 ล้อ'!B157 -> 153 | G163: ='รถ 10 ล้อ'!C157 -> 371.79 | H163: ='รถ 10 ล้อ'!D157 -> 520.5 | J163: ='รถ 10 ล้อ+พ่วง'!B157 -> 153 | K163: ='รถ 10 ล้อ+พ่วง'!C157 -> 230.73 | L163: ='รถ 10 ล้อ+พ่วง'!D157 -> 323.02
B164: ='รถ 6 ล้อ'!B158:D158 -> 154 | C164: ='รถ 6 ล้อ'!C158:E158 -> 489.15 | D164: ='รถ 6 ล้อ'!D158:F158 -> 684.81 | F164: ='รถ 10 ล้อ'!B158 -> 154 | G164: ='รถ 10 ล้อ'!C158 -> 374.16 | H164: ='รถ 10 ล้อ'!D158 -> 523.83 | J164: ='รถ 10 ล้อ+พ่วง'!B158 -> 154 | K164: ='รถ 10 ล้อ+พ่วง'!C158 -> 232.23 | L164: ='รถ 10 ล้อ+พ่วง'!D158 -> 325.12
B165: ='รถ 6 ล้อ'!B159:D159 -> 155 | C165: ='รถ 6 ล้อ'!C159:E159 -> 492.3 | D165: ='รถ 6 ล้อ'!D159:F159 -> 689.22 | F165: ='รถ 10 ล้อ'!B159 -> 155 | G165: ='รถ 10 ล้อ'!C159 -> 376.54 | H165: ='รถ 10 ล้อ'!D159 -> 527.15 | J165: ='รถ 10 ล้อ+พ่วง'!B159 -> 155 | K165: ='รถ 10 ล้อ+พ่วง'!C159 -> 233.72 | L165: ='รถ 10 ล้อ+พ่วง'!D159 -> 327.21
B166: ='รถ 6 ล้อ'!B160:D160 -> 156 | C166: ='รถ 6 ล้อ'!C160:E160 -> 495.46 | D166: ='รถ 6 ล้อ'!D160:F160 -> 693.64 | F166: ='รถ 10 ล้อ'!B160 -> 156 | G166: ='รถ 10 ล้อ'!C160 -> 378.92 | H166: ='รถ 10 ล้อ'!D160 -> 530.49 | J166: ='รถ 10 ล้อ+พ่วง'!B160 -> 156 | K166: ='รถ 10 ล้อ+พ่วง'!C160 -> 235.22 | L166: ='รถ 10 ล้อ+พ่วง'!D160 -> 329.31
B167: ='รถ 6 ล้อ'!B161:D161 -> 157 | C167: ='รถ 6 ล้อ'!C161:E161 -> 498.63 | D167: ='รถ 6 ล้อ'!D161:F161 -> 698.08 | F167: ='รถ 10 ล้อ'!B161 -> 157 | G167: ='รถ 10 ล้อ'!C161 -> 381.31 | H167: ='รถ 10 ล้อ'!D161 -> 533.83 | J167: ='รถ 10 ล้อ+พ่วง'!B161 -> 157 | K167: ='รถ 10 ล้อ+พ่วง'!C161 -> 236.72 | L167: ='รถ 10 ล้อ+พ่วง'!D161 -> 331.41
B168: ='รถ 6 ล้อ'!B162:D162 -> 158 | C168: ='รถ 6 ล้อ'!C162:E162 -> 501.81 | D168: ='รถ 6 ล้อ'!D162:F162 -> 702.54 | F168: ='รถ 10 ล้อ'!B162 -> 158 | G168: ='รถ 10 ล้อ'!C162 -> 384.12 | H168: ='รถ 10 ล้อ'!D162 -> 537.76 | J168: ='รถ 10 ล้อ+พ่วง'!B162 -> 158 | K168: ='รถ 10 ล้อ+พ่วง'!C162 -> 238.22 | L168: ='รถ 10 ล้อ+พ่วง'!D162 -> 333.51
B169: ='รถ 6 ล้อ'!B163:D163 -> 159 | C169: ='รถ 6 ล้อ'!C163:E163 -> 504.92 | D169: ='รถ 6 ล้อ'!D163:F163 -> 706.88 | F169: ='รถ 10 ล้อ'!B163 -> 159 | G169: ='รถ 10 ล้อ'!C163 -> 386.52 | H169: ='รถ 10 ล้อ'!D163 -> 541.13 | J169: ='รถ 10 ล้อ+พ่วง'!B163 -> 159 | K169: ='รถ 10 ล้อ+พ่วง'!C163 -> 239.72 | L169: ='รถ 10 ล้อ+พ่วง'!D163 -> 335.61
B170: ='รถ 6 ล้อ'!B164:D164 -> 160 | C170: ='รถ 6 ล้อ'!C164:E164 -> 508.13 | D170: ='รถ 6 ล้อ'!D164:F164 -> 711.38 | F170: ='รถ 10 ล้อ'!B164 -> 160 | G170: ='รถ 10 ล้อ'!C164 -> 388.93 | H170: ='รถ 10 ล้อ'!D164 -> 544.5 | J170: ='รถ 10 ล้อ+พ่วง'!B164 -> 160 | K170: ='รถ 10 ล้อ+พ่วง'!C164 -> 241.22 | L170: ='รถ 10 ล้อ+พ่วง'!D164 -> 337.71
B171: ='รถ 6 ล้อ'!B165:D165 -> 161 | C171: ='รถ 6 ล้อ'!C165:E165 -> 511.25 | D171: ='รถ 6 ล้อ'!D165:F165 -> 715.76 | F171: ='รถ 10 ล้อ'!B165 -> 161 | G171: ='รถ 10 ล้อ'!C165 -> 391.34 | H171: ='รถ 10 ล้อ'!D165 -> 547.87 | J171: ='รถ 10 ล้อ+พ่วง'!B165 -> 161 | K171: ='รถ 10 ล้อ+พ่วง'!C165 -> 242.73 | L171: ='รถ 10 ล้อ+พ่วง'!D165 -> 339.82
B172: ='รถ 6 ล้อ'!B166:D166 -> 162 | C172: ='รถ 6 ล้อ'!C166:E166 -> 514.39 | D172: ='รถ 6 ล้อ'!D166:F166 -> 720.15 | F172: ='รถ 10 ล้อ'!B166 -> 162 | G172: ='รถ 10 ล้อ'!C166 -> 393.76 | H172: ='รถ 10 ล้อ'!D166 -> 551.26 | J172: ='รถ 10 ล้อ+พ่วง'!B166 -> 162 | K172: ='รถ 10 ล้อ+พ่วง'!C166 -> 244.23 | L172: ='รถ 10 ล้อ+พ่วง'!D166 -> 341.93
B173: ='รถ 6 ล้อ'!B167:D167 -> 163 | C173: ='รถ 6 ล้อ'!C167:E167 -> 517.54 | D173: ='รถ 6 ล้อ'!D167:F167 -> 724.56 | F173: ='รถ 10 ล้อ'!B167 -> 163 | G173: ='รถ 10 ล้อ'!C167 -> 396.18 | H173: ='รถ 10 ล้อ'!D167 -> 554.65 | J173: ='รถ 10 ล้อ+พ่วง'!B167 -> 163 | K173: ='รถ 10 ล้อ+พ่วง'!C167 -> 245.74 | L173: ='รถ 10 ล้อ+พ่วง'!D167 -> 344.04
B174: ='รถ 6 ล้อ'!B168:D168 -> 164 | C174: ='รถ 6 ล้อ'!C168:E168 -> 520.71 | D174: ='รถ 6 ล้อ'!D168:F168 -> 728.99 | F174: ='รถ 10 ล้อ'!B168 -> 164 | G174: ='รถ 10 ล้อ'!C168 -> 398.61 | H174: ='รถ 10 ล้อ'!D168 -> 558.05 | J174: ='รถ 10 ล้อ+พ่วง'!B168 -> 164 | K174: ='รถ 10 ล้อ+พ่วง'!C168 -> 247.25 | L174: ='รถ 10 ล้อ+พ่วง'!D168 -> 346.15
B175: ='รถ 6 ล้อ'!B169:D169 -> 165 | C175: ='รถ 6 ล้อ'!C169:E169 -> 523.88 | D175: ='รถ 6 ล้อ'!D169:F169 -> 733.43 | F175: ='รถ 10 ล้อ'!B169 -> 165 | G175: ='รถ 10 ล้อ'!C169 -> 401.04 | H175: ='รถ 10 ล้อ'!D169 -> 561.45 | J175: ='รถ 10 ล้อ+พ่วง'!B169 -> 165 | K175: ='รถ 10 ล้อ+พ่วง'!C169 -> 248.76 | L175: ='รถ 10 ล้อ+พ่วง'!D169 -> 348.26
B176: ='รถ 6 ล้อ'!B170:D170 -> 166 | C176: ='รถ 6 ล้อ'!C170:E170 -> 527.06 | D176: ='รถ 6 ล้อ'!D170:F170 -> 737.89 | F176: ='รถ 10 ล้อ'!B170 -> 166 | G176: ='รถ 10 ล้อ'!C170 -> 403.48 | H176: ='รถ 10 ล้อ'!D170 -> 564.87 | J176: ='รถ 10 ล้อ+พ่วง'!B170 -> 166 | K176: ='รถ 10 ล้อ+พ่วง'!C170 -> 250.27 | L176: ='รถ 10 ล้อ+พ่วง'!D170 -> 350.38
B177: ='รถ 6 ล้อ'!B171:D171 -> 167 | C177: ='รถ 6 ล้อ'!C171:E171 -> 530.26 | D177: ='รถ 6 ล้อ'!D171:F171 -> 742.37 | F177: ='รถ 10 ล้อ'!B171 -> 167 | G177: ='รถ 10 ล้อ'!C171 -> 405.92 | H177: ='รถ 10 ล้อ'!D171 -> 568.29 | J177: ='รถ 10 ล้อ+พ่วง'!B171 -> 167 | K177: ='รถ 10 ล้อ+พ่วง'!C171 -> 251.78 | L177: ='รถ 10 ล้อ+พ่วง'!D171 -> 352.5
B178: ='รถ 6 ล้อ'!B172:D172 -> 168 | C178: ='รถ 6 ล้อ'!C172:E172 -> 533.37 | D178: ='รถ 6 ล้อ'!D172:F172 -> 746.72 | F178: ='รถ 10 ล้อ'!B172 -> 168 | G178: ='รถ 10 ล้อ'!C172 -> 408.37 | H178: ='รถ 10 ล้อ'!D172 -> 571.72 | J178: ='รถ 10 ล้อ+พ่วง'!B172 -> 168 | K178: ='รถ 10 ล้อ+พ่วง'!C172 -> 253.3 | L178: ='รถ 10 ล้อ+พ่วง'!D172 -> 354.62
B179: ='รถ 6 ล้อ'!B173:D173 -> 169 | C179: ='รถ 6 ล้อ'!C173:E173 -> 536.59 | D179: ='รถ 6 ล้อ'!D173:F173 -> 751.23 | F179: ='รถ 10 ล้อ'!B173 -> 169 | G179: ='รถ 10 ล้อ'!C173 -> 410.35 | H179: ='รถ 10 ล้อ'!D173 -> 574.49 | J179: ='รถ 10 ล้อ+พ่วง'!B173 -> 169 | K179: ='รถ 10 ล้อ+พ่วง'!C173 -> 254.81 | L179: ='รถ 10 ล้อ+พ่วง'!D173 -> 356.74
B180: ='รถ 6 ล้อ'!B174:D174 -> 170 | C180: ='รถ 6 ล้อ'!C174:E174 -> 539.72 | D180: ='รถ 6 ล้อ'!D174:F174 -> 755.61 | F180: ='รถ 10 ล้อ'!B174 -> 170 | G180: ='รถ 10 ล้อ'!C174 -> 412.81 | H180: ='รถ 10 ล้อ'!D174 -> 577.93 | J180: ='รถ 10 ล้อ+พ่วง'!B174 -> 170 | K180: ='รถ 10 ล้อ+พ่วง'!C174 -> 256.33 | L180: ='รถ 10 ล้อ+พ่วง'!D174 -> 358.86
B181: ='รถ 6 ล้อ'!B175:D175 -> 171 | C181: ='รถ 6 ล้อ'!C175:E175 -> 542.86 | D181: ='รถ 6 ล้อ'!D175:F175 -> 760.01 | F181: ='รถ 10 ล้อ'!B175 -> 171 | G181: ='รถ 10 ล้อ'!C175 -> 415.27 | H181: ='รถ 10 ล้อ'!D175 -> 581.38 | J181: ='รถ 10 ล้อ+พ่วง'!B175 -> 171 | K181: ='รถ 10 ล้อ+พ่วง'!C175 -> 257.85 | L181: ='รถ 10 ล้อ+พ่วง'!D175 -> 360.99
B182: ='รถ 6 ล้อ'!B176:D176 -> 172 | C182: ='รถ 6 ล้อ'!C176:E176 -> 546.02 | D182: ='รถ 6 ล้อ'!D176:F176 -> 764.42 | F182: ='รถ 10 ล้อ'!B176 -> 172 | G182: ='รถ 10 ล้อ'!C176 -> 417.74 | H182: ='รถ 10 ล้อ'!D176 -> 584.84 | J182: ='รถ 10 ล้อ+พ่วง'!B176 -> 172 | K182: ='รถ 10 ล้อ+พ่วง'!C176 -> 259.37 | L182: ='รถ 10 ล้อ+พ่วง'!D176 -> 363.12
B183: ='รถ 6 ล้อ'!B177:D177 -> 173 | C183: ='รถ 6 ล้อ'!C177:E177 -> 549.18 | D183: ='รถ 6 ล้อ'!D177:F177 -> 768.85 | F183: ='รถ 10 ล้อ'!B177 -> 173 | G183: ='รถ 10 ล้อ'!C177 -> 420.21 | H183: ='รถ 10 ล้อ'!D177 -> 588.3 | J183: ='รถ 10 ล้อ+พ่วง'!B177 -> 173 | K183: ='รถ 10 ล้อ+พ่วง'!C177 -> 260.76 | L183: ='รถ 10 ล้อ+พ่วง'!D177 -> 365.07
B184: ='รถ 6 ล้อ'!B178:D178 -> 174 | C184: ='รถ 6 ล้อ'!C178:E178 -> 552.35 | D184: ='รถ 6 ล้อ'!D178:F178 -> 773.29 | F184: ='รถ 10 ล้อ'!B178 -> 174 | G184: ='รถ 10 ล้อ'!C178 -> 422.7 | H184: ='รถ 10 ล้อ'!D178 -> 591.77 | J184: ='รถ 10 ล้อ+พ่วง'!B178 -> 174 | K184: ='รถ 10 ล้อ+พ่วง'!C178 -> 262.28 | L184: ='รถ 10 ล้อ+พ่วง'!D178 -> 367.2
B185: ='รถ 6 ล้อ'!B179:D179 -> 175 | C185: ='รถ 6 ล้อ'!C179:E179 -> 555.54 | D185: ='รถ 6 ล้อ'!D179:F179 -> 777.75 | F185: ='รถ 10 ล้อ'!B179 -> 175 | G185: ='รถ 10 ล้อ'!C179 -> 425.18 | H185: ='รถ 10 ล้อ'!D179 -> 595.26 | J185: ='รถ 10 ล้อ+พ่วง'!B179 -> 175 | K185: ='รถ 10 ล้อ+พ่วง'!C179 -> 263.81 | L185: ='รถ 10 ล้อ+พ่วง'!D179 -> 369.33
B186: ='รถ 6 ล้อ'!B180:D180 -> 176 | C186: ='รถ 6 ล้อ'!C180:E180 -> 558.62 | D186: ='รถ 6 ล้อ'!D180:F180 -> 782.07 | F186: ='รถ 10 ล้อ'!B180 -> 176 | G186: ='รถ 10 ล้อ'!C180 -> 427.68 | H186: ='รถ 10 ล้อ'!D180 -> 598.75 | J186: ='รถ 10 ล้อ+พ่วง'!B180 -> 176 | K186: ='รถ 10 ล้อ+พ่วง'!C180 -> 265.33 | L186: ='รถ 10 ล้อ+พ่วง'!D180 -> 371.47
B187: ='รถ 6 ล้อ'!B181:D181 -> 177 | C187: ='รถ 6 ล้อ'!C181:E181 -> 561.83 | D187: ='รถ 6 ล้อ'!D181:F181 -> 786.56 | F187: ='รถ 10 ล้อ'!B181 -> 177 | G187: ='รถ 10 ล้อ'!C181 -> 430.18 | H187: ='รถ 10 ล้อ'!D181 -> 602.25 | J187: ='รถ 10 ล้อ+พ่วง'!B181 -> 177 | K187: ='รถ 10 ล้อ+พ่วง'!C181 -> 266.86 | L187: ='รถ 10 ล้อ+พ่วง'!D181 -> 373.61
B188: ='รถ 6 ล้อ'!B182:D182 -> 178 | C188: ='รถ 6 ล้อ'!C182:E182 -> 565.05 | D188: ='รถ 6 ล้อ'!D182:F182 -> 791.07 | F188: ='รถ 10 ล้อ'!B182 -> 178 | G188: ='รถ 10 ล้อ'!C182 -> 432.16 | H188: ='รถ 10 ล้อ'!D182 -> 605.02 | J188: ='รถ 10 ล้อ+พ่วง'!B182 -> 178 | K188: ='รถ 10 ล้อ+พ่วง'!C182 -> 268.39 | L188: ='รถ 10 ล้อ+พ่วง'!D182 -> 375.75
B189: ='รถ 6 ล้อ'!B183:D183 -> 179 | C189: ='รถ 6 ล้อ'!C183:E183 -> 568.16 | D189: ='รถ 6 ล้อ'!D183:F183 -> 795.43 | F189: ='รถ 10 ล้อ'!B183 -> 179 | G189: ='รถ 10 ล้อ'!C183 -> 434.67 | H189: ='รถ 10 ล้อ'!D183 -> 608.53 | J189: ='รถ 10 ล้อ+พ่วง'!B183 -> 179 | K189: ='รถ 10 ล้อ+พ่วง'!C183 -> 269.78 | L189: ='รถ 10 ล้อ+พ่วง'!D183 -> 377.69
B190: ='รถ 6 ล้อ'!B184:D184 -> 180 | C190: ='รถ 6 ล้อ'!C184:E184 -> 571.29 | D190: ='รถ 6 ล้อ'!D184:F184 -> 799.8 | F190: ='รถ 10 ล้อ'!B184 -> 180 | G190: ='รถ 10 ล้อ'!C184 -> 437.18 | H190: ='รถ 10 ล้อ'!D184 -> 612.05 | J190: ='รถ 10 ล้อ+พ่วง'!B184 -> 180 | K190: ='รถ 10 ล้อ+พ่วง'!C184 -> 271.31 | L190: ='รถ 10 ล้อ+พ่วง'!D184 -> 379.84
B191: ='รถ 6 ล้อ'!B185:D185 -> 181 | C191: ='รถ 6 ล้อ'!C185:E185 -> 574.42 | D191: ='รถ 6 ล้อ'!D185:F185 -> 804.19 | F191: ='รถ 10 ล้อ'!B185 -> 181 | G191: ='รถ 10 ล้อ'!C185 -> 439.7 | H191: ='รถ 10 ล้อ'!D185 -> 615.59 | J191: ='รถ 10 ล้อ+พ่วง'!B185 -> 181 | K191: ='รถ 10 ล้อ+พ่วง'!C185 -> 272.85 | L191: ='รถ 10 ล้อ+พ่วง'!D185 -> 381.99
B192: ='รถ 6 ล้อ'!B186:D186 -> 182 | C192: ='รถ 6 ล้อ'!C186:E186 -> 577.69 | D192: ='รถ 6 ล้อ'!D186:F186 -> 808.76 | F192: ='รถ 10 ล้อ'!B186 -> 182 | G192: ='รถ 10 ล้อ'!C186 -> 442.23 | H192: ='รถ 10 ล้อ'!D186 -> 619.13 | J192: ='รถ 10 ล้อ+พ่วง'!B186 -> 182 | K192: ='รถ 10 ล้อ+พ่วง'!C186 -> 274.38 | L192: ='รถ 10 ล้อ+พ่วง'!D186 -> 384.14
B193: ='รถ 6 ล้อ'!B187:D187 -> 183 | C193: ='รถ 6 ล้อ'!C187:E187 -> 580.85 | D193: ='รถ 6 ล้อ'!D187:F187 -> 813.18 | F193: ='รถ 10 ล้อ'!B187 -> 183 | G193: ='รถ 10 ล้อ'!C187 -> 444.77 | H193: ='รถ 10 ล้อ'!D187 -> 622.68 | J193: ='รถ 10 ล้อ+พ่วง'!B187 -> 183 | K193: ='รถ 10 ล้อ+พ่วง'!C187 -> 275.92 | L193: ='รถ 10 ล้อ+พ่วง'!D187 -> 386.29
B194: ='รถ 6 ล้อ'!B188:D188 -> 184 | C194: ='รถ 6 ล้อ'!C188:E188 -> 584.01 | D194: ='รถ 6 ล้อ'!D188:F188 -> 817.62 | F194: ='รถ 10 ล้อ'!B188 -> 184 | G194: ='รถ 10 ล้อ'!C188 -> 446.75 | H194: ='รถ 10 ล้อ'!D188 -> 625.45 | J194: ='รถ 10 ล้อ+พ่วง'!B188 -> 184 | K194: ='รถ 10 ล้อ+พ่วง'!C188 -> 277.31 | L194: ='รถ 10 ล้อ+พ่วง'!D188 -> 388.23
B195: ='รถ 6 ล้อ'!B189:D189 -> 185 | C195: ='รถ 6 ล้อ'!C189:E189 -> 587.07 | D195: ='รถ 6 ล้อ'!D189:F189 -> 821.89 | F195: ='รถ 10 ล้อ'!B189 -> 185 | G195: ='รถ 10 ล้อ'!C189 -> 449.29 | H195: ='รถ 10 ล้อ'!D189 -> 629.01 | J195: ='รถ 10 ล้อ+พ่วง'!B189 -> 185 | K195: ='รถ 10 ล้อ+พ่วง'!C189 -> 278.85 | L195: ='รถ 10 ล้อ+พ่วง'!D189 -> 390.39
B196: ='รถ 6 ล้อ'!B190:D190 -> 186 | C196: ='รถ 6 ล้อ'!C190:E190 -> 590.25 | D196: ='รถ 6 ล้อ'!D190:F190 -> 826.36 | F196: ='รถ 10 ล้อ'!B190 -> 186 | G196: ='รถ 10 ล้อ'!C190 -> 451.85 | H196: ='รถ 10 ล้อ'!D190 -> 632.59 | J196: ='รถ 10 ล้อ+พ่วง'!B190 -> 186 | K196: ='รถ 10 ล้อ+พ่วง'!C190 -> 280.39 | L196: ='รถ 10 ล้อ+พ่วง'!D190 -> 392.55
B197: ='รถ 6 ล้อ'!B191:D191 -> 187 | C197: ='รถ 6 ล้อ'!C191:E191 -> 593.45 | D197: ='รถ 6 ล้อ'!D191:F191 -> 830.83 | F197: ='รถ 10 ล้อ'!B191 -> 187 | G197: ='รถ 10 ล้อ'!C191 -> 454.41 | H197: ='รถ 10 ล้อ'!D191 -> 636.17 | J197: ='รถ 10 ล้อ+พ่วง'!B191 -> 187 | K197: ='รถ 10 ล้อ+พ่วง'!C191 -> 281.94 | L197: ='รถ 10 ล้อ+พ่วง'!D191 -> 394.71
B198: ='รถ 6 ล้อ'!B192:D192 -> 188 | C198: ='รถ 6 ล้อ'!C192:E192 -> 596.66 | D198: ='รถ 6 ล้อ'!D192:F192 -> 835.33 | F198: ='รถ 10 ล้อ'!B192 -> 188 | G198: ='รถ 10 ล้อ'!C192 -> 456.39 | H198: ='รถ 10 ล้อ'!D192 -> 638.94 | J198: ='รถ 10 ล้อ+พ่วง'!B192 -> 188 | K198: ='รถ 10 ล้อ+พ่วง'!C192 -> 283.33 | L198: ='รถ 10 ล้อ+พ่วง'!D192 -> 396.66
B199: ='รถ 6 ล้อ'!B193:D193 -> 189 | C199: ='รถ 6 ล้อ'!C193:E193 -> 599.75 | D199: ='รถ 6 ล้อ'!D193:F193 -> 839.66 | F199: ='รถ 10 ล้อ'!B193 -> 189 | G199: ='รถ 10 ล้อ'!C193 -> 458.96 | H199: ='รถ 10 ล้อ'!D193 -> 642.54 | J199: ='รถ 10 ล้อ+พ่วง'!B193 -> 189 | K199: ='รถ 10 ล้อ+พ่วง'!C193 -> 284.87 | L199: ='รถ 10 ล้อ+พ่วง'!D193 -> 398.82
B200: ='รถ 6 ล้อ'!B194:D194 -> 190 | C200: ='รถ 6 ล้อ'!C194:E194 -> 602.99 | D200: ='รถ 6 ล้อ'!D194:F194 -> 844.18 | F200: ='รถ 10 ล้อ'!B194 -> 190 | G200: ='รถ 10 ล้อ'!C194 -> 461.53 | H200: ='รถ 10 ล้อ'!D194 -> 646.15 | J200: ='รถ 10 ล้อ+พ่วง'!B194 -> 190 | K200: ='รถ 10 ล้อ+พ่วง'!C194 -> 286.42 | L200: ='รถ 10 ล้อ+พ่วง'!D194 -> 400.99
B201: ='รถ 6 ล้อ'!B195:D195 -> 191 | C201: ='รถ 6 ล้อ'!C195:E195 -> 606.1 | D201: ='รถ 6 ล้อ'!D195:F195 -> 848.53 | F201: ='รถ 10 ล้อ'!B195 -> 191 | G201: ='รถ 10 ล้อ'!C195 -> 464.12 | H201: ='รถ 10 ล้อ'!D195 -> 649.76 | J201: ='รถ 10 ล้อ+พ่วง'!B195 -> 191 | K201: ='รถ 10 ล้อ+พ่วง'!C195 -> 287.97 | L201: ='รถ 10 ล้อ+พ่วง'!D195 -> 403.16
B202: ='รถ 6 ล้อ'!B196:D196 -> 192 | C202: ='รถ 6 ล้อ'!C196:E196 -> 609.22 | D202: ='รถ 6 ล้อ'!D196:F196 -> 852.9 | F202: ='รถ 10 ล้อ'!B196 -> 192 | G202: ='รถ 10 ล้อ'!C196 -> 466.1 | H202: ='รถ 10 ล้อ'!D196 -> 652.54 | J202: ='รถ 10 ล้อ+พ่วง'!B196 -> 192 | K202: ='รถ 10 ล้อ+พ่วง'!C196 -> 289.36 | L202: ='รถ 10 ล้อ+พ่วง'!D196 -> 405.11
... 9 more rows

Sheet ท่อ คสล. (hidden)
A1: ขนาดระบุ เส้นผ่านศูนย์กลางภายในและความหนา ท่อปากลิ้นราง
A2: มอก 128 - 2529
L3: ขนาดระบุ | M3: เส้นผ่านศูนย์กลางภายใน | O3: ความหนา | Q3: เส้นผ่านศูนย์กลาง | R3: พื้นที่ท่อ | S3: งานดินขุด
M4: (Di) | O4: (T) | Q4: ภายนอก(Do) | R4: ภายนอก | S4: ขุดกว้าง | T4: กำหนดดินถม | U4: รวมขุดลึก | V4: ปริมาตร
M5: มม. | N5: ม. | O5: มม. | P5: ม. | Q5: ม. | R5: ตร.ม. | S5: ม. | T5: หลังท่อหนา(ม.) | U5: ม. | V5: ลบ.ม.
L6: 300 | M6: =L6 -> 300 | N6: =M6/1000 -> 0.3 | O6: 50 | P6: =O6/1000 -> 0.05 | Q6: =N6+(P6*2) -> 0.4 | R6: =ROUND((PI()*(Q6^2))/4,3) -> 0.126 | S6: =0.5+Q6+0.5 -> 1.4 | T6: 0.3 | U6: =Q6+T6 -> 0.7 | V6: =S6*U6 -> 0.98
L7: 400 | M7: =L7 -> 400 | N7: =M7/1000 -> 0.4 | O7: 60 | P7: =O7/1000 -> 0.06 | Q7: =N7+(P7*2) -> 0.52 | R7: =ROUND((PI()*(Q7^2))/4,3) -> 0.212 | S7: =0.5+Q7+0.5 -> 1.52 | T7: 0.3 | U7: =Q7+T7 -> 0.82 | V7: =S7*U7 -> 1.2464
L8: 500 | M8: 500 | N8: 0.5 | O8: 70 | P8: 0.07 | Q8: 0.64 | R8: =ROUND((PI()*(Q8^2))/4,3) -> 0.322 | S8: 1.64 | T8: 0.5 | U8: 1.14 | V8: 1.8696
L9: 600 | M9: 600 | N9: 0.6 | O9: 75 | P9: 0.075 | Q9: 0.75 | R9: 0.442 | S9: 1.75 | T9: 0.5 | U9: 1.25 | V9: 2.1875
L10: 800 | M10: 800 | N10: 0.8 | O10: 95 | P10: 0.095 | Q10: 0.99 | R10: 0.77 | S10: 1.99 | T10: 0.8 | U10: 1.79 | V10: 3.5621
L11: 1000 | M11: 1000 | N11: 1 | O11: 110 | P11: 0.11 | Q11: 1.22 | R11: 1.169 | S11: 2.22 | T11: 1 | U11: 2.22 | V11: 4.9284
L12: 1200 | M12: 1200 | N12: 1.2 | O12: 125 | P12: 0.125 | Q12: 1.45 | R12: 1.651 | S12: 2.45 | T12: 1 | U12: 2.45 | V12: 6.0025
L13: 1500 | M13: 1500 | N13: 1.5 | O13: 150 | P13: 0.15 | Q13: 1.8 | R13: 2.545 | S13: 2.8 | T13: 1.2 | U13: 3 | V13: 8.4
L14: 1750 | M14: 1750 | N14: 1.75 | O14: 170 | P14: 0.17 | Q14: 2.09 | R14: 3.431 | S14: 3.09 | T14: 1.2 | U14: 3.29 | V14: 10.1661
L15: 2000 | M15: 2000 | N15: 2 | O15: 190 | P15: 0.19 | Q15: 2.38 | R15: 4.449 | S15: 3.38 | T15: 1.5 | U15: 3.88 | V15: 13.1144
L16: 2250 | M16: 2250 | N16: 2.25 | O16: 210 | P16: 0.21 | Q16: 2.67 | R16: 5.599 | S16: 3.67 | T16: 1.5 | U16: 4.17 | V16: 15.3039
L17: 2500 | M17: 2500 | N17: 2.5 | O17: 240 | P17: 0.24 | Q17: 2.98 | R17: 6.975 | S17: 3.98 | T17: 1.5 | U17: 4.48 | V17: 17.8304

Sheet Factor F (hidden)
I2: ตารางคำนวณหาค่า Factor F งานก่อสร้างทาง
I4: ค่างานต้นทุน | K4: =L65 -> 4945.5 | M4: บาท | N4: พื้นที่ฝนชุก
I5: ค่าFactor F | K5: =IF(U6=1,IF(K4=0,0,IF(K4<=5000000,U14,IF(K4>=500000000,U50,Z19))),IF(U6=2,IF(K4=0,0,IF(K4<=5000000,V14,IF(K4>=500000000,V50,Z19))),IF(K4=0,0,IF(K4<=5000000,N14,IF(K4>=500000000,N50,Z19))))) -> 1.3347 | N5: จังหวัด | U5: =ข้อมูลโครงการ!L6 -> จังหวัดอื่นๆ
I6: ค่างานรวมค่า Factor F | K6: =ROUND((K5*K4),2) -> 6600.76 | M6: บาท | N6: ฝนชุก | U6: =VLOOKUP(U5,AA15:AB34,2,FALSE) -> ปกติ
B9: ตาราง Factor F งานก่อสร้างทาง
B10: เงินล่วงหน้าจ่าย | I10: =ข้อมูลโครงการ!P72 -> 0 | J10: % | K10: ดอกเบี้ยเงินกู้ | M10: =ข้อมูลโครงการ!P74 -> 6 | N10: % | Z10: =IF($V$6=1,VLOOKUP(Y17,$B$16:$V$50,20,FALSE),IF($V$6=2,VLOOKUP(Y17,$B$16:$V$50,21,FALSE),VLOOKUP(Y17,$B$16:$V$50,13,FALSE)))
B11: เงินประกันผลงานหัก | I11: =ข้อมูลโครงการ!P73 -> 0 | J11: % | K11: ค่าภาษีมูลค่าเพิ่ม (VAT) | M11: =ข้อมูลโครงการ!P75 -> 7 | N11: % | Z11: =IF($V$6=1,VLOOKUP(Y20,$B$16:$V$50,20,FALSE),IF($V$6=2,VLOOKUP(Y20,$B$16:$V$50,21,FALSE),VLOOKUP(Y20,$B$16:$V$50,13,FALSE)))
B12: ค่างาน (ทุน) ล้านบาท | C12: ค่าใช้จ่ายในการดำเนินงานก่อสร้าง (%) | L12: รวมในรูป Factor | M12: ภาษีมูลค่าเพิ่ม (VAT) | N12: Factor F | O12: ค่า อก.ฝนชุก | P12: กระทบ เดือน | Q12: ค่าอก.เพิ่ม | R12: อัตรา ดอกเบี้ยเพิ่ม | S12: ค่าความเสี่ยงโครงการเพิ่ม | U12: Factor F ฝนชุก 1 | V12: Factor F ฝนชุก 2
C13: ค่า อำนวยการ | D13: ระยะเวลา ก่อสร้าง | E13: ระยะเวลา เบิกจ่ายเงิน | F13: เงิน จ่ายล่วงหน้า | G13: เงิน ประกันผลงาน | H13: ดอกเบี้ย เงินกู้ | I13: ค่า ดอกเบี้ย | J13: ค่า กำไร | K13: รวม ค่าใช้จ่าย | T13: รวม
B14: ไม่เกิน 5 | C14: 18.2361 | D14: 6 | E14: 3 | F14: =$I$10 -> 0 | G14: =$I$11 -> 0 | H14: =$M$10 -> 6 | I14: =(-1)*(H14/12)*((G14/100)+((D14+E14-1)*(F14/100))-(((F14+G14)/100)*((D14+1)/2))-(E14-1)) -> 1 | J14: 5.5 | K14: =C14+I14+J14 -> 24.7361 | L14: =1+(K14/100) -> 1.247361 | M14: =1+($M$11/100) -> 1.07 | N14: =ROUND(L14*M14,4) -> 1.3347 | O14: 18.0812 | P14: 1 | Q14: =P14/12*O14*D14/12 -> 0.7533833333 | R14: =P14/12*H14 -> 0.5 | S14: 0.625 | T14: =Q14+R14+S14 -> 1.878383333 | U14: =ROUND((L14+T14/100)*M14,4) -> 1.3548 | V14: =ROUND((L14+2*(T14/100))*M14,4) -> 1.3749 | X14: ค่างาน(ล้านบาท) | Y14: =K4/1000000 -> 0.0049455 | AA14: ฝนชุก
B15: 5 | C15: 18.2361 | D15: 6 | E15: 3 | F15: 0 | G15: 0 | H15: 6 | I15: =(-1)*(H15/12)*((G15/100)+((D15+E15-1)*(F15/100))-(((F15+G15)/100)*((D15+1)/2))-(E15-1)) -> 1 | J15: 5.5 | K15: =C15+I15+J15 -> 24.7361 | L15: =1+(K15/100) -> 1.247361 | M15: 1.07 | N15: =ROUND(L15*M15,4) -> 1.3347 | O15: 18.1 | P15: 1 | Q15: =P15/12*O15*D15/12 -> 0.7541666667 | R15: =P15/12*H15 -> 0.5 | S15: 0.625 | T15: =Q15+R15+S15 -> 1.879166667 | U15: =ROUND((L15+T15/100)*M15,4) -> 1.3548 | V15: =ROUND((L15+2*(T15/100))*M15,4) -> 1.3749 | X15: ค่างานต่ำกว่า | Y15: =VLOOKUP(Y14,B14:B49,1) ->  | Z15: =IF($U$6=1,VLOOKUP(Y15,$B$15:$V$49,20,FALSE),IF($U$6=2,VLOOKUP(Y15,$B$15:$V$49,21,FALSE),VLOOKUP(Y15,$B$15:$V$49,13,FALSE))) ->  | AA15: จังหวัดอื่นๆ | AB15: ปกติ
B16: 10 | C16: 14.041 | D16: 9 | E16: 3 | F16: 0 | G16: 0 | H16: 6 | I16: 1 | J16: 5.5 | K16: 20.541 | L16: =1+(K16/100) -> 1.20541 | M16: 1.07 | N16: 1.2898 | O16: 13.8472 | P16: 1 | Q16: =P16/12*O16*D16/12 -> 0.86545 | R16: =P16/12*H16 -> 0.5 | S16: 0.625 | T16: =Q16+R16+S16 -> 1.99045 | U16: =ROUND((L16+T16/100)*M16,4) -> 1.3111 | V16: =ROUND((L16+2*(T16/100))*M16,4) -> 1.3324 | X16: ตำแหน่งค่าต่ำ | Y16: =MATCH(Y15,B14:B49) ->  | AA16: จันทบุรี | AB16: 1
B17: 20 | C17: 9.7858 | D17: 12 | E17: 3 | F17: 0 | G17: 0 | H17: 6 | I17: 1 | J17: 5.5 | K17: 16.2858 | L17: 1.162858 | M17: 1.07 | N17: 1.2443 | O17: 9.5602 | P17: 1 | Q17: =P17/12*O17*D17/12 -> 0.7966833333 | R17: =P17/12*H17 -> 0.5 | S17: 0.625 | T17: =Q17+R17+S17 -> 1.921683333 | U17: =ROUND((L17+T17/100)*M17,4) -> 1.2648 | V17: 1.2854 | X17: ตำแหน่งค่าสูง | Y17: =Y16+1 ->  | AA17: ชุมพร | AB17: 1
B18: 30 | C18: 6.9082 | D18: 12 | E18: 3 | F18: 0 | G18: 0 | H18: 6 | I18: 1 | J18: 5.5 | K18: 13.4082 | L18: 1.134082 | M18: 1.07 | N18: 1.2135 | O18: 6.6839 | P18: 1 | Q18: =P18/12*O18*D18/12 -> 0.5569916667 | R18: =P18/12*H18 -> 0.5 | S18: 0.625 | T18: =Q18+R18+S18 -> 1.681991667 | U18: 1.2315 | V18: 1.2495 | X18: ค่างานสูงกว่า | Y18: =INDEX(B14:B49,Y17) ->  | Z18: =IF($U$6=1,VLOOKUP(Y18,$B$15:$V$49,20,FALSE),IF($U$6=2,VLOOKUP(Y18,$B$15:$V$49,21,FALSE),VLOOKUP(Y18,$B$15:$V$49,13,FALSE))) ->  | AA18: เชียงราย | AB18: 1
B19: 40 | C19: 6.9899 | D19: 16 | E19: 3 | F19: 0 | G19: 0 | H19: 6 | I19: 1 | J19: 5 | K19: 12.9899 | L19: 1.129899 | M19: 1.07 | N19: 1.209 | O19: 6.7238 | P19: 1 | Q19: 0.7470888889 | R19: 0.5 | S19: 0.625 | T19: 1.872088889 | U19: 1.229 | V19: 1.2491 | X19: ค่าFactor F ที่ได้ | Z19: =ROUND((Z15-((Z15-Z18)*(Y14-Y15)/(Y18-Y15))),4) ->  | AA19: ตรัง | AB19: 1
B20: 50 | C20: 6.4552 | D20: 18 | E20: 3 | F20: 0 | G20: 0 | H20: 6 | I20: 1 | J20: 5 | K20: 12.4552 | L20: 1.124552 | M20: 1.07 | N20: 1.2033 | O20: 6.1674 | P20: 1 | Q20: 0.770925 | R20: 0.5 | S20: 0.625 | T20: 1.895925 | U20: 1.2236 | V20: 1.2438 | X20: 0 | Y20: 5 | Z20: 7 | AA20: นครพนม | AB20: 1
B21: 60 | C21: 5.5919 | D21: 18 | E21: 3 | F21: 0 | G21: 0 | H21: 6 | I21: 1 | J21: 5 | K21: 11.5919 | L21: 1.115919 | M21: 1.07 | N21: 1.194 | O21: 5.303 | P21: 1 | Q21: 0.662875 | R21: 0.5 | S21: 0.625 | T21: 1.787875 | U21: 1.2132 | V21: 1.2323 | X21: 5 | Y21: 6 | Z21: 10 | AA21: นครศรีธรรมราช | AB21: 1
B22: 70 | C22: 5.4048 | D22: 19 | E22: 3 | F22: 0 | G22: 0 | H22: 6 | I22: 1 | J22: 4.5 | K22: 10.9048 | L22: 1.109048 | M22: 1.07 | N22: 1.1867 | O22: 5.107 | P22: 1 | Q22: 0.6738402778 | R22: 0.5 | S22: 0.625 | T22: 1.798840278 | U22: 1.2059 | V22: 1.2252 | X22: 10 | Y22: 7 | AA22: ปราจีนบุรี | AB22: 1
B23: 80 | C23: 5.1508 | D23: 20 | E23: 3 | F23: 0 | G23: 0 | H23: 6 | I23: 1 | J23: 4.5 | K23: 10.6508 | L23: 1.106508 | M23: 1.07 | N23: 1.184 | O23: 4.8426 | P23: 1 | Q23: 0.6725833333 | R23: 0.5 | S23: 0.625 | T23: 1.797583333 | U23: 1.2032 | V23: 1.2224 | X23: 15 | Y23: 8 | AA23: ปัตตานี | AB23: 1
B24: 90 | C24: 4.7692 | D24: 20 | E24: 3 | F24: 0 | G24: 0 | H24: 6 | I24: 1 | J24: 4.5 | K24: 10.2692 | L24: 1.102692 | M24: 1.07 | N24: 1.1799 | O24: 4.4597 | P24: 1 | Q24: 0.6194027778 | R24: 0.5 | S24: 0.625 | T24: 1.744402778 | U24: 1.1985 | V24: 1.2172 | Y24: 9 | AA24: พัทลุง | AB24: 1
B25: 100 | C25: 4.4639 | D25: 20 | E25: 3 | F25: 0 | G25: 0 | H25: 6 | I25: 1 | J25: 4.5 | K25: 9.9639 | L25: 1.099639 | M25: 1.07 | N25: 1.1766 | O25: 4.1556 | P25: 1 | Q25: 0.5771666667 | R25: 0.5 | S25: 0.625 | T25: 1.702166667 | U25: 1.1948 | V25: 1.213 | Y25: 10 | AA25: สงขลา | AB25: 1
B26: 110 | C26: 4.3795 | D26: 21 | E26: 3 | F26: 0 | G26: 0 | H26: 6 | I26: 1 | J26: 4 | K26: 9.3795 | L26: 1.093795 | M26: 1.07 | N26: 1.1704 | O26: 4.0605 | P26: 1 | Q26: 0.59215625 | R26: 0.5 | S26: 0.625 | T26: 1.71715625 | U26: 1.1887 | V26: 1.2071 | AA26: สตูล | AB26: 1
B27: 120 | C27: 4.3158 | D27: 22 | E27: 3 | F27: 0 | G27: 0 | H27: 6 | I27: 1 | J27: 4 | K27: 9.3158 | L27: 1.093158 | M27: 1.07 | N27: 1.1697 | O27: 3.9862 | P27: 1 | Q27: 0.6090027778 | R27: 0.5 | S27: 0.625 | T27: 1.734002778 | U27: 1.1882 | V27: 1.2068 | AA27: สุราษฎร์ธานี | AB27: 1
B28: 130 | C28: 4.1221 | D28: 22 | E28: 3 | F28: 0 | G28: 0 | H28: 6 | I28: 1 | J28: 4 | K28: 9.1221 | L28: 1.091221 | M28: 1.07 | N28: 1.1676 | O28: 3.7932 | P28: 1 | Q28: 0.5795166667 | R28: 0.5 | S28: 0.625 | T28: 1.704516667 | U28: 1.1858 | V28: 1.2041 | AA28: หนองคาย | AB28: 1
B29: 140 | C29: 3.956 | D29: 22 | E29: 3 | F29: 0 | G29: 0 | H29: 6 | I29: 1 | J29: 4 | K29: 8.956 | L29: 1.08956 | M29: 1.07 | N29: 1.1658 | O29: 3.6258 | P29: 1 | Q29: 0.5539416667 | R29: 0.5 | S29: 0.625 | T29: 1.678941667 | U29: 1.1838 | V29: 1.2018 | AA29: ตราด | AB29: 2
B30: 150 | C30: 3.8121 | D30: 22 | E30: 3 | F30: 0 | G30: 0 | H30: 6 | I30: 1 | J30: 4 | K30: 8.8121 | L30: 1.088121 | M30: 1.07 | N30: 1.1643 | O30: 3.4832 | P30: 1 | Q30: 0.5321555556 | R30: 0.5 | S30: 0.625 | T30: 1.657155556 | U30: 1.182 | V30: 1.1998 | AA30: นราธิวาส | AB30: 2
B31: 160 | C31: 3.7934 | D31: 22 | E31: 3 | F31: 0 | G31: 0 | H31: 6 | I31: 1 | J31: 4 | K31: 8.7934 | L31: 1.087934 | M31: 1.07 | N31: 1.1641 | O31: 3.464 | P31: 1 | Q31: 0.5292222222 | R31: 0.5 | S31: 0.625 | T31: 1.654222222 | U31: 1.1818 | V31: 1.1995 | AA31: พังงา | AB31: 2
B32: 170 | C32: 3.7057 | D32: 22 | E32: 3 | F32: 0 | G32: 0 | H32: 6 | I32: 1 | J32: 4 | K32: 8.7057 | L32: 1.087057 | M32: 1.07 | N32: 1.1632 | O32: 3.3761 | P32: 1 | Q32: 0.5157930556 | R32: 0.5 | S32: 0.625 | T32: 1.640793056 | U32: 1.1807 | V32: 1.1983 | AA32: ภูเก็ต | AB32: 2
B33: 180 | C33: 3.6034 | D33: 22 | E33: 3 | F33: 0 | G33: 0 | H33: 6 | I33: 1 | J33: 4 | K33: 8.6034 | L33: 1.086034 | M33: 1.07 | N33: =ROUND(L33*M33,4) -> 1.1621 | O33: 3.2745 | P33: 1 | Q33: 0.5002708333 | R33: 0.5 | S33: 0.625 | T33: 1.625270833 | U33: 1.1794 | V33: 1.1968 | AA33: ยะลา | AB33: 2
B34: 190 | C34: 3.6301 | D34: 23 | E34: 3 | F34: 0 | G34: 0 | H34: 6 | I34: 1 | J34: 3.5 | K34: 8.1301 | L34: 1.081301 | M34: 1.07 | N34: =ROUND(L34*M34,4) -> 1.157 | O34: 3.2907 | P34: 1 | Q34: 0.5255979167 | R34: 0.5 | S34: 0.625 | T34: 1.650597917 | U34: 1.1747 | V34: 1.1923 | AA34: ระนอง | AB34: 2
B35: 200 | C35: 3.544 | D35: 23 | E35: 3 | F35: 0 | G35: 0 | H35: 6 | I35: 1 | J35: 3.5 | K35: 8.044 | L35: 1.08044 | M35: 1.07 | N35: =ROUND(L35*M35,4) -> 1.1561 | O35: 3.2045 | P35: 1 | Q35: 0.5118298611 | R35: 0.5 | S35: 0.625 | T35: 1.636829861 | U35: 1.1736 | V35: 1.1911 | AA35: ลาว | AB35: 3
B36: 210 | C36: 3.466 | D36: 23 | E36: 3 | F36: 0 | G36: 0 | H36: 6 | I36: 1 | J36: 3.5 | K36: 7.966 | L36: 1.07966 | M36: 1.07 | N36: 1.1552 | O36: 3.1264 | P36: 1 | Q36: 0.4993555556 | R36: 0.5 | S36: 0.625 | T36: 1.624355556 | U36: 1.1726 | V36: 1.19
B37: 220 | C37: 3.3951 | D37: 23 | E37: 3 | F37: 0 | G37: 0 | H37: 6 | I37: 1 | J37: 3.5 | K37: 7.8951 | L37: 1.078951 | M37: 1.07 | N37: 1.1545 | O37: 3.0558 | P37: 1 | Q37: 0.4880791667 | R37: 0.5 | S37: 0.625 | T37: 1.613079167 | U37: 1.1717 | V37: 1.189
B38: 230 | C38: 3.3304 | D38: 23 | E38: 3 | F38: 0 | G38: 0 | H38: 6 | I38: 1 | J38: 3.5 | K38: 7.8304 | L38: 1.078304 | M38: 1.07 | N38: 1.1538 | O38: 2.9907 | P38: 1 | Q38: 0.47768125 | R38: 0.5 | S38: 0.625 | T38: 1.60268125 | U38: 1.1709 | V38: 1.1881
B39: 240 | C39: 3.2711 | D39: 23 | E39: 3 | F39: 0 | G39: 0 | H39: 6 | I39: 1 | J39: 3.5 | K39: 7.7711 | L39: 1.077711 | M39: 1.07 | N39: 1.1532 | O39: 2.9311 | P39: 1 | Q39: 0.4681618056 | R39: 0.5 | S39: 0.625 | T39: 1.593161806 | U39: 1.1702 | V39: 1.1872
B40: 250 | C40: 3.2165 | D40: 23 | E40: 3 | F40: 0 | G40: 0 | H40: 6 | I40: 1 | J40: 3.5 | K40: 7.7165 | L40: 1.077165 | M40: 1.07 | N40: 1.1526 | O40: 2.8783 | P40: 1 | Q40: 0.4597284722 | R40: 0.5 | S40: 0.625 | T40: 1.584728472 | U40: 1.1695 | V40: 1.1865
